Workbook

Sheet Info
B2: Updated On : 30-08-2023
F3: Programmer
B4: Youtube Help Video ☞ (Please subscribe my channel)
B6: सहायक बिंदु:- 1. सर्वप्रथम "Master" शीट में विद्यालय का नाम तथा अन्य आवश्यक पूर्तियां करें. 2. बजट प्रस्ताव के अधिकांश प्रपत्र स्वत: निर्मित हो जायेंगे कुछ प्रपत्र में कुछ पूर्तियां मनुअली पूर्ति करें. 3. पद नाम तथा उनका संख्यात्मक विवर केवल Format 1A में एडिट करें. 4. हिंदी में Devlys 010 फॉण्ट को ही प्राथमिकता देवें. 5. यह बजट प्रस्ताव अधिक कार्मिकों वाले बजट हेड (जैसे पीडी मद-CBEO कार्यालय) के लिए भी उपयोग में लिया जा सकता है. 6. किसी प्रपत्र को प्रिंट करने से पूर्व अवांछित Rows अथवा Columns को आवश्यकतानुसार Hide कर सकते हैं. | F6: UMMED TARAD Email id-ummedtrdedu@gmail.com
B7: नोट:- हालाँकि यह प्रोग्राम पूर्ण सावधानी से बनाया गया है, फिर भी किसी प्रकार की त्रुटी की स्थिति में आपके विवेक का इस्तेमाल करें l इसे अंतिम रूप देने से पहले इसे भली-भांति रूप अवश्य जाँच लेवेंl

Sheet Master
C1: dk;kZy; dk uke ¼vaxzsth esa½ % | E1: Principal | H1: Govt. Sr. Sec. School Raimalwada
C2: dk;kZy; dk uke ¼fgUnh esa½ % | E2: =IF(E1="Principal ","ç/kkukpk;Z]","eq[; CykWd f'k{kk vf/kdkjh]") -> ç/kkukpk;Z] | H2: jkmekfo jk;eyok³k | L2: ys[kk 'kk[kk dkfeZd ¼v½
C3: vkWfQl vkbZ-Mh- la[;k % | E3: 12345 | G3: laLFkk iz/kku dk uke%& | L3: eksckbZy ua- %& | AE3: ctV en
C4: ctV vuqeku fofÙk; o"kZ % | E4: 2023-24 | G4: eksckbZy ua- %& | L4: ys[kk 'kk[kk dkfeZd ¼c½ | AI4: NON PLAN - GIRLS | AJ4: 2202-02-109-(28)-(01) (STATE FUND) | AK4: 2202 -सामान्य शिक्षा-02-109 -राजकीय माध्यमिक विद्यालय-28 -बालिका विद्यालय-01 -बालिका विद्यालयों का संचालन व्यय (STATE FUND)
C5: ctV en % | E5: PLAN (RMSA) - 01 | G5: =VLOOKUP(E5,AI4:AN35,2,FALSE) -> 2202-02-109-(07)-(01) (STATE FUND+CENTRAL ASS.) | L5: eksckbZy ua- %& | AI5: NON PLAN - BOYS | AJ5: 2202-02-109-(27)-(01) STATE FUND | AK5: 2202 -सामान्य शिक्षा-02-109 -राजकीय माध्यमिक विद्यालय-27 -लडकों के विद्यालय-01 -लडकों के विद्यालयों का संचालन व्यय (STATE FUND)
C6: okLrfod O;; ds vkadMksa dh uhps izfof"B djsa A | L6: Youtube Help Video ↓ (Please subscribe my channel) | AI6: NON PLAN (TRIBAL AREA) - BOYS | AJ6: 2202-02-796-(02)-(06) (STATE FUND) | AK6: 2202 -सामान्य शिक्षा-02-796 -जनजातीय क्षेत्र उपयोजना-02 -राजकीय माध्यमिक विद्यालय-06 -लडकों के विद्यालय का संचालन व्यय (STATE FUND)
C7: Ø-la- | D7: foLr`r ys[kk 'kh"kZd | E7: ctV vkoaVu ¼pkyw o"kZ½ | F7: okLrfod O;; vkadM+s | AI7: NON PLAN (TRIBAL AREA) - GIRLS | AJ7: 2202-02-796-(02)-(07) (STATE FUND) | AK7: 2202 -सामान्य शिक्षा-02-796 -जनजातीय क्षेत्र उपयोजना-02 -राजकीय माध्यमिक विद्यालय-07 -बालिका के विद्यालय का संचालन व्यय (STATE FUND)
F8: =CONCATENATE((MID(Master!E4,1,4)-3),"-",(MID(Master!E4,6,2)-3)) -> 2020-21 | G8: =CONCATENATE((MID(Master!E4,1,4)-2),"-",(MID(Master!E4,6,2)-2)) -> 2021-22 | H8: =CONCATENATE((MID(Master!E4,1,4)-1),"-",(MID(Master!E4,6,2)-1)) -> 2022-23 | K8: =CONCATENATE((MID(Master!E4,1,4)),"-",(MID(Master!E4,6,2))) -> 2023-24 | AI8: PLAN - BOYS | AJ8: 2202-02-109-(01) (STATE FUND) | AK8: 2202 -सामान्य शिक्षा-02-109 -राजकीय माध्यमिक विद्यालय-01 -लडकों के विद्यालय-00 -- (STATE FUND)
E9: =CONCATENATE((MID(Master!E4,1,4)),"-",(MID(Master!E4,6,2))) -> 2023-24 | F9: =CONCATENATE("vizSy ",(MID(F8,3,2))," ls ekpZ ",(MID(F8,3,2)+1)," rd") -> vizSy 20 ls ekpZ 21 rd | G9: =CONCATENATE("vizSy ",(MID(G8,3,2))," ls ekpZ ",(MID(G8,3,2)+1)," rd") -> vizSy 21 ls ekpZ 22 rd | H9: =CONCATENATE("vizSy ",(MID(H8,3,2))," ls tqykbZZ ",(MID(H8,3,2))," rd") -> vizSy 22 ls tqykbZZ 22 rd | I9: =CONCATENATE("vxLr ",(MID(H8,3,2))," ls ekpZ ",(MID(H8,3,2)+1)," rd") -> vxLr 22 ls ekpZ 23 rd | J9: =CONCATENATE("vizSy ",(MID(H8,3,2))," ls ekpZ ",(MID(H8,3,2)+1)," rd") -> vizSy 22 ls ekpZ 23 rd | K9: =CONCATENATE("vizSy ",(MID(K8,3,2))," ls tqykbZ ",(MID(K8,3,2))," rd") -> vizSy 23 ls tqykbZ 23 rd | AI9: PLAN - GIRLS | AJ9: 2202-02-109-(02) (STATE FUND) | AK9: 2202 -सामान्य शिक्षा-02-109 -राजकीय माध्यमिक विद्यालय-02 -बालिका विद्यालय-00 -- (STATE FUND)
C10: 1 | D10: 2 | E10: 3 | F10: 4 | G10: 5 | H10: 6 | I10: 7 | J10: 8 | K10: 9 | AI10: SEC CA 113-01-01 | AJ10: 2202-02-113-(01)-(01) (CANTRAL FUND) | AK10: 2202 -सामान्य शिक्षा-02-113 -समग्र शिक्षा-01 -माध्यमिक शिक्षा के अन्तर्गत समग्र शिक्षा-01 -समग्र शिक्षा पर व्यय सामान्य
C11: 1 | D11: 01&laosru | E11: 0 | F11: 0 | G11: 0 | H11: 0 | I11: 0 | J11: =SUM(H11:I11) -> 0 | K11: 0 | AI11: PLAN (TRIBAL AREA) - BOYS | AJ11: 2202-02-796-(02)-01 (STATE FUND) | AK11: 2202 -सामान्य शिक्षा-02-796 -जनजातीय क्षेत्र उपयोजना-02 -राजकीय माध्यमिक विद्यालय-01 -लड़कों के विद्यालय (STATE FUND)
C12: 2 | D12: 03&;k=k O;; | E12: 0 | F12: 0 | G12: 0 | H12: 0 | I12: 0 | J12: =SUM(H12:I12) -> 0 | K12: 0 | AI12: PLAN (TRIBAL AREA) - GIRLS | AJ12: 2202-02-796-(02)-(02) (STATE FUND) | AK12: 2202 -सामान्य शिक्षा-02-796 -जनजातीय क्षेत्र उपयोजना-02 -राजकीय माध्यमिक विद्यालय-02 -बालिका विद्यालय (STATE FUND)
C13: 3 | D13: 04&fpfdRlk O;; | E13: 0 | F13: 0 | G13: 0 | H13: 0 | I13: 0 | J13: =SUM(H13:I13) -> 0 | K13: 0 | AI13: PLAN (789) | AJ13: 2202-02-789-(01)-(01) (STATE FUND) | AK13: 2202 -सामान्य शिक्षा-02-789 -अनुसूचित जातियों के लिए विशिष्ट संघटक योजना-01 -विशिष्ठ संघटक योजना (अनुसूचित जातियों के लिये)-01 -लड़को के विद्यालय (आवासीय विद्यालय) (STATE FUND)
D14: dqy ;ksx izi= 8 | E14: =SUM(E11:E13) -> 0 | F14: =SUM(F11:F13) -> 0 | G14: 0 | H14: 0 | I14: 0 | J14: 0 | K14: 0 | AI14: PLAN (RMSA) - 01 | AJ14: 2202-02-109-(07)-(01) (STATE FUND+CENTRAL ASS.) | AK14: 2202 -सामान्य शिक्षा-02-109 -राजकीय माध्यमिक विद्यालय-07 -राष्ट्रीय माध्यमिक शिक्षा अभियान-01 -माध्यमिक शिक्षा अभियान- सामान्य व्यय (S.F. + C.A.)
D15: 05&dk;kZy; O;; | E15: 0 | I15: 0 | J15: =SUM(H15:I15) -> 0 | AI15: PLAN (RMSA) - 02 | AJ15: 2202-02-109-(07)-(02) (STATE FUND) | AK15: 2202 -सामान्य शिक्षा-02-109 -राजकीय माध्यमिक विद्यालय-07 -राष्ट्रीय माध्यमिक शिक्षा अभियान-02 -माध्यमिक शिक्षा अभियान - अनुसूचित जातियों के लिए (S.F. + C.A.)
C16: 1 | D16: Mkd fVdV | E16: 0 | F16: 0 | G16: 0 | H16: 0 | I16: 0 | J16: =SUM(H16:I16) -> 0 | K16: 0 | AI16: PLAN (RMSA) - 03 | AJ16: 2202-02-109-(07)-(03) (STATE FUND) | AK16: 2202 -सामान्य शिक्षा-02-109 -राजकीय माध्यमिक विद्यालय-07 -राष्ट्रीय माध्यमिक शिक्षा अभियान-03 -माध्यमिक शिक्षा अभियान - अनुसूचित जन जातियों के लिए (S.F. + C.A.)
C17: 2 | D17: nwjHkk"k | E17: 0 | F17: 0 | G17: 0 | H17: 0 | I17: 0 | J17: 0 | K17: 0 | AI17: Central (113-01) | AJ17: 2202-01-113-(01)-(01) | AK17: 2202 -सामान्य शिक्षा-01-113 -समग्र शिक्षा -01 -प्रारम्भिक शिक्षा अंतर्गत समग्र शिक्षा-01 -समग्र शिक्षा पर व्यय सामान्य
C18: 3 | D18: fctyh ikuh | E18: 0 | F18: 0 | G18: 0 | H18: 0 | I18: 0 | J18: 0 | K18: 0 | AI18: Central (113-02) | AJ18: 2202-01-113-(01)-(02) | AK18: 2202 -सामान्य शिक्षा-01-113 -समग्र शिक्षा -01 -प्रारम्भिक शिक्षा अंतर्गत समग्र शिक्षा-02 -समग्र शिक्षा अंतर्गत अनुसूचित जातियों के लिए विशिष्ठ संघटक योजना (SCSP) पर व्यय
C19: 4 | D19: iqLrdsa o pkVZ~l | E19: 0 | F19: 0 | G19: 0 | H19: 0 | I19: 0 | J19: 0 | K19: 0 | AI19: Central (113-03) | AJ19: 2202-01-113-(01)-(03) | AK19: 2202 -सामान्य शिक्षा-01-113 -समग्र शिक्षा -01 -प्रारम्भिक शिक्षा अंतर्गत समग्र शिक्षा-03 -समग्र शिक्षा अंतर्गत जनजातियों क्षेत्र उपयोजना (TSP) पर व्यय
C20: 5 | D20: QuhZpj | E20: 0 | F20: 0 | G20: 0 | H20: 0 | I20: 0 | J20: 0 | K20: 0 | AI20: State (197-03-01) | AJ20: 2202-01-197-(03)-(01) | AK20: 2202 -सामान्य शिक्षा-01-प्रारम्भिक शिक्षा-197-ब्लॉक/मध्यवर्ती स्तर की पंचायतें-03 -बालकों हेतु प्राथमिक विद्यालय-(01)-स्थापना व्य्य (STATE FUND)
C21: 6 | D21: vU; O;; | E21: 0 | F21: 0 | G21: 0 | H21: 0 | I21: 0 | J21: 0 | K21: 0 | AI21: State (101-03-00) | AJ21: 2202-01-101-(03)-(00) | AK21: 2202 -सामान्य शिक्षा-01-101 -राजकीय प्राथमिक विद्यालय-03 -बालकों के लिए प्राथमिक विद्यालय-00 (STATE FUND)
C22: 7 | D22: LVs'kujh | E22: 0 | F22: 0 | G22: 0 | H22: 0 | I22: 0 | J22: 0 | K22: 0 | AI22: State (197-01-02) | AJ22: 2202-01-197-(01)-(02) | AK22: 2202 -सामान्य शिक्षा-01-197 -ब्लॉक स्तर / मध्यवर्ती स्तर की पंचायतों को सहायता -01 -उच्च प्राथमिक विद्यालय (बालक)-02 -बालकों के विद्यालय का संचालन व्यय (STATE FUND)
C23: 8 | D23: NikbZ | E23: 0 | F23: 0 | G23: 0 | H23: 0 | I23: 0 | J23: 0 | K23: 0 | AI23: State (197-01-01) | AJ23: 2202-01-197-(01)-(01) | AK23: 2202 -सामान्य शिक्षा-01-197 -ब्लॉक स्तर / मध्यवर्ती स्तर की पंचायतों को सहायता -01 -उच्च प्राथमिक विद्यालय (बालक)-01 -स्थापना व्यय
D24: dqy ;ksx dk;kZy; O;; ¼v½ | E24: =SUM(E15:E23) -> 0 | F24: =SUM(F15:F23) -> 0 | G24: 0 | H24: 0 | I24: 0 | J24: 0 | K24: 0 | AI24: State (197-02-01) | AJ24: 2202-01-197-(02)-(01) | AK24: 2202 -सामान्य शिक्षा-01-197 -ब्लॉक स्तर / मध्यवर्ती स्तर की पंचायतों को सहायता -02 -उच्च प्राथमिक विद्यालय (बालिका)-01 -स्थापना व्यय
C25: 1 | D25: 28&fofo/k | E25: 0 | F25: 0 | G25: 0 | H25: 0 | I25: 0 | J25: =SUM(H25:I25) -> 0 | K25: 0 | AI25: State (197-02-02) | AJ25: 2202-01-197-(02)-(02) | AK25: 2202 -सामान्य शिक्षा-01-197 -ब्लॉक स्तर / मध्यवर्ती स्तर की पंचायतों को सहायता -02 -उच्च प्राथमिक विद्यालय (बालिका)-02 -बालिकाओं के विद्यालय का संचालन व्यय
C26: 2 | D26: 31&iqLrdky; | E26: 0 | F26: 0 | G26: 0 | H26: 0 | I26: 0 | J26: =SUM(H26:I26) -> 0 | K26: 0 | AI26: PD (8443-106) | AJ26: 2202-01-197-16-(01) | AK26: 2202 -सामान्य शिक्षा-01-197 -ब्लॉक स्तर / मध्यवर्ती स्तर की पंचायतों को सहायता -16 -प्राथमिक विद्यालयों के लिए पंचायत समितियों को अनुदान-01 -विद्यालय संचालन पर व्यय
C27: 3 | D27: 33&iz;ksx'kkyk | E27: 0 | F27: 0 | G27: 0 | H27: 0 | I27: 0 | J27: =SUM(H27:I27) -> 0 | K27: 0 | AI27: State (197-03-02) | AJ27: 2202-01-197-(03)-(02) | AK27: 2202 -सामान्य शिक्षा-01-197 -ब्लॉक स्तर / मध्यवर्ती स्तर की पंचायतों को सहायता -03 -प्राथमिक विद्यालय (बालक)-02 -बालकों के विद्यालय का संचालन व्यय
C28: 4 | D28: 57&fof'k"V lsok,sa | E28: 0 | F28: 0 | G28: 0 | H28: 0 | I28: 0 | J28: =SUM(H28:I28) -> 0 | K28: 0 | AI28: State (101-03-00) | AJ28: 2202-01-101-(03)-(00) | AK28: 2202 -सामान्य शिक्षा-01-101 -राजकीय प्राथमिक विद्यालय-03 -बालकों के लिए प्राथमिक विद्यालय-00 --
C29: 5 | D29: 37&ofnZ;ka | E29: 0 | F29: 0 | G29: 0 | H29: 0 | I29: 0 | J29: =SUM(H29:I29) -> 0 | K29: 0
D30: dqy ;ksx 1 ls 7 ¼c½ | E30: =SUM(E25:E29) -> 0 | F30: =SUM(F25:F29) -> 0 | G30: 0 | H30: 0 | I30: 0 | J30: 0 | K30: 0
D31: dqy ;ksx ¼v½$¼c½ | E31: =SUM(E30,E24) -> 0 | F31: =SUM(F30,F24) -> 0 | G31: 0 | H31: 0 | I31: 0 | J31: 0 | K31: 0
D32: loZ ;ksx | E32: =SUM(E14,E31) -> 0 | F32: =SUM(F14,F31) -> 0 | G32: 0 | H32: 0 | I32: 0 | J32: 0 | K32: 0
C33: okLrfod vk; ds vkadMksa dh uhps izfof"B djsa A
C34: Ø-la- | D34: foLr`r ys[kk 'kh"kZd | E34: okLrfod vk; ds vkadM+s
E35: okLrfod vk; vkadM+s ¼xr rhu o"kksZa ds½ | H35: vk; O;; vuqeku pkyw o"kZ | I35: okLrfod vk; ds vkadM+s | L35: vxLr ls ekpZ rd dk lEHkkfor vk; ¼pkyw o"kZ½ | M35: l'kksf/kr vuqeku ¼pkyw o"kZ½ ¼08$10½ | N35: vk; O;;d vuqeku ¼vkxkeh o"kZ½
E36: 2020-21 | F36: 2021-22 | G36: 2022-23 | H36: 2023-24 | I36: vxLr 22 ls ekpZ 23 rd | J36: vizSy 23 ls tqykbZ 23 rd | K36: dkWye 7 o 8 dk ;ksx
C37: 1 | D37: 2 | E37: 3 | F37: 4 | G37: 5 | H37: 6 | I37: 7 | J37: 8 | K37: 9 | L37: 10 | M37: 11 | N37: 12
C38: 1 | D38: izos'k 'kqYd | E38: 0 | F38: 0 | G38: 0 | H38: 0 | I38: 0 | J38: 0 | K38: =SUM(I38:J38) -> 0 | L38: 0 | M38: =SUM(J38+L38) -> 0 | N38: 0
C39: 2 | D39: Vh-lh- 'kqYd | K39: =SUM(I39:J39) -> 0 | M39: =SUM(J39+L39) -> 0
C40: 3 | D40: uhykeh | E40: 0 | F40: 0 | G40: 0 | H40: 0 | I40: 0 | J40: 0 | K40: 0 | L40: 0 | M40: 0 | N40: 0
C41: 4 | D41: Hkou fdjk;k | E41: 0 | F41: 0 | G41: 0 | H41: 0 | I41: 0 | J41: 0 | K41: 0 | L41: 0 | M41: 0 | N41: 0
C42: 5 | D42: vU; vk; ¼fo|kFkhZ nq/kZ chek½ | E42: 0 | F42: 0 | G42: 0 | H42: 0 | I42: 0 | J42: 0 | K42: 0 | L42: 0 | M42: 0 | N42: 0
C43: 6 | D43: va'knku @ o`fRrnku | E43: 0 | F43: 0 | G43: 0 | H43: 0 | I43: 0 | J43: 0 | K43: 0 | L43: 0 | M43: 0 | N43: 0
D44: dqy ;ksx | E44: =SUM(E38:E43) -> 0 | F44: =SUM(F38:F43) -> 0 | G44: 0 | H44: 0 | I44: 0 | J44: 0 | K44: 0 | L44: 0 | M44: 0 | N44: 0
C45: izos'k ,oa Vh-lh- ls vk; ds vkadMksa dh uhps izfof"B djsa A
C47: fooj.k | D47: o"kZ 2023&24 dk la'kksf/kr | H47: o"kZ 2023&24 dk la'kksf/kr vk; | I47: o"kZ 2024&25 dk vuqekfur | M47: o"kZ 2024&25 dk vuqekfur vk;
D48: izos'k 'kqYd @ 10/- | F48: LFkkukUrj.k 'kqYd @ 5/- | I48: izos'k 'kqYd @ 10/- | K48: LFkkukUrj.k 'kqYd @ 5/-
D49: Nk= la[;k | E49: jkf'k | F49: Nk= la[;k | G49: jkf'k | I49: Nk= la[;k | J49: jkf'k | K49: Nk= la[;k | L49: jkf'k
C50: d{kk 9 | D50: 0 | E50: =D50*10 -> 0 | F50: 0 | G50: =F50*5 -> 0 | H50: =SUM(E50,G50) -> 0 | I50: 0 | J50: =I50*10 -> 0 | K50: 0 | L50: =K50*5 -> 0 | M50: =SUM(J50,L50) -> 0
C51: d{kk 10 | D51: 0 | E51: =D51*10 -> 0 | F51: 0 | G51: =F51*5 -> 0 | H51: =SUM(E51,G51) -> 0 | I51: 0 | J51: =I51*10 -> 0 | K51: 0 | L51: =K51*5 -> 0 | M51: =SUM(J51,L51) -> 0
C52: d{kk 11 | D52: 0 | E52: =D52*10 -> 0 | F52: 0 | G52: =F52*5 -> 0 | H52: =SUM(E52,G52) -> 0 | I52: 0 | J52: =I52*10 -> 0 | K52: 0 | L52: =K52*5 -> 0 | M52: =SUM(J52,L52) -> 0
C53: d{kk 12 | D53: 0 | E53: =D53*10 -> 0 | F53: 0 | G53: =F53*5 -> 0 | H53: =SUM(E53,G53) -> 0 | I53: 0 | J53: =I53*10 -> 0 | K53: 0 | L53: =K53*5 -> 0 | M53: =SUM(J53,L53) -> 0
C54: dqy ;ksx | D54: =SUM(D50:D53) -> 0 | E54: =SUM(E50:E53) -> 0 | F54: =SUM(F50:F53) -> 0 | G54: 0 | H54: 0 | I54: 0 | J54: 0 | K54: 0 | L54: 0 | M54: 0
C56: dk;kZy;@fo|ky; esa dk;Zjr deZpkfj;ksa ,oa fjDr in ds vkadMksa dh uhps izfof"B djsa A
C58: Ø-la- | D58: deZpkjh dk uke | E58: Post | F58: Pay Matrics Level | G58: Basic Pay | H58: Employee ID No. | I58: GPF/PRAN No. | J58: Gender | K58: Handicaped | L58: Cashier Allowance | M58: GAZETTED / NON GAZETTED | AE58: Ø-la- | AF58: GAZETTED - REGULAR | AR58: Ø-la- | AS58: NON GAZETTED - REGULAR | BE58: Ø-la- | BF58: GAZETTED - FIX PAY | BR58: Ø-la- | BS58: NON GAZETTED - FIX PAY | CE58: Ø-la- | CF58: GAZETTED - SANVIDA | CR58: Ø-la- | CS58: NON GAZETTED - SANVIDA
AF59: deZpkjh dk uke | AG59: Post | AH59: Grade Pay | AI59: Basic Pay | AJ59: Employee ID No. | AK59: GPF/PRAN No. | AL59: Gender | AM59: Handicaped | AN59: Cash All | AS59: deZpkjh dk uke | AT59: Post | AU59: Grade Pay | AV59: Basic Pay | AW59: Employee ID No. | AX59: GPF/PRAN No. | AY59: Gender | AZ59: Handicaped | BA59: Cash All | BF59: deZpkjh dk uke | BG59: Post | BH59: Grade Pay | BI59: Basic Pay | BJ59: Employee ID No. | BK59: FIX PAY / SANVIDA | BL59: Gender | BM59: Handicaped | BN59: Cash All | BS59: deZpkjh dk uke | BT59: Post | BU59: Grade Pay | BV59: Basic Pay | BW59: Employee ID No. | BX59: FIX PAY / SANVIDA | BY59: Gender | BZ59: Handicaped | CA59: Cash All | CF59: deZpkjh dk uke | CG59: Post | CH59: Grade Pay | CI59: Basic Pay | CJ59: Employee ID No. | CK59: FIX PAY / SANVIDA | CL59: Gender | CM59: Handicaped | CN59: Cash All | CS59: deZpkjh dk uke | CT59: Post | CU59: Grade Pay | CV59: Basic Pay | CW59: Employee ID No. | CX59: FIX PAY / SANVIDA | CY59: Gender | CZ59: Handicaped | DA59: Cash All
A60: =IF(OR(D60="in fjDr",D60="पद रिक्त",D60="Blank",D60="Post Blank"),0,E60) -> PRINCIPAL | B60: =F60 -> L-16 | C60: 1 | D60: ABC | E60: PRINCIPAL | F60: L-16 | G60: 69300 | H60: RJJO201525014204 | M60: GAZETTED - REGULAR | AB60: =MID(H60,5,4) -> 2015 | AC60: =IF(F60<=0,1,0)*(IF(M60="SANVIDA",0,1)) -> 0 | AD60: =IF(AND(AP60=""),"",IF(AP60=0,"",AP60)) -> 1 | AE60: 1 | AF60: =IF($M60="GAZETTED - REGULAR",D60,0) -> ABC | AG60: PRINCIPAL | AH60: L-16 | AI60: 69300 | AJ60: RJJO201525014204 | AK60: 0 | AL60: 0 | AM60: 0 | AN60: 0 | AO60: GAZETTED - REGULAR | AP60: =IF(AND(M60=""),"",IF(M60=AF$58,1,0)) -> 1 | AQ60: =IF(AND(BC60=""),"",IF(BC60=0,"",BC60)) ->  | AR60: 1 | AS60: =IF($M60="NON GAZETTED - REGULAR",D60,0) -> 0 | AT60: 0 | AU60: 0 | AV60: 0 | AW60: 0 | AX60: 0 | AY60: 0 | AZ60: 0 | BA60: 0 | BB60: 0 | BC60: =IF(AND(M60=""),"",IF(M60=AS$58,1,0)) -> 0 | BD60: =IF(AND(BP60=""),"",IF(BP60=0,"",BP60)) ->  | BE60: 1 | BF60: =IF($M60="GAZETTED - FIX PAY",D60,0) -> 0 | BG60: 0 | BH60: 0 | BI60: 0 | BJ60: 0 | BK60: 0 | BL60: 0 | BM60: 0 | BN60: 0 | BO60: 0 | BP60: =IF(AND(M60=""),"",IF(M60=BF$58,1,0)) -> 0 | BQ60: =IF(AND(CC60=""),"",IF(CC60=0,"",CC60)) ->  | BR60: 1 | BS60: =IF($M60="NON GAZETTED - FIX PAY",D60,0) -> 0 | BT60: 0 | BU60: 0 | BV60: 0 | BW60: 0 | BX60: 0 | BY60: 0 | BZ60: 0 | CA60: 0 | CB60: 0 | CC60: =IF(AND(M60=""),"",IF(M60=BS$58,1,0)) -> 0 | CD60: =IF(AND(CP60=""),"",IF(CP60=0,"",CP60)) ->  | CE60: 1 | CF60: =IF($M60="GAZETTED - SANVIDA",D60,0) -> 0 | CG60: 0 | CH60: 0 | CI60: 0 | CJ60: 0 | CK60: 0 | CL60: 0 | CM60: 0 | CN60: 0 | CO60: 0 | CP60: =IF(AND(M60=""),"",IF(M60=CF$58,1,0)) -> 0 | CQ60: =IF(AND(DC60=""),"",IF(DC60=0,"",DC60)) ->  | CR60: 1 | CS60: =IF($M60="NON GAZETTED - SANVIDA",D60,0) -> 0 | CT60: =IF($M60="NON GAZETTED - SANVIDA",E60,0) -> 0 | CU60: =IF($M60="NON GAZETTED - SANVIDA",F60,0) -> 0 | CV60: =IF($M60="NON GAZETTED - SANVIDA",G60,0) -> 0 | CW60: =IF($M60="NON GAZETTED - SANVIDA",H60,0) -> 0 | CX60: =IF($M60="NON GAZETTED - SANVIDA",I60,0) -> 0 | CY60: =IF($M60="NON GAZETTED - SANVIDA",J60,0) -> 0 | CZ60: =IF($M60="NON GAZETTED - SANVIDA",K60,0) -> 0 | DA60: =IF($M60="NON GAZETTED - SANVIDA",L60,0) -> 0 | DB60: =IF($M60="NON GAZETTED - SANVIDA",M60,0) -> 0 | DC60: =IF(AND(M60=""),"",IF(M60=CS$58,1,0)) -> 0
A61: =IF(OR(D61="in fjDr",D61="पद रिक्त",D61="Blank",D61="Post Blank"),0,E61) -> LECTURER | B61: =F61 -> L-12 | C61: 2 | D61: ASDGDSG | E61: LECTURER | F61: L-12 | G61: 47800 | H61: RJSR201734033654 | M61: GAZETTED - FIX PAY | AB61: 2017 | AC61: =IF(F61<=0,1,0)*(IF(M61="SANVIDA",0,1)) -> 0 | AD61: =IF(AND(AP61=""),"",IF(AP61=0,"",1+(MAX(AD$60:AD60)))) ->  | AE61: 2 | AF61: =IF($M61="GAZETTED - REGULAR",D61,0) -> 0 | AG61: =IF($M61="GAZETTED - REGULAR",E61,0) -> 0 | AH61: =IF($M61="GAZETTED - REGULAR",F61,0) -> 0 | AI61: =IF($M61="GAZETTED - REGULAR",G61,0) -> 0 | AJ61: =IF($M61="GAZETTED - REGULAR",H61,0) -> 0 | AK61: =IF($M61="GAZETTED - REGULAR",I61,0) -> 0 | AL61: =IF($M61="GAZETTED - REGULAR",J61,0) -> 0 | AM61: =IF($M61="GAZETTED - REGULAR",K61,0) -> 0 | AN61: =IF($M61="GAZETTED - REGULAR",L61,0) -> 0 | AO61: =IF($M61="GAZETTED - REGULAR",M61,0) -> 0 | AP61: 0 | AQ61: =IF(AND(BC61=""),"",IF(BC61=0,"",1+(MAX(AQ$60:AQ60)))) ->  | AR61: 2 | AS61: =IF($M61="NON GAZETTED - REGULAR",D61,0) -> 0 | AT61: 0 | AU61: 0 | AV61: 0 | AW61: 0 | AX61: 0 | AY61: 0 | AZ61: 0 | BA61: 0 | BB61: =IF($M61="NON GAZETTED - REGULAR",M61,0) -> 0 | BC61: 0 | BD61: =IF(AND(BP61=""),"",IF(BP61=0,"",1+(MAX(BD$60:BD60)))) -> 1 | BE61: 2 | BF61: =IF($M61="GAZETTED - FIX PAY",D61,0) -> ASDGDSG | BG61: =IF($M61="GAZETTED - FIX PAY",E61,0) -> LECTURER | BH61: =IF($M61="GAZETTED - FIX PAY",F61,0) -> L-12 | BI61: =IF($M61="GAZETTED - FIX PAY",G61,0) -> 47800 | BJ61: =IF($M61="GAZETTED - FIX PAY",H61,0) -> RJSR201734033654 | BK61: =IF($M61="GAZETTED - FIX PAY",I61,0) -> 0 | BL61: =IF($M61="GAZETTED - FIX PAY",J61,0) -> 0 | BM61: =IF($M61="GAZETTED - FIX PAY",K61,0) -> 0 | BN61: =IF($M61="GAZETTED - FIX PAY",L61,0) -> 0 | BO61: =IF($M61="GAZETTED - FIX PAY",M61,0) -> GAZETTED - FIX PAY | BP61: 1 | BQ61: =IF(AND(CC61=""),"",IF(CC61=0,"",1+(MAX(BQ$60:BQ60)))) ->  | BR61: 2 | BS61: =IF($M61="NON GAZETTED - FIX PAY",D61,0) -> 0 | BT61: =IF($M61="NON GAZETTED - FIX PAY",E61,0) -> 0 | BU61: =IF($M61="NON GAZETTED - FIX PAY",F61,0) -> 0 | BV61: =IF($M61="NON GAZETTED - FIX PAY",G61,0) -> 0 | BW61: =IF($M61="NON GAZETTED - FIX PAY",H61,0) -> 0 | BX61: =IF($M61="NON GAZETTED - FIX PAY",I61,0) -> 0 | BY61: =IF($M61="NON GAZETTED - FIX PAY",J61,0) -> 0 | BZ61: =IF($M61="NON GAZETTED - FIX PAY",K61,0) -> 0 | CA61: =IF($M61="NON GAZETTED - FIX PAY",L61,0) -> 0 | CB61: =IF($M61="NON GAZETTED - FIX PAY",M61,0) -> 0 | CC61: 0 | CD61: =IF(AND(CP61=""),"",IF(CP61=0,"",1+(MAX(CD$60:CD60)))) ->  | CE61: 2 | CF61: =IF($M61="GAZETTED - SANVIDA",D61,0) -> 0 | CG61: =IF($M61="GAZETTED - SANVIDA",E61,0) -> 0 | CH61: =IF($M61="GAZETTED - SANVIDA",F61,0) -> 0 | CI61: =IF($M61="GAZETTED - SANVIDA",G61,0) -> 0 | CJ61: =IF($M61="GAZETTED - SANVIDA",H61,0) -> 0 | CK61: =IF($M61="GAZETTED - SANVIDA",I61,0) -> 0 | CL61: =IF($M61="GAZETTED - SANVIDA",J61,0) -> 0 | CM61: =IF($M61="GAZETTED - SANVIDA",K61,0) -> 0 | CN61: =IF($M61="GAZETTED - SANVIDA",L61,0) -> 0 | CO61: =IF($M61="GAZETTED - SANVIDA",M61,0) -> 0 | CP61: 0 | CQ61: =IF(AND(DC61=""),"",IF(DC61=0,"",1+(MAX(CQ$60:CQ60)))) ->  | CR61: 2 | CS61: 0 | CT61: 0 | CU61: 0 | CV61: 0 | CW61: 0 | CX61: 0 | CY61: 0 | CZ61: 0 | DA61: 0 | DB61: 0 | DC61: 0
A62: TEACHER-II | B62: L-11 | C62: 3 | D62: FGD | E62: TEACHER-II | F62: L-11 | G62: 45100 | H62: RJJO201325036050 | M62: NON GAZETTED - REGULAR | AB62: 2013 | AC62: 0 | AD62: =IF(AND(AP62=""),"",IF(AP62=0,"",1+(MAX(AD$60:AD61)))) ->  | AE62: 3 | AF62: 0 | AG62: 0 | AH62: 0 | AI62: 0 | AJ62: 0 | AK62: 0 | AL62: 0 | AM62: 0 | AN62: =IF($M62="GAZETTED - REGULAR",L62,0) -> 0 | AO62: 0 | AP62: 0 | AQ62: =IF(AND(BC62=""),"",IF(BC62=0,"",1+(MAX(AQ$60:AQ61)))) -> 1 | AR62: 3 | AS62: =IF($M62="NON GAZETTED - REGULAR",D62,0) -> FGD | AT62: =IF($M62="NON GAZETTED - REGULAR",E62,0) -> TEACHER-II | AU62: =IF($M62="NON GAZETTED - REGULAR",F62,0) -> L-11 | AV62: =IF($M62="NON GAZETTED - REGULAR",G62,0) -> 45100 | AW62: =IF($M62="NON GAZETTED - REGULAR",H62,0) -> RJJO201325036050 | AX62: =IF($M62="NON GAZETTED - REGULAR",I62,0) -> 0 | AY62: =IF($M62="NON GAZETTED - REGULAR",J62,0) -> 0 | AZ62: =IF($M62="NON GAZETTED - REGULAR",K62,0) -> 0 | BA62: =IF($M62="NON GAZETTED - REGULAR",L62,0) -> 0 | BB62: NON GAZETTED - REGULAR | BC62: 1 | BD62: =IF(AND(BP62=""),"",IF(BP62=0,"",1+(MAX(BD$60:BD61)))) ->  | BE62: 3 | BF62: 0 | BG62: 0 | BH62: 0 | BI62: 0 | BJ62: 0 | BK62: 0 | BL62: 0 | BM62: 0 | BN62: 0 | BO62: 0 | BP62: 0 | BQ62: =IF(AND(CC62=""),"",IF(CC62=0,"",1+(MAX(BQ$60:BQ61)))) ->  | BR62: 3 | BS62: 0 | BT62: 0 | BU62: 0 | BV62: 0 | BW62: 0 | BX62: 0 | BY62: 0 | BZ62: 0 | CA62: 0 | CB62: 0 | CC62: 0 | CD62: =IF(AND(CP62=""),"",IF(CP62=0,"",1+(MAX(CD$60:CD61)))) ->  | CE62: 3 | CF62: 0 | CG62: 0 | CH62: 0 | CI62: 0 | CJ62: 0 | CK62: 0 | CL62: 0 | CM62: 0 | CN62: 0 | CO62: 0 | CP62: 0 | CQ62: =IF(AND(DC62=""),"",IF(DC62=0,"",1+(MAX(CQ$60:CQ61)))) ->  | CR62: 3 | CS62: 0 | CT62: 0 | CU62: 0 | CV62: 0 | CW62: 0 | CX62: 0 | CY62: 0 | CZ62: 0 | DA62: 0 | DB62: 0 | DC62: 0
A63: TEACHER-III | B63: L-10 | C63: 4 | D63: ZGD | E63: TEACHER-III | F63: L-10 | G63: 36900 | H63: RJJO201725019704 | M63: NON GAZETTED - REGULAR | AB63: 2017 | AC63: 0 | AD63: =IF(AND(AP63=""),"",IF(AP63=0,"",1+(MAX(AD$60:AD62)))) ->  | AE63: 4 | AF63: 0 | AG63: 0 | AH63: 0 | AI63: 0 | AJ63: 0 | AK63: 0 | AL63: 0 | AM63: 0 | AN63: 0 | AO63: 0 | AP63: 0 | AQ63: =IF(AND(BC63=""),"",IF(BC63=0,"",1+(MAX(AQ$60:AQ62)))) -> 2 | AR63: 4 | AS63: ZGD | AT63: TEACHER-III | AU63: L-10 | AV63: 36900 | AW63: RJJO201725019704 | AX63: 0 | AY63: 0 | AZ63: 0 | BA63: 0 | BB63: NON GAZETTED - REGULAR | BC63: 1 | BD63: =IF(AND(BP63=""),"",IF(BP63=0,"",1+(MAX(BD$60:BD62)))) ->  | BE63: 4 | BF63: 0 | BG63: 0 | BH63: 0 | BI63: 0 | BJ63: 0 | BK63: 0 | BL63: 0 | BM63: 0 | BN63: 0 | BO63: 0 | BP63: 0 | BQ63: =IF(AND(CC63=""),"",IF(CC63=0,"",1+(MAX(BQ$60:BQ62)))) ->  | BR63: 4 | BS63: 0 | BT63: 0 | BU63: 0 | BV63: 0 | BW63: 0 | BX63: 0 | BY63: 0 | BZ63: 0 | CA63: 0 | CB63: 0 | CC63: 0 | CD63: =IF(AND(CP63=""),"",IF(CP63=0,"",1+(MAX(CD$60:CD62)))) ->  | CE63: 4 | CF63: 0 | CG63: 0 | CH63: 0 | CI63: 0 | CJ63: 0 | CK63: 0 | CL63: 0 | CM63: 0 | CN63: 0 | CO63: 0 | CP63: 0 | CQ63: =IF(AND(DC63=""),"",IF(DC63=0,"",1+(MAX(CQ$60:CQ62)))) ->  | CR63: 4 | CS63: 0 | CT63: 0 | CU63: 0 | CV63: 0 | CW63: 0 | CX63: 0 | CY63: 0 | CZ63: 0 | DA63: 0 | DB63: 0 | DC63: 0
A64: TEACHER-III | B64: L-10 | C64: 5 | D64: DFBDZFB | E64: TEACHER-III | F64: L-10 | G64: 40300 | H64: RJJO201825018004 | M64: NON GAZETTED - FIX PAY | AB64: 2018 | AC64: 0 | AD64: =IF(AND(AP64=""),"",IF(AP64=0,"",1+(MAX(AD$60:AD63)))) ->  | AE64: 5 | AF64: 0 | AG64: 0 | AH64: 0 | AI64: 0 | AJ64: 0 | AK64: 0 | AL64: 0 | AM64: 0 | AN64: 0 | AO64: 0 | AP64: 0 | AQ64: =IF(AND(BC64=""),"",IF(BC64=0,"",1+(MAX(AQ$60:AQ63)))) ->  | AR64: 5 | AS64: 0 | AT64: 0 | AU64: 0 | AV64: 0 | AW64: 0 | AX64: 0 | AY64: 0 | AZ64: 0 | BA64: 0 | BB64: 0 | BC64: 0 | BD64: =IF(AND(BP64=""),"",IF(BP64=0,"",1+(MAX(BD$60:BD63)))) ->  | BE64: 5 | BF64: 0 | BG64: 0 | BH64: 0 | BI64: 0 | BJ64: 0 | BK64: 0 | BL64: 0 | BM64: 0 | BN64: 0 | BO64: 0 | BP64: 0 | BQ64: =IF(AND(CC64=""),"",IF(CC64=0,"",1+(MAX(BQ$60:BQ63)))) -> 1 | BR64: 5 | BS64: DFBDZFB | BT64: TEACHER-III | BU64: L-10 | BV64: 40300 | BW64: RJJO201825018004 | BX64: 0 | BY64: 0 | BZ64: 0 | CA64: 0 | CB64: NON GAZETTED - FIX PAY | CC64: 1 | CD64: =IF(AND(CP64=""),"",IF(CP64=0,"",1+(MAX(CD$60:CD63)))) ->  | CE64: 5 | CF64: 0 | CG64: 0 | CH64: 0 | CI64: 0 | CJ64: 0 | CK64: 0 | CL64: 0 | CM64: 0 | CN64: 0 | CO64: 0 | CP64: 0 | CQ64: =IF(AND(DC64=""),"",IF(DC64=0,"",1+(MAX(CQ$60:CQ63)))) ->  | CR64: 5 | CS64: 0 | CT64: 0 | CU64: 0 | CV64: 0 | CW64: 0 | CX64: 0 | CY64: 0 | CZ64: 0 | DA64: 0 | DB64: 0 | DC64: 0
A65: TEACHER-III | B65: L-11 | C65: 6 | D65: DBCZFB | E65: TEACHER-III | F65: L-11 | G65: 49300 | H65: RJJO200725008042 | M65: NON GAZETTED - REGULAR | AB65: 2007 | AC65: 0 | AD65: =IF(AND(AP65=""),"",IF(AP65=0,"",1+(MAX(AD$60:AD64)))) ->  | AE65: 6 | AF65: 0 | AG65: 0 | AH65: 0 | AI65: 0 | AJ65: 0 | AK65: 0 | AL65: 0 | AM65: 0 | AN65: 0 | AO65: 0 | AP65: 0 | AQ65: =IF(AND(BC65=""),"",IF(BC65=0,"",1+(MAX(AQ$60:AQ64)))) -> 3 | AR65: 6 | AS65: DBCZFB | AT65: TEACHER-III | AU65: L-11 | AV65: 49300 | AW65: RJJO200725008042 | AX65: 0 | AY65: 0 | AZ65: 0 | BA65: 0 | BB65: NON GAZETTED - REGULAR | BC65: 1 | BD65: =IF(AND(BP65=""),"",IF(BP65=0,"",1+(MAX(BD$60:BD64)))) ->  | BE65: 6 | BF65: 0 | BG65: 0 | BH65: 0 | BI65: 0 | BJ65: 0 | BK65: 0 | BL65: 0 | BM65: 0 | BN65: 0 | BO65: 0 | BP65: 0 | BQ65: =IF(AND(CC65=""),"",IF(CC65=0,"",1+(MAX(BQ$60:BQ64)))) ->  | BR65: 6 | BS65: 0 | BT65: 0 | BU65: 0 | BV65: 0 | BW65: 0 | BX65: 0 | BY65: 0 | BZ65: 0 | CA65: 0 | CB65: 0 | CC65: 0 | CD65: =IF(AND(CP65=""),"",IF(CP65=0,"",1+(MAX(CD$60:CD64)))) ->  | CE65: 6 | CF65: 0 | CG65: 0 | CH65: 0 | CI65: 0 | CJ65: 0 | CK65: 0 | CL65: 0 | CM65: 0 | CN65: 0 | CO65: 0 | CP65: 0 | CQ65: =IF(AND(DC65=""),"",IF(DC65=0,"",1+(MAX(CQ$60:CQ64)))) ->  | CR65: 6 | CS65: 0 | CT65: 0 | CU65: 0 | CV65: 0 | CW65: 0 | CX65: 0 | CY65: 0 | CZ65: 0 | DA65: 0 | DB65: 0 | DC65: 0
A66: TEACHER-III | B66: L-10 | C66: 7 | D66: D | E66: TEACHER-III | F66: L-10 | G66: 40300 | H66: RJJO201525034739 | M66: NON GAZETTED - REGULAR | AB66: 2015 | AC66: 0 | AD66: =IF(AND(AP66=""),"",IF(AP66=0,"",1+(MAX(AD$60:AD65)))) ->  | AE66: 7 | AF66: 0 | AG66: 0 | AH66: 0 | AI66: 0 | AJ66: 0 | AK66: 0 | AL66: 0 | AM66: 0 | AN66: 0 | AO66: 0 | AP66: 0 | AQ66: =IF(AND(BC66=""),"",IF(BC66=0,"",1+(MAX(AQ$60:AQ65)))) -> 4 | AR66: 7 | AS66: D | AT66: TEACHER-III | AU66: L-10 | AV66: 40300 | AW66: RJJO201525034739 | AX66: 0 | AY66: 0 | AZ66: 0 | BA66: 0 | BB66: NON GAZETTED - REGULAR | BC66: 1 | BD66: =IF(AND(BP66=""),"",IF(BP66=0,"",1+(MAX(BD$60:BD65)))) ->  | BE66: 7 | BF66: 0 | BG66: 0 | BH66: 0 | BI66: 0 | BJ66: 0 | BK66: 0 | BL66: 0 | BM66: 0 | BN66: 0 | BO66: 0 | BP66: 0 | BQ66: =IF(AND(CC66=""),"",IF(CC66=0,"",1+(MAX(BQ$60:BQ65)))) ->  | BR66: 7 | BS66: 0 | BT66: 0 | BU66: 0 | BV66: 0 | BW66: 0 | BX66: 0 | BY66: 0 | BZ66: 0 | CA66: 0 | CB66: 0 | CC66: 0 | CD66: =IF(AND(CP66=""),"",IF(CP66=0,"",1+(MAX(CD$60:CD65)))) ->  | CE66: 7 | CF66: 0 | CG66: 0 | CH66: 0 | CI66: 0 | CJ66: 0 | CK66: 0 | CL66: 0 | CM66: 0 | CN66: 0 | CO66: 0 | CP66: 0 | CQ66: =IF(AND(DC66=""),"",IF(DC66=0,"",1+(MAX(CQ$60:CQ65)))) ->  | CR66: 7 | CS66: 0 | CT66: 0 | CU66: 0 | CV66: 0 | CW66: 0 | CX66: 0 | CY66: 0 | CZ66: 0 | DA66: 0 | DB66: 0 | DC66: 0
A67: TEACHER-III | B67: L-11 | C67: 8 | D67: BCBD | E67: TEACHER-III | F67: L-11 | G67: 45100 | H67: RJJO201325036063 | M67: NON GAZETTED - REGULAR | AB67: 2013 | AC67: 0 | AD67: =IF(AND(AP67=""),"",IF(AP67=0,"",1+(MAX(AD$60:AD66)))) ->  | AE67: 8 | AF67: 0 | AG67: 0 | AH67: 0 | AI67: 0 | AJ67: 0 | AK67: 0 | AL67: 0 | AM67: 0 | AN67: 0 | AO67: 0 | AP67: 0 | AQ67: =IF(AND(BC67=""),"",IF(BC67=0,"",1+(MAX(AQ$60:AQ66)))) -> 5 | AR67: 8 | AS67: BCBD | AT67: TEACHER-III | AU67: L-11 | AV67: 45100 | AW67: RJJO201325036063 | AX67: 0 | AY67: 0 | AZ67: 0 | BA67: 0 | BB67: NON GAZETTED - REGULAR | BC67: 1 | BD67: =IF(AND(BP67=""),"",IF(BP67=0,"",1+(MAX(BD$60:BD66)))) ->  | BE67: 8 | BF67: 0 | BG67: 0 | BH67: 0 | BI67: 0 | BJ67: 0 | BK67: 0 | BL67: 0 | BM67: 0 | BN67: 0 | BO67: 0 | BP67: 0 | BQ67: =IF(AND(CC67=""),"",IF(CC67=0,"",1+(MAX(BQ$60:BQ66)))) ->  | BR67: 8 | BS67: 0 | BT67: 0 | BU67: 0 | BV67: 0 | BW67: 0 | BX67: 0 | BY67: 0 | BZ67: 0 | CA67: 0 | CB67: 0 | CC67: 0 | CD67: =IF(AND(CP67=""),"",IF(CP67=0,"",1+(MAX(CD$60:CD66)))) ->  | CE67: 8 | CF67: 0 | CG67: 0 | CH67: 0 | CI67: 0 | CJ67: 0 | CK67: 0 | CL67: 0 | CM67: 0 | CN67: 0 | CO67: 0 | CP67: 0 | CQ67: =IF(AND(DC67=""),"",IF(DC67=0,"",1+(MAX(CQ$60:CQ66)))) ->  | CR67: 8 | CS67: 0 | CT67: 0 | CU67: 0 | CV67: 0 | CW67: 0 | CX67: 0 | CY67: 0 | CZ67: 0 | DA67: 0 | DB67: 0 | DC67: 0
A68: PEON | B68: L-3 | C68: 9 | D68: GBGCBD | E68: PEON | F68: L-3 | G68: 33000 | H68: RJSR201834028851 | M68: NON GAZETTED - REGULAR | AB68: 2018 | AC68: 0 | AD68: =IF(AND(AP68=""),"",IF(AP68=0,"",1+(MAX(AD$60:AD67)))) ->  | AE68: 9 | AF68: 0 | AG68: 0 | AH68: 0 | AI68: 0 | AJ68: 0 | AK68: 0 | AL68: 0 | AM68: 0 | AN68: 0 | AO68: 0 | AP68: 0 | AQ68: =IF(AND(BC68=""),"",IF(BC68=0,"",1+(MAX(AQ$60:AQ67)))) -> 6 | AR68: 9 | AS68: GBGCBD | AT68: PEON | AU68: L-3 | AV68: 33000 | AW68: RJSR201834028851 | AX68: 0 | AY68: 0 | AZ68: 0 | BA68: 0 | BB68: NON GAZETTED - REGULAR | BC68: 1 | BD68: =IF(AND(BP68=""),"",IF(BP68=0,"",1+(MAX(BD$60:BD67)))) ->  | BE68: 9 | BF68: 0 | BG68: 0 | BH68: 0 | BI68: 0 | BJ68: 0 | BK68: 0 | BL68: 0 | BM68: 0 | BN68: 0 | BO68: 0 | BP68: 0 | BQ68: =IF(AND(CC68=""),"",IF(CC68=0,"",1+(MAX(BQ$60:BQ67)))) ->  | BR68: 9 | BS68: 0 | BT68: 0 | BU68: 0 | BV68: 0 | BW68: 0 | BX68: 0 | BY68: 0 | BZ68: 0 | CA68: 0 | CB68: 0 | CC68: 0 | CD68: =IF(AND(CP68=""),"",IF(CP68=0,"",1+(MAX(CD$60:CD67)))) ->  | CE68: 9 | CF68: 0 | CG68: 0 | CH68: 0 | CI68: 0 | CJ68: 0 | CK68: 0 | CL68: 0 | CM68: 0 | CN68: 0 | CO68: 0 | CP68: 0 | CQ68: =IF(AND(DC68=""),"",IF(DC68=0,"",1+(MAX(CQ$60:CQ67)))) ->  | CR68: 9 | CS68: 0 | CT68: 0 | CU68: 0 | CV68: 0 | CW68: 0 | CX68: 0 | CY68: 0 | CZ68: 0 | DA68: 0 | DB68: 0 | DC68: 0
A69: Sanvida Employee | B69: - | C69: 10 | D69: CGBCB | E69: Sanvida Employee | F69: - | G69: 16400 | H69: - | M69: NON GAZETTED - SANVIDA | AC69: 0 | AD69: =IF(AND(AP69=""),"",IF(AP69=0,"",1+(MAX(AD$60:AD68)))) ->  | AE69: 10 | AF69: 0 | AG69: 0 | AH69: 0 | AI69: 0 | AJ69: 0 | AK69: 0 | AL69: 0 | AM69: 0 | AN69: 0 | AO69: 0 | AP69: 0 | AQ69: =IF(AND(BC69=""),"",IF(BC69=0,"",1+(MAX(AQ$60:AQ68)))) ->  | AR69: 10 | AS69: 0 | AT69: 0 | AU69: 0 | AV69: 0 | AW69: 0 | AX69: 0 | AY69: 0 | AZ69: 0 | BA69: 0 | BB69: 0 | BC69: 0 | BD69: =IF(AND(BP69=""),"",IF(BP69=0,"",1+(MAX(BD$60:BD68)))) ->  | BE69: 10 | BF69: 0 | BG69: 0 | BH69: 0 | BI69: 0 | BJ69: 0 | BK69: 0 | BL69: 0 | BM69: 0 | BN69: 0 | BO69: 0 | BP69: 0 | BQ69: =IF(AND(CC69=""),"",IF(CC69=0,"",1+(MAX(BQ$60:BQ68)))) ->  | BR69: 10 | BS69: 0 | BT69: 0 | BU69: 0 | BV69: 0 | BW69: 0 | BX69: 0 | BY69: 0 | BZ69: 0 | CA69: 0 | CB69: 0 | CC69: 0 | CD69: =IF(AND(CP69=""),"",IF(CP69=0,"",1+(MAX(CD$60:CD68)))) ->  | CE69: 10 | CF69: 0 | CG69: 0 | CH69: 0 | CI69: 0 | CJ69: 0 | CK69: 0 | CL69: 0 | CM69: 0 | CN69: 0 | CO69: 0 | CP69: 0 | CQ69: =IF(AND(DC69=""),"",IF(DC69=0,"",1+(MAX(CQ$60:CQ68)))) -> 1 | CR69: 10 | CS69: CGBCB | CT69: Sanvida Employee | CU69: - | CV69: 16400 | CW69: - | CX69: 0 | CY69: 0 | CZ69: 0 | DA69: 0 | DB69: NON GAZETTED - SANVIDA | DC69: 1
A70: Sanvida Employee | B70: - | C70: 11 | D70: DGGBC | E70: Sanvida Employee | F70: - | G70: 16400 | H70: - | M70: NON GAZETTED - SANVIDA | AC70: 0 | AD70: =IF(AND(AP70=""),"",IF(AP70=0,"",1+(MAX(AD$60:AD69)))) ->  | AE70: 11 | AF70: 0 | AG70: 0 | AH70: 0 | AI70: 0 | AJ70: 0 | AK70: 0 | AL70: 0 | AM70: 0 | AN70: 0 | AO70: 0 | AP70: 0 | AQ70: =IF(AND(BC70=""),"",IF(BC70=0,"",1+(MAX(AQ$60:AQ69)))) ->  | AR70: 11 | AS70: 0 | AT70: 0 | AU70: 0 | AV70: 0 | AW70: 0 | AX70: 0 | AY70: 0 | AZ70: 0 | BA70: 0 | BB70: 0 | BC70: 0 | BD70: =IF(AND(BP70=""),"",IF(BP70=0,"",1+(MAX(BD$60:BD69)))) ->  | BE70: 11 | BF70: 0 | BG70: 0 | BH70: 0 | BI70: 0 | BJ70: 0 | BK70: 0 | BL70: 0 | BM70: 0 | BN70: 0 | BO70: 0 | BP70: 0 | BQ70: =IF(AND(CC70=""),"",IF(CC70=0,"",1+(MAX(BQ$60:BQ69)))) ->  | BR70: 11 | BS70: 0 | BT70: 0 | BU70: 0 | BV70: 0 | BW70: 0 | BX70: 0 | BY70: 0 | BZ70: 0 | CA70: 0 | CB70: 0 | CC70: 0 | CD70: =IF(AND(CP70=""),"",IF(CP70=0,"",1+(MAX(CD$60:CD69)))) ->  | CE70: 11 | CF70: 0 | CG70: 0 | CH70: 0 | CI70: 0 | CJ70: 0 | CK70: 0 | CL70: 0 | CM70: 0 | CN70: 0 | CO70: 0 | CP70: 0 | CQ70: =IF(AND(DC70=""),"",IF(DC70=0,"",1+(MAX(CQ$60:CQ69)))) -> 2 | CR70: 11 | CS70: DGGBC | CT70: Sanvida Employee | CU70: - | CV70: 16400 | CW70: - | CX70: 0 | CY70: 0 | CZ70: 0 | DA70: 0 | DB70: NON GAZETTED - SANVIDA | DC70: 1
A71: 0 | B71: L-10 | C71: 12 | D71: पद रिक्त | E71: TEACHER-III | F71: L-10 | H71: - | M71: GAZETTED - REGULAR | AC71: 0 | AD71: =IF(AND(AP71=""),"",IF(AP71=0,"",1+(MAX(AD$60:AD70)))) -> 2 | AE71: 12 | AF71: पद रिक्त | AG71: TEACHER-III | AH71: L-10 | AI71: 0 | AJ71: - | AK71: 0 | AL71: 0 | AM71: 0 | AN71: 0 | AO71: GAZETTED - REGULAR | AP71: 1 | AQ71: =IF(AND(BC71=""),"",IF(BC71=0,"",1+(MAX(AQ$60:AQ70)))) ->  | AR71: 12 | AS71: 0 | AT71: 0 | AU71: 0 | AV71: 0 | AW71: 0 | AX71: 0 | AY71: 0 | AZ71: 0 | BA71: 0 | BB71: 0 | BC71: 0 | BD71: =IF(AND(BP71=""),"",IF(BP71=0,"",1+(MAX(BD$60:BD70)))) ->  | BE71: 12 | BF71: 0 | BG71: 0 | BH71: 0 | BI71: 0 | BJ71: 0 | BK71: 0 | BL71: 0 | BM71: 0 | BN71: 0 | BO71: 0 | BP71: 0 | BQ71: =IF(AND(CC71=""),"",IF(CC71=0,"",1+(MAX(BQ$60:BQ70)))) ->  | BR71: 12 | BS71: 0 | BT71: 0 | BU71: 0 | BV71: 0 | BW71: 0 | BX71: 0 | BY71: 0 | BZ71: 0 | CA71: 0 | CB71: 0 | CC71: 0 | CD71: =IF(AND(CP71=""),"",IF(CP71=0,"",1+(MAX(CD$60:CD70)))) ->  | CE71: 12 | CF71: 0 | CG71: 0 | CH71: 0 | CI71: 0 | CJ71: 0 | CK71: 0 | CL71: 0 | CM71: 0 | CN71: 0 | CO71: 0 | CP71: 0 | CQ71: =IF(AND(DC71=""),"",IF(DC71=0,"",1+(MAX(CQ$60:CQ70)))) ->  | CR71: 12 | CS71: 0 | CT71: 0 | CU71: 0 | CV71: 0 | CW71: 0 | CX71: 0 | CY71: 0 | CZ71: 0 | DA71: 0 | DB71: 0 | DC71: 0
A72: 0 | B72: L-10 | C72: 13 | D72: पद रिक्त | E72: TEACHER-III | F72: L-10 | H72: - | M72: GAZETTED - REGULAR | AC72: 0 | AD72: =IF(AND(AP72=""),"",IF(AP72=0,"",1+(MAX(AD$60:AD71)))) -> 3 | AE72: 13 | AF72: पद रिक्त | AG72: TEACHER-III | AH72: L-10 | AI72: 0 | AJ72: - | AK72: 0 | AL72: 0 | AM72: 0 | AN72: 0 | AO72: GAZETTED - REGULAR | AP72: 1 | AQ72: =IF(AND(BC72=""),"",IF(BC72=0,"",1+(MAX(AQ$60:AQ71)))) ->  | AR72: 13 | AS72: 0 | AT72: 0 | AU72: 0 | AV72: 0 | AW72: 0 | AX72: 0 | AY72: 0 | AZ72: 0 | BA72: 0 | BB72: 0 | BC72: 0 | BD72: =IF(AND(BP72=""),"",IF(BP72=0,"",1+(MAX(BD$60:BD71)))) ->  | BE72: 13 | BF72: 0 | BG72: 0 | BH72: 0 | BI72: 0 | BJ72: 0 | BK72: 0 | BL72: 0 | BM72: 0 | BN72: 0 | BO72: 0 | BP72: 0 | BQ72: =IF(AND(CC72=""),"",IF(CC72=0,"",1+(MAX(BQ$60:BQ71)))) ->  | BR72: 13 | BS72: 0 | BT72: 0 | BU72: 0 | BV72: 0 | BW72: 0 | BX72: 0 | BY72: 0 | BZ72: 0 | CA72: 0 | CB72: 0 | CC72: 0 | CD72: =IF(AND(CP72=""),"",IF(CP72=0,"",1+(MAX(CD$60:CD71)))) ->  | CE72: 13 | CF72: 0 | CG72: 0 | CH72: 0 | CI72: 0 | CJ72: 0 | CK72: 0 | CL72: 0 | CM72: 0 | CN72: 0 | CO72: 0 | CP72: 0 | CQ72: =IF(AND(DC72=""),"",IF(DC72=0,"",1+(MAX(CQ$60:CQ71)))) ->  | CR72: 13 | CS72: 0 | CT72: 0 | CU72: 0 | CV72: 0 | CW72: 0 | CX72: 0 | CY72: 0 | CZ72: 0 | DA72: 0 | DB72: 0 | DC72: 0
A73: 0 | B73: L-10 | C73: 14 | D73: पद रिक्त | E73: TEACHER-III | F73: L-10 | H73: - | M73: GAZETTED - REGULAR | AC73: 0 | AD73: =IF(AND(AP73=""),"",IF(AP73=0,"",1+(MAX(AD$60:AD72)))) -> 4 | AE73: 14 | AF73: पद रिक्त | AG73: TEACHER-III | AH73: L-10 | AI73: 0 | AJ73: - | AK73: 0 | AL73: 0 | AM73: 0 | AN73: 0 | AO73: GAZETTED - REGULAR | AP73: 1 | AQ73: =IF(AND(BC73=""),"",IF(BC73=0,"",1+(MAX(AQ$60:AQ72)))) ->  | AR73: 14 | AS73: 0 | AT73: 0 | AU73: 0 | AV73: 0 | AW73: 0 | AX73: 0 | AY73: 0 | AZ73: 0 | BA73: 0 | BB73: 0 | BC73: 0 | BD73: =IF(AND(BP73=""),"",IF(BP73=0,"",1+(MAX(BD$60:BD72)))) ->  | BE73: 14 | BF73: 0 | BG73: 0 | BH73: 0 | BI73: 0 | BJ73: 0 | BK73: 0 | BL73: 0 | BM73: 0 | BN73: 0 | BO73: 0 | BP73: 0 | BQ73: =IF(AND(CC73=""),"",IF(CC73=0,"",1+(MAX(BQ$60:BQ72)))) ->  | BR73: 14 | BS73: 0 | BT73: 0 | BU73: 0 | BV73: 0 | BW73: 0 | BX73: 0 | BY73: 0 | BZ73: 0 | CA73: 0 | CB73: 0 | CC73: 0 | CD73: =IF(AND(CP73=""),"",IF(CP73=0,"",1+(MAX(CD$60:CD72)))) ->  | CE73: 14 | CF73: 0 | CG73: 0 | CH73: 0 | CI73: 0 | CJ73: 0 | CK73: 0 | CL73: 0 | CM73: 0 | CN73: 0 | CO73: 0 | CP73: 0 | CQ73: =IF(AND(DC73=""),"",IF(DC73=0,"",1+(MAX(CQ$60:CQ72)))) ->  | CR73: 14 | CS73: 0 | CT73: 0 | CU73: 0 | CV73: 0 | CW73: 0 | CX73: 0 | CY73: 0 | CZ73: 0 | DA73: 0 | DB73: 0 | DC73: 0
A74: 0 | B74: L-10 | C74: 15 | D74: पद रिक्त | E74: TEACHER-III | F74: L-10 | H74: - | M74: NON GAZETTED - REGULAR | AC74: 0 | AD74: =IF(AND(AP74=""),"",IF(AP74=0,"",1+(MAX(AD$60:AD73)))) ->  | AE74: 15 | AF74: 0 | AG74: 0 | AH74: 0 | AI74: 0 | AJ74: 0 | AK74: 0 | AL74: 0 | AM74: 0 | AN74: 0 | AO74: 0 | AP74: 0 | AQ74: =IF(AND(BC74=""),"",IF(BC74=0,"",1+(MAX(AQ$60:AQ73)))) -> 7 | AR74: 15 | AS74: पद रिक्त | AT74: TEACHER-III | AU74: L-10 | AV74: 0 | AW74: - | AX74: 0 | AY74: 0 | AZ74: 0 | BA74: 0 | BB74: NON GAZETTED - REGULAR | BC74: 1 | BD74: =IF(AND(BP74=""),"",IF(BP74=0,"",1+(MAX(BD$60:BD73)))) ->  | BE74: 15 | BF74: 0 | BG74: 0 | BH74: 0 | BI74: 0 | BJ74: 0 | BK74: 0 | BL74: 0 | BM74: 0 | BN74: 0 | BO74: 0 | BP74: 0 | BQ74: =IF(AND(CC74=""),"",IF(CC74=0,"",1+(MAX(BQ$60:BQ73)))) ->  | BR74: 15 | BS74: 0 | BT74: 0 | BU74: 0 | BV74: 0 | BW74: 0 | BX74: 0 | BY74: 0 | BZ74: 0 | CA74: 0 | CB74: 0 | CC74: 0 | CD74: =IF(AND(CP74=""),"",IF(CP74=0,"",1+(MAX(CD$60:CD73)))) ->  | CE74: 15 | CF74: 0 | CG74: 0 | CH74: 0 | CI74: 0 | CJ74: 0 | CK74: 0 | CL74: 0 | CM74: 0 | CN74: 0 | CO74: 0 | CP74: 0 | CQ74: =IF(AND(DC74=""),"",IF(DC74=0,"",1+(MAX(CQ$60:CQ73)))) ->  | CR74: 15 | CS74: 0 | CT74: 0 | CU74: 0 | CV74: 0 | CW74: 0 | CX74: 0 | CY74: 0 | CZ74: 0 | DA74: 0 | DB74: 0 | DC74: 0
A75: 0 | B75: L-10 | C75: 16 | D75: पद रिक्त | E75: TEACHER-III | F75: L-10 | H75: - | M75: NON GAZETTED - REGULAR | AC75: 0 | AD75: =IF(AND(AP75=""),"",IF(AP75=0,"",1+(MAX(AD$60:AD74)))) ->  | AE75: 16 | AF75: 0 | AG75: 0 | AH75: 0 | AI75: 0 | AJ75: 0 | AK75: 0 | AL75: 0 | AM75: 0 | AN75: 0 | AO75: 0 | AP75: 0 | AQ75: =IF(AND(BC75=""),"",IF(BC75=0,"",1+(MAX(AQ$60:AQ74)))) -> 8 | AR75: 16 | AS75: पद रिक्त | AT75: TEACHER-III | AU75: L-10 | AV75: 0 | AW75: - | AX75: 0 | AY75: 0 | AZ75: 0 | BA75: 0 | BB75: NON GAZETTED - REGULAR | BC75: 1 | BD75: =IF(AND(BP75=""),"",IF(BP75=0,"",1+(MAX(BD$60:BD74)))) ->  | BE75: 16 | BF75: 0 | BG75: 0 | BH75: 0 | BI75: 0 | BJ75: 0 | BK75: 0 | BL75: 0 | BM75: 0 | BN75: 0 | BO75: 0 | BP75: 0 | BQ75: =IF(AND(CC75=""),"",IF(CC75=0,"",1+(MAX(BQ$60:BQ74)))) ->  | BR75: 16 | BS75: 0 | BT75: 0 | BU75: 0 | BV75: 0 | BW75: 0 | BX75: 0 | BY75: 0 | BZ75: 0 | CA75: 0 | CB75: 0 | CC75: 0 | CD75: =IF(AND(CP75=""),"",IF(CP75=0,"",1+(MAX(CD$60:CD74)))) ->  | CE75: 16 | CF75: 0 | CG75: 0 | CH75: 0 | CI75: 0 | CJ75: 0 | CK75: 0 | CL75: 0 | CM75: 0 | CN75: 0 | CO75: 0 | CP75: 0 | CQ75: =IF(AND(DC75=""),"",IF(DC75=0,"",1+(MAX(CQ$60:CQ74)))) ->  | CR75: 16 | CS75: 0 | CT75: 0 | CU75: 0 | CV75: 0 | CW75: 0 | CX75: 0 | CY75: 0 | CZ75: 0 | DA75: 0 | DB75: 0 | DC75: 0
A76: 0 | B76: L-10 | C76: 17 | D76: पद रिक्त | E76: PTI III | F76: L-10 | H76: - | M76: NON GAZETTED - REGULAR | AC76: 0 | AD76: =IF(AND(AP76=""),"",IF(AP76=0,"",1+(MAX(AD$60:AD75)))) ->  | AE76: 17 | AF76: 0 | AG76: 0 | AH76: 0 | AI76: 0 | AJ76: 0 | AK76: 0 | AL76: 0 | AM76: 0 | AN76: 0 | AO76: 0 | AP76: 0 | AQ76: =IF(AND(BC76=""),"",IF(BC76=0,"",1+(MAX(AQ$60:AQ75)))) -> 9 | AR76: 17 | AS76: पद रिक्त | AT76: PTI III | AU76: L-10 | AV76: 0 | AW76: - | AX76: 0 | AY76: 0 | AZ76: 0 | BA76: 0 | BB76: NON GAZETTED - REGULAR | BC76: 1 | BD76: =IF(AND(BP76=""),"",IF(BP76=0,"",1+(MAX(BD$60:BD75)))) ->  | BE76: 17 | BF76: 0 | BG76: 0 | BH76: 0 | BI76: 0 | BJ76: 0 | BK76: 0 | BL76: 0 | BM76: 0 | BN76: 0 | BO76: 0 | BP76: 0 | BQ76: =IF(AND(CC76=""),"",IF(CC76=0,"",1+(MAX(BQ$60:BQ75)))) ->  | BR76: 17 | BS76: 0 | BT76: 0 | BU76: 0 | BV76: 0 | BW76: 0 | BX76: 0 | BY76: 0 | BZ76: 0 | CA76: 0 | CB76: 0 | CC76: 0 | CD76: =IF(AND(CP76=""),"",IF(CP76=0,"",1+(MAX(CD$60:CD75)))) ->  | CE76: 17 | CF76: 0 | CG76: 0 | CH76: 0 | CI76: 0 | CJ76: 0 | CK76: 0 | CL76: 0 | CM76: 0 | CN76: 0 | CO76: 0 | CP76: 0 | CQ76: =IF(AND(DC76=""),"",IF(DC76=0,"",1+(MAX(CQ$60:CQ75)))) ->  | CR76: 17 | CS76: =IF($M76="NON GAZETTED - SANVIDA",D76,0) -> 0 | CT76: =IF($M76="NON GAZETTED - SANVIDA",E76,0) -> 0 | CU76: =IF($M76="NON GAZETTED - SANVIDA",F76,0) -> 0 | CV76: =IF($M76="NON GAZETTED - SANVIDA",G76,0) -> 0 | CW76: =IF($M76="NON GAZETTED - SANVIDA",H76,0) -> 0 | CX76: =IF($M76="NON GAZETTED - SANVIDA",I76,0) -> 0 | CY76: =IF($M76="NON GAZETTED - SANVIDA",J76,0) -> 0 | CZ76: =IF($M76="NON GAZETTED - SANVIDA",K76,0) -> 0 | DA76: =IF($M76="NON GAZETTED - SANVIDA",L76,0) -> 0 | DB76: =IF($M76="NON GAZETTED - SANVIDA",M76,0) -> 0 | DC76: 0
A77: 0 | B77: L-10 | C77: 18 | D77: पद रिक्त | E77: TEACHER-III | F77: L-10 | H77: - | M77: NON GAZETTED - REGULAR | AC77: 0 | AD77: =IF(AND(AP77=""),"",IF(AP77=0,"",1+(MAX(AD$60:AD76)))) ->  | AE77: 18 | AF77: 0 | AG77: 0 | AH77: 0 | AI77: 0 | AJ77: 0 | AK77: 0 | AL77: 0 | AM77: 0 | AN77: 0 | AO77: 0 | AP77: 0 | AQ77: =IF(AND(BC77=""),"",IF(BC77=0,"",1+(MAX(AQ$60:AQ76)))) -> 10 | AR77: 18 | AS77: पद रिक्त | AT77: TEACHER-III | AU77: L-10 | AV77: 0 | AW77: - | AX77: 0 | AY77: 0 | AZ77: 0 | BA77: 0 | BB77: NON GAZETTED - REGULAR | BC77: 1 | BD77: =IF(AND(BP77=""),"",IF(BP77=0,"",1+(MAX(BD$60:BD76)))) ->  | BE77: 18 | BF77: 0 | BG77: 0 | BH77: 0 | BI77: 0 | BJ77: 0 | BK77: 0 | BL77: 0 | BM77: 0 | BN77: 0 | BO77: 0 | BP77: 0 | BQ77: =IF(AND(CC77=""),"",IF(CC77=0,"",1+(MAX(BQ$60:BQ76)))) ->  | BR77: 18 | BS77: 0 | BT77: 0 | BU77: 0 | BV77: 0 | BW77: 0 | BX77: 0 | BY77: 0 | BZ77: 0 | CA77: 0 | CB77: 0 | CC77: 0 | CD77: =IF(AND(CP77=""),"",IF(CP77=0,"",1+(MAX(CD$60:CD76)))) ->  | CE77: 18 | CF77: 0 | CG77: 0 | CH77: 0 | CI77: 0 | CJ77: 0 | CK77: 0 | CL77: 0 | CM77: 0 | CN77: 0 | CO77: 0 | CP77: 0 | CQ77: =IF(AND(DC77=""),"",IF(DC77=0,"",1+(MAX(CQ$60:CQ76)))) ->  | CR77: 18 | CS77: 0 | CT77: 0 | CU77: 0 | CV77: 0 | CW77: 0 | CX77: 0 | CY77: 0 | CZ77: 0 | DA77: 0 | DB77: 0 | DC77: 0
A78: 0 | B78: L-10 | C78: 19 | D78: पद रिक्त | E78: TEACHER-III | F78: L-10 | H78: - | M78: NON GAZETTED - REGULAR | AC78: 0 | AD78: =IF(AND(AP78=""),"",IF(AP78=0,"",1+(MAX(AD$60:AD77)))) ->  | AE78: 19 | AF78: 0 | AG78: 0 | AH78: 0 | AI78: 0 | AJ78: 0 | AK78: 0 | AL78: 0 | AM78: 0 | AN78: 0 | AO78: 0 | AP78: 0 | AQ78: =IF(AND(BC78=""),"",IF(BC78=0,"",1+(MAX(AQ$60:AQ77)))) -> 11 | AR78: 19 | AS78: पद रिक्त | AT78: TEACHER-III | AU78: L-10 | AV78: 0 | AW78: - | AX78: 0 | AY78: 0 | AZ78: 0 | BA78: 0 | BB78: NON GAZETTED - REGULAR | BC78: 1 | BD78: =IF(AND(BP78=""),"",IF(BP78=0,"",1+(MAX(BD$60:BD77)))) ->  | BE78: 19 | BF78: 0 | BG78: 0 | BH78: 0 | BI78: 0 | BJ78: 0 | BK78: 0 | BL78: 0 | BM78: 0 | BN78: 0 | BO78: 0 | BP78: 0 | BQ78: =IF(AND(CC78=""),"",IF(CC78=0,"",1+(MAX(BQ$60:BQ77)))) ->  | BR78: 19 | BS78: 0 | BT78: 0 | BU78: 0 | BV78: 0 | BW78: 0 | BX78: 0 | BY78: 0 | BZ78: 0 | CA78: 0 | CB78: 0 | CC78: 0 | CD78: =IF(AND(CP78=""),"",IF(CP78=0,"",1+(MAX(CD$60:CD77)))) ->  | CE78: 19 | CF78: 0 | CG78: 0 | CH78: 0 | CI78: 0 | CJ78: 0 | CK78: 0 | CL78: 0 | CM78: 0 | CN78: 0 | CO78: 0 | CP78: 0 | CQ78: =IF(AND(DC78=""),"",IF(DC78=0,"",1+(MAX(CQ$60:CQ77)))) ->  | CR78: 19 | CS78: 0 | CT78: 0 | CU78: 0 | CV78: 0 | CW78: 0 | CX78: 0 | CY78: 0 | CZ78: 0 | DA78: 0 | DB78: 0 | DC78: 0
A79: 0 | B79: L-10 | C79: 20 | D79: पद रिक्त | E79: TEACHER-III | F79: L-10 | H79: - | M79: NON GAZETTED - REGULAR | AC79: 0 | AD79: =IF(AND(AP79=""),"",IF(AP79=0,"",1+(MAX(AD$60:AD78)))) ->  | AE79: 20 | AF79: 0 | AG79: 0 | AH79: 0 | AI79: 0 | AJ79: 0 | AK79: 0 | AL79: 0 | AM79: 0 | AN79: 0 | AO79: 0 | AP79: 0 | AQ79: =IF(AND(BC79=""),"",IF(BC79=0,"",1+(MAX(AQ$60:AQ78)))) -> 12 | AR79: 20 | AS79: पद रिक्त | AT79: TEACHER-III | AU79: L-10 | AV79: 0 | AW79: - | AX79: 0 | AY79: 0 | AZ79: 0 | BA79: 0 | BB79: NON GAZETTED - REGULAR | BC79: 1 | BD79: =IF(AND(BP79=""),"",IF(BP79=0,"",1+(MAX(BD$60:BD78)))) ->  | BE79: 20 | BF79: 0 | BG79: 0 | BH79: 0 | BI79: 0 | BJ79: 0 | BK79: 0 | BL79: 0 | BM79: 0 | BN79: 0 | BO79: 0 | BP79: 0 | BQ79: =IF(AND(CC79=""),"",IF(CC79=0,"",1+(MAX(BQ$60:BQ78)))) ->  | BR79: 20 | BS79: 0 | BT79: 0 | BU79: 0 | BV79: 0 | BW79: 0 | BX79: 0 | BY79: 0 | BZ79: 0 | CA79: 0 | CB79: 0 | CC79: 0 | CD79: =IF(AND(CP79=""),"",IF(CP79=0,"",1+(MAX(CD$60:CD78)))) ->  | CE79: 20 | CF79: 0 | CG79: 0 | CH79: 0 | CI79: 0 | CJ79: 0 | CK79: 0 | CL79: 0 | CM79: 0 | CN79: 0 | CO79: 0 | CP79: 0 | CQ79: =IF(AND(DC79=""),"",IF(DC79=0,"",1+(MAX(CQ$60:CQ78)))) ->  | CR79: 20 | CS79: 0 | CT79: 0 | CU79: 0 | CV79: 0 | CW79: 0 | CX79: 0 | CY79: 0 | CZ79: 0 | DA79: 0 | DB79: 0 | DC79: 0
A80: 0 | B80: L-11 | C80: 21 | D80: पद रिक्त | E80: TEACHER-II | F80: L-11 | H80: - | M80: NON GAZETTED - REGULAR | AC80: 0 | AD80: =IF(AND(AP80=""),"",IF(AP80=0,"",1+(MAX(AD$60:AD79)))) ->  | AE80: 21 | AF80: 0 | AG80: 0 | AH80: 0 | AI80: 0 | AJ80: 0 | AK80: 0 | AL80: 0 | AM80: 0 | AN80: 0 | AO80: 0 | AP80: 0 | AQ80: =IF(AND(BC80=""),"",IF(BC80=0,"",1+(MAX(AQ$60:AQ79)))) -> 13 | AR80: 21 | AS80: पद रिक्त | AT80: TEACHER-II | AU80: L-11 | AV80: 0 | AW80: - | AX80: 0 | AY80: 0 | AZ80: 0 | BA80: 0 | BB80: NON GAZETTED - REGULAR | BC80: 1 | BD80: =IF(AND(BP80=""),"",IF(BP80=0,"",1+(MAX(BD$60:BD79)))) ->  | BE80: 21 | BF80: 0 | BG80: 0 | BH80: 0 | BI80: 0 | BJ80: 0 | BK80: 0 | BL80: 0 | BM80: 0 | BN80: 0 | BO80: 0 | BP80: 0 | BQ80: =IF(AND(CC80=""),"",IF(CC80=0,"",1+(MAX(BQ$60:BQ79)))) ->  | BR80: 21 | BS80: 0 | BT80: 0 | BU80: 0 | BV80: 0 | BW80: 0 | BX80: 0 | BY80: 0 | BZ80: 0 | CA80: 0 | CB80: 0 | CC80: 0 | CD80: =IF(AND(CP80=""),"",IF(CP80=0,"",1+(MAX(CD$60:CD79)))) ->  | CE80: 21 | CF80: 0 | CG80: 0 | CH80: 0 | CI80: 0 | CJ80: 0 | CK80: 0 | CL80: 0 | CM80: 0 | CN80: 0 | CO80: 0 | CP80: 0 | CQ80: =IF(AND(DC80=""),"",IF(DC80=0,"",1+(MAX(CQ$60:CQ79)))) ->  | CR80: 21 | CS80: 0 | CT80: 0 | CU80: 0 | CV80: 0 | CW80: 0 | CX80: 0 | CY80: 0 | CZ80: 0 | DA80: 0 | DB80: 0 | DC80: 0
A81: 0 | B81: L-10 | C81: 22 | D81: पद रिक्त | E81: TEACHER-III | F81: L-10 | H81: - | M81: NON GAZETTED - REGULAR | AC81: 0 | AD81: =IF(AND(AP81=""),"",IF(AP81=0,"",1+(MAX(AD$60:AD80)))) ->  | AE81: 22 | AF81: 0 | AG81: 0 | AH81: 0 | AI81: 0 | AJ81: 0 | AK81: 0 | AL81: 0 | AM81: 0 | AN81: 0 | AO81: 0 | AP81: 0 | AQ81: =IF(AND(BC81=""),"",IF(BC81=0,"",1+(MAX(AQ$60:AQ80)))) -> 14 | AR81: 22 | AS81: पद रिक्त | AT81: TEACHER-III | AU81: L-10 | AV81: 0 | AW81: - | AX81: 0 | AY81: 0 | AZ81: 0 | BA81: 0 | BB81: NON GAZETTED - REGULAR | BC81: 1 | BD81: =IF(AND(BP81=""),"",IF(BP81=0,"",1+(MAX(BD$60:BD80)))) ->  | BE81: 22 | BF81: 0 | BG81: 0 | BH81: 0 | BI81: 0 | BJ81: 0 | BK81: 0 | BL81: 0 | BM81: 0 | BN81: 0 | BO81: 0 | BP81: 0 | BQ81: =IF(AND(CC81=""),"",IF(CC81=0,"",1+(MAX(BQ$60:BQ80)))) ->  | BR81: 22 | BS81: 0 | BT81: 0 | BU81: 0 | BV81: 0 | BW81: 0 | BX81: 0 | BY81: 0 | BZ81: 0 | CA81: 0 | CB81: 0 | CC81: 0 | CD81: =IF(AND(CP81=""),"",IF(CP81=0,"",1+(MAX(CD$60:CD80)))) ->  | CE81: 22 | CF81: 0 | CG81: 0 | CH81: 0 | CI81: 0 | CJ81: 0 | CK81: 0 | CL81: 0 | CM81: 0 | CN81: 0 | CO81: 0 | CP81: 0 | CQ81: =IF(AND(DC81=""),"",IF(DC81=0,"",1+(MAX(CQ$60:CQ80)))) ->  | CR81: 22 | CS81: 0 | CT81: 0 | CU81: 0 | CV81: 0 | CW81: 0 | CX81: 0 | CY81: 0 | CZ81: 0 | DA81: 0 | DB81: 0 | DC81: 0
A82: 0 | B82: L-10 | C82: 23 | D82: पद रिक्त | E82: TEACHER-III | F82: L-10 | H82: - | M82: NON GAZETTED - REGULAR | AC82: 0 | AD82: =IF(AND(AP82=""),"",IF(AP82=0,"",1+(MAX(AD$60:AD81)))) ->  | AE82: 23 | AF82: 0 | AG82: 0 | AH82: 0 | AI82: 0 | AJ82: 0 | AK82: 0 | AL82: 0 | AM82: 0 | AN82: 0 | AO82: 0 | AP82: 0 | AQ82: =IF(AND(BC82=""),"",IF(BC82=0,"",1+(MAX(AQ$60:AQ81)))) -> 15 | AR82: 23 | AS82: पद रिक्त | AT82: TEACHER-III | AU82: L-10 | AV82: 0 | AW82: - | AX82: 0 | AY82: 0 | AZ82: 0 | BA82: 0 | BB82: NON GAZETTED - REGULAR | BC82: 1 | BD82: =IF(AND(BP82=""),"",IF(BP82=0,"",1+(MAX(BD$60:BD81)))) ->  | BE82: 23 | BF82: 0 | BG82: 0 | BH82: 0 | BI82: 0 | BJ82: 0 | BK82: 0 | BL82: 0 | BM82: 0 | BN82: 0 | BO82: 0 | BP82: 0 | BQ82: =IF(AND(CC82=""),"",IF(CC82=0,"",1+(MAX(BQ$60:BQ81)))) ->  | BR82: 23 | BS82: 0 | BT82: 0 | BU82: 0 | BV82: 0 | BW82: 0 | BX82: 0 | BY82: 0 | BZ82: 0 | CA82: 0 | CB82: 0 | CC82: 0 | CD82: =IF(AND(CP82=""),"",IF(CP82=0,"",1+(MAX(CD$60:CD81)))) ->  | CE82: 23 | CF82: 0 | CG82: 0 | CH82: 0 | CI82: 0 | CJ82: 0 | CK82: 0 | CL82: 0 | CM82: 0 | CN82: 0 | CO82: 0 | CP82: 0 | CQ82: =IF(AND(DC82=""),"",IF(DC82=0,"",1+(MAX(CQ$60:CQ81)))) ->  | CR82: 23 | CS82: 0 | CT82: 0 | CU82: 0 | CV82: 0 | CW82: 0 | CX82: 0 | CY82: 0 | CZ82: 0 | DA82: 0 | DB82: 0 | DC82: 0
A83: 0 | B83: L-10 | C83: 24 | D83: पद रिक्त | E83: TEACHER-III | F83: L-10 | H83: - | M83: NON GAZETTED - REGULAR | AC83: 0 | AD83: =IF(AND(AP83=""),"",IF(AP83=0,"",1+(MAX(AD$60:AD82)))) ->  | AE83: 24 | AF83: 0 | AG83: 0 | AH83: 0 | AI83: 0 | AJ83: 0 | AK83: 0 | AL83: 0 | AM83: 0 | AN83: 0 | AO83: 0 | AP83: 0 | AQ83: =IF(AND(BC83=""),"",IF(BC83=0,"",1+(MAX(AQ$60:AQ82)))) -> 16 | AR83: 24 | AS83: पद रिक्त | AT83: TEACHER-III | AU83: L-10 | AV83: 0 | AW83: - | AX83: 0 | AY83: 0 | AZ83: 0 | BA83: 0 | BB83: NON GAZETTED - REGULAR | BC83: 1 | BD83: =IF(AND(BP83=""),"",IF(BP83=0,"",1+(MAX(BD$60:BD82)))) ->  | BE83: 24 | BF83: 0 | BG83: 0 | BH83: 0 | BI83: 0 | BJ83: 0 | BK83: 0 | BL83: 0 | BM83: 0 | BN83: 0 | BO83: 0 | BP83: 0 | BQ83: =IF(AND(CC83=""),"",IF(CC83=0,"",1+(MAX(BQ$60:BQ82)))) ->  | BR83: 24 | BS83: 0 | BT83: 0 | BU83: 0 | BV83: 0 | BW83: 0 | BX83: 0 | BY83: 0 | BZ83: 0 | CA83: 0 | CB83: 0 | CC83: 0 | CD83: =IF(AND(CP83=""),"",IF(CP83=0,"",1+(MAX(CD$60:CD82)))) ->  | CE83: 24 | CF83: 0 | CG83: 0 | CH83: 0 | CI83: 0 | CJ83: 0 | CK83: 0 | CL83: 0 | CM83: 0 | CN83: 0 | CO83: 0 | CP83: 0 | CQ83: =IF(AND(DC83=""),"",IF(DC83=0,"",1+(MAX(CQ$60:CQ82)))) ->  | CR83: 24 | CS83: 0 | CT83: 0 | CU83: 0 | CV83: 0 | CW83: 0 | CX83: 0 | CY83: 0 | CZ83: 0 | DA83: 0 | DB83: 0 | DC83: 0
A84: 0 | B84: L-10 | C84: 25 | D84: पद रिक्त | E84: PTI III | F84: L-10 | H84: - | M84: NON GAZETTED - REGULAR | AC84: 0 | AD84: =IF(AND(AP84=""),"",IF(AP84=0,"",1+(MAX(AD$60:AD83)))) ->  | AE84: 25 | AF84: 0 | AG84: 0 | AH84: 0 | AI84: 0 | AJ84: 0 | AK84: 0 | AL84: 0 | AM84: 0 | AN84: 0 | AO84: 0 | AP84: 0 | AQ84: =IF(AND(BC84=""),"",IF(BC84=0,"",1+(MAX(AQ$60:AQ83)))) -> 17 | AR84: 25 | AS84: पद रिक्त | AT84: PTI III | AU84: L-10 | AV84: 0 | AW84: - | AX84: 0 | AY84: 0 | AZ84: 0 | BA84: 0 | BB84: NON GAZETTED - REGULAR | BC84: 1 | BD84: =IF(AND(BP84=""),"",IF(BP84=0,"",1+(MAX(BD$60:BD83)))) ->  | BE84: 25 | BF84: 0 | BG84: 0 | BH84: 0 | BI84: 0 | BJ84: 0 | BK84: 0 | BL84: 0 | BM84: 0 | BN84: 0 | BO84: 0 | BP84: 0 | BQ84: =IF(AND(CC84=""),"",IF(CC84=0,"",1+(MAX(BQ$60:BQ83)))) ->  | BR84: 25 | BS84: 0 | BT84: 0 | BU84: 0 | BV84: 0 | BW84: 0 | BX84: 0 | BY84: 0 | BZ84: 0 | CA84: 0 | CB84: 0 | CC84: 0 | CD84: =IF(AND(CP84=""),"",IF(CP84=0,"",1+(MAX(CD$60:CD83)))) ->  | CE84: 25 | CF84: 0 | CG84: 0 | CH84: 0 | CI84: 0 | CJ84: 0 | CK84: 0 | CL84: 0 | CM84: 0 | CN84: 0 | CO84: 0 | CP84: 0 | CQ84: =IF(AND(DC84=""),"",IF(DC84=0,"",1+(MAX(CQ$60:CQ83)))) ->  | CR84: 25 | CS84: 0 | CT84: 0 | CU84: 0 | CV84: 0 | CW84: 0 | CX84: 0 | CY84: 0 | CZ84: 0 | DA84: 0 | DB84: 0 | DC84: 0
A85: 0 | B85: L-10 | C85: 26 | D85: पद रिक्त | E85: TEACHER-III | F85: L-10 | H85: - | M85: NON GAZETTED - REGULAR | AC85: 0 | AD85: =IF(AND(AP85=""),"",IF(AP85=0,"",1+(MAX(AD$60:AD84)))) ->  | AE85: 26 | AF85: 0 | AG85: 0 | AH85: 0 | AI85: 0 | AJ85: 0 | AK85: 0 | AL85: 0 | AM85: 0 | AN85: 0 | AO85: 0 | AP85: 0 | AQ85: =IF(AND(BC85=""),"",IF(BC85=0,"",1+(MAX(AQ$60:AQ84)))) -> 18 | AR85: 26 | AS85: पद रिक्त | AT85: TEACHER-III | AU85: L-10 | AV85: 0 | AW85: - | AX85: 0 | AY85: 0 | AZ85: 0 | BA85: 0 | BB85: NON GAZETTED - REGULAR | BC85: 1 | BD85: =IF(AND(BP85=""),"",IF(BP85=0,"",1+(MAX(BD$60:BD84)))) ->  | BE85: 26 | BF85: 0 | BG85: 0 | BH85: 0 | BI85: 0 | BJ85: 0 | BK85: 0 | BL85: 0 | BM85: 0 | BN85: 0 | BO85: 0 | BP85: 0 | BQ85: =IF(AND(CC85=""),"",IF(CC85=0,"",1+(MAX(BQ$60:BQ84)))) ->  | BR85: 26 | BS85: 0 | BT85: 0 | BU85: 0 | BV85: 0 | BW85: 0 | BX85: 0 | BY85: 0 | BZ85: 0 | CA85: 0 | CB85: 0 | CC85: 0 | CD85: =IF(AND(CP85=""),"",IF(CP85=0,"",1+(MAX(CD$60:CD84)))) ->  | CE85: 26 | CF85: 0 | CG85: 0 | CH85: 0 | CI85: 0 | CJ85: 0 | CK85: 0 | CL85: 0 | CM85: 0 | CN85: 0 | CO85: 0 | CP85: 0 | CQ85: =IF(AND(DC85=""),"",IF(DC85=0,"",1+(MAX(CQ$60:CQ84)))) ->  | CR85: 26 | CS85: 0 | CT85: 0 | CU85: 0 | CV85: 0 | CW85: 0 | CX85: 0 | CY85: 0 | CZ85: 0 | DA85: 0 | DB85: 0 | DC85: 0
A86: 0 | B86: 0 | C86: 27 | AC86: 1 | AD86: =IF(AND(AP86=""),"",IF(AP86=0,"",1+(MAX(AD$60:AD85)))) ->  | AE86: 27 | AF86: 0 | AG86: 0 | AH86: 0 | AI86: 0 | AJ86: 0 | AK86: 0 | AL86: 0 | AM86: 0 | AN86: 0 | AO86: 0 | AQ86: =IF(AND(BC86=""),"",IF(BC86=0,"",1+(MAX(AQ$60:AQ85)))) ->  | AR86: 27 | AS86: 0 | AT86: 0 | AU86: 0 | AV86: 0 | AW86: 0 | AX86: 0 | AY86: 0 | AZ86: 0 | BA86: 0 | BB86: 0 | BD86: =IF(AND(BP86=""),"",IF(BP86=0,"",1+(MAX(BD$60:BD85)))) ->  | BE86: 27 | BF86: 0 | BG86: 0 | BH86: 0 | BI86: 0 | BJ86: 0 | BK86: 0 | BL86: 0 | BM86: 0 | BN86: 0 | BO86: 0 | BQ86: =IF(AND(CC86=""),"",IF(CC86=0,"",1+(MAX(BQ$60:BQ85)))) ->  | BR86: 27 | BS86: 0 | BT86: 0 | BU86: 0 | BV86: 0 | BW86: 0 | BX86: 0 | BY86: 0 | BZ86: 0 | CA86: 0 | CB86: 0 | CD86: =IF(AND(CP86=""),"",IF(CP86=0,"",1+(MAX(CD$60:CD85)))) ->  | CE86: 27 | CF86: 0 | CG86: 0 | CH86: 0 | CI86: 0 | CJ86: 0 | CK86: 0 | CL86: 0 | CM86: 0 | CN86: 0 | CO86: 0 | CQ86: =IF(AND(DC86=""),"",IF(DC86=0,"",1+(MAX(CQ$60:CQ85)))) ->  | CR86: 27 | CS86: 0 | CT86: 0 | CU86: 0 | CV86: 0 | CW86: 0 | CX86: 0 | CY86: 0 | CZ86: 0 | DA86: 0 | DB86: 0
A87: 0 | B87: 0 | C87: 28 | AC87: 1 | AD87: =IF(AND(AP87=""),"",IF(AP87=0,"",1+(MAX(AD$60:AD86)))) ->  | AE87: 28 | AF87: 0 | AG87: 0 | AH87: 0 | AI87: 0 | AJ87: 0 | AK87: 0 | AL87: 0 | AM87: 0 | AN87: 0 | AO87: 0 | AQ87: =IF(AND(BC87=""),"",IF(BC87=0,"",1+(MAX(AQ$60:AQ86)))) ->  | AR87: 28 | AS87: 0 | AT87: 0 | AU87: 0 | AV87: 0 | AW87: 0 | AX87: 0 | AY87: 0 | AZ87: 0 | BA87: 0 | BB87: 0 | BD87: =IF(AND(BP87=""),"",IF(BP87=0,"",1+(MAX(BD$60:BD86)))) ->  | BE87: 28 | BF87: 0 | BG87: 0 | BH87: 0 | BI87: 0 | BJ87: 0 | BK87: 0 | BL87: 0 | BM87: 0 | BN87: 0 | BO87: 0 | BQ87: =IF(AND(CC87=""),"",IF(CC87=0,"",1+(MAX(BQ$60:BQ86)))) ->  | BR87: 28 | BS87: 0 | BT87: 0 | BU87: 0 | BV87: 0 | BW87: 0 | BX87: 0 | BY87: 0 | BZ87: 0 | CA87: 0 | CB87: 0 | CD87: =IF(AND(CP87=""),"",IF(CP87=0,"",1+(MAX(CD$60:CD86)))) ->  | CE87: 28 | CF87: 0 | CG87: 0 | CH87: 0 | CI87: 0 | CJ87: 0 | CK87: 0 | CL87: 0 | CM87: 0 | CN87: 0 | CO87: 0 | CQ87: =IF(AND(DC87=""),"",IF(DC87=0,"",1+(MAX(CQ$60:CQ86)))) ->  | CR87: 28 | CS87: 0 | CT87: 0 | CU87: 0 | CV87: 0 | CW87: 0 | CX87: 0 | CY87: 0 | CZ87: 0 | DA87: 0 | DB87: 0
A88: 0 | B88: 0 | C88: 29 | AC88: 1 | AD88: =IF(AND(AP88=""),"",IF(AP88=0,"",1+(MAX(AD$60:AD87)))) ->  | AE88: 29 | AF88: 0 | AG88: 0 | AH88: 0 | AI88: 0 | AJ88: 0 | AK88: 0 | AL88: 0 | AM88: 0 | AN88: 0 | AO88: 0 | AQ88: =IF(AND(BC88=""),"",IF(BC88=0,"",1+(MAX(AQ$60:AQ87)))) ->  | AR88: 29 | AS88: 0 | AT88: 0 | AU88: 0 | AV88: 0 | AW88: 0 | AX88: 0 | AY88: 0 | AZ88: 0 | BA88: 0 | BB88: 0 | BD88: =IF(AND(BP88=""),"",IF(BP88=0,"",1+(MAX(BD$60:BD87)))) ->  | BE88: 29 | BF88: 0 | BG88: 0 | BH88: 0 | BI88: 0 | BJ88: 0 | BK88: 0 | BL88: 0 | BM88: 0 | BN88: 0 | BO88: 0 | BQ88: =IF(AND(CC88=""),"",IF(CC88=0,"",1+(MAX(BQ$60:BQ87)))) ->  | BR88: 29 | BS88: 0 | BT88: 0 | BU88: 0 | BV88: 0 | BW88: 0 | BX88: 0 | BY88: 0 | BZ88: 0 | CA88: 0 | CB88: 0 | CD88: =IF(AND(CP88=""),"",IF(CP88=0,"",1+(MAX(CD$60:CD87)))) ->  | CE88: 29 | CF88: 0 | CG88: 0 | CH88: 0 | CI88: 0 | CJ88: 0 | CK88: 0 | CL88: 0 | CM88: 0 | CN88: 0 | CO88: 0 | CQ88: =IF(AND(DC88=""),"",IF(DC88=0,"",1+(MAX(CQ$60:CQ87)))) ->  | CR88: 29 | CS88: 0 | CT88: 0 | CU88: 0 | CV88: 0 | CW88: 0 | CX88: 0 | CY88: 0 | CZ88: 0 | DA88: 0 | DB88: 0
A89: 0 | B89: 0 | C89: 30 | AC89: 1 | AD89: =IF(AND(AP89=""),"",IF(AP89=0,"",1+(MAX(AD$60:AD88)))) ->  | AE89: 30 | AF89: 0 | AG89: 0 | AH89: 0 | AI89: 0 | AJ89: 0 | AK89: 0 | AL89: 0 | AM89: 0 | AN89: 0 | AO89: 0 | AQ89: =IF(AND(BC89=""),"",IF(BC89=0,"",1+(MAX(AQ$60:AQ88)))) ->  | AR89: 30 | AS89: 0 | AT89: 0 | AU89: 0 | AV89: 0 | AW89: 0 | AX89: 0 | AY89: 0 | AZ89: 0 | BA89: 0 | BB89: 0 | BD89: =IF(AND(BP89=""),"",IF(BP89=0,"",1+(MAX(BD$60:BD88)))) ->  | BE89: 30 | BF89: 0 | BG89: 0 | BH89: 0 | BI89: 0 | BJ89: 0 | BK89: 0 | BL89: 0 | BM89: 0 | BN89: 0 | BO89: 0 | BQ89: =IF(AND(CC89=""),"",IF(CC89=0,"",1+(MAX(BQ$60:BQ88)))) ->  | BR89: 30 | BS89: 0 | BT89: 0 | BU89: 0 | BV89: 0 | BW89: 0 | BX89: 0 | BY89: 0 | BZ89: 0 | CA89: 0 | CB89: 0 | CD89: =IF(AND(CP89=""),"",IF(CP89=0,"",1+(MAX(CD$60:CD88)))) ->  | CE89: 30 | CF89: 0 | CG89: 0 | CH89: 0 | CI89: 0 | CJ89: 0 | CK89: 0 | CL89: 0 | CM89: 0 | CN89: 0 | CO89: 0 | CQ89: =IF(AND(DC89=""),"",IF(DC89=0,"",1+(MAX(CQ$60:CQ88)))) ->  | CR89: 30 | CS89: 0 | CT89: 0 | CU89: 0 | CV89: 0 | CW89: 0 | CX89: 0 | CY89: 0 | CZ89: 0 | DA89: 0 | DB89: 0
A90: 0 | B90: 0 | C90: 31 | AC90: 1 | AD90: =IF(AND(AP90=""),"",IF(AP90=0,"",1+(MAX(AD$60:AD89)))) ->  | AE90: 31 | AF90: 0 | AG90: 0 | AH90: 0 | AI90: 0 | AJ90: 0 | AK90: 0 | AL90: 0 | AM90: 0 | AN90: 0 | AO90: 0 | AQ90: =IF(AND(BC90=""),"",IF(BC90=0,"",1+(MAX(AQ$60:AQ89)))) ->  | AR90: 31 | AS90: 0 | AT90: 0 | AU90: 0 | AV90: 0 | AW90: 0 | AX90: 0 | AY90: 0 | AZ90: 0 | BA90: 0 | BB90: 0 | BD90: =IF(AND(BP90=""),"",IF(BP90=0,"",1+(MAX(BD$60:BD89)))) ->  | BE90: 31 | BF90: 0 | BG90: 0 | BH90: 0 | BI90: 0 | BJ90: 0 | BK90: 0 | BL90: 0 | BM90: 0 | BN90: 0 | BO90: 0 | BQ90: =IF(AND(CC90=""),"",IF(CC90=0,"",1+(MAX(BQ$60:BQ89)))) ->  | BR90: 31 | BS90: 0 | BT90: 0 | BU90: 0 | BV90: 0 | BW90: 0 | BX90: 0 | BY90: 0 | BZ90: 0 | CA90: 0 | CB90: 0 | CD90: =IF(AND(CP90=""),"",IF(CP90=0,"",1+(MAX(CD$60:CD89)))) ->  | CE90: 31 | CF90: 0 | CG90: 0 | CH90: 0 | CI90: 0 | CJ90: 0 | CK90: 0 | CL90: 0 | CM90: 0 | CN90: 0 | CO90: 0 | CQ90: =IF(AND(DC90=""),"",IF(DC90=0,"",1+(MAX(CQ$60:CQ89)))) ->  | CR90: 31 | CS90: 0 | CT90: 0 | CU90: 0 | CV90: 0 | CW90: 0 | CX90: 0 | CY90: 0 | CZ90: 0 | DA90: 0 | DB90: 0
A91: 0 | B91: 0 | C91: 32 | AC91: 1 | AD91: =IF(AND(AP91=""),"",IF(AP91=0,"",1+(MAX(AD$60:AD90)))) ->  | AE91: 32 | AF91: 0 | AG91: 0 | AH91: 0 | AI91: 0 | AJ91: 0 | AK91: 0 | AL91: 0 | AM91: 0 | AN91: 0 | AO91: 0 | AQ91: =IF(AND(BC91=""),"",IF(BC91=0,"",1+(MAX(AQ$60:AQ90)))) ->  | AR91: 32 | AS91: 0 | AT91: 0 | AU91: 0 | AV91: 0 | AW91: 0 | AX91: 0 | AY91: 0 | AZ91: 0 | BA91: 0 | BB91: 0 | BD91: =IF(AND(BP91=""),"",IF(BP91=0,"",1+(MAX(BD$60:BD90)))) ->  | BE91: 32 | BF91: 0 | BG91: 0 | BH91: 0 | BI91: 0 | BJ91: 0 | BK91: 0 | BL91: 0 | BM91: 0 | BN91: 0 | BO91: 0 | BQ91: =IF(AND(CC91=""),"",IF(CC91=0,"",1+(MAX(BQ$60:BQ90)))) ->  | BR91: 32 | BS91: 0 | BT91: 0 | BU91: 0 | BV91: 0 | BW91: 0 | BX91: 0 | BY91: 0 | BZ91: 0 | CA91: 0 | CB91: 0 | CD91: =IF(AND(CP91=""),"",IF(CP91=0,"",1+(MAX(CD$60:CD90)))) ->  | CE91: 32 | CF91: 0 | CG91: 0 | CH91: 0 | CI91: 0 | CJ91: 0 | CK91: 0 | CL91: 0 | CM91: 0 | CN91: 0 | CO91: 0 | CQ91: =IF(AND(DC91=""),"",IF(DC91=0,"",1+(MAX(CQ$60:CQ90)))) ->  | CR91: 32 | CS91: 0 | CT91: 0 | CU91: 0 | CV91: 0 | CW91: 0 | CX91: 0 | CY91: 0 | CZ91: 0 | DA91: 0 | DB91: 0
A92: 0 | B92: 0 | C92: 33 | AB92: =MID(H92,5,4) ->  | AC92: 1 | AD92: =IF(AND(AP92=""),"",IF(AP92=0,"",1+(MAX(AD$60:AD91)))) ->  | AE92: 33 | AF92: 0 | AG92: 0 | AH92: 0 | AI92: 0 | AJ92: 0 | AK92: 0 | AL92: 0 | AM92: 0 | AN92: 0 | AO92: 0 | AQ92: =IF(AND(BC92=""),"",IF(BC92=0,"",1+(MAX(AQ$60:AQ91)))) ->  | AR92: 33 | AS92: 0 | AT92: 0 | AU92: 0 | AV92: 0 | AW92: 0 | AX92: 0 | AY92: 0 | AZ92: 0 | BA92: 0 | BB92: 0 | BD92: =IF(AND(BP92=""),"",IF(BP92=0,"",1+(MAX(BD$60:BD91)))) ->  | BE92: 33 | BF92: 0 | BG92: 0 | BH92: 0 | BI92: 0 | BJ92: 0 | BK92: 0 | BL92: 0 | BM92: 0 | BN92: 0 | BO92: 0 | BQ92: =IF(AND(CC92=""),"",IF(CC92=0,"",1+(MAX(BQ$60:BQ91)))) ->  | BR92: 33 | BS92: 0 | BT92: 0 | BU92: 0 | BV92: 0 | BW92: 0 | BX92: 0 | BY92: 0 | BZ92: 0 | CA92: 0 | CB92: 0 | CD92: =IF(AND(CP92=""),"",IF(CP92=0,"",1+(MAX(CD$60:CD91)))) ->  | CE92: 33 | CF92: 0 | CG92: 0 | CH92: 0 | CI92: 0 | CJ92: 0 | CK92: 0 | CL92: 0 | CM92: 0 | CN92: 0 | CO92: 0 | CQ92: =IF(AND(DC92=""),"",IF(DC92=0,"",1+(MAX(CQ$60:CQ91)))) ->  | CR92: 33 | CS92: 0 | CT92: 0 | CU92: 0 | CV92: 0 | CW92: 0 | CX92: 0 | CY92: 0 | CZ92: 0 | DA92: 0 | DB92: 0
A93: 0 | B93: 0 | C93: 34 | AC93: 1 | AD93: =IF(AND(AP93=""),"",IF(AP93=0,"",1+(MAX(AD$60:AD92)))) ->  | AE93: 34 | AF93: 0 | AG93: 0 | AH93: 0 | AI93: 0 | AJ93: 0 | AK93: 0 | AL93: 0 | AM93: 0 | AN93: 0 | AO93: 0 | AQ93: =IF(AND(BC93=""),"",IF(BC93=0,"",1+(MAX(AQ$60:AQ92)))) ->  | AR93: 34 | AS93: 0 | AT93: 0 | AU93: 0 | AV93: 0 | AW93: 0 | AX93: 0 | AY93: 0 | AZ93: 0 | BA93: 0 | BB93: 0 | BD93: =IF(AND(BP93=""),"",IF(BP93=0,"",1+(MAX(BD$60:BD92)))) ->  | BE93: 34 | BF93: =IF($M93="GAZETTED - FIX PAY",D93,0) -> 0 | BG93: =IF($M93="GAZETTED - FIX PAY",E93,0) -> 0 | BH93: =IF($M93="GAZETTED - FIX PAY",F93,0) -> 0 | BI93: =IF($M93="GAZETTED - FIX PAY",G93,0) -> 0 | BJ93: =IF($M93="GAZETTED - FIX PAY",H93,0) -> 0 | BK93: =IF($M93="GAZETTED - FIX PAY",I93,0) -> 0 | BL93: =IF($M93="GAZETTED - FIX PAY",J93,0) -> 0 | BM93: =IF($M93="GAZETTED - FIX PAY",K93,0) -> 0 | BN93: =IF($M93="GAZETTED - FIX PAY",L93,0) -> 0 | BO93: 0 | BQ93: =IF(AND(CC93=""),"",IF(CC93=0,"",1+(MAX(BQ$60:BQ92)))) ->  | BR93: 34 | BS93: =IF($M93="NON GAZETTED - FIX PAY",D93,0) -> 0 | BT93: =IF($M93="NON GAZETTED - FIX PAY",E93,0) -> 0 | BU93: =IF($M93="NON GAZETTED - FIX PAY",F93,0) -> 0 | BV93: =IF($M93="NON GAZETTED - FIX PAY",G93,0) -> 0 | BW93: =IF($M93="NON GAZETTED - FIX PAY",H93,0) -> 0 | BX93: =IF($M93="NON GAZETTED - FIX PAY",I93,0) -> 0 | BY93: =IF($M93="NON GAZETTED - FIX PAY",J93,0) -> 0 | BZ93: =IF($M93="NON GAZETTED - FIX PAY",K93,0) -> 0 | CA93: =IF($M93="NON GAZETTED - FIX PAY",L93,0) -> 0 | CB93: 0 | CD93: =IF(AND(CP93=""),"",IF(CP93=0,"",1+(MAX(CD$60:CD92)))) ->  | CE93: 34 | CF93: 0 | CG93: 0 | CH93: 0 | CI93: 0 | CJ93: 0 | CK93: 0 | CL93: 0 | CM93: 0 | CN93: 0 | CO93: 0 | CQ93: =IF(AND(DC93=""),"",IF(DC93=0,"",1+(MAX(CQ$60:CQ92)))) ->  | CR93: 34 | CS93: 0 | CT93: 0 | CU93: 0 | CV93: 0 | CW93: 0 | CX93: 0 | CY93: 0 | CZ93: 0 | DA93: 0 | DB93: 0
A94: 0 | B94: 0 | C94: 35 | AC94: 1 | AD94: =IF(AND(AP94=""),"",IF(AP94=0,"",1+(MAX(AD$60:AD93)))) ->  | AE94: 35 | AF94: 0 | AG94: 0 | AH94: 0 | AI94: 0 | AJ94: 0 | AK94: 0 | AL94: 0 | AM94: 0 | AN94: 0 | AO94: 0 | AQ94: =IF(AND(BC94=""),"",IF(BC94=0,"",1+(MAX(AQ$60:AQ93)))) ->  | AR94: 35 | AS94: 0 | AT94: 0 | AU94: 0 | AV94: 0 | AW94: 0 | AX94: 0 | AY94: 0 | AZ94: 0 | BA94: 0 | BB94: 0 | BD94: =IF(AND(BP94=""),"",IF(BP94=0,"",1+(MAX(BD$60:BD93)))) ->  | BE94: 35 | BF94: 0 | BG94: 0 | BH94: 0 | BI94: 0 | BJ94: 0 | BK94: 0 | BL94: 0 | BM94: 0 | BN94: 0 | BO94: 0 | BQ94: =IF(AND(CC94=""),"",IF(CC94=0,"",1+(MAX(BQ$60:BQ93)))) ->  | BR94: 35 | BS94: 0 | BT94: 0 | BU94: 0 | BV94: 0 | BW94: 0 | BX94: 0 | BY94: 0 | BZ94: 0 | CA94: 0 | CB94: 0 | CD94: =IF(AND(CP94=""),"",IF(CP94=0,"",1+(MAX(CD$60:CD93)))) ->  | CE94: 35 | CF94: 0 | CG94: 0 | CH94: 0 | CI94: 0 | CJ94: 0 | CK94: 0 | CL94: 0 | CM94: 0 | CN94: 0 | CO94: 0 | CQ94: =IF(AND(DC94=""),"",IF(DC94=0,"",1+(MAX(CQ$60:CQ93)))) ->  | CR94: 35 | CS94: 0 | CT94: 0 | CU94: 0 | CV94: 0 | CW94: 0 | CX94: 0 | CY94: 0 | CZ94: 0 | DA94: 0 | DB94: 0
A95: 0 | B95: 0 | C95: 36 | AC95: 1 | AD95: =IF(AND(AP95=""),"",IF(AP95=0,"",1+(MAX(AD$60:AD94)))) ->  | AE95: 36 | AF95: 0 | AG95: 0 | AH95: 0 | AI95: 0 | AJ95: 0 | AK95: 0 | AL95: 0 | AM95: 0 | AN95: 0 | AO95: 0 | AQ95: =IF(AND(BC95=""),"",IF(BC95=0,"",1+(MAX(AQ$60:AQ94)))) ->  | AR95: 36 | AS95: 0 | AT95: 0 | AU95: 0 | AV95: 0 | AW95: 0 | AX95: 0 | AY95: 0 | AZ95: 0 | BA95: 0 | BB95: 0 | BD95: =IF(AND(BP95=""),"",IF(BP95=0,"",1+(MAX(BD$60:BD94)))) ->  | BE95: 36 | BF95: 0 | BG95: 0 | BH95: 0 | BI95: 0 | BJ95: 0 | BK95: 0 | BL95: 0 | BM95: 0 | BN95: 0 | BO95: 0 | BQ95: =IF(AND(CC95=""),"",IF(CC95=0,"",1+(MAX(BQ$60:BQ94)))) ->  | BR95: 36 | BS95: 0 | BT95: 0 | BU95: 0 | BV95: 0 | BW95: 0 | BX95: 0 | BY95: 0 | BZ95: 0 | CA95: 0 | CB95: 0 | CD95: =IF(AND(CP95=""),"",IF(CP95=0,"",1+(MAX(CD$60:CD94)))) ->  | CE95: 36 | CF95: 0 | CG95: 0 | CH95: 0 | CI95: 0 | CJ95: 0 | CK95: 0 | CL95: 0 | CM95: 0 | CN95: 0 | CO95: 0 | CQ95: =IF(AND(DC95=""),"",IF(DC95=0,"",1+(MAX(CQ$60:CQ94)))) ->  | CR95: 36 | CS95: 0 | CT95: 0 | CU95: 0 | CV95: 0 | CW95: 0 | CX95: 0 | CY95: 0 | CZ95: 0 | DA95: 0 | DB95: 0
A96: 0 | B96: 0 | C96: 37 | AC96: 1 | AD96: =IF(AND(AP96=""),"",IF(AP96=0,"",1+(MAX(AD$60:AD95)))) ->  | AE96: 37 | AF96: 0 | AG96: 0 | AH96: 0 | AI96: 0 | AJ96: 0 | AK96: 0 | AL96: 0 | AM96: 0 | AN96: 0 | AO96: 0 | AQ96: =IF(AND(BC96=""),"",IF(BC96=0,"",1+(MAX(AQ$60:AQ95)))) ->  | AR96: 37 | AS96: 0 | AT96: 0 | AU96: 0 | AV96: 0 | AW96: 0 | AX96: 0 | AY96: 0 | AZ96: 0 | BA96: 0 | BB96: 0 | BD96: =IF(AND(BP96=""),"",IF(BP96=0,"",1+(MAX(BD$60:BD95)))) ->  | BE96: 37 | BF96: 0 | BG96: 0 | BH96: 0 | BI96: 0 | BJ96: 0 | BK96: 0 | BL96: 0 | BM96: 0 | BN96: 0 | BO96: 0 | BQ96: =IF(AND(CC96=""),"",IF(CC96=0,"",1+(MAX(BQ$60:BQ95)))) ->  | BR96: 37 | BS96: 0 | BT96: 0 | BU96: 0 | BV96: 0 | BW96: 0 | BX96: 0 | BY96: 0 | BZ96: 0 | CA96: 0 | CB96: 0 | CD96: =IF(AND(CP96=""),"",IF(CP96=0,"",1+(MAX(CD$60:CD95)))) ->  | CE96: 37 | CF96: 0 | CG96: 0 | CH96: 0 | CI96: 0 | CJ96: 0 | CK96: 0 | CL96: 0 | CM96: 0 | CN96: 0 | CO96: 0 | CQ96: =IF(AND(DC96=""),"",IF(DC96=0,"",1+(MAX(CQ$60:CQ95)))) ->  | CR96: 37 | CS96: 0 | CT96: 0 | CU96: 0 | CV96: 0 | CW96: 0 | CX96: 0 | CY96: 0 | CZ96: 0 | DA96: 0 | DB96: 0
A97: 0 | B97: 0 | C97: 38 | AC97: 1 | AD97: =IF(AND(AP97=""),"",IF(AP97=0,"",1+(MAX(AD$60:AD96)))) ->  | AE97: 38 | AF97: 0 | AG97: 0 | AH97: 0 | AI97: 0 | AJ97: 0 | AK97: 0 | AL97: 0 | AM97: 0 | AN97: 0 | AO97: 0 | AQ97: =IF(AND(BC97=""),"",IF(BC97=0,"",1+(MAX(AQ$60:AQ96)))) ->  | AR97: 38 | AS97: 0 | AT97: 0 | AU97: 0 | AV97: 0 | AW97: 0 | AX97: 0 | AY97: 0 | AZ97: 0 | BA97: 0 | BB97: 0 | BD97: =IF(AND(BP97=""),"",IF(BP97=0,"",1+(MAX(BD$60:BD96)))) ->  | BE97: 38 | BF97: 0 | BG97: 0 | BH97: 0 | BI97: 0 | BJ97: 0 | BK97: 0 | BL97: 0 | BM97: 0 | BN97: 0 | BO97: 0 | BQ97: =IF(AND(CC97=""),"",IF(CC97=0,"",1+(MAX(BQ$60:BQ96)))) ->  | BR97: 38 | BS97: 0 | BT97: 0 | BU97: 0 | BV97: 0 | BW97: 0 | BX97: 0 | BY97: 0 | BZ97: 0 | CA97: 0 | CB97: 0 | CD97: =IF(AND(CP97=""),"",IF(CP97=0,"",1+(MAX(CD$60:CD96)))) ->  | CE97: 38 | CF97: 0 | CG97: 0 | CH97: 0 | CI97: 0 | CJ97: 0 | CK97: 0 | CL97: 0 | CM97: 0 | CN97: 0 | CO97: 0 | CQ97: =IF(AND(DC97=""),"",IF(DC97=0,"",1+(MAX(CQ$60:CQ96)))) ->  | CR97: 38 | CS97: 0 | CT97: 0 | CU97: 0 | CV97: 0 | CW97: 0 | CX97: 0 | CY97: 0 | CZ97: 0 | DA97: 0 | DB97: 0
A98: 0 | B98: 0 | C98: 39 | AC98: 1 | AD98: =IF(AND(AP98=""),"",IF(AP98=0,"",1+(MAX(AD$60:AD97)))) ->  | AE98: 39 | AF98: 0 | AG98: 0 | AH98: 0 | AI98: 0 | AJ98: 0 | AK98: 0 | AL98: 0 | AM98: 0 | AN98: 0 | AO98: 0 | AQ98: =IF(AND(BC98=""),"",IF(BC98=0,"",1+(MAX(AQ$60:AQ97)))) ->  | AR98: 39 | AS98: 0 | AT98: 0 | AU98: 0 | AV98: 0 | AW98: 0 | AX98: 0 | AY98: 0 | AZ98: 0 | BA98: 0 | BB98: 0 | BD98: =IF(AND(BP98=""),"",IF(BP98=0,"",1+(MAX(BD$60:BD97)))) ->  | BE98: 39 | BF98: 0 | BG98: 0 | BH98: 0 | BI98: 0 | BJ98: 0 | BK98: 0 | BL98: 0 | BM98: 0 | BN98: 0 | BO98: 0 | BQ98: =IF(AND(CC98=""),"",IF(CC98=0,"",1+(MAX(BQ$60:BQ97)))) ->  | BR98: 39 | BS98: 0 | BT98: 0 | BU98: 0 | BV98: 0 | BW98: 0 | BX98: 0 | BY98: 0 | BZ98: 0 | CA98: 0 | CB98: 0 | CD98: =IF(AND(CP98=""),"",IF(CP98=0,"",1+(MAX(CD$60:CD97)))) ->  | CE98: 39 | CF98: 0 | CG98: 0 | CH98: 0 | CI98: 0 | CJ98: 0 | CK98: 0 | CL98: 0 | CM98: 0 | CN98: 0 | CO98: 0 | CQ98: =IF(AND(DC98=""),"",IF(DC98=0,"",1+(MAX(CQ$60:CQ97)))) ->  | CR98: 39 | CS98: 0 | CT98: 0 | CU98: 0 | CV98: 0 | CW98: 0 | CX98: 0 | CY98: 0 | CZ98: 0 | DA98: 0 | DB98: 0
A99: 0 | B99: 0 | C99: 40 | AC99: 1 | AD99: =IF(AND(AP99=""),"",IF(AP99=0,"",1+(MAX(AD$60:AD98)))) ->  | AE99: 40 | AF99: 0 | AG99: 0 | AH99: 0 | AI99: 0 | AJ99: 0 | AK99: 0 | AL99: 0 | AM99: 0 | AN99: 0 | AO99: 0 | AQ99: =IF(AND(BC99=""),"",IF(BC99=0,"",1+(MAX(AQ$60:AQ98)))) ->  | AR99: 40 | AS99: 0 | AT99: 0 | AU99: 0 | AV99: 0 | AW99: 0 | AX99: 0 | AY99: 0 | AZ99: 0 | BA99: 0 | BB99: 0 | BD99: =IF(AND(BP99=""),"",IF(BP99=0,"",1+(MAX(BD$60:BD98)))) ->  | BE99: 40 | BF99: 0 | BG99: 0 | BH99: 0 | BI99: 0 | BJ99: 0 | BK99: 0 | BL99: 0 | BM99: 0 | BN99: 0 | BO99: 0 | BQ99: =IF(AND(CC99=""),"",IF(CC99=0,"",1+(MAX(BQ$60:BQ98)))) ->  | BR99: 40 | BS99: 0 | BT99: 0 | BU99: 0 | BV99: 0 | BW99: 0 | BX99: 0 | BY99: 0 | BZ99: 0 | CA99: 0 | CB99: 0 | CD99: =IF(AND(CP99=""),"",IF(CP99=0,"",1+(MAX(CD$60:CD98)))) ->  | CE99: 40 | CF99: 0 | CG99: 0 | CH99: 0 | CI99: 0 | CJ99: 0 | CK99: 0 | CL99: 0 | CM99: 0 | CN99: 0 | CO99: 0 | CQ99: =IF(AND(DC99=""),"",IF(DC99=0,"",1+(MAX(CQ$60:CQ98)))) ->  | CR99: 40 | CS99: 0 | CT99: 0 | CU99: 0 | CV99: 0 | CW99: 0 | CX99: 0 | CY99: 0 | CZ99: 0 | DA99: 0 | DB99: 0
A100: 0 | B100: 0 | C100: 41 | AC100: 1 | AD100: =IF(AND(AP100=""),"",IF(AP100=0,"",1+(MAX(AD$60:AD99)))) ->  | AE100: 41 | AF100: 0 | AG100: 0 | AH100: 0 | AI100: 0 | AJ100: 0 | AK100: 0 | AL100: 0 | AM100: 0 | AN100: 0 | AO100: 0 | AQ100: =IF(AND(BC100=""),"",IF(BC100=0,"",1+(MAX(AQ$60:AQ99)))) ->  | AR100: 41 | AS100: 0 | AT100: 0 | AU100: 0 | AV100: 0 | AW100: 0 | AX100: 0 | AY100: 0 | AZ100: 0 | BA100: 0 | BB100: 0 | BD100: =IF(AND(BP100=""),"",IF(BP100=0,"",1+(MAX(BD$60:BD99)))) ->  | BE100: 41 | BF100: 0 | BG100: 0 | BH100: 0 | BI100: 0 | BJ100: 0 | BK100: 0 | BL100: 0 | BM100: 0 | BN100: 0 | BO100: 0 | BQ100: =IF(AND(CC100=""),"",IF(CC100=0,"",1+(MAX(BQ$60:BQ99)))) ->  | BR100: 41 | BS100: 0 | BT100: 0 | BU100: 0 | BV100: 0 | BW100: 0 | BX100: 0 | BY100: 0 | BZ100: 0 | CA100: 0 | CB100: 0 | CD100: =IF(AND(CP100=""),"",IF(CP100=0,"",1+(MAX(CD$60:CD99)))) ->  | CE100: 41 | CF100: 0 | CG100: 0 | CH100: 0 | CI100: 0 | CJ100: 0 | CK100: 0 | CL100: 0 | CM100: 0 | CN100: 0 | CO100: 0 | CQ100: =IF(AND(DC100=""),"",IF(DC100=0,"",1+(MAX(CQ$60:CQ99)))) ->  | CR100: 41 | CS100: 0 | CT100: 0 | CU100: 0 | CV100: 0 | CW100: 0 | CX100: 0 | CY100: 0 | CZ100: 0 | DA100: 0 | DB100: 0
A101: 0 | B101: 0 | C101: 42 | AC101: 1 | AD101: =IF(AND(AP101=""),"",IF(AP101=0,"",1+(MAX(AD$60:AD100)))) ->  | AE101: 42 | AF101: 0 | AG101: 0 | AH101: 0 | AI101: 0 | AJ101: 0 | AK101: 0 | AL101: 0 | AM101: 0 | AN101: 0 | AO101: 0 | AQ101: =IF(AND(BC101=""),"",IF(BC101=0,"",1+(MAX(AQ$60:AQ100)))) ->  | AR101: 42 | AS101: 0 | AT101: 0 | AU101: 0 | AV101: 0 | AW101: 0 | AX101: 0 | AY101: 0 | AZ101: 0 | BA101: 0 | BB101: 0 | BD101: =IF(AND(BP101=""),"",IF(BP101=0,"",1+(MAX(BD$60:BD100)))) ->  | BE101: 42 | BF101: 0 | BG101: 0 | BH101: 0 | BI101: 0 | BJ101: 0 | BK101: 0 | BL101: 0 | BM101: 0 | BN101: 0 | BO101: 0 | BQ101: =IF(AND(CC101=""),"",IF(CC101=0,"",1+(MAX(BQ$60:BQ100)))) ->  | BR101: 42 | BS101: 0 | BT101: 0 | BU101: 0 | BV101: 0 | BW101: 0 | BX101: 0 | BY101: 0 | BZ101: 0 | CA101: 0 | CB101: 0 | CD101: =IF(AND(CP101=""),"",IF(CP101=0,"",1+(MAX(CD$60:CD100)))) ->  | CE101: 42 | CF101: 0 | CG101: 0 | CH101: 0 | CI101: 0 | CJ101: 0 | CK101: 0 | CL101: 0 | CM101: 0 | CN101: 0 | CO101: 0 | CQ101: =IF(AND(DC101=""),"",IF(DC101=0,"",1+(MAX(CQ$60:CQ100)))) ->  | CR101: 42 | CS101: 0 | CT101: 0 | CU101: 0 | CV101: 0 | CW101: 0 | CX101: 0 | CY101: 0 | CZ101: 0 | DA101: 0 | DB101: 0
A102: 0 | B102: 0 | C102: 43 | AC102: 1 | AD102: =IF(AND(AP102=""),"",IF(AP102=0,"",1+(MAX(AD$60:AD101)))) ->  | AE102: 43 | AF102: 0 | AG102: 0 | AH102: 0 | AI102: 0 | AJ102: 0 | AK102: 0 | AL102: 0 | AM102: 0 | AN102: 0 | AO102: 0 | AQ102: =IF(AND(BC102=""),"",IF(BC102=0,"",1+(MAX(AQ$60:AQ101)))) ->  | AR102: 43 | AS102: 0 | AT102: 0 | AU102: 0 | AV102: 0 | AW102: 0 | AX102: 0 | AY102: 0 | AZ102: 0 | BA102: 0 | BB102: 0 | BD102: =IF(AND(BP102=""),"",IF(BP102=0,"",1+(MAX(BD$60:BD101)))) ->  | BE102: 43 | BF102: 0 | BG102: 0 | BH102: 0 | BI102: 0 | BJ102: 0 | BK102: 0 | BL102: 0 | BM102: 0 | BN102: 0 | BO102: 0 | BQ102: =IF(AND(CC102=""),"",IF(CC102=0,"",1+(MAX(BQ$60:BQ101)))) ->  | BR102: 43 | BS102: 0 | BT102: 0 | BU102: 0 | BV102: 0 | BW102: 0 | BX102: 0 | BY102: 0 | BZ102: 0 | CA102: 0 | CB102: 0 | CD102: =IF(AND(CP102=""),"",IF(CP102=0,"",1+(MAX(CD$60:CD101)))) ->  | CE102: 43 | CF102: 0 | CG102: 0 | CH102: 0 | CI102: 0 | CJ102: 0 | CK102: 0 | CL102: 0 | CM102: 0 | CN102: 0 | CO102: 0 | CQ102: =IF(AND(DC102=""),"",IF(DC102=0,"",1+(MAX(CQ$60:CQ101)))) ->  | CR102: 43 | CS102: 0 | CT102: 0 | CU102: 0 | CV102: 0 | CW102: 0 | CX102: 0 | CY102: 0 | CZ102: 0 | DA102: 0 | DB102: 0
A103: 0 | B103: 0 | C103: 44 | AC103: 1 | AD103: =IF(AND(AP103=""),"",IF(AP103=0,"",1+(MAX(AD$60:AD102)))) ->  | AE103: 44 | AF103: 0 | AG103: 0 | AH103: 0 | AI103: 0 | AJ103: 0 | AK103: 0 | AL103: 0 | AM103: 0 | AN103: 0 | AO103: 0 | AQ103: =IF(AND(BC103=""),"",IF(BC103=0,"",1+(MAX(AQ$60:AQ102)))) ->  | AR103: 44 | AS103: 0 | AT103: 0 | AU103: 0 | AV103: 0 | AW103: 0 | AX103: 0 | AY103: 0 | AZ103: 0 | BA103: 0 | BB103: 0 | BD103: =IF(AND(BP103=""),"",IF(BP103=0,"",1+(MAX(BD$60:BD102)))) ->  | BE103: 44 | BF103: 0 | BG103: 0 | BH103: 0 | BI103: 0 | BJ103: 0 | BK103: 0 | BL103: 0 | BM103: 0 | BN103: 0 | BO103: 0 | BQ103: =IF(AND(CC103=""),"",IF(CC103=0,"",1+(MAX(BQ$60:BQ102)))) ->  | BR103: 44 | BS103: 0 | BT103: 0 | BU103: 0 | BV103: 0 | BW103: 0 | BX103: 0 | BY103: 0 | BZ103: 0 | CA103: 0 | CB103: 0 | CD103: =IF(AND(CP103=""),"",IF(CP103=0,"",1+(MAX(CD$60:CD102)))) ->  | CE103: 44 | CF103: 0 | CG103: 0 | CH103: 0 | CI103: 0 | CJ103: 0 | CK103: 0 | CL103: 0 | CM103: 0 | CN103: 0 | CO103: 0 | CQ103: =IF(AND(DC103=""),"",IF(DC103=0,"",1+(MAX(CQ$60:CQ102)))) ->  | CR103: 44 | CS103: 0 | CT103: 0 | CU103: 0 | CV103: 0 | CW103: 0 | CX103: 0 | CY103: 0 | CZ103: 0 | DA103: 0 | DB103: 0
A104: 0 | B104: 0 | C104: 45 | AC104: 1 | AD104: =IF(AND(AP104=""),"",IF(AP104=0,"",1+(MAX(AD$60:AD103)))) ->  | AE104: 45 | AF104: 0 | AG104: 0 | AH104: 0 | AI104: 0 | AJ104: 0 | AK104: 0 | AL104: 0 | AM104: 0 | AN104: 0 | AO104: 0 | AQ104: =IF(AND(BC104=""),"",IF(BC104=0,"",1+(MAX(AQ$60:AQ103)))) ->  | AR104: 45 | AS104: 0 | AT104: 0 | AU104: 0 | AV104: 0 | AW104: 0 | AX104: 0 | AY104: 0 | AZ104: 0 | BA104: 0 | BB104: 0 | BD104: =IF(AND(BP104=""),"",IF(BP104=0,"",1+(MAX(BD$60:BD103)))) ->  | BE104: 45 | BF104: 0 | BG104: 0 | BH104: 0 | BI104: 0 | BJ104: 0 | BK104: 0 | BL104: 0 | BM104: 0 | BN104: 0 | BO104: 0 | BQ104: =IF(AND(CC104=""),"",IF(CC104=0,"",1+(MAX(BQ$60:BQ103)))) ->  | BR104: 45 | BS104: 0 | BT104: 0 | BU104: 0 | BV104: 0 | BW104: 0 | BX104: 0 | BY104: 0 | BZ104: 0 | CA104: 0 | CB104: 0 | CD104: =IF(AND(CP104=""),"",IF(CP104=0,"",1+(MAX(CD$60:CD103)))) ->  | CE104: 45 | CF104: 0 | CG104: 0 | CH104: 0 | CI104: 0 | CJ104: 0 | CK104: 0 | CL104: 0 | CM104: 0 | CN104: 0 | CO104: 0 | CQ104: =IF(AND(DC104=""),"",IF(DC104=0,"",1+(MAX(CQ$60:CQ103)))) ->  | CR104: 45 | CS104: 0 | CT104: 0 | CU104: 0 | CV104: 0 | CW104: 0 | CX104: 0 | CY104: 0 | CZ104: 0 | DA104: 0 | DB104: 0
A105: 0 | B105: 0 | C105: 46 | AC105: 1 | AD105: =IF(AND(AP105=""),"",IF(AP105=0,"",1+(MAX(AD$60:AD104)))) ->  | AE105: 46 | AF105: 0 | AG105: 0 | AH105: 0 | AI105: 0 | AJ105: 0 | AK105: 0 | AL105: 0 | AM105: 0 | AN105: 0 | AO105: 0 | AQ105: =IF(AND(BC105=""),"",IF(BC105=0,"",1+(MAX(AQ$60:AQ104)))) ->  | AR105: 46 | AS105: 0 | AT105: 0 | AU105: 0 | AV105: 0 | AW105: 0 | AX105: 0 | AY105: 0 | AZ105: 0 | BA105: 0 | BB105: 0 | BD105: =IF(AND(BP105=""),"",IF(BP105=0,"",1+(MAX(BD$60:BD104)))) ->  | BE105: 46 | BF105: 0 | BG105: 0 | BH105: 0 | BI105: 0 | BJ105: 0 | BK105: 0 | BL105: 0 | BM105: 0 | BN105: 0 | BO105: 0 | BQ105: =IF(AND(CC105=""),"",IF(CC105=0,"",1+(MAX(BQ$60:BQ104)))) ->  | BR105: 46 | BS105: 0 | BT105: 0 | BU105: 0 | BV105: 0 | BW105: 0 | BX105: 0 | BY105: 0 | BZ105: 0 | CA105: 0 | CB105: 0 | CD105: =IF(AND(CP105=""),"",IF(CP105=0,"",1+(MAX(CD$60:CD104)))) ->  | CE105: 46 | CF105: 0 | CG105: 0 | CH105: 0 | CI105: 0 | CJ105: 0 | CK105: 0 | CL105: 0 | CM105: 0 | CN105: 0 | CO105: 0 | CQ105: =IF(AND(DC105=""),"",IF(DC105=0,"",1+(MAX(CQ$60:CQ104)))) ->  | CR105: 46 | CS105: 0 | CT105: 0 | CU105: 0 | CV105: 0 | CW105: 0 | CX105: 0 | CY105: 0 | CZ105: 0 | DA105: 0 | DB105: 0
A106: 0 | B106: 0 | C106: 47 | AC106: 1 | AD106: =IF(AND(AP106=""),"",IF(AP106=0,"",1+(MAX(AD$60:AD105)))) ->  | AE106: 47 | AF106: 0 | AG106: 0 | AH106: 0 | AI106: 0 | AJ106: 0 | AK106: 0 | AL106: 0 | AM106: 0 | AN106: 0 | AO106: 0 | AQ106: =IF(AND(BC106=""),"",IF(BC106=0,"",1+(MAX(AQ$60:AQ105)))) ->  | AR106: 47 | AS106: 0 | AT106: 0 | AU106: 0 | AV106: 0 | AW106: 0 | AX106: 0 | AY106: 0 | AZ106: 0 | BA106: 0 | BB106: 0 | BD106: =IF(AND(BP106=""),"",IF(BP106=0,"",1+(MAX(BD$60:BD105)))) ->  | BE106: 47 | BF106: 0 | BG106: 0 | BH106: 0 | BI106: 0 | BJ106: 0 | BK106: 0 | BL106: 0 | BM106: 0 | BN106: 0 | BO106: 0 | BQ106: =IF(AND(CC106=""),"",IF(CC106=0,"",1+(MAX(BQ$60:BQ105)))) ->  | BR106: 47 | BS106: 0 | BT106: 0 | BU106: 0 | BV106: 0 | BW106: 0 | BX106: 0 | BY106: 0 | BZ106: 0 | CA106: 0 | CB106: 0 | CD106: =IF(AND(CP106=""),"",IF(CP106=0,"",1+(MAX(CD$60:CD105)))) ->  | CE106: 47 | CF106: 0 | CG106: 0 | CH106: 0 | CI106: 0 | CJ106: 0 | CK106: 0 | CL106: 0 | CM106: 0 | CN106: 0 | CO106: 0 | CQ106: =IF(AND(DC106=""),"",IF(DC106=0,"",1+(MAX(CQ$60:CQ105)))) ->  | CR106: 47 | CS106: 0 | CT106: 0 | CU106: 0 | CV106: 0 | CW106: 0 | CX106: 0 | CY106: 0 | CZ106: 0 | DA106: 0 | DB106: 0
A107: 0 | B107: 0 | C107: 48 | AC107: 1 | AD107: =IF(AND(AP107=""),"",IF(AP107=0,"",1+(MAX(AD$60:AD106)))) ->  | AE107: 48 | AF107: 0 | AG107: 0 | AH107: 0 | AI107: 0 | AJ107: 0 | AK107: 0 | AL107: 0 | AM107: 0 | AN107: 0 | AO107: 0 | AQ107: =IF(AND(BC107=""),"",IF(BC107=0,"",1+(MAX(AQ$60:AQ106)))) ->  | AR107: 48 | AS107: 0 | AT107: 0 | AU107: 0 | AV107: 0 | AW107: 0 | AX107: 0 | AY107: 0 | AZ107: 0 | BA107: 0 | BB107: 0 | BD107: =IF(AND(BP107=""),"",IF(BP107=0,"",1+(MAX(BD$60:BD106)))) ->  | BE107: 48 | BF107: 0 | BG107: 0 | BH107: 0 | BI107: 0 | BJ107: 0 | BK107: 0 | BL107: 0 | BM107: 0 | BN107: 0 | BO107: 0 | BQ107: =IF(AND(CC107=""),"",IF(CC107=0,"",1+(MAX(BQ$60:BQ106)))) ->  | BR107: 48 | BS107: 0 | BT107: 0 | BU107: 0 | BV107: 0 | BW107: 0 | BX107: 0 | BY107: 0 | BZ107: 0 | CA107: 0 | CB107: 0 | CD107: =IF(AND(CP107=""),"",IF(CP107=0,"",1+(MAX(CD$60:CD106)))) ->  | CE107: 48 | CF107: 0 | CG107: 0 | CH107: 0 | CI107: 0 | CJ107: 0 | CK107: 0 | CL107: 0 | CM107: 0 | CN107: 0 | CO107: 0 | CQ107: =IF(AND(DC107=""),"",IF(DC107=0,"",1+(MAX(CQ$60:CQ106)))) ->  | CR107: 48 | CS107: 0 | CT107: 0 | CU107: 0 | CV107: 0 | CW107: 0 | CX107: 0 | CY107: 0 | CZ107: 0 | DA107: 0 | DB107: 0
A108: 0 | B108: 0 | C108: 49 | AC108: 1 | AD108: =IF(AND(AP108=""),"",IF(AP108=0,"",1+(MAX(AD$60:AD107)))) ->  | AE108: 49 | AF108: 0 | AG108: 0 | AH108: 0 | AI108: 0 | AJ108: 0 | AK108: 0 | AL108: 0 | AM108: 0 | AN108: 0 | AO108: 0 | AQ108: =IF(AND(BC108=""),"",IF(BC108=0,"",1+(MAX(AQ$60:AQ107)))) ->  | AR108: 49 | AS108: 0 | AT108: 0 | AU108: 0 | AV108: 0 | AW108: 0 | AX108: 0 | AY108: 0 | AZ108: 0 | BA108: 0 | BB108: 0 | BD108: =IF(AND(BP108=""),"",IF(BP108=0,"",1+(MAX(BD$60:BD107)))) ->  | BE108: 49 | BF108: 0 | BG108: 0 | BH108: 0 | BI108: 0 | BJ108: 0 | BK108: 0 | BL108: 0 | BM108: 0 | BN108: 0 | BO108: 0 | BQ108: =IF(AND(CC108=""),"",IF(CC108=0,"",1+(MAX(BQ$60:BQ107)))) ->  | BR108: 49 | BS108: 0 | BT108: 0 | BU108: 0 | BV108: 0 | BW108: 0 | BX108: 0 | BY108: 0 | BZ108: 0 | CA108: 0 | CB108: 0 | CD108: =IF(AND(CP108=""),"",IF(CP108=0,"",1+(MAX(CD$60:CD107)))) ->  | CE108: 49 | CF108: 0 | CG108: 0 | CH108: 0 | CI108: 0 | CJ108: 0 | CK108: 0 | CL108: 0 | CM108: 0 | CN108: 0 | CO108: 0 | CQ108: =IF(AND(DC108=""),"",IF(DC108=0,"",1+(MAX(CQ$60:CQ107)))) ->  | CR108: 49 | CS108: 0 | CT108: 0 | CU108: 0 | CV108: 0 | CW108: 0 | CX108: 0 | CY108: 0 | CZ108: 0 | DA108: 0 | DB108: 0
A109: 0 | B109: 0 | C109: 50 | AC109: 1 | AD109: =IF(AND(AP109=""),"",IF(AP109=0,"",1+(MAX(AD$60:AD108)))) ->  | AE109: 50 | AF109: 0 | AG109: 0 | AH109: 0 | AI109: 0 | AJ109: 0 | AK109: 0 | AL109: 0 | AM109: 0 | AN109: 0 | AO109: 0 | AQ109: =IF(AND(BC109=""),"",IF(BC109=0,"",1+(MAX(AQ$60:AQ108)))) ->  | AR109: 50 | AS109: 0 | AT109: 0 | AU109: 0 | AV109: 0 | AW109: 0 | AX109: 0 | AY109: 0 | AZ109: 0 | BA109: 0 | BB109: 0 | BD109: =IF(AND(BP109=""),"",IF(BP109=0,"",1+(MAX(BD$60:BD108)))) ->  | BE109: 50 | BF109: 0 | BG109: 0 | BH109: 0 | BI109: 0 | BJ109: 0 | BK109: 0 | BL109: 0 | BM109: 0 | BN109: 0 | BO109: 0 | BQ109: =IF(AND(CC109=""),"",IF(CC109=0,"",1+(MAX(BQ$60:BQ108)))) ->  | BR109: 50 | BS109: 0 | BT109: 0 | BU109: 0 | BV109: 0 | BW109: 0 | BX109: 0 | BY109: 0 | BZ109: 0 | CA109: 0 | CB109: 0 | CD109: =IF(AND(CP109=""),"",IF(CP109=0,"",1+(MAX(CD$60:CD108)))) ->  | CE109: 50 | CF109: 0 | CG109: 0 | CH109: 0 | CI109: 0 | CJ109: 0 | CK109: 0 | CL109: 0 | CM109: 0 | CN109: 0 | CO109: 0 | CQ109: =IF(AND(DC109=""),"",IF(DC109=0,"",1+(MAX(CQ$60:CQ108)))) ->  | CR109: 50 | CS109: 0 | CT109: 0 | CU109: 0 | CV109: 0 | CW109: 0 | CX109: 0 | CY109: 0 | CZ109: 0 | DA109: 0 | DB109: 0
A110: 0 | B110: 0 | C110: 51 | AC110: 1 | AD110: =IF(AND(AP110=""),"",IF(AP110=0,"",1+(MAX(AD$60:AD109)))) ->  | AE110: 51 | AF110: 0 | AG110: 0 | AH110: 0 | AI110: 0 | AJ110: 0 | AK110: 0 | AL110: 0 | AM110: 0 | AN110: 0 | AO110: 0 | AQ110: =IF(AND(BC110=""),"",IF(BC110=0,"",1+(MAX(AQ$60:AQ109)))) ->  | AR110: 51 | AS110: 0 | AT110: 0 | AU110: 0 | AV110: 0 | AW110: 0 | AX110: 0 | AY110: 0 | AZ110: 0 | BA110: 0 | BB110: 0 | BD110: =IF(AND(BP110=""),"",IF(BP110=0,"",1+(MAX(BD$60:BD109)))) ->  | BE110: 51 | BF110: 0 | BG110: 0 | BH110: 0 | BI110: 0 | BJ110: 0 | BK110: 0 | BL110: 0 | BM110: 0 | BN110: 0 | BO110: 0 | BQ110: =IF(AND(CC110=""),"",IF(CC110=0,"",1+(MAX(BQ$60:BQ109)))) ->  | BR110: 51 | BS110: 0 | BT110: 0 | BU110: 0 | BV110: 0 | BW110: 0 | BX110: 0 | BY110: 0 | BZ110: 0 | CA110: 0 | CB110: 0 | CD110: =IF(AND(CP110=""),"",IF(CP110=0,"",1+(MAX(CD$60:CD109)))) ->  | CE110: 51 | CF110: 0 | CG110: 0 | CH110: 0 | CI110: 0 | CJ110: 0 | CK110: 0 | CL110: 0 | CM110: 0 | CN110: 0 | CO110: 0 | CQ110: =IF(AND(DC110=""),"",IF(DC110=0,"",1+(MAX(CQ$60:CQ109)))) ->  | CR110: 51 | CS110: 0 | CT110: 0 | CU110: 0 | CV110: 0 | CW110: 0 | CX110: 0 | CY110: 0 | CZ110: 0 | DA110: 0 | DB110: 0
A111: 0 | B111: 0 | C111: 52 | AB111: =MID(H111,5,4) ->  | AC111: 1 | AD111: =IF(AND(AP111=""),"",IF(AP111=0,"",1+(MAX(AD$60:AD110)))) ->  | AE111: 52 | AF111: =IF($M111="GAZETTED - REGULAR",D111,0) -> 0 | AG111: =IF($M111="GAZETTED - REGULAR",E111,0) -> 0 | AH111: =IF($M111="GAZETTED - REGULAR",F111,0) -> 0 | AI111: =IF($M111="GAZETTED - REGULAR",G111,0) -> 0 | AJ111: =IF($M111="GAZETTED - REGULAR",H111,0) -> 0 | AK111: =IF($M111="GAZETTED - REGULAR",I111,0) -> 0 | AL111: =IF($M111="GAZETTED - REGULAR",J111,0) -> 0 | AM111: =IF($M111="GAZETTED - REGULAR",K111,0) -> 0 | AN111: =IF($M111="GAZETTED - REGULAR",L111,0) -> 0 | AO111: =IF($M111="GAZETTED - REGULAR",M111,0) -> 0 | AQ111: =IF(AND(BC111=""),"",IF(BC111=0,"",1+(MAX(AQ$60:AQ110)))) ->  | AR111: 52 | AS111: 0 | AT111: 0 | AU111: 0 | AV111: 0 | AW111: 0 | AX111: 0 | AY111: 0 | AZ111: 0 | BA111: 0 | BB111: =IF($M111="NON GAZETTED - REGULAR",M111,0) -> 0 | BD111: =IF(AND(BP111=""),"",IF(BP111=0,"",1+(MAX(BD$60:BD110)))) ->  | BE111: 52 | BF111: 0 | BG111: 0 | BH111: 0 | BI111: 0 | BJ111: 0 | BK111: 0 | BL111: 0 | BM111: 0 | BN111: 0 | BO111: =IF($M111="GAZETTED - FIX PAY",M111,0) -> 0 | BQ111: =IF(AND(CC111=""),"",IF(CC111=0,"",1+(MAX(BQ$60:BQ110)))) ->  | BR111: 52 | BS111: 0 | BT111: 0 | BU111: 0 | BV111: 0 | BW111: 0 | BX111: 0 | BY111: 0 | BZ111: 0 | CA111: 0 | CB111: =IF($M111="NON GAZETTED - FIX PAY",M111,0) -> 0 | CD111: =IF(AND(CP111=""),"",IF(CP111=0,"",1+(MAX(CD$60:CD110)))) ->  | CE111: 52 | CF111: =IF($M111="GAZETTED - SANVIDA",D111,0) -> 0 | CG111: =IF($M111="GAZETTED - SANVIDA",E111,0) -> 0 | CH111: =IF($M111="GAZETTED - SANVIDA",F111,0) -> 0 | CI111: =IF($M111="GAZETTED - SANVIDA",G111,0) -> 0 | CJ111: =IF($M111="GAZETTED - SANVIDA",H111,0) -> 0 | CK111: =IF($M111="GAZETTED - SANVIDA",I111,0) -> 0 | CL111: =IF($M111="GAZETTED - SANVIDA",J111,0) -> 0 | CM111: =IF($M111="GAZETTED - SANVIDA",K111,0) -> 0 | CN111: =IF($M111="GAZETTED - SANVIDA",L111,0) -> 0 | CO111: =IF($M111="GAZETTED - SANVIDA",M111,0) -> 0 | CQ111: =IF(AND(DC111=""),"",IF(DC111=0,"",1+(MAX(CQ$60:CQ110)))) ->  | CR111: 52 | CS111: 0 | CT111: =IF($M111="NON GAZETTED - SANVIDA",E111,0) -> 0 | CU111: =IF($M111="NON GAZETTED - SANVIDA",F111,0) -> 0 | CV111: =IF($M111="NON GAZETTED - SANVIDA",G111,0) -> 0 | CW111: =IF($M111="NON GAZETTED - SANVIDA",H111,0) -> 0 | CX111: =IF($M111="NON GAZETTED - SANVIDA",I111,0) -> 0 | CY111: =IF($M111="NON GAZETTED - SANVIDA",J111,0) -> 0 | CZ111: =IF($M111="NON GAZETTED - SANVIDA",K111,0) -> 0 | DA111: =IF($M111="NON GAZETTED - SANVIDA",L111,0) -> 0 | DB111: =IF($M111="NON GAZETTED - SANVIDA",M111,0) -> 0
A112: 0 | B112: 0 | C112: 53 | AC112: 1 | AD112: =IF(AND(AP112=""),"",IF(AP112=0,"",1+(MAX(AD$60:AD111)))) ->  | AE112: 53 | AF112: 0 | AG112: 0 | AH112: 0 | AI112: 0 | AJ112: 0 | AK112: 0 | AL112: 0 | AM112: 0 | AN112: =IF($M112="GAZETTED - REGULAR",L112,0) -> 0 | AO112: 0 | AQ112: =IF(AND(BC112=""),"",IF(BC112=0,"",1+(MAX(AQ$60:AQ111)))) ->  | AR112: 53 | AS112: =IF($M112="NON GAZETTED - REGULAR",D112,0) -> 0 | AT112: =IF($M112="NON GAZETTED - REGULAR",E112,0) -> 0 | AU112: =IF($M112="NON GAZETTED - REGULAR",F112,0) -> 0 | AV112: =IF($M112="NON GAZETTED - REGULAR",G112,0) -> 0 | AW112: =IF($M112="NON GAZETTED - REGULAR",H112,0) -> 0 | AX112: =IF($M112="NON GAZETTED - REGULAR",I112,0) -> 0 | AY112: =IF($M112="NON GAZETTED - REGULAR",J112,0) -> 0 | AZ112: =IF($M112="NON GAZETTED - REGULAR",K112,0) -> 0 | BA112: =IF($M112="NON GAZETTED - REGULAR",L112,0) -> 0 | BB112: 0 | BD112: =IF(AND(BP112=""),"",IF(BP112=0,"",1+(MAX(BD$60:BD111)))) ->  | BE112: 53 | BF112: 0 | BG112: 0 | BH112: 0 | BI112: 0 | BJ112: 0 | BK112: 0 | BL112: 0 | BM112: 0 | BN112: 0 | BO112: 0 | BQ112: =IF(AND(CC112=""),"",IF(CC112=0,"",1+(MAX(BQ$60:BQ111)))) ->  | BR112: 53 | BS112: 0 | BT112: 0 | BU112: 0 | BV112: 0 | BW112: 0 | BX112: 0 | BY112: 0 | BZ112: 0 | CA112: 0 | CB112: 0 | CD112: =IF(AND(CP112=""),"",IF(CP112=0,"",1+(MAX(CD$60:CD111)))) ->  | CE112: 53 | CF112: 0 | CG112: 0 | CH112: 0 | CI112: 0 | CJ112: 0 | CK112: 0 | CL112: 0 | CM112: 0 | CN112: 0 | CO112: 0 | CQ112: =IF(AND(DC112=""),"",IF(DC112=0,"",1+(MAX(CQ$60:CQ111)))) ->  | CR112: 53 | CS112: 0 | CT112: 0 | CU112: 0 | CV112: 0 | CW112: 0 | CX112: 0 | CY112: 0 | CZ112: 0 | DA112: 0 | DB112: 0
A113: 0 | B113: 0 | C113: 54 | AC113: 1 | AD113: =IF(AND(AP113=""),"",IF(AP113=0,"",1+(MAX(AD$60:AD112)))) ->  | AE113: 54 | AF113: 0 | AG113: 0 | AH113: 0 | AI113: 0 | AJ113: 0 | AK113: 0 | AL113: 0 | AM113: 0 | AN113: =IF($M113="GAZETTED - REGULAR",L113,0) -> 0 | AO113: 0 | AQ113: =IF(AND(BC113=""),"",IF(BC113=0,"",1+(MAX(AQ$60:AQ112)))) ->  | AR113: 54 | AS113: 0 | AT113: 0 | AU113: 0 | AV113: 0 | AW113: 0 | AX113: 0 | AY113: 0 | AZ113: 0 | BA113: 0 | BB113: 0 | BD113: =IF(AND(BP113=""),"",IF(BP113=0,"",1+(MAX(BD$60:BD112)))) ->  | BE113: 54 | BF113: 0 | BG113: 0 | BH113: 0 | BI113: 0 | BJ113: 0 | BK113: 0 | BL113: 0 | BM113: 0 | BN113: 0 | BO113: 0 | BQ113: =IF(AND(CC113=""),"",IF(CC113=0,"",1+(MAX(BQ$60:BQ112)))) ->  | BR113: 54 | BS113: 0 | BT113: 0 | BU113: 0 | BV113: 0 | BW113: 0 | BX113: 0 | BY113: 0 | BZ113: 0 | CA113: 0 | CB113: 0 | CD113: =IF(AND(CP113=""),"",IF(CP113=0,"",1+(MAX(CD$60:CD112)))) ->  | CE113: 54 | CF113: 0 | CG113: 0 | CH113: 0 | CI113: 0 | CJ113: 0 | CK113: 0 | CL113: 0 | CM113: 0 | CN113: 0 | CO113: 0 | CQ113: =IF(AND(DC113=""),"",IF(DC113=0,"",1+(MAX(CQ$60:CQ112)))) ->  | CR113: 54 | CS113: 0 | CT113: 0 | CU113: 0 | CV113: 0 | CW113: 0 | CX113: 0 | CY113: 0 | CZ113: 0 | DA113: 0 | DB113: 0
A114: 0 | B114: 0 | C114: 55 | AC114: 1 | AD114: =IF(AND(AP114=""),"",IF(AP114=0,"",1+(MAX(AD$60:AD113)))) ->  | AE114: 55 | AF114: 0 | AG114: 0 | AH114: 0 | AI114: 0 | AJ114: 0 | AK114: 0 | AL114: 0 | AM114: 0 | AN114: 0 | AO114: 0 | AQ114: =IF(AND(BC114=""),"",IF(BC114=0,"",1+(MAX(AQ$60:AQ113)))) ->  | AR114: 55 | AS114: 0 | AT114: 0 | AU114: 0 | AV114: 0 | AW114: 0 | AX114: 0 | AY114: 0 | AZ114: 0 | BA114: 0 | BB114: 0 | BD114: =IF(AND(BP114=""),"",IF(BP114=0,"",1+(MAX(BD$60:BD113)))) ->  | BE114: 55 | BF114: 0 | BG114: 0 | BH114: 0 | BI114: 0 | BJ114: 0 | BK114: 0 | BL114: 0 | BM114: 0 | BN114: 0 | BO114: 0 | BQ114: =IF(AND(CC114=""),"",IF(CC114=0,"",1+(MAX(BQ$60:BQ113)))) ->  | BR114: 55 | BS114: 0 | BT114: 0 | BU114: 0 | BV114: 0 | BW114: 0 | BX114: 0 | BY114: 0 | BZ114: 0 | CA114: 0 | CB114: 0 | CD114: =IF(AND(CP114=""),"",IF(CP114=0,"",1+(MAX(CD$60:CD113)))) ->  | CE114: 55 | CF114: 0 | CG114: 0 | CH114: 0 | CI114: 0 | CJ114: 0 | CK114: 0 | CL114: 0 | CM114: 0 | CN114: 0 | CO114: 0 | CQ114: =IF(AND(DC114=""),"",IF(DC114=0,"",1+(MAX(CQ$60:CQ113)))) ->  | CR114: 55 | CS114: 0 | CT114: 0 | CU114: 0 | CV114: 0 | CW114: 0 | CX114: 0 | CY114: 0 | CZ114: 0 | DA114: 0 | DB114: 0
A115: 0 | B115: 0 | C115: 56 | AC115: 1 | AD115: =IF(AND(AP115=""),"",IF(AP115=0,"",1+(MAX(AD$60:AD114)))) ->  | AE115: 56 | AF115: 0 | AG115: 0 | AH115: 0 | AI115: 0 | AJ115: 0 | AK115: 0 | AL115: 0 | AM115: 0 | AN115: 0 | AO115: 0 | AQ115: =IF(AND(BC115=""),"",IF(BC115=0,"",1+(MAX(AQ$60:AQ114)))) ->  | AR115: 56 | AS115: 0 | AT115: 0 | AU115: 0 | AV115: 0 | AW115: 0 | AX115: 0 | AY115: 0 | AZ115: 0 | BA115: 0 | BB115: 0 | BD115: =IF(AND(BP115=""),"",IF(BP115=0,"",1+(MAX(BD$60:BD114)))) ->  | BE115: 56 | BF115: 0 | BG115: 0 | BH115: 0 | BI115: 0 | BJ115: 0 | BK115: 0 | BL115: 0 | BM115: 0 | BN115: 0 | BO115: 0 | BQ115: =IF(AND(CC115=""),"",IF(CC115=0,"",1+(MAX(BQ$60:BQ114)))) ->  | BR115: 56 | BS115: 0 | BT115: 0 | BU115: 0 | BV115: 0 | BW115: 0 | BX115: 0 | BY115: 0 | BZ115: 0 | CA115: 0 | CB115: 0 | CD115: =IF(AND(CP115=""),"",IF(CP115=0,"",1+(MAX(CD$60:CD114)))) ->  | CE115: 56 | CF115: 0 | CG115: 0 | CH115: 0 | CI115: 0 | CJ115: 0 | CK115: 0 | CL115: 0 | CM115: 0 | CN115: 0 | CO115: 0 | CQ115: =IF(AND(DC115=""),"",IF(DC115=0,"",1+(MAX(CQ$60:CQ114)))) ->  | CR115: 56 | CS115: 0 | CT115: 0 | CU115: 0 | CV115: 0 | CW115: 0 | CX115: 0 | CY115: 0 | CZ115: 0 | DA115: 0 | DB115: 0
A116: 0 | B116: 0 | C116: 57 | AC116: 1 | AD116: =IF(AND(AP116=""),"",IF(AP116=0,"",1+(MAX(AD$60:AD115)))) ->  | AE116: 57 | AF116: 0 | AG116: 0 | AH116: 0 | AI116: 0 | AJ116: 0 | AK116: 0 | AL116: 0 | AM116: 0 | AN116: 0 | AO116: 0 | AQ116: =IF(AND(BC116=""),"",IF(BC116=0,"",1+(MAX(AQ$60:AQ115)))) ->  | AR116: 57 | AS116: 0 | AT116: 0 | AU116: 0 | AV116: 0 | AW116: 0 | AX116: 0 | AY116: 0 | AZ116: 0 | BA116: 0 | BB116: 0 | BD116: =IF(AND(BP116=""),"",IF(BP116=0,"",1+(MAX(BD$60:BD115)))) ->  | BE116: 57 | BF116: 0 | BG116: 0 | BH116: 0 | BI116: 0 | BJ116: 0 | BK116: 0 | BL116: 0 | BM116: 0 | BN116: 0 | BO116: 0 | BQ116: =IF(AND(CC116=""),"",IF(CC116=0,"",1+(MAX(BQ$60:BQ115)))) ->  | BR116: 57 | BS116: 0 | BT116: 0 | BU116: 0 | BV116: 0 | BW116: 0 | BX116: 0 | BY116: 0 | BZ116: 0 | CA116: 0 | CB116: 0 | CD116: =IF(AND(CP116=""),"",IF(CP116=0,"",1+(MAX(CD$60:CD115)))) ->  | CE116: 57 | CF116: 0 | CG116: 0 | CH116: 0 | CI116: 0 | CJ116: 0 | CK116: 0 | CL116: 0 | CM116: 0 | CN116: 0 | CO116: 0 | CQ116: =IF(AND(DC116=""),"",IF(DC116=0,"",1+(MAX(CQ$60:CQ115)))) ->  | CR116: 57 | CS116: 0 | CT116: 0 | CU116: 0 | CV116: 0 | CW116: 0 | CX116: 0 | CY116: 0 | CZ116: 0 | DA116: 0 | DB116: 0
A117: 0 | B117: 0 | C117: 58 | AC117: 1 | AD117: =IF(AND(AP117=""),"",IF(AP117=0,"",1+(MAX(AD$60:AD116)))) ->  | AE117: 58 | AF117: 0 | AG117: 0 | AH117: 0 | AI117: 0 | AJ117: 0 | AK117: 0 | AL117: 0 | AM117: 0 | AN117: 0 | AO117: 0 | AQ117: =IF(AND(BC117=""),"",IF(BC117=0,"",1+(MAX(AQ$60:AQ116)))) ->  | AR117: 58 | AS117: 0 | AT117: 0 | AU117: 0 | AV117: 0 | AW117: 0 | AX117: 0 | AY117: 0 | AZ117: 0 | BA117: 0 | BB117: 0 | BD117: =IF(AND(BP117=""),"",IF(BP117=0,"",1+(MAX(BD$60:BD116)))) ->  | BE117: 58 | BF117: 0 | BG117: 0 | BH117: 0 | BI117: 0 | BJ117: 0 | BK117: 0 | BL117: 0 | BM117: 0 | BN117: 0 | BO117: 0 | BQ117: =IF(AND(CC117=""),"",IF(CC117=0,"",1+(MAX(BQ$60:BQ116)))) ->  | BR117: 58 | BS117: 0 | BT117: 0 | BU117: 0 | BV117: 0 | BW117: 0 | BX117: 0 | BY117: 0 | BZ117: 0 | CA117: 0 | CB117: 0 | CD117: =IF(AND(CP117=""),"",IF(CP117=0,"",1+(MAX(CD$60:CD116)))) ->  | CE117: 58 | CF117: 0 | CG117: 0 | CH117: 0 | CI117: 0 | CJ117: 0 | CK117: 0 | CL117: 0 | CM117: 0 | CN117: 0 | CO117: 0 | CQ117: =IF(AND(DC117=""),"",IF(DC117=0,"",1+(MAX(CQ$60:CQ116)))) ->  | CR117: 58 | CS117: 0 | CT117: 0 | CU117: 0 | CV117: 0 | CW117: 0 | CX117: 0 | CY117: 0 | CZ117: 0 | DA117: 0 | DB117: 0
A118: 0 | B118: 0 | C118: 59 | AC118: 1 | AD118: =IF(AND(AP118=""),"",IF(AP118=0,"",1+(MAX(AD$60:AD117)))) ->  | AE118: 59 | AF118: 0 | AG118: 0 | AH118: 0 | AI118: 0 | AJ118: 0 | AK118: 0 | AL118: 0 | AM118: 0 | AN118: 0 | AO118: 0 | AQ118: =IF(AND(BC118=""),"",IF(BC118=0,"",1+(MAX(AQ$60:AQ117)))) ->  | AR118: 59 | AS118: 0 | AT118: 0 | AU118: 0 | AV118: 0 | AW118: 0 | AX118: 0 | AY118: 0 | AZ118: 0 | BA118: 0 | BB118: 0 | BD118: =IF(AND(BP118=""),"",IF(BP118=0,"",1+(MAX(BD$60:BD117)))) ->  | BE118: 59 | BF118: 0 | BG118: 0 | BH118: 0 | BI118: 0 | BJ118: 0 | BK118: 0 | BL118: 0 | BM118: 0 | BN118: 0 | BO118: 0 | BQ118: =IF(AND(CC118=""),"",IF(CC118=0,"",1+(MAX(BQ$60:BQ117)))) ->  | BR118: 59 | BS118: 0 | BT118: 0 | BU118: 0 | BV118: 0 | BW118: 0 | BX118: 0 | BY118: 0 | BZ118: 0 | CA118: 0 | CB118: 0 | CD118: =IF(AND(CP118=""),"",IF(CP118=0,"",1+(MAX(CD$60:CD117)))) ->  | CE118: 59 | CF118: 0 | CG118: 0 | CH118: 0 | CI118: 0 | CJ118: 0 | CK118: 0 | CL118: 0 | CM118: 0 | CN118: 0 | CO118: 0 | CQ118: =IF(AND(DC118=""),"",IF(DC118=0,"",1+(MAX(CQ$60:CQ117)))) ->  | CR118: 59 | CS118: 0 | CT118: 0 | CU118: 0 | CV118: 0 | CW118: 0 | CX118: 0 | CY118: 0 | CZ118: 0 | DA118: 0 | DB118: 0
A119: 0 | B119: 0 | C119: 60 | AC119: 1 | AD119: =IF(AND(AP119=""),"",IF(AP119=0,"",1+(MAX(AD$60:AD118)))) ->  | AE119: 60 | AF119: 0 | AG119: 0 | AH119: 0 | AI119: 0 | AJ119: 0 | AK119: 0 | AL119: 0 | AM119: 0 | AN119: 0 | AO119: 0 | AQ119: =IF(AND(BC119=""),"",IF(BC119=0,"",1+(MAX(AQ$60:AQ118)))) ->  | AR119: 60 | AS119: 0 | AT119: 0 | AU119: 0 | AV119: 0 | AW119: 0 | AX119: 0 | AY119: 0 | AZ119: 0 | BA119: 0 | BB119: 0 | BD119: =IF(AND(BP119=""),"",IF(BP119=0,"",1+(MAX(BD$60:BD118)))) ->  | BE119: 60 | BF119: 0 | BG119: 0 | BH119: 0 | BI119: 0 | BJ119: 0 | BK119: 0 | BL119: 0 | BM119: 0 | BN119: 0 | BO119: 0 | BQ119: =IF(AND(CC119=""),"",IF(CC119=0,"",1+(MAX(BQ$60:BQ118)))) ->  | BR119: 60 | BS119: 0 | BT119: 0 | BU119: 0 | BV119: 0 | BW119: 0 | BX119: 0 | BY119: 0 | BZ119: 0 | CA119: 0 | CB119: 0 | CD119: =IF(AND(CP119=""),"",IF(CP119=0,"",1+(MAX(CD$60:CD118)))) ->  | CE119: 60 | CF119: 0 | CG119: 0 | CH119: 0 | CI119: 0 | CJ119: 0 | CK119: 0 | CL119: 0 | CM119: 0 | CN119: 0 | CO119: 0 | CQ119: =IF(AND(DC119=""),"",IF(DC119=0,"",1+(MAX(CQ$60:CQ118)))) ->  | CR119: 60 | CS119: 0 | CT119: 0 | CU119: 0 | CV119: 0 | CW119: 0 | CX119: 0 | CY119: 0 | CZ119: 0 | DA119: 0 | DB119: 0
A120: 0 | B120: 0 | C120: 61 | AC120: 1 | AD120: =IF(AND(AP120=""),"",IF(AP120=0,"",1+(MAX(AD$60:AD119)))) ->  | AE120: 61 | AF120: 0 | AG120: 0 | AH120: 0 | AI120: 0 | AJ120: 0 | AK120: 0 | AL120: 0 | AM120: 0 | AN120: 0 | AO120: 0 | AQ120: =IF(AND(BC120=""),"",IF(BC120=0,"",1+(MAX(AQ$60:AQ119)))) ->  | AR120: 61 | AS120: 0 | AT120: 0 | AU120: 0 | AV120: 0 | AW120: 0 | AX120: 0 | AY120: 0 | AZ120: 0 | BA120: 0 | BB120: 0 | BD120: =IF(AND(BP120=""),"",IF(BP120=0,"",1+(MAX(BD$60:BD119)))) ->  | BE120: 61 | BF120: 0 | BG120: 0 | BH120: 0 | BI120: 0 | BJ120: 0 | BK120: 0 | BL120: 0 | BM120: 0 | BN120: 0 | BO120: 0 | BQ120: =IF(AND(CC120=""),"",IF(CC120=0,"",1+(MAX(BQ$60:BQ119)))) ->  | BR120: 61 | BS120: 0 | BT120: 0 | BU120: 0 | BV120: 0 | BW120: 0 | BX120: 0 | BY120: 0 | BZ120: 0 | CA120: 0 | CB120: 0 | CD120: =IF(AND(CP120=""),"",IF(CP120=0,"",1+(MAX(CD$60:CD119)))) ->  | CE120: 61 | CF120: 0 | CG120: 0 | CH120: 0 | CI120: 0 | CJ120: 0 | CK120: 0 | CL120: 0 | CM120: 0 | CN120: 0 | CO120: 0 | CQ120: =IF(AND(DC120=""),"",IF(DC120=0,"",1+(MAX(CQ$60:CQ119)))) ->  | CR120: 61 | CS120: 0 | CT120: 0 | CU120: 0 | CV120: 0 | CW120: 0 | CX120: 0 | CY120: 0 | CZ120: 0 | DA120: 0 | DB120: 0
A121: 0 | B121: 0 | C121: 62 | AC121: 1 | AD121: =IF(AND(AP121=""),"",IF(AP121=0,"",1+(MAX(AD$60:AD120)))) ->  | AE121: 62 | AF121: 0 | AG121: 0 | AH121: 0 | AI121: 0 | AJ121: 0 | AK121: 0 | AL121: 0 | AM121: 0 | AN121: 0 | AO121: 0 | AQ121: =IF(AND(BC121=""),"",IF(BC121=0,"",1+(MAX(AQ$60:AQ120)))) ->  | AR121: 62 | AS121: 0 | AT121: 0 | AU121: 0 | AV121: 0 | AW121: 0 | AX121: 0 | AY121: 0 | AZ121: 0 | BA121: 0 | BB121: 0 | BD121: =IF(AND(BP121=""),"",IF(BP121=0,"",1+(MAX(BD$60:BD120)))) ->  | BE121: 62 | BF121: 0 | BG121: 0 | BH121: 0 | BI121: 0 | BJ121: 0 | BK121: 0 | BL121: 0 | BM121: 0 | BN121: 0 | BO121: 0 | BQ121: =IF(AND(CC121=""),"",IF(CC121=0,"",1+(MAX(BQ$60:BQ120)))) ->  | BR121: 62 | BS121: 0 | BT121: 0 | BU121: 0 | BV121: 0 | BW121: 0 | BX121: 0 | BY121: 0 | BZ121: 0 | CA121: 0 | CB121: 0 | CD121: =IF(AND(CP121=""),"",IF(CP121=0,"",1+(MAX(CD$60:CD120)))) ->  | CE121: 62 | CF121: 0 | CG121: 0 | CH121: 0 | CI121: 0 | CJ121: 0 | CK121: 0 | CL121: 0 | CM121: 0 | CN121: 0 | CO121: 0 | CQ121: =IF(AND(DC121=""),"",IF(DC121=0,"",1+(MAX(CQ$60:CQ120)))) ->  | CR121: 62 | CS121: 0 | CT121: 0 | CU121: 0 | CV121: 0 | CW121: 0 | CX121: 0 | CY121: 0 | CZ121: 0 | DA121: 0 | DB121: 0
A122: 0 | B122: 0 | C122: 63 | AC122: 1 | AD122: =IF(AND(AP122=""),"",IF(AP122=0,"",1+(MAX(AD$60:AD121)))) ->  | AE122: 63 | AF122: 0 | AG122: 0 | AH122: 0 | AI122: 0 | AJ122: 0 | AK122: 0 | AL122: 0 | AM122: 0 | AN122: 0 | AO122: 0 | AQ122: =IF(AND(BC122=""),"",IF(BC122=0,"",1+(MAX(AQ$60:AQ121)))) ->  | AR122: 63 | AS122: 0 | AT122: 0 | AU122: 0 | AV122: 0 | AW122: 0 | AX122: 0 | AY122: 0 | AZ122: 0 | BA122: 0 | BB122: 0 | BD122: =IF(AND(BP122=""),"",IF(BP122=0,"",1+(MAX(BD$60:BD121)))) ->  | BE122: 63 | BF122: 0 | BG122: 0 | BH122: 0 | BI122: 0 | BJ122: 0 | BK122: 0 | BL122: 0 | BM122: 0 | BN122: 0 | BO122: 0 | BQ122: =IF(AND(CC122=""),"",IF(CC122=0,"",1+(MAX(BQ$60:BQ121)))) ->  | BR122: 63 | BS122: 0 | BT122: 0 | BU122: 0 | BV122: 0 | BW122: 0 | BX122: 0 | BY122: 0 | BZ122: 0 | CA122: 0 | CB122: 0 | CD122: =IF(AND(CP122=""),"",IF(CP122=0,"",1+(MAX(CD$60:CD121)))) ->  | CE122: 63 | CF122: 0 | CG122: 0 | CH122: 0 | CI122: 0 | CJ122: 0 | CK122: 0 | CL122: 0 | CM122: 0 | CN122: 0 | CO122: 0 | CQ122: =IF(AND(DC122=""),"",IF(DC122=0,"",1+(MAX(CQ$60:CQ121)))) ->  | CR122: 63 | CS122: 0 | CT122: 0 | CU122: 0 | CV122: 0 | CW122: 0 | CX122: 0 | CY122: 0 | CZ122: 0 | DA122: 0 | DB122: 0
A123: 0 | B123: 0 | C123: 64 | AC123: 1 | AD123: =IF(AND(AP123=""),"",IF(AP123=0,"",1+(MAX(AD$60:AD122)))) ->  | AE123: 64 | AF123: 0 | AG123: 0 | AH123: 0 | AI123: 0 | AJ123: 0 | AK123: 0 | AL123: 0 | AM123: 0 | AN123: 0 | AO123: 0 | AQ123: =IF(AND(BC123=""),"",IF(BC123=0,"",1+(MAX(AQ$60:AQ122)))) ->  | AR123: 64 | AS123: 0 | AT123: 0 | AU123: 0 | AV123: 0 | AW123: 0 | AX123: 0 | AY123: 0 | AZ123: 0 | BA123: 0 | BB123: 0 | BD123: =IF(AND(BP123=""),"",IF(BP123=0,"",1+(MAX(BD$60:BD122)))) ->  | BE123: 64 | BF123: 0 | BG123: 0 | BH123: 0 | BI123: 0 | BJ123: 0 | BK123: 0 | BL123: 0 | BM123: 0 | BN123: 0 | BO123: 0 | BQ123: =IF(AND(CC123=""),"",IF(CC123=0,"",1+(MAX(BQ$60:BQ122)))) ->  | BR123: 64 | BS123: 0 | BT123: 0 | BU123: 0 | BV123: 0 | BW123: 0 | BX123: 0 | BY123: 0 | BZ123: 0 | CA123: 0 | CB123: 0 | CD123: =IF(AND(CP123=""),"",IF(CP123=0,"",1+(MAX(CD$60:CD122)))) ->  | CE123: 64 | CF123: 0 | CG123: 0 | CH123: 0 | CI123: 0 | CJ123: 0 | CK123: 0 | CL123: 0 | CM123: 0 | CN123: 0 | CO123: 0 | CQ123: =IF(AND(DC123=""),"",IF(DC123=0,"",1+(MAX(CQ$60:CQ122)))) ->  | CR123: 64 | CS123: 0 | CT123: 0 | CU123: 0 | CV123: 0 | CW123: 0 | CX123: 0 | CY123: 0 | CZ123: 0 | DA123: 0 | DB123: 0
A124: 0 | B124: 0 | C124: 65 | AC124: 1 | AD124: =IF(AND(AP124=""),"",IF(AP124=0,"",1+(MAX(AD$60:AD123)))) ->  | AE124: 65 | AF124: 0 | AG124: 0 | AH124: 0 | AI124: 0 | AJ124: 0 | AK124: 0 | AL124: 0 | AM124: 0 | AN124: 0 | AO124: 0 | AP124: =IF(AND(M124=""),"",IF(M124=AF$58,1,0)) ->  | AQ124: =IF(AND(BC124=""),"",IF(BC124=0,"",1+(MAX(AQ$60:AQ123)))) ->  | AR124: 65 | AS124: 0 | AT124: 0 | AU124: 0 | AV124: 0 | AW124: 0 | AX124: 0 | AY124: 0 | AZ124: 0 | BA124: 0 | BB124: 0 | BC124: =IF(AND(M124=""),"",IF(M124=AS$58,1,0)) ->  | BD124: =IF(AND(BP124=""),"",IF(BP124=0,"",1+(MAX(BD$60:BD123)))) ->  | BE124: 65 | BF124: 0 | BG124: 0 | BH124: 0 | BI124: 0 | BJ124: 0 | BK124: 0 | BL124: 0 | BM124: 0 | BN124: 0 | BO124: 0 | BP124: =IF(AND(M124=""),"",IF(M124=BF$58,1,0)) ->  | BQ124: =IF(AND(CC124=""),"",IF(CC124=0,"",1+(MAX(BQ$60:BQ123)))) ->  | BR124: 65 | BS124: 0 | BT124: 0 | BU124: 0 | BV124: 0 | BW124: 0 | BX124: 0 | BY124: 0 | BZ124: 0 | CA124: 0 | CB124: 0 | CC124: =IF(AND(M124=""),"",IF(M124=BS$58,1,0)) ->  | CD124: =IF(AND(CP124=""),"",IF(CP124=0,"",1+(MAX(CD$60:CD123)))) ->  | CE124: 65 | CF124: 0 | CG124: 0 | CH124: 0 | CI124: 0 | CJ124: 0 | CK124: 0 | CL124: 0 | CM124: 0 | CN124: 0 | CO124: 0 | CP124: =IF(AND(M124=""),"",IF(M124=CF$58,1,0)) ->  | CQ124: =IF(AND(DC124=""),"",IF(DC124=0,"",1+(MAX(CQ$60:CQ123)))) ->  | CR124: 65 | CS124: 0 | CT124: 0 | CU124: 0 | CV124: 0 | CW124: 0 | CX124: 0 | CY124: 0 | CZ124: 0 | DA124: 0 | DB124: 0 | DC124: =IF(AND(M124=""),"",IF(M124=CS$58,1,0)) -> 
A125: =IF(OR(D125="in fjDr",D125="पद रिक्त",D125="Blank",D125="Post Blank"),0,E125) -> 0 | B125: =F125 -> 0 | C125: 66 | AC125: =IF(F125<=0,1,0)*(IF(M125="SANVIDA",0,1)) -> 1 | AD125: =IF(AND(AP125=""),"",IF(AP125=0,"",1+(MAX(AD$60:AD124)))) ->  | AE125: 66 | AF125: 0 | AG125: 0 | AH125: 0 | AI125: 0 | AJ125: 0 | AK125: 0 | AL125: 0 | AM125: 0 | AN125: 0 | AO125: 0 | AQ125: =IF(AND(BC125=""),"",IF(BC125=0,"",1+(MAX(AQ$60:AQ124)))) ->  | AR125: 66 | AS125: 0 | AT125: 0 | AU125: 0 | AV125: 0 | AW125: 0 | AX125: 0 | AY125: 0 | AZ125: 0 | BA125: 0 | BB125: 0 | BD125: =IF(AND(BP125=""),"",IF(BP125=0,"",1+(MAX(BD$60:BD124)))) ->  | BE125: 66 | BF125: 0 | BG125: 0 | BH125: 0 | BI125: 0 | BJ125: 0 | BK125: 0 | BL125: 0 | BM125: 0 | BN125: 0 | BO125: 0 | BQ125: =IF(AND(CC125=""),"",IF(CC125=0,"",1+(MAX(BQ$60:BQ124)))) ->  | BR125: 66 | BS125: 0 | BT125: 0 | BU125: 0 | BV125: 0 | BW125: 0 | BX125: 0 | BY125: 0 | BZ125: 0 | CA125: 0 | CB125: 0 | CD125: =IF(AND(CP125=""),"",IF(CP125=0,"",1+(MAX(CD$60:CD124)))) ->  | CE125: 66 | CF125: 0 | CG125: 0 | CH125: 0 | CI125: 0 | CJ125: 0 | CK125: 0 | CL125: 0 | CM125: 0 | CN125: 0 | CO125: 0 | CQ125: =IF(AND(DC125=""),"",IF(DC125=0,"",1+(MAX(CQ$60:CQ124)))) ->  | CR125: 66 | CS125: 0 | CT125: 0 | CU125: 0 | CV125: 0 | CW125: 0 | CX125: 0 | CY125: 0 | CZ125: 0 | DA125: 0 | DB125: 0
A126: 0 | B126: 0 | C126: 67 | AC126: 1 | AD126: =IF(AND(AP126=""),"",IF(AP126=0,"",1+(MAX(AD$60:AD125)))) ->  | AE126: 67 | AF126: 0 | AG126: 0 | AH126: 0 | AI126: 0 | AJ126: 0 | AK126: 0 | AL126: 0 | AM126: 0 | AN126: 0 | AO126: 0 | AQ126: =IF(AND(BC126=""),"",IF(BC126=0,"",1+(MAX(AQ$60:AQ125)))) ->  | AR126: 67 | AS126: 0 | AT126: 0 | AU126: 0 | AV126: 0 | AW126: 0 | AX126: 0 | AY126: 0 | AZ126: 0 | BA126: 0 | BB126: 0 | BD126: =IF(AND(BP126=""),"",IF(BP126=0,"",1+(MAX(BD$60:BD125)))) ->  | BE126: 67 | BF126: 0 | BG126: 0 | BH126: 0 | BI126: 0 | BJ126: 0 | BK126: 0 | BL126: 0 | BM126: 0 | BN126: 0 | BO126: 0 | BQ126: =IF(AND(CC126=""),"",IF(CC126=0,"",1+(MAX(BQ$60:BQ125)))) ->  | BR126: 67 | BS126: 0 | BT126: 0 | BU126: 0 | BV126: 0 | BW126: 0 | BX126: 0 | BY126: 0 | BZ126: 0 | CA126: 0 | CB126: 0 | CD126: =IF(AND(CP126=""),"",IF(CP126=0,"",1+(MAX(CD$60:CD125)))) ->  | CE126: 67 | CF126: 0 | CG126: 0 | CH126: 0 | CI126: 0 | CJ126: 0 | CK126: 0 | CL126: 0 | CM126: 0 | CN126: 0 | CO126: 0 | CQ126: =IF(AND(DC126=""),"",IF(DC126=0,"",1+(MAX(CQ$60:CQ125)))) ->  | CR126: 67 | CS126: 0 | CT126: 0 | CU126: 0 | CV126: 0 | CW126: 0 | CX126: 0 | CY126: 0 | CZ126: 0 | DA126: 0 | DB126: 0
A127: 0 | B127: 0 | C127: 68 | AC127: 1 | AD127: =IF(AND(AP127=""),"",IF(AP127=0,"",1+(MAX(AD$60:AD126)))) ->  | AE127: 68 | AF127: 0 | AG127: 0 | AH127: 0 | AI127: 0 | AJ127: 0 | AK127: 0 | AL127: 0 | AM127: 0 | AN127: 0 | AO127: 0 | AQ127: =IF(AND(BC127=""),"",IF(BC127=0,"",1+(MAX(AQ$60:AQ126)))) ->  | AR127: 68 | AS127: 0 | AT127: 0 | AU127: 0 | AV127: 0 | AW127: 0 | AX127: 0 | AY127: 0 | AZ127: 0 | BA127: 0 | BB127: 0 | BD127: =IF(AND(BP127=""),"",IF(BP127=0,"",1+(MAX(BD$60:BD126)))) ->  | BE127: 68 | BF127: 0 | BG127: 0 | BH127: 0 | BI127: 0 | BJ127: 0 | BK127: 0 | BL127: 0 | BM127: 0 | BN127: 0 | BO127: 0 | BQ127: =IF(AND(CC127=""),"",IF(CC127=0,"",1+(MAX(BQ$60:BQ126)))) ->  | BR127: 68 | BS127: 0 | BT127: 0 | BU127: 0 | BV127: 0 | BW127: 0 | BX127: 0 | BY127: 0 | BZ127: 0 | CA127: 0 | CB127: 0 | CD127: =IF(AND(CP127=""),"",IF(CP127=0,"",1+(MAX(CD$60:CD126)))) ->  | CE127: 68 | CF127: 0 | CG127: 0 | CH127: 0 | CI127: 0 | CJ127: 0 | CK127: 0 | CL127: 0 | CM127: 0 | CN127: 0 | CO127: 0 | CQ127: =IF(AND(DC127=""),"",IF(DC127=0,"",1+(MAX(CQ$60:CQ126)))) ->  | CR127: 68 | CS127: 0 | CT127: 0 | CU127: 0 | CV127: 0 | CW127: 0 | CX127: 0 | CY127: 0 | CZ127: 0 | DA127: 0 | DB127: 0
A128: 0 | B128: 0 | C128: 69 | AC128: 1 | AD128: =IF(AND(AP128=""),"",IF(AP128=0,"",1+(MAX(AD$60:AD127)))) ->  | AE128: 69 | AF128: 0 | AG128: 0 | AH128: 0 | AI128: 0 | AJ128: 0 | AK128: 0 | AL128: 0 | AM128: 0 | AN128: 0 | AO128: 0 | AQ128: =IF(AND(BC128=""),"",IF(BC128=0,"",1+(MAX(AQ$60:AQ127)))) ->  | AR128: 69 | AS128: 0 | AT128: 0 | AU128: 0 | AV128: 0 | AW128: 0 | AX128: 0 | AY128: 0 | AZ128: 0 | BA128: 0 | BB128: 0 | BD128: =IF(AND(BP128=""),"",IF(BP128=0,"",1+(MAX(BD$60:BD127)))) ->  | BE128: 69 | BF128: 0 | BG128: 0 | BH128: 0 | BI128: 0 | BJ128: 0 | BK128: 0 | BL128: 0 | BM128: 0 | BN128: 0 | BO128: 0 | BQ128: =IF(AND(CC128=""),"",IF(CC128=0,"",1+(MAX(BQ$60:BQ127)))) ->  | BR128: 69 | BS128: 0 | BT128: 0 | BU128: 0 | BV128: 0 | BW128: 0 | BX128: 0 | BY128: 0 | BZ128: 0 | CA128: 0 | CB128: 0 | CD128: =IF(AND(CP128=""),"",IF(CP128=0,"",1+(MAX(CD$60:CD127)))) ->  | CE128: 69 | CF128: 0 | CG128: 0 | CH128: 0 | CI128: 0 | CJ128: 0 | CK128: 0 | CL128: 0 | CM128: 0 | CN128: 0 | CO128: 0 | CQ128: =IF(AND(DC128=""),"",IF(DC128=0,"",1+(MAX(CQ$60:CQ127)))) ->  | CR128: 69 | CS128: 0 | CT128: 0 | CU128: 0 | CV128: 0 | CW128: 0 | CX128: 0 | CY128: 0 | CZ128: 0 | DA128: 0 | DB128: 0
A129: 0 | B129: 0 | C129: 70 | AC129: 1 | AD129: =IF(AND(AP129=""),"",IF(AP129=0,"",1+(MAX(AD$60:AD128)))) ->  | AE129: 70 | AF129: 0 | AG129: 0 | AH129: 0 | AI129: 0 | AJ129: 0 | AK129: 0 | AL129: 0 | AM129: 0 | AN129: 0 | AO129: 0 | AQ129: =IF(AND(BC129=""),"",IF(BC129=0,"",1+(MAX(AQ$60:AQ128)))) ->  | AR129: 70 | AS129: 0 | AT129: 0 | AU129: 0 | AV129: 0 | AW129: 0 | AX129: 0 | AY129: 0 | AZ129: 0 | BA129: 0 | BB129: 0 | BD129: =IF(AND(BP129=""),"",IF(BP129=0,"",1+(MAX(BD$60:BD128)))) ->  | BE129: 70 | BF129: 0 | BG129: 0 | BH129: 0 | BI129: 0 | BJ129: 0 | BK129: 0 | BL129: 0 | BM129: 0 | BN129: 0 | BO129: 0 | BQ129: =IF(AND(CC129=""),"",IF(CC129=0,"",1+(MAX(BQ$60:BQ128)))) ->  | BR129: 70 | BS129: 0 | BT129: 0 | BU129: 0 | BV129: 0 | BW129: 0 | BX129: 0 | BY129: 0 | BZ129: 0 | CA129: 0 | CB129: 0 | CD129: =IF(AND(CP129=""),"",IF(CP129=0,"",1+(MAX(CD$60:CD128)))) ->  | CE129: 70 | CF129: 0 | CG129: 0 | CH129: 0 | CI129: 0 | CJ129: 0 | CK129: 0 | CL129: 0 | CM129: 0 | CN129: 0 | CO129: 0 | CQ129: =IF(AND(DC129=""),"",IF(DC129=0,"",1+(MAX(CQ$60:CQ128)))) ->  | CR129: 70 | CS129: 0 | CT129: 0 | CU129: 0 | CV129: 0 | CW129: 0 | CX129: 0 | CY129: 0 | CZ129: 0 | DA129: 0 | DB129: 0
A130: 0 | B130: 0 | C130: 71 | AC130: 1 | AD130: =IF(AND(AP130=""),"",IF(AP130=0,"",1+(MAX(AD$60:AD129)))) ->  | AE130: 71 | AF130: 0 | AG130: 0 | AH130: 0 | AI130: 0 | AJ130: 0 | AK130: 0 | AL130: 0 | AM130: 0 | AN130: 0 | AO130: 0 | AQ130: =IF(AND(BC130=""),"",IF(BC130=0,"",1+(MAX(AQ$60:AQ129)))) ->  | AR130: 71 | AS130: 0 | AT130: 0 | AU130: 0 | AV130: 0 | AW130: 0 | AX130: 0 | AY130: 0 | AZ130: 0 | BA130: 0 | BB130: 0 | BD130: =IF(AND(BP130=""),"",IF(BP130=0,"",1+(MAX(BD$60:BD129)))) ->  | BE130: 71 | BF130: 0 | BG130: 0 | BH130: 0 | BI130: 0 | BJ130: 0 | BK130: 0 | BL130: 0 | BM130: 0 | BN130: 0 | BO130: 0 | BQ130: =IF(AND(CC130=""),"",IF(CC130=0,"",1+(MAX(BQ$60:BQ129)))) ->  | BR130: 71 | BS130: 0 | BT130: 0 | BU130: 0 | BV130: 0 | BW130: 0 | BX130: 0 | BY130: 0 | BZ130: 0 | CA130: 0 | CB130: 0 | CD130: =IF(AND(CP130=""),"",IF(CP130=0,"",1+(MAX(CD$60:CD129)))) ->  | CE130: 71 | CF130: 0 | CG130: 0 | CH130: 0 | CI130: 0 | CJ130: 0 | CK130: 0 | CL130: 0 | CM130: 0 | CN130: 0 | CO130: 0 | CQ130: =IF(AND(DC130=""),"",IF(DC130=0,"",1+(MAX(CQ$60:CQ129)))) ->  | CR130: 71 | CS130: 0 | CT130: 0 | CU130: 0 | CV130: 0 | CW130: 0 | CX130: 0 | CY130: 0 | CZ130: 0 | DA130: 0 | DB130: 0
A131: 0 | B131: 0 | C131: 72 | AC131: 1 | AD131: =IF(AND(AP131=""),"",IF(AP131=0,"",1+(MAX(AD$60:AD130)))) ->  | AE131: 72 | AF131: 0 | AG131: 0 | AH131: 0 | AI131: 0 | AJ131: 0 | AK131: 0 | AL131: 0 | AM131: 0 | AN131: 0 | AO131: 0 | AQ131: =IF(AND(BC131=""),"",IF(BC131=0,"",1+(MAX(AQ$60:AQ130)))) ->  | AR131: 72 | AS131: 0 | AT131: 0 | AU131: 0 | AV131: 0 | AW131: 0 | AX131: 0 | AY131: 0 | AZ131: 0 | BA131: 0 | BB131: 0 | BD131: =IF(AND(BP131=""),"",IF(BP131=0,"",1+(MAX(BD$60:BD130)))) ->  | BE131: 72 | BF131: 0 | BG131: 0 | BH131: 0 | BI131: 0 | BJ131: 0 | BK131: 0 | BL131: 0 | BM131: 0 | BN131: 0 | BO131: 0 | BQ131: =IF(AND(CC131=""),"",IF(CC131=0,"",1+(MAX(BQ$60:BQ130)))) ->  | BR131: 72 | BS131: 0 | BT131: 0 | BU131: 0 | BV131: 0 | BW131: 0 | BX131: 0 | BY131: 0 | BZ131: 0 | CA131: 0 | CB131: 0 | CD131: =IF(AND(CP131=""),"",IF(CP131=0,"",1+(MAX(CD$60:CD130)))) ->  | CE131: 72 | CF131: 0 | CG131: 0 | CH131: 0 | CI131: 0 | CJ131: 0 | CK131: 0 | CL131: 0 | CM131: 0 | CN131: 0 | CO131: 0 | CQ131: =IF(AND(DC131=""),"",IF(DC131=0,"",1+(MAX(CQ$60:CQ130)))) ->  | CR131: 72 | CS131: 0 | CT131: 0 | CU131: 0 | CV131: 0 | CW131: 0 | CX131: 0 | CY131: 0 | CZ131: 0 | DA131: 0 | DB131: 0
A132: 0 | B132: 0 | C132: 73 | AC132: 1 | AD132: =IF(AND(AP132=""),"",IF(AP132=0,"",1+(MAX(AD$60:AD131)))) ->  | AE132: 73 | AF132: 0 | AG132: 0 | AH132: 0 | AI132: 0 | AJ132: 0 | AK132: 0 | AL132: 0 | AM132: 0 | AN132: 0 | AO132: 0 | AQ132: =IF(AND(BC132=""),"",IF(BC132=0,"",1+(MAX(AQ$60:AQ131)))) ->  | AR132: 73 | AS132: 0 | AT132: 0 | AU132: 0 | AV132: 0 | AW132: 0 | AX132: 0 | AY132: 0 | AZ132: 0 | BA132: 0 | BB132: 0 | BD132: =IF(AND(BP132=""),"",IF(BP132=0,"",1+(MAX(BD$60:BD131)))) ->  | BE132: 73 | BF132: 0 | BG132: 0 | BH132: 0 | BI132: 0 | BJ132: 0 | BK132: 0 | BL132: 0 | BM132: 0 | BN132: 0 | BO132: 0 | BQ132: =IF(AND(CC132=""),"",IF(CC132=0,"",1+(MAX(BQ$60:BQ131)))) ->  | BR132: 73 | BS132: 0 | BT132: 0 | BU132: 0 | BV132: 0 | BW132: 0 | BX132: 0 | BY132: 0 | BZ132: 0 | CA132: 0 | CB132: 0 | CD132: =IF(AND(CP132=""),"",IF(CP132=0,"",1+(MAX(CD$60:CD131)))) ->  | CE132: 73 | CF132: 0 | CG132: 0 | CH132: 0 | CI132: 0 | CJ132: 0 | CK132: 0 | CL132: 0 | CM132: 0 | CN132: 0 | CO132: 0 | CQ132: =IF(AND(DC132=""),"",IF(DC132=0,"",1+(MAX(CQ$60:CQ131)))) ->  | CR132: 73 | CS132: 0 | CT132: 0 | CU132: 0 | CV132: 0 | CW132: 0 | CX132: 0 | CY132: 0 | CZ132: 0 | DA132: 0 | DB132: 0
A133: 0 | B133: 0 | C133: 74 | AC133: 1 | AD133: =IF(AND(AP133=""),"",IF(AP133=0,"",1+(MAX(AD$60:AD132)))) ->  | AE133: 74 | AF133: 0 | AG133: 0 | AH133: 0 | AI133: 0 | AJ133: 0 | AK133: 0 | AL133: 0 | AM133: 0 | AN133: 0 | AO133: 0 | AQ133: =IF(AND(BC133=""),"",IF(BC133=0,"",1+(MAX(AQ$60:AQ132)))) ->  | AR133: 74 | AS133: 0 | AT133: 0 | AU133: 0 | AV133: 0 | AW133: 0 | AX133: 0 | AY133: 0 | AZ133: 0 | BA133: 0 | BB133: 0 | BD133: =IF(AND(BP133=""),"",IF(BP133=0,"",1+(MAX(BD$60:BD132)))) ->  | BE133: 74 | BF133: 0 | BG133: 0 | BH133: 0 | BI133: 0 | BJ133: 0 | BK133: 0 | BL133: 0 | BM133: 0 | BN133: 0 | BO133: 0 | BQ133: =IF(AND(CC133=""),"",IF(CC133=0,"",1+(MAX(BQ$60:BQ132)))) ->  | BR133: 74 | BS133: 0 | BT133: 0 | BU133: 0 | BV133: 0 | BW133: 0 | BX133: 0 | BY133: 0 | BZ133: 0 | CA133: 0 | CB133: 0 | CD133: =IF(AND(CP133=""),"",IF(CP133=0,"",1+(MAX(CD$60:CD132)))) ->  | CE133: 74 | CF133: 0 | CG133: 0 | CH133: 0 | CI133: 0 | CJ133: 0 | CK133: 0 | CL133: 0 | CM133: 0 | CN133: 0 | CO133: 0 | CQ133: =IF(AND(DC133=""),"",IF(DC133=0,"",1+(MAX(CQ$60:CQ132)))) ->  | CR133: 74 | CS133: 0 | CT133: 0 | CU133: 0 | CV133: 0 | CW133: 0 | CX133: 0 | CY133: 0 | CZ133: 0 | DA133: 0 | DB133: 0
A134: 0 | B134: 0 | C134: 75 | AC134: 1 | AD134: =IF(AND(AP134=""),"",IF(AP134=0,"",1+(MAX(AD$60:AD133)))) ->  | AE134: 75 | AF134: 0 | AG134: 0 | AH134: 0 | AI134: 0 | AJ134: 0 | AK134: 0 | AL134: 0 | AM134: 0 | AN134: 0 | AO134: 0 | AQ134: =IF(AND(BC134=""),"",IF(BC134=0,"",1+(MAX(AQ$60:AQ133)))) ->  | AR134: 75 | AS134: 0 | AT134: 0 | AU134: 0 | AV134: 0 | AW134: 0 | AX134: 0 | AY134: 0 | AZ134: 0 | BA134: 0 | BB134: 0 | BD134: =IF(AND(BP134=""),"",IF(BP134=0,"",1+(MAX(BD$60:BD133)))) ->  | BE134: 75 | BF134: 0 | BG134: 0 | BH134: 0 | BI134: 0 | BJ134: 0 | BK134: 0 | BL134: 0 | BM134: 0 | BN134: 0 | BO134: 0 | BQ134: =IF(AND(CC134=""),"",IF(CC134=0,"",1+(MAX(BQ$60:BQ133)))) ->  | BR134: 75 | BS134: 0 | BT134: 0 | BU134: 0 | BV134: 0 | BW134: 0 | BX134: 0 | BY134: 0 | BZ134: 0 | CA134: 0 | CB134: 0 | CD134: =IF(AND(CP134=""),"",IF(CP134=0,"",1+(MAX(CD$60:CD133)))) ->  | CE134: 75 | CF134: 0 | CG134: 0 | CH134: 0 | CI134: 0 | CJ134: 0 | CK134: 0 | CL134: 0 | CM134: 0 | CN134: 0 | CO134: 0 | CQ134: =IF(AND(DC134=""),"",IF(DC134=0,"",1+(MAX(CQ$60:CQ133)))) ->  | CR134: 75 | CS134: 0 | CT134: 0 | CU134: 0 | CV134: 0 | CW134: 0 | CX134: 0 | CY134: 0 | CZ134: 0 | DA134: 0 | DB134: 0
A135: 0 | B135: 0 | C135: 76 | AC135: 1 | AD135: =IF(AND(AP135=""),"",IF(AP135=0,"",1+(MAX(AD$60:AD134)))) ->  | AE135: 76 | AF135: 0 | AG135: 0 | AH135: 0 | AI135: 0 | AJ135: 0 | AK135: 0 | AL135: 0 | AM135: 0 | AN135: 0 | AO135: 0 | AQ135: =IF(AND(BC135=""),"",IF(BC135=0,"",1+(MAX(AQ$60:AQ134)))) ->  | AR135: 76 | AS135: 0 | AT135: 0 | AU135: 0 | AV135: 0 | AW135: 0 | AX135: 0 | AY135: 0 | AZ135: 0 | BA135: 0 | BB135: 0 | BD135: =IF(AND(BP135=""),"",IF(BP135=0,"",1+(MAX(BD$60:BD134)))) ->  | BE135: 76 | BF135: 0 | BG135: 0 | BH135: 0 | BI135: 0 | BJ135: 0 | BK135: 0 | BL135: 0 | BM135: 0 | BN135: 0 | BO135: 0 | BQ135: =IF(AND(CC135=""),"",IF(CC135=0,"",1+(MAX(BQ$60:BQ134)))) ->  | BR135: 76 | BS135: 0 | BT135: 0 | BU135: 0 | BV135: 0 | BW135: 0 | BX135: 0 | BY135: 0 | BZ135: 0 | CA135: 0 | CB135: 0 | CD135: =IF(AND(CP135=""),"",IF(CP135=0,"",1+(MAX(CD$60:CD134)))) ->  | CE135: 76 | CF135: 0 | CG135: 0 | CH135: 0 | CI135: 0 | CJ135: 0 | CK135: 0 | CL135: 0 | CM135: 0 | CN135: 0 | CO135: 0 | CQ135: =IF(AND(DC135=""),"",IF(DC135=0,"",1+(MAX(CQ$60:CQ134)))) ->  | CR135: 76 | CS135: 0 | CT135: 0 | CU135: 0 | CV135: 0 | CW135: 0 | CX135: 0 | CY135: 0 | CZ135: 0 | DA135: 0 | DB135: 0
A136: 0 | B136: 0 | C136: 77 | AC136: 1 | AD136: =IF(AND(AP136=""),"",IF(AP136=0,"",1+(MAX(AD$60:AD135)))) ->  | AE136: 77 | AF136: 0 | AG136: 0 | AH136: 0 | AI136: 0 | AJ136: 0 | AK136: 0 | AL136: 0 | AM136: 0 | AN136: 0 | AO136: 0 | AQ136: =IF(AND(BC136=""),"",IF(BC136=0,"",1+(MAX(AQ$60:AQ135)))) ->  | AR136: 77 | AS136: 0 | AT136: 0 | AU136: 0 | AV136: 0 | AW136: 0 | AX136: 0 | AY136: 0 | AZ136: 0 | BA136: 0 | BB136: 0 | BD136: =IF(AND(BP136=""),"",IF(BP136=0,"",1+(MAX(BD$60:BD135)))) ->  | BE136: 77 | BF136: 0 | BG136: 0 | BH136: 0 | BI136: 0 | BJ136: 0 | BK136: 0 | BL136: 0 | BM136: 0 | BN136: 0 | BO136: 0 | BQ136: =IF(AND(CC136=""),"",IF(CC136=0,"",1+(MAX(BQ$60:BQ135)))) ->  | BR136: 77 | BS136: 0 | BT136: 0 | BU136: 0 | BV136: 0 | BW136: 0 | BX136: 0 | BY136: 0 | BZ136: 0 | CA136: 0 | CB136: 0 | CD136: =IF(AND(CP136=""),"",IF(CP136=0,"",1+(MAX(CD$60:CD135)))) ->  | CE136: 77 | CF136: 0 | CG136: 0 | CH136: 0 | CI136: 0 | CJ136: 0 | CK136: 0 | CL136: 0 | CM136: 0 | CN136: 0 | CO136: 0 | CQ136: =IF(AND(DC136=""),"",IF(DC136=0,"",1+(MAX(CQ$60:CQ135)))) ->  | CR136: 77 | CS136: 0 | CT136: 0 | CU136: 0 | CV136: 0 | CW136: 0 | CX136: 0 | CY136: 0 | CZ136: 0 | DA136: 0 | DB136: 0
A137: 0 | B137: 0 | C137: 78 | AC137: 1 | AD137: =IF(AND(AP137=""),"",IF(AP137=0,"",1+(MAX(AD$60:AD136)))) ->  | AE137: 78 | AF137: 0 | AG137: 0 | AH137: 0 | AI137: 0 | AJ137: 0 | AK137: 0 | AL137: 0 | AM137: 0 | AN137: 0 | AO137: 0 | AQ137: =IF(AND(BC137=""),"",IF(BC137=0,"",1+(MAX(AQ$60:AQ136)))) ->  | AR137: 78 | AS137: 0 | AT137: 0 | AU137: 0 | AV137: 0 | AW137: 0 | AX137: 0 | AY137: 0 | AZ137: 0 | BA137: 0 | BB137: 0 | BD137: =IF(AND(BP137=""),"",IF(BP137=0,"",1+(MAX(BD$60:BD136)))) ->  | BE137: 78 | BF137: 0 | BG137: 0 | BH137: 0 | BI137: 0 | BJ137: 0 | BK137: 0 | BL137: 0 | BM137: 0 | BN137: 0 | BO137: 0 | BQ137: =IF(AND(CC137=""),"",IF(CC137=0,"",1+(MAX(BQ$60:BQ136)))) ->  | BR137: 78 | BS137: 0 | BT137: 0 | BU137: 0 | BV137: 0 | BW137: 0 | BX137: 0 | BY137: 0 | BZ137: 0 | CA137: 0 | CB137: 0 | CD137: =IF(AND(CP137=""),"",IF(CP137=0,"",1+(MAX(CD$60:CD136)))) ->  | CE137: 78 | CF137: 0 | CG137: 0 | CH137: 0 | CI137: 0 | CJ137: 0 | CK137: 0 | CL137: 0 | CM137: 0 | CN137: 0 | CO137: 0 | CQ137: =IF(AND(DC137=""),"",IF(DC137=0,"",1+(MAX(CQ$60:CQ136)))) ->  | CR137: 78 | CS137: 0 | CT137: 0 | CU137: 0 | CV137: 0 | CW137: 0 | CX137: 0 | CY137: 0 | CZ137: 0 | DA137: 0 | DB137: 0
A138: 0 | B138: 0 | C138: 79 | AC138: 1 | AD138: =IF(AND(AP138=""),"",IF(AP138=0,"",1+(MAX(AD$60:AD137)))) ->  | AE138: 79 | AF138: 0 | AG138: 0 | AH138: 0 | AI138: 0 | AJ138: 0 | AK138: 0 | AL138: 0 | AM138: 0 | AN138: 0 | AO138: 0 | AQ138: =IF(AND(BC138=""),"",IF(BC138=0,"",1+(MAX(AQ$60:AQ137)))) ->  | AR138: 79 | AS138: 0 | AT138: 0 | AU138: 0 | AV138: 0 | AW138: 0 | AX138: 0 | AY138: 0 | AZ138: 0 | BA138: 0 | BB138: 0 | BD138: =IF(AND(BP138=""),"",IF(BP138=0,"",1+(MAX(BD$60:BD137)))) ->  | BE138: 79 | BF138: 0 | BG138: 0 | BH138: 0 | BI138: 0 | BJ138: 0 | BK138: 0 | BL138: 0 | BM138: 0 | BN138: 0 | BO138: 0 | BQ138: =IF(AND(CC138=""),"",IF(CC138=0,"",1+(MAX(BQ$60:BQ137)))) ->  | BR138: 79 | BS138: 0 | BT138: 0 | BU138: 0 | BV138: 0 | BW138: 0 | BX138: 0 | BY138: 0 | BZ138: 0 | CA138: 0 | CB138: 0 | CD138: =IF(AND(CP138=""),"",IF(CP138=0,"",1+(MAX(CD$60:CD137)))) ->  | CE138: 79 | CF138: 0 | CG138: 0 | CH138: 0 | CI138: 0 | CJ138: 0 | CK138: 0 | CL138: 0 | CM138: 0 | CN138: 0 | CO138: 0 | CQ138: =IF(AND(DC138=""),"",IF(DC138=0,"",1+(MAX(CQ$60:CQ137)))) ->  | CR138: 79 | CS138: 0 | CT138: 0 | CU138: 0 | CV138: 0 | CW138: 0 | CX138: 0 | CY138: 0 | CZ138: 0 | DA138: 0 | DB138: 0
A139: 0 | B139: 0 | C139: 80 | AC139: 1 | AD139: =IF(AND(AP139=""),"",IF(AP139=0,"",1+(MAX(AD$60:AD138)))) ->  | AE139: 80 | AF139: 0 | AG139: 0 | AH139: 0 | AI139: 0 | AJ139: 0 | AK139: 0 | AL139: 0 | AM139: 0 | AN139: 0 | AO139: 0 | AQ139: =IF(AND(BC139=""),"",IF(BC139=0,"",1+(MAX(AQ$60:AQ138)))) ->  | AR139: 80 | AS139: 0 | AT139: 0 | AU139: 0 | AV139: 0 | AW139: 0 | AX139: 0 | AY139: 0 | AZ139: 0 | BA139: 0 | BB139: 0 | BD139: =IF(AND(BP139=""),"",IF(BP139=0,"",1+(MAX(BD$60:BD138)))) ->  | BE139: 80 | BF139: 0 | BG139: 0 | BH139: 0 | BI139: 0 | BJ139: 0 | BK139: 0 | BL139: 0 | BM139: 0 | BN139: 0 | BO139: 0 | BQ139: =IF(AND(CC139=""),"",IF(CC139=0,"",1+(MAX(BQ$60:BQ138)))) ->  | BR139: 80 | BS139: 0 | BT139: 0 | BU139: 0 | BV139: 0 | BW139: 0 | BX139: 0 | BY139: 0 | BZ139: 0 | CA139: 0 | CB139: 0 | CD139: =IF(AND(CP139=""),"",IF(CP139=0,"",1+(MAX(CD$60:CD138)))) ->  | CE139: 80 | CF139: 0 | CG139: 0 | CH139: 0 | CI139: 0 | CJ139: 0 | CK139: 0 | CL139: 0 | CM139: 0 | CN139: 0 | CO139: 0 | CQ139: =IF(AND(DC139=""),"",IF(DC139=0,"",1+(MAX(CQ$60:CQ138)))) ->  | CR139: 80 | CS139: 0 | CT139: 0 | CU139: 0 | CV139: 0 | CW139: 0 | CX139: 0 | CY139: 0 | CZ139: 0 | DA139: 0 | DB139: 0
A140: 0 | B140: 0 | C140: 81 | AC140: 1 | AD140: =IF(AND(AP140=""),"",IF(AP140=0,"",1+(MAX(AD$60:AD139)))) ->  | AE140: 81 | AF140: 0 | AG140: 0 | AH140: 0 | AI140: 0 | AJ140: 0 | AK140: 0 | AL140: 0 | AM140: 0 | AN140: 0 | AO140: 0 | AQ140: =IF(AND(BC140=""),"",IF(BC140=0,"",1+(MAX(AQ$60:AQ139)))) ->  | AR140: 81 | AS140: 0 | AT140: 0 | AU140: 0 | AV140: 0 | AW140: 0 | AX140: 0 | AY140: 0 | AZ140: 0 | BA140: 0 | BB140: 0 | BD140: =IF(AND(BP140=""),"",IF(BP140=0,"",1+(MAX(BD$60:BD139)))) ->  | BE140: 81 | BF140: 0 | BG140: 0 | BH140: 0 | BI140: 0 | BJ140: 0 | BK140: 0 | BL140: 0 | BM140: 0 | BN140: 0 | BO140: 0 | BQ140: =IF(AND(CC140=""),"",IF(CC140=0,"",1+(MAX(BQ$60:BQ139)))) ->  | BR140: 81 | BS140: 0 | BT140: 0 | BU140: 0 | BV140: 0 | BW140: 0 | BX140: 0 | BY140: 0 | BZ140: 0 | CA140: 0 | CB140: 0 | CD140: =IF(AND(CP140=""),"",IF(CP140=0,"",1+(MAX(CD$60:CD139)))) ->  | CE140: 81 | CF140: 0 | CG140: 0 | CH140: 0 | CI140: 0 | CJ140: 0 | CK140: 0 | CL140: 0 | CM140: 0 | CN140: 0 | CO140: 0 | CQ140: =IF(AND(DC140=""),"",IF(DC140=0,"",1+(MAX(CQ$60:CQ139)))) ->  | CR140: 81 | CS140: =IF($M140="NON GAZETTED - SANVIDA",D140,0) -> 0 | CT140: 0 | CU140: 0 | CV140: 0 | CW140: 0 | CX140: 0 | CY140: 0 | CZ140: 0 | DA140: 0 | DB140: 0
A141: 0 | B141: 0 | C141: 82 | AC141: 1 | AD141: =IF(AND(AP141=""),"",IF(AP141=0,"",1+(MAX(AD$60:AD140)))) ->  | AE141: 82 | AF141: 0 | AG141: 0 | AH141: 0 | AI141: 0 | AJ141: 0 | AK141: 0 | AL141: 0 | AM141: 0 | AN141: 0 | AO141: 0 | AQ141: =IF(AND(BC141=""),"",IF(BC141=0,"",1+(MAX(AQ$60:AQ140)))) ->  | AR141: 82 | AS141: 0 | AT141: 0 | AU141: 0 | AV141: 0 | AW141: 0 | AX141: 0 | AY141: 0 | AZ141: 0 | BA141: 0 | BB141: 0 | BD141: =IF(AND(BP141=""),"",IF(BP141=0,"",1+(MAX(BD$60:BD140)))) ->  | BE141: 82 | BF141: 0 | BG141: 0 | BH141: 0 | BI141: 0 | BJ141: 0 | BK141: 0 | BL141: 0 | BM141: 0 | BN141: 0 | BO141: 0 | BQ141: =IF(AND(CC141=""),"",IF(CC141=0,"",1+(MAX(BQ$60:BQ140)))) ->  | BR141: 82 | BS141: 0 | BT141: 0 | BU141: 0 | BV141: 0 | BW141: 0 | BX141: 0 | BY141: 0 | BZ141: 0 | CA141: 0 | CB141: 0 | CD141: =IF(AND(CP141=""),"",IF(CP141=0,"",1+(MAX(CD$60:CD140)))) ->  | CE141: 82 | CF141: 0 | CG141: 0 | CH141: 0 | CI141: 0 | CJ141: 0 | CK141: 0 | CL141: 0 | CM141: 0 | CN141: 0 | CO141: 0 | CQ141: =IF(AND(DC141=""),"",IF(DC141=0,"",1+(MAX(CQ$60:CQ140)))) ->  | CR141: 82 | CS141: 0 | CT141: 0 | CU141: 0 | CV141: 0 | CW141: 0 | CX141: 0 | CY141: 0 | CZ141: 0 | DA141: 0 | DB141: 0
A142: 0 | B142: 0 | C142: 83 | AC142: 1 | AD142: =IF(AND(AP142=""),"",IF(AP142=0,"",1+(MAX(AD$60:AD141)))) ->  | AE142: 83 | AF142: 0 | AG142: 0 | AH142: 0 | AI142: 0 | AJ142: 0 | AK142: 0 | AL142: 0 | AM142: 0 | AN142: 0 | AO142: 0 | AQ142: =IF(AND(BC142=""),"",IF(BC142=0,"",1+(MAX(AQ$60:AQ141)))) ->  | AR142: 83 | AS142: 0 | AT142: 0 | AU142: 0 | AV142: 0 | AW142: 0 | AX142: 0 | AY142: 0 | AZ142: 0 | BA142: 0 | BB142: 0 | BD142: =IF(AND(BP142=""),"",IF(BP142=0,"",1+(MAX(BD$60:BD141)))) ->  | BE142: 83 | BF142: 0 | BG142: 0 | BH142: 0 | BI142: 0 | BJ142: 0 | BK142: 0 | BL142: 0 | BM142: 0 | BN142: 0 | BO142: 0 | BQ142: =IF(AND(CC142=""),"",IF(CC142=0,"",1+(MAX(BQ$60:BQ141)))) ->  | BR142: 83 | BS142: 0 | BT142: 0 | BU142: 0 | BV142: 0 | BW142: 0 | BX142: 0 | BY142: 0 | BZ142: 0 | CA142: 0 | CB142: 0 | CD142: =IF(AND(CP142=""),"",IF(CP142=0,"",1+(MAX(CD$60:CD141)))) ->  | CE142: 83 | CF142: 0 | CG142: 0 | CH142: 0 | CI142: 0 | CJ142: 0 | CK142: 0 | CL142: 0 | CM142: 0 | CN142: 0 | CO142: 0 | CQ142: =IF(AND(DC142=""),"",IF(DC142=0,"",1+(MAX(CQ$60:CQ141)))) ->  | CR142: 83 | CS142: 0 | CT142: 0 | CU142: 0 | CV142: 0 | CW142: 0 | CX142: 0 | CY142: 0 | CZ142: 0 | DA142: 0 | DB142: 0
A143: 0 | B143: 0 | C143: 84 | AC143: 1 | AD143: =IF(AND(AP143=""),"",IF(AP143=0,"",1+(MAX(AD$60:AD142)))) ->  | AE143: 84 | AF143: 0 | AG143: 0 | AH143: 0 | AI143: 0 | AJ143: 0 | AK143: 0 | AL143: 0 | AM143: 0 | AN143: 0 | AO143: 0 | AQ143: =IF(AND(BC143=""),"",IF(BC143=0,"",1+(MAX(AQ$60:AQ142)))) ->  | AR143: 84 | AS143: 0 | AT143: 0 | AU143: 0 | AV143: 0 | AW143: 0 | AX143: 0 | AY143: 0 | AZ143: 0 | BA143: 0 | BB143: 0 | BD143: =IF(AND(BP143=""),"",IF(BP143=0,"",1+(MAX(BD$60:BD142)))) ->  | BE143: 84 | BF143: =IF($M143="GAZETTED - FIX PAY",D143,0) -> 0 | BG143: =IF($M143="GAZETTED - FIX PAY",E143,0) -> 0 | BH143: =IF($M143="GAZETTED - FIX PAY",F143,0) -> 0 | BI143: =IF($M143="GAZETTED - FIX PAY",G143,0) -> 0 | BJ143: =IF($M143="GAZETTED - FIX PAY",H143,0) -> 0 | BK143: =IF($M143="GAZETTED - FIX PAY",I143,0) -> 0 | BL143: =IF($M143="GAZETTED - FIX PAY",J143,0) -> 0 | BM143: =IF($M143="GAZETTED - FIX PAY",K143,0) -> 0 | BN143: =IF($M143="GAZETTED - FIX PAY",L143,0) -> 0 | BO143: 0 | BQ143: =IF(AND(CC143=""),"",IF(CC143=0,"",1+(MAX(BQ$60:BQ142)))) ->  | BR143: 84 | BS143: =IF($M143="NON GAZETTED - FIX PAY",D143,0) -> 0 | BT143: =IF($M143="NON GAZETTED - FIX PAY",E143,0) -> 0 | BU143: =IF($M143="NON GAZETTED - FIX PAY",F143,0) -> 0 | BV143: =IF($M143="NON GAZETTED - FIX PAY",G143,0) -> 0 | BW143: =IF($M143="NON GAZETTED - FIX PAY",H143,0) -> 0 | BX143: =IF($M143="NON GAZETTED - FIX PAY",I143,0) -> 0 | BY143: =IF($M143="NON GAZETTED - FIX PAY",J143,0) -> 0 | BZ143: =IF($M143="NON GAZETTED - FIX PAY",K143,0) -> 0 | CA143: =IF($M143="NON GAZETTED - FIX PAY",L143,0) -> 0 | CB143: 0 | CD143: =IF(AND(CP143=""),"",IF(CP143=0,"",1+(MAX(CD$60:CD142)))) ->  | CE143: 84 | CF143: 0 | CG143: 0 | CH143: 0 | CI143: 0 | CJ143: 0 | CK143: 0 | CL143: 0 | CM143: 0 | CN143: 0 | CO143: 0 | CQ143: =IF(AND(DC143=""),"",IF(DC143=0,"",1+(MAX(CQ$60:CQ142)))) ->  | CR143: 84 | CS143: 0 | CT143: 0 | CU143: 0 | CV143: 0 | CW143: 0 | CX143: 0 | CY143: 0 | CZ143: 0 | DA143: 0 | DB143: 0
A144: 0 | B144: 0 | C144: 85 | AC144: 1 | AD144: =IF(AND(AP144=""),"",IF(AP144=0,"",1+(MAX(AD$60:AD143)))) ->  | AE144: 85 | AF144: 0 | AG144: 0 | AH144: 0 | AI144: 0 | AJ144: 0 | AK144: 0 | AL144: 0 | AM144: 0 | AN144: 0 | AO144: 0 | AQ144: =IF(AND(BC144=""),"",IF(BC144=0,"",1+(MAX(AQ$60:AQ143)))) ->  | AR144: 85 | AS144: 0 | AT144: 0 | AU144: 0 | AV144: 0 | AW144: 0 | AX144: 0 | AY144: 0 | AZ144: 0 | BA144: 0 | BB144: 0 | BD144: =IF(AND(BP144=""),"",IF(BP144=0,"",1+(MAX(BD$60:BD143)))) ->  | BE144: 85 | BF144: 0 | BG144: 0 | BH144: 0 | BI144: 0 | BJ144: 0 | BK144: 0 | BL144: 0 | BM144: 0 | BN144: 0 | BO144: 0 | BQ144: =IF(AND(CC144=""),"",IF(CC144=0,"",1+(MAX(BQ$60:BQ143)))) ->  | BR144: 85 | BS144: 0 | BT144: 0 | BU144: 0 | BV144: 0 | BW144: 0 | BX144: 0 | BY144: 0 | BZ144: 0 | CA144: 0 | CB144: 0 | CD144: =IF(AND(CP144=""),"",IF(CP144=0,"",1+(MAX(CD$60:CD143)))) ->  | CE144: 85 | CF144: 0 | CG144: 0 | CH144: 0 | CI144: 0 | CJ144: 0 | CK144: 0 | CL144: 0 | CM144: 0 | CN144: 0 | CO144: 0 | CQ144: =IF(AND(DC144=""),"",IF(DC144=0,"",1+(MAX(CQ$60:CQ143)))) ->  | CR144: 85 | CS144: 0 | CT144: 0 | CU144: 0 | CV144: 0 | CW144: 0 | CX144: 0 | CY144: 0 | CZ144: 0 | DA144: 0 | DB144: 0
A145: 0 | B145: 0 | C145: 86 | AC145: 1 | AD145: =IF(AND(AP145=""),"",IF(AP145=0,"",1+(MAX(AD$60:AD144)))) ->  | AE145: 86 | AF145: 0 | AG145: 0 | AH145: 0 | AI145: 0 | AJ145: 0 | AK145: 0 | AL145: 0 | AM145: 0 | AN145: 0 | AO145: 0 | AQ145: =IF(AND(BC145=""),"",IF(BC145=0,"",1+(MAX(AQ$60:AQ144)))) ->  | AR145: 86 | AS145: 0 | AT145: 0 | AU145: 0 | AV145: 0 | AW145: 0 | AX145: 0 | AY145: 0 | AZ145: 0 | BA145: 0 | BB145: 0 | BD145: =IF(AND(BP145=""),"",IF(BP145=0,"",1+(MAX(BD$60:BD144)))) ->  | BE145: 86 | BF145: 0 | BG145: 0 | BH145: 0 | BI145: 0 | BJ145: 0 | BK145: 0 | BL145: 0 | BM145: 0 | BN145: 0 | BO145: 0 | BQ145: =IF(AND(CC145=""),"",IF(CC145=0,"",1+(MAX(BQ$60:BQ144)))) ->  | BR145: 86 | BS145: 0 | BT145: 0 | BU145: 0 | BV145: 0 | BW145: 0 | BX145: 0 | BY145: 0 | BZ145: 0 | CA145: 0 | CB145: 0 | CD145: =IF(AND(CP145=""),"",IF(CP145=0,"",1+(MAX(CD$60:CD144)))) ->  | CE145: 86 | CF145: 0 | CG145: 0 | CH145: 0 | CI145: 0 | CJ145: 0 | CK145: 0 | CL145: 0 | CM145: 0 | CN145: 0 | CO145: 0 | CQ145: =IF(AND(DC145=""),"",IF(DC145=0,"",1+(MAX(CQ$60:CQ144)))) ->  | CR145: 86 | CS145: 0 | CT145: 0 | CU145: 0 | CV145: 0 | CW145: 0 | CX145: 0 | CY145: 0 | CZ145: 0 | DA145: 0 | DB145: 0
A146: 0 | B146: 0 | C146: 87 | AC146: 1 | AD146: =IF(AND(AP146=""),"",IF(AP146=0,"",1+(MAX(AD$60:AD145)))) ->  | AE146: 87 | AF146: 0 | AG146: 0 | AH146: 0 | AI146: 0 | AJ146: 0 | AK146: 0 | AL146: 0 | AM146: 0 | AN146: 0 | AO146: 0 | AQ146: =IF(AND(BC146=""),"",IF(BC146=0,"",1+(MAX(AQ$60:AQ145)))) ->  | AR146: 87 | AS146: 0 | AT146: 0 | AU146: 0 | AV146: 0 | AW146: 0 | AX146: 0 | AY146: 0 | AZ146: 0 | BA146: 0 | BB146: 0 | BD146: =IF(AND(BP146=""),"",IF(BP146=0,"",1+(MAX(BD$60:BD145)))) ->  | BE146: 87 | BF146: 0 | BG146: 0 | BH146: 0 | BI146: 0 | BJ146: 0 | BK146: 0 | BL146: 0 | BM146: 0 | BN146: 0 | BO146: 0 | BQ146: =IF(AND(CC146=""),"",IF(CC146=0,"",1+(MAX(BQ$60:BQ145)))) ->  | BR146: 87 | BS146: 0 | BT146: 0 | BU146: 0 | BV146: 0 | BW146: 0 | BX146: 0 | BY146: 0 | BZ146: 0 | CA146: 0 | CB146: 0 | CD146: =IF(AND(CP146=""),"",IF(CP146=0,"",1+(MAX(CD$60:CD145)))) ->  | CE146: 87 | CF146: 0 | CG146: 0 | CH146: 0 | CI146: 0 | CJ146: 0 | CK146: 0 | CL146: 0 | CM146: 0 | CN146: 0 | CO146: 0 | CQ146: =IF(AND(DC146=""),"",IF(DC146=0,"",1+(MAX(CQ$60:CQ145)))) ->  | CR146: 87 | CS146: 0 | CT146: 0 | CU146: 0 | CV146: 0 | CW146: 0 | CX146: 0 | CY146: 0 | CZ146: 0 | DA146: 0 | DB146: 0
A147: 0 | B147: 0 | C147: 88 | AC147: 1 | AD147: =IF(AND(AP147=""),"",IF(AP147=0,"",1+(MAX(AD$60:AD146)))) ->  | AE147: 88 | AF147: 0 | AG147: 0 | AH147: 0 | AI147: 0 | AJ147: 0 | AK147: 0 | AL147: 0 | AM147: 0 | AN147: 0 | AO147: 0 | AQ147: =IF(AND(BC147=""),"",IF(BC147=0,"",1+(MAX(AQ$60:AQ146)))) ->  | AR147: 88 | AS147: 0 | AT147: 0 | AU147: 0 | AV147: 0 | AW147: 0 | AX147: 0 | AY147: 0 | AZ147: 0 | BA147: 0 | BB147: 0 | BD147: =IF(AND(BP147=""),"",IF(BP147=0,"",1+(MAX(BD$60:BD146)))) ->  | BE147: 88 | BF147: 0 | BG147: 0 | BH147: 0 | BI147: 0 | BJ147: 0 | BK147: 0 | BL147: 0 | BM147: 0 | BN147: 0 | BO147: 0 | BQ147: =IF(AND(CC147=""),"",IF(CC147=0,"",1+(MAX(BQ$60:BQ146)))) ->  | BR147: 88 | BS147: 0 | BT147: 0 | BU147: 0 | BV147: 0 | BW147: 0 | BX147: 0 | BY147: 0 | BZ147: 0 | CA147: 0 | CB147: 0 | CD147: =IF(AND(CP147=""),"",IF(CP147=0,"",1+(MAX(CD$60:CD146)))) ->  | CE147: 88 | CF147: 0 | CG147: 0 | CH147: 0 | CI147: 0 | CJ147: 0 | CK147: 0 | CL147: 0 | CM147: 0 | CN147: 0 | CO147: 0 | CQ147: =IF(AND(DC147=""),"",IF(DC147=0,"",1+(MAX(CQ$60:CQ146)))) ->  | CR147: 88 | CS147: 0 | CT147: 0 | CU147: 0 | CV147: 0 | CW147: 0 | CX147: 0 | CY147: 0 | CZ147: 0 | DA147: 0 | DB147: 0
A148: 0 | B148: 0 | C148: 89 | AC148: 1 | AD148: =IF(AND(AP148=""),"",IF(AP148=0,"",1+(MAX(AD$60:AD147)))) ->  | AE148: 89 | AF148: 0 | AG148: 0 | AH148: 0 | AI148: 0 | AJ148: 0 | AK148: 0 | AL148: 0 | AM148: 0 | AN148: 0 | AO148: 0 | AQ148: =IF(AND(BC148=""),"",IF(BC148=0,"",1+(MAX(AQ$60:AQ147)))) ->  | AR148: 89 | AS148: 0 | AT148: 0 | AU148: 0 | AV148: 0 | AW148: 0 | AX148: 0 | AY148: 0 | AZ148: 0 | BA148: 0 | BB148: 0 | BD148: =IF(AND(BP148=""),"",IF(BP148=0,"",1+(MAX(BD$60:BD147)))) ->  | BE148: 89 | BF148: 0 | BG148: 0 | BH148: 0 | BI148: 0 | BJ148: 0 | BK148: 0 | BL148: 0 | BM148: 0 | BN148: 0 | BO148: 0 | BQ148: =IF(AND(CC148=""),"",IF(CC148=0,"",1+(MAX(BQ$60:BQ147)))) ->  | BR148: 89 | BS148: 0 | BT148: 0 | BU148: 0 | BV148: 0 | BW148: 0 | BX148: 0 | BY148: 0 | BZ148: 0 | CA148: 0 | CB148: 0 | CD148: =IF(AND(CP148=""),"",IF(CP148=0,"",1+(MAX(CD$60:CD147)))) ->  | CE148: 89 | CF148: 0 | CG148: 0 | CH148: 0 | CI148: 0 | CJ148: 0 | CK148: 0 | CL148: 0 | CM148: 0 | CN148: 0 | CO148: 0 | CQ148: =IF(AND(DC148=""),"",IF(DC148=0,"",1+(MAX(CQ$60:CQ147)))) ->  | CR148: 89 | CS148: 0 | CT148: 0 | CU148: 0 | CV148: 0 | CW148: 0 | CX148: 0 | CY148: 0 | CZ148: 0 | DA148: 0 | DB148: 0
A149: 0 | B149: 0 | C149: 90 | AC149: 1 | AD149: =IF(AND(AP149=""),"",IF(AP149=0,"",1+(MAX(AD$60:AD148)))) ->  | AE149: 90 | AF149: 0 | AG149: 0 | AH149: 0 | AI149: 0 | AJ149: 0 | AK149: 0 | AL149: 0 | AM149: 0 | AN149: 0 | AO149: 0 | AQ149: =IF(AND(BC149=""),"",IF(BC149=0,"",1+(MAX(AQ$60:AQ148)))) ->  | AR149: 90 | AS149: 0 | AT149: 0 | AU149: 0 | AV149: 0 | AW149: 0 | AX149: 0 | AY149: 0 | AZ149: 0 | BA149: 0 | BB149: 0 | BD149: =IF(AND(BP149=""),"",IF(BP149=0,"",1+(MAX(BD$60:BD148)))) ->  | BE149: 90 | BF149: 0 | BG149: 0 | BH149: 0 | BI149: 0 | BJ149: 0 | BK149: 0 | BL149: 0 | BM149: 0 | BN149: 0 | BO149: 0 | BQ149: =IF(AND(CC149=""),"",IF(CC149=0,"",1+(MAX(BQ$60:BQ148)))) ->  | BR149: 90 | BS149: 0 | BT149: 0 | BU149: 0 | BV149: 0 | BW149: 0 | BX149: 0 | BY149: 0 | BZ149: 0 | CA149: 0 | CB149: 0 | CD149: =IF(AND(CP149=""),"",IF(CP149=0,"",1+(MAX(CD$60:CD148)))) ->  | CE149: 90 | CF149: 0 | CG149: 0 | CH149: 0 | CI149: 0 | CJ149: 0 | CK149: 0 | CL149: 0 | CM149: 0 | CN149: 0 | CO149: 0 | CQ149: =IF(AND(DC149=""),"",IF(DC149=0,"",1+(MAX(CQ$60:CQ148)))) ->  | CR149: 90 | CS149: 0 | CT149: 0 | CU149: 0 | CV149: 0 | CW149: 0 | CX149: 0 | CY149: 0 | CZ149: 0 | DA149: 0 | DB149: 0
A150: 0 | B150: 0 | C150: 91 | AC150: 1 | AD150: =IF(AND(AP150=""),"",IF(AP150=0,"",1+(MAX(AD$60:AD149)))) ->  | AE150: 91 | AF150: 0 | AG150: 0 | AH150: 0 | AI150: 0 | AJ150: 0 | AK150: 0 | AL150: 0 | AM150: 0 | AN150: 0 | AO150: 0 | AQ150: =IF(AND(BC150=""),"",IF(BC150=0,"",1+(MAX(AQ$60:AQ149)))) ->  | AR150: 91 | AS150: 0 | AT150: 0 | AU150: 0 | AV150: 0 | AW150: 0 | AX150: 0 | AY150: 0 | AZ150: 0 | BA150: 0 | BB150: 0 | BD150: =IF(AND(BP150=""),"",IF(BP150=0,"",1+(MAX(BD$60:BD149)))) ->  | BE150: 91 | BF150: 0 | BG150: 0 | BH150: 0 | BI150: 0 | BJ150: 0 | BK150: 0 | BL150: 0 | BM150: 0 | BN150: 0 | BO150: 0 | BQ150: =IF(AND(CC150=""),"",IF(CC150=0,"",1+(MAX(BQ$60:BQ149)))) ->  | BR150: 91 | BS150: 0 | BT150: 0 | BU150: 0 | BV150: 0 | BW150: 0 | BX150: 0 | BY150: 0 | BZ150: 0 | CA150: 0 | CB150: 0 | CD150: =IF(AND(CP150=""),"",IF(CP150=0,"",1+(MAX(CD$60:CD149)))) ->  | CE150: 91 | CF150: 0 | CG150: 0 | CH150: 0 | CI150: 0 | CJ150: 0 | CK150: 0 | CL150: 0 | CM150: 0 | CN150: 0 | CO150: 0 | CQ150: =IF(AND(DC150=""),"",IF(DC150=0,"",1+(MAX(CQ$60:CQ149)))) ->  | CR150: 91 | CS150: 0 | CT150: 0 | CU150: 0 | CV150: 0 | CW150: 0 | CX150: 0 | CY150: 0 | CZ150: 0 | DA150: 0 | DB150: 0
A151: 0 | B151: 0 | C151: 92 | AC151: 1 | AD151: =IF(AND(AP151=""),"",IF(AP151=0,"",1+(MAX(AD$60:AD150)))) ->  | AE151: 92 | AF151: 0 | AG151: 0 | AH151: 0 | AI151: 0 | AJ151: 0 | AK151: 0 | AL151: 0 | AM151: 0 | AN151: 0 | AO151: 0 | AQ151: =IF(AND(BC151=""),"",IF(BC151=0,"",1+(MAX(AQ$60:AQ150)))) ->  | AR151: 92 | AS151: 0 | AT151: 0 | AU151: 0 | AV151: 0 | AW151: 0 | AX151: 0 | AY151: 0 | AZ151: 0 | BA151: 0 | BB151: 0 | BD151: =IF(AND(BP151=""),"",IF(BP151=0,"",1+(MAX(BD$60:BD150)))) ->  | BE151: 92 | BF151: 0 | BG151: 0 | BH151: 0 | BI151: 0 | BJ151: 0 | BK151: 0 | BL151: 0 | BM151: 0 | BN151: 0 | BO151: 0 | BQ151: =IF(AND(CC151=""),"",IF(CC151=0,"",1+(MAX(BQ$60:BQ150)))) ->  | BR151: 92 | BS151: 0 | BT151: 0 | BU151: 0 | BV151: 0 | BW151: 0 | BX151: 0 | BY151: 0 | BZ151: 0 | CA151: 0 | CB151: 0 | CD151: =IF(AND(CP151=""),"",IF(CP151=0,"",1+(MAX(CD$60:CD150)))) ->  | CE151: 92 | CF151: 0 | CG151: 0 | CH151: 0 | CI151: 0 | CJ151: 0 | CK151: 0 | CL151: 0 | CM151: 0 | CN151: 0 | CO151: 0 | CQ151: =IF(AND(DC151=""),"",IF(DC151=0,"",1+(MAX(CQ$60:CQ150)))) ->  | CR151: 92 | CS151: 0 | CT151: 0 | CU151: 0 | CV151: 0 | CW151: 0 | CX151: 0 | CY151: 0 | CZ151: 0 | DA151: 0 | DB151: 0
A152: 0 | B152: 0 | C152: 93 | AC152: 1 | AD152: =IF(AND(AP152=""),"",IF(AP152=0,"",1+(MAX(AD$60:AD151)))) ->  | AE152: 93 | AF152: 0 | AG152: 0 | AH152: 0 | AI152: 0 | AJ152: 0 | AK152: 0 | AL152: 0 | AM152: 0 | AN152: 0 | AO152: 0 | AQ152: =IF(AND(BC152=""),"",IF(BC152=0,"",1+(MAX(AQ$60:AQ151)))) ->  | AR152: 93 | AS152: 0 | AT152: 0 | AU152: 0 | AV152: 0 | AW152: 0 | AX152: 0 | AY152: 0 | AZ152: 0 | BA152: 0 | BB152: 0 | BD152: =IF(AND(BP152=""),"",IF(BP152=0,"",1+(MAX(BD$60:BD151)))) ->  | BE152: 93 | BF152: 0 | BG152: 0 | BH152: 0 | BI152: 0 | BJ152: 0 | BK152: 0 | BL152: 0 | BM152: 0 | BN152: 0 | BO152: 0 | BQ152: =IF(AND(CC152=""),"",IF(CC152=0,"",1+(MAX(BQ$60:BQ151)))) ->  | BR152: 93 | BS152: 0 | BT152: 0 | BU152: 0 | BV152: 0 | BW152: 0 | BX152: 0 | BY152: 0 | BZ152: 0 | CA152: 0 | CB152: 0 | CD152: =IF(AND(CP152=""),"",IF(CP152=0,"",1+(MAX(CD$60:CD151)))) ->  | CE152: 93 | CF152: 0 | CG152: 0 | CH152: 0 | CI152: 0 | CJ152: 0 | CK152: 0 | CL152: 0 | CM152: 0 | CN152: 0 | CO152: 0 | CQ152: =IF(AND(DC152=""),"",IF(DC152=0,"",1+(MAX(CQ$60:CQ151)))) ->  | CR152: 93 | CS152: 0 | CT152: 0 | CU152: 0 | CV152: 0 | CW152: 0 | CX152: 0 | CY152: 0 | CZ152: 0 | DA152: 0 | DB152: 0
A153: 0 | B153: 0 | C153: 94 | AC153: 1 | AD153: =IF(AND(AP153=""),"",IF(AP153=0,"",1+(MAX(AD$60:AD152)))) ->  | AE153: 94 | AF153: 0 | AG153: 0 | AH153: 0 | AI153: 0 | AJ153: 0 | AK153: 0 | AL153: 0 | AM153: 0 | AN153: 0 | AO153: 0 | AQ153: =IF(AND(BC153=""),"",IF(BC153=0,"",1+(MAX(AQ$60:AQ152)))) ->  | AR153: 94 | AS153: 0 | AT153: 0 | AU153: 0 | AV153: 0 | AW153: 0 | AX153: 0 | AY153: 0 | AZ153: 0 | BA153: 0 | BB153: 0 | BD153: =IF(AND(BP153=""),"",IF(BP153=0,"",1+(MAX(BD$60:BD152)))) ->  | BE153: 94 | BF153: 0 | BG153: 0 | BH153: 0 | BI153: 0 | BJ153: 0 | BK153: 0 | BL153: 0 | BM153: 0 | BN153: 0 | BO153: 0 | BQ153: =IF(AND(CC153=""),"",IF(CC153=0,"",1+(MAX(BQ$60:BQ152)))) ->  | BR153: 94 | BS153: 0 | BT153: 0 | BU153: 0 | BV153: 0 | BW153: 0 | BX153: 0 | BY153: 0 | BZ153: 0 | CA153: 0 | CB153: 0 | CD153: =IF(AND(CP153=""),"",IF(CP153=0,"",1+(MAX(CD$60:CD152)))) ->  | CE153: 94 | CF153: 0 | CG153: 0 | CH153: 0 | CI153: 0 | CJ153: 0 | CK153: 0 | CL153: 0 | CM153: 0 | CN153: 0 | CO153: 0 | CQ153: =IF(AND(DC153=""),"",IF(DC153=0,"",1+(MAX(CQ$60:CQ152)))) ->  | CR153: 94 | CS153: 0 | CT153: 0 | CU153: 0 | CV153: 0 | CW153: 0 | CX153: 0 | CY153: 0 | CZ153: 0 | DA153: 0 | DB153: 0
A154: 0 | B154: 0 | C154: 95 | AC154: 1 | AD154: =IF(AND(AP154=""),"",IF(AP154=0,"",1+(MAX(AD$60:AD153)))) ->  | AE154: 95 | AF154: 0 | AG154: 0 | AH154: 0 | AI154: 0 | AJ154: 0 | AK154: 0 | AL154: 0 | AM154: 0 | AN154: 0 | AO154: 0 | AQ154: =IF(AND(BC154=""),"",IF(BC154=0,"",1+(MAX(AQ$60:AQ153)))) ->  | AR154: 95 | AS154: 0 | AT154: 0 | AU154: 0 | AV154: 0 | AW154: 0 | AX154: 0 | AY154: 0 | AZ154: 0 | BA154: 0 | BB154: 0 | BD154: =IF(AND(BP154=""),"",IF(BP154=0,"",1+(MAX(BD$60:BD153)))) ->  | BE154: 95 | BF154: 0 | BG154: 0 | BH154: 0 | BI154: 0 | BJ154: 0 | BK154: 0 | BL154: 0 | BM154: 0 | BN154: 0 | BO154: 0 | BQ154: =IF(AND(CC154=""),"",IF(CC154=0,"",1+(MAX(BQ$60:BQ153)))) ->  | BR154: 95 | BS154: 0 | BT154: 0 | BU154: 0 | BV154: 0 | BW154: 0 | BX154: 0 | BY154: 0 | BZ154: 0 | CA154: 0 | CB154: 0 | CD154: =IF(AND(CP154=""),"",IF(CP154=0,"",1+(MAX(CD$60:CD153)))) ->  | CE154: 95 | CF154: 0 | CG154: 0 | CH154: 0 | CI154: 0 | CJ154: 0 | CK154: 0 | CL154: 0 | CM154: 0 | CN154: 0 | CO154: 0 | CQ154: =IF(AND(DC154=""),"",IF(DC154=0,"",1+(MAX(CQ$60:CQ153)))) ->  | CR154: 95 | CS154: 0 | CT154: 0 | CU154: 0 | CV154: 0 | CW154: 0 | CX154: 0 | CY154: 0 | CZ154: 0 | DA154: 0 | DB154: 0
A155: 0 | B155: 0 | C155: 96 | AC155: 1 | AD155: =IF(AND(AP155=""),"",IF(AP155=0,"",1+(MAX(AD$60:AD154)))) ->  | AE155: 96 | AF155: 0 | AG155: 0 | AH155: 0 | AI155: 0 | AJ155: 0 | AK155: 0 | AL155: 0 | AM155: 0 | AN155: 0 | AO155: 0 | AQ155: =IF(AND(BC155=""),"",IF(BC155=0,"",1+(MAX(AQ$60:AQ154)))) ->  | AR155: 96 | AS155: 0 | AT155: 0 | AU155: 0 | AV155: 0 | AW155: 0 | AX155: 0 | AY155: 0 | AZ155: 0 | BA155: 0 | BB155: 0 | BD155: =IF(AND(BP155=""),"",IF(BP155=0,"",1+(MAX(BD$60:BD154)))) ->  | BE155: 96 | BF155: 0 | BG155: 0 | BH155: 0 | BI155: 0 | BJ155: 0 | BK155: 0 | BL155: 0 | BM155: 0 | BN155: 0 | BO155: 0 | BQ155: =IF(AND(CC155=""),"",IF(CC155=0,"",1+(MAX(BQ$60:BQ154)))) ->  | BR155: 96 | BS155: 0 | BT155: 0 | BU155: 0 | BV155: 0 | BW155: 0 | BX155: 0 | BY155: 0 | BZ155: 0 | CA155: 0 | CB155: 0 | CD155: =IF(AND(CP155=""),"",IF(CP155=0,"",1+(MAX(CD$60:CD154)))) ->  | CE155: 96 | CF155: 0 | CG155: 0 | CH155: 0 | CI155: 0 | CJ155: 0 | CK155: 0 | CL155: 0 | CM155: 0 | CN155: 0 | CO155: 0 | CQ155: =IF(AND(DC155=""),"",IF(DC155=0,"",1+(MAX(CQ$60:CQ154)))) ->  | CR155: 96 | CS155: 0 | CT155: 0 | CU155: 0 | CV155: 0 | CW155: 0 | CX155: 0 | CY155: 0 | CZ155: 0 | DA155: 0 | DB155: 0
A156: 0 | B156: 0 | C156: 97 | AC156: 1 | AD156: =IF(AND(AP156=""),"",IF(AP156=0,"",1+(MAX(AD$60:AD155)))) ->  | AE156: 97 | AF156: 0 | AG156: 0 | AH156: 0 | AI156: 0 | AJ156: 0 | AK156: 0 | AL156: 0 | AM156: 0 | AN156: 0 | AO156: 0 | AQ156: =IF(AND(BC156=""),"",IF(BC156=0,"",1+(MAX(AQ$60:AQ155)))) ->  | AR156: 97 | AS156: 0 | AT156: 0 | AU156: 0 | AV156: 0 | AW156: 0 | AX156: 0 | AY156: 0 | AZ156: 0 | BA156: 0 | BB156: 0 | BD156: =IF(AND(BP156=""),"",IF(BP156=0,"",1+(MAX(BD$60:BD155)))) ->  | BE156: 97 | BF156: 0 | BG156: 0 | BH156: 0 | BI156: 0 | BJ156: 0 | BK156: 0 | BL156: 0 | BM156: 0 | BN156: 0 | BO156: 0 | BQ156: =IF(AND(CC156=""),"",IF(CC156=0,"",1+(MAX(BQ$60:BQ155)))) ->  | BR156: 97 | BS156: 0 | BT156: 0 | BU156: 0 | BV156: 0 | BW156: 0 | BX156: 0 | BY156: 0 | BZ156: 0 | CA156: 0 | CB156: 0 | CD156: =IF(AND(CP156=""),"",IF(CP156=0,"",1+(MAX(CD$60:CD155)))) ->  | CE156: 97 | CF156: 0 | CG156: 0 | CH156: 0 | CI156: 0 | CJ156: 0 | CK156: 0 | CL156: 0 | CM156: 0 | CN156: 0 | CO156: 0 | CQ156: =IF(AND(DC156=""),"",IF(DC156=0,"",1+(MAX(CQ$60:CQ155)))) ->  | CR156: 97 | CS156: 0 | CT156: 0 | CU156: 0 | CV156: 0 | CW156: 0 | CX156: 0 | CY156: 0 | CZ156: 0 | DA156: 0 | DB156: 0
A157: 0 | B157: 0 | C157: 98 | AC157: 1 | AD157: =IF(AND(AP157=""),"",IF(AP157=0,"",1+(MAX(AD$60:AD156)))) ->  | AE157: 98 | AF157: 0 | AG157: 0 | AH157: 0 | AI157: 0 | AJ157: 0 | AK157: 0 | AL157: 0 | AM157: 0 | AN157: 0 | AO157: 0 | AQ157: =IF(AND(BC157=""),"",IF(BC157=0,"",1+(MAX(AQ$60:AQ156)))) ->  | AR157: 98 | AS157: 0 | AT157: 0 | AU157: 0 | AV157: 0 | AW157: 0 | AX157: 0 | AY157: 0 | AZ157: 0 | BA157: 0 | BB157: 0 | BD157: =IF(AND(BP157=""),"",IF(BP157=0,"",1+(MAX(BD$60:BD156)))) ->  | BE157: 98 | BF157: 0 | BG157: 0 | BH157: 0 | BI157: 0 | BJ157: 0 | BK157: 0 | BL157: 0 | BM157: 0 | BN157: 0 | BO157: 0 | BQ157: =IF(AND(CC157=""),"",IF(CC157=0,"",1+(MAX(BQ$60:BQ156)))) ->  | BR157: 98 | BS157: 0 | BT157: 0 | BU157: 0 | BV157: 0 | BW157: 0 | BX157: 0 | BY157: 0 | BZ157: 0 | CA157: 0 | CB157: 0 | CD157: =IF(AND(CP157=""),"",IF(CP157=0,"",1+(MAX(CD$60:CD156)))) ->  | CE157: 98 | CF157: 0 | CG157: 0 | CH157: 0 | CI157: 0 | CJ157: 0 | CK157: 0 | CL157: 0 | CM157: 0 | CN157: 0 | CO157: 0 | CQ157: =IF(AND(DC157=""),"",IF(DC157=0,"",1+(MAX(CQ$60:CQ156)))) ->  | CR157: 98 | CS157: 0 | CT157: 0 | CU157: 0 | CV157: 0 | CW157: 0 | CX157: 0 | CY157: 0 | CZ157: 0 | DA157: 0 | DB157: 0
A158: 0 | B158: 0 | C158: 99 | AC158: 1 | AD158: =IF(AND(AP158=""),"",IF(AP158=0,"",1+(MAX(AD$60:AD157)))) ->  | AE158: 99 | AF158: 0 | AG158: 0 | AH158: 0 | AI158: 0 | AJ158: 0 | AK158: 0 | AL158: 0 | AM158: 0 | AN158: 0 | AO158: 0 | AQ158: =IF(AND(BC158=""),"",IF(BC158=0,"",1+(MAX(AQ$60:AQ157)))) ->  | AR158: 99 | AS158: 0 | AT158: 0 | AU158: 0 | AV158: 0 | AW158: 0 | AX158: 0 | AY158: 0 | AZ158: 0 | BA158: 0 | BB158: 0 | BD158: =IF(AND(BP158=""),"",IF(BP158=0,"",1+(MAX(BD$60:BD157)))) ->  | BE158: 99 | BF158: 0 | BG158: 0 | BH158: 0 | BI158: 0 | BJ158: 0 | BK158: 0 | BL158: 0 | BM158: 0 | BN158: 0 | BO158: 0 | BQ158: =IF(AND(CC158=""),"",IF(CC158=0,"",1+(MAX(BQ$60:BQ157)))) ->  | BR158: 99 | BS158: 0 | BT158: 0 | BU158: 0 | BV158: 0 | BW158: 0 | BX158: 0 | BY158: 0 | BZ158: 0 | CA158: 0 | CB158: 0 | CD158: =IF(AND(CP158=""),"",IF(CP158=0,"",1+(MAX(CD$60:CD157)))) ->  | CE158: 99 | CF158: 0 | CG158: 0 | CH158: 0 | CI158: 0 | CJ158: 0 | CK158: 0 | CL158: 0 | CM158: 0 | CN158: 0 | CO158: 0 | CQ158: =IF(AND(DC158=""),"",IF(DC158=0,"",1+(MAX(CQ$60:CQ157)))) ->  | CR158: 99 | CS158: 0 | CT158: 0 | CU158: 0 | CV158: 0 | CW158: 0 | CX158: 0 | CY158: 0 | CZ158: 0 | DA158: 0 | DB158: 0
A159: 0 | B159: 0 | C159: 100 | AC159: 1 | AD159: =IF(AND(AP159=""),"",IF(AP159=0,"",1+(MAX(AD$60:AD158)))) ->  | AE159: 100 | AF159: 0 | AG159: 0 | AH159: 0 | AI159: 0 | AJ159: 0 | AK159: 0 | AL159: 0 | AM159: 0 | AN159: 0 | AO159: 0 | AQ159: =IF(AND(BC159=""),"",IF(BC159=0,"",1+(MAX(AQ$60:AQ158)))) ->  | AR159: 100 | AS159: 0 | AT159: 0 | AU159: 0 | AV159: 0 | AW159: 0 | AX159: 0 | AY159: 0 | AZ159: 0 | BA159: 0 | BB159: 0 | BD159: =IF(AND(BP159=""),"",IF(BP159=0,"",1+(MAX(BD$60:BD158)))) ->  | BE159: 100 | BF159: 0 | BG159: 0 | BH159: 0 | BI159: 0 | BJ159: 0 | BK159: 0 | BL159: 0 | BM159: 0 | BN159: 0 | BO159: 0 | BQ159: =IF(AND(CC159=""),"",IF(CC159=0,"",1+(MAX(BQ$60:BQ158)))) ->  | BR159: 100 | BS159: 0 | BT159: 0 | BU159: 0 | BV159: 0 | BW159: 0 | BX159: 0 | BY159: 0 | BZ159: 0 | CA159: 0 | CB159: 0 | CD159: =IF(AND(CP159=""),"",IF(CP159=0,"",1+(MAX(CD$60:CD158)))) ->  | CE159: 100 | CF159: 0 | CG159: 0 | CH159: 0 | CI159: 0 | CJ159: 0 | CK159: 0 | CL159: 0 | CM159: 0 | CN159: 0 | CO159: 0 | CQ159: =IF(AND(DC159=""),"",IF(DC159=0,"",1+(MAX(CQ$60:CQ158)))) ->  | CR159: 100 | CS159: 0 | CT159: 0 | CU159: 0 | CV159: 0 | CW159: 0 | CX159: 0 | CY159: 0 | CZ159: 0 | DA159: 0 | DB159: 0
A160: 0 | B160: 0 | C160: 101 | AB160: =MID(H160,5,4) ->  | AC160: 1 | AD160: =IF(AND(AP160=""),"",IF(AP160=0,"",1+(MAX(AD$60:AD159)))) ->  | AE160: 101 | AF160: 0 | AG160: 0 | AH160: 0 | AI160: 0 | AJ160: 0 | AK160: 0 | AL160: 0 | AM160: 0 | AN160: 0 | AO160: 0 | AQ160: =IF(AND(BC160=""),"",IF(BC160=0,"",1+(MAX(AQ$60:AQ159)))) ->  | AR160: 101 | AS160: 0 | AT160: 0 | AU160: 0 | AV160: 0 | AW160: 0 | AX160: 0 | AY160: 0 | AZ160: 0 | BA160: 0 | BB160: 0 | BD160: =IF(AND(BP160=""),"",IF(BP160=0,"",1+(MAX(BD$60:BD159)))) ->  | BE160: 101 | BF160: 0 | BG160: 0 | BH160: 0 | BI160: 0 | BJ160: 0 | BK160: 0 | BL160: 0 | BM160: 0 | BN160: 0 | BO160: 0 | BQ160: =IF(AND(CC160=""),"",IF(CC160=0,"",1+(MAX(BQ$60:BQ159)))) ->  | BR160: 101 | BS160: 0 | BT160: 0 | BU160: 0 | BV160: 0 | BW160: 0 | BX160: 0 | BY160: 0 | BZ160: 0 | CA160: 0 | CB160: 0 | CD160: =IF(AND(CP160=""),"",IF(CP160=0,"",1+(MAX(CD$60:CD159)))) ->  | CE160: 101 | CF160: 0 | CG160: 0 | CH160: 0 | CI160: 0 | CJ160: 0 | CK160: 0 | CL160: 0 | CM160: 0 | CN160: 0 | CO160: 0 | CQ160: =IF(AND(DC160=""),"",IF(DC160=0,"",1+(MAX(CQ$60:CQ159)))) ->  | CR160: 101 | CS160: 0 | CT160: 0 | CU160: 0 | CV160: 0 | CW160: 0 | CX160: 0 | CY160: 0 | CZ160: 0 | DA160: 0 | DB160: 0
A161: 0 | B161: 0 | C161: 102 | AB161: =MID(H161,5,4) ->  | AC161: 1 | AD161: =IF(AND(AP161=""),"",IF(AP161=0,"",1+(MAX(AD$60:AD160)))) ->  | AE161: 102 | AF161: =IF($M161="GAZETTED - REGULAR",D161,0) -> 0 | AG161: =IF($M161="GAZETTED - REGULAR",E161,0) -> 0 | AH161: =IF($M161="GAZETTED - REGULAR",F161,0) -> 0 | AI161: =IF($M161="GAZETTED - REGULAR",G161,0) -> 0 | AJ161: =IF($M161="GAZETTED - REGULAR",H161,0) -> 0 | AK161: =IF($M161="GAZETTED - REGULAR",I161,0) -> 0 | AL161: =IF($M161="GAZETTED - REGULAR",J161,0) -> 0 | AM161: =IF($M161="GAZETTED - REGULAR",K161,0) -> 0 | AN161: 0 | AO161: =IF($M161="GAZETTED - REGULAR",M161,0) -> 0 | AQ161: =IF(AND(BC161=""),"",IF(BC161=0,"",1+(MAX(AQ$60:AQ160)))) ->  | AR161: 102 | AS161: 0 | AT161: 0 | AU161: 0 | AV161: 0 | AW161: 0 | AX161: 0 | AY161: 0 | AZ161: 0 | BA161: 0 | BB161: =IF($M161="NON GAZETTED - REGULAR",M161,0) -> 0 | BD161: =IF(AND(BP161=""),"",IF(BP161=0,"",1+(MAX(BD$60:BD160)))) ->  | BE161: 102 | BF161: 0 | BG161: 0 | BH161: 0 | BI161: 0 | BJ161: 0 | BK161: 0 | BL161: 0 | BM161: 0 | BN161: 0 | BO161: =IF($M161="GAZETTED - FIX PAY",M161,0) -> 0 | BQ161: =IF(AND(CC161=""),"",IF(CC161=0,"",1+(MAX(BQ$60:BQ160)))) ->  | BR161: 102 | BS161: 0 | BT161: 0 | BU161: 0 | BV161: 0 | BW161: 0 | BX161: 0 | BY161: 0 | BZ161: 0 | CA161: 0 | CB161: =IF($M161="NON GAZETTED - FIX PAY",M161,0) -> 0 | CD161: =IF(AND(CP161=""),"",IF(CP161=0,"",1+(MAX(CD$60:CD160)))) ->  | CE161: 102 | CF161: =IF($M161="GAZETTED - SANVIDA",D161,0) -> 0 | CG161: =IF($M161="GAZETTED - SANVIDA",E161,0) -> 0 | CH161: =IF($M161="GAZETTED - SANVIDA",F161,0) -> 0 | CI161: =IF($M161="GAZETTED - SANVIDA",G161,0) -> 0 | CJ161: =IF($M161="GAZETTED - SANVIDA",H161,0) -> 0 | CK161: =IF($M161="GAZETTED - SANVIDA",I161,0) -> 0 | CL161: =IF($M161="GAZETTED - SANVIDA",J161,0) -> 0 | CM161: =IF($M161="GAZETTED - SANVIDA",K161,0) -> 0 | CN161: =IF($M161="GAZETTED - SANVIDA",L161,0) -> 0 | CO161: =IF($M161="GAZETTED - SANVIDA",M161,0) -> 0 | CQ161: =IF(AND(DC161=""),"",IF(DC161=0,"",1+(MAX(CQ$60:CQ160)))) ->  | CR161: 102 | CS161: 0 | CT161: =IF($M161="NON GAZETTED - SANVIDA",E161,0) -> 0 | CU161: =IF($M161="NON GAZETTED - SANVIDA",F161,0) -> 0 | CV161: =IF($M161="NON GAZETTED - SANVIDA",G161,0) -> 0 | CW161: =IF($M161="NON GAZETTED - SANVIDA",H161,0) -> 0 | CX161: =IF($M161="NON GAZETTED - SANVIDA",I161,0) -> 0 | CY161: =IF($M161="NON GAZETTED - SANVIDA",J161,0) -> 0 | CZ161: =IF($M161="NON GAZETTED - SANVIDA",K161,0) -> 0 | DA161: =IF($M161="NON GAZETTED - SANVIDA",L161,0) -> 0 | DB161: =IF($M161="NON GAZETTED - SANVIDA",M161,0) -> 0
A162: 0 | B162: 0 | C162: 103 | AC162: 1 | AD162: =IF(AND(AP162=""),"",IF(AP162=0,"",1+(MAX(AD$60:AD161)))) ->  | AE162: 103 | AF162: 0 | AG162: 0 | AH162: 0 | AI162: 0 | AJ162: 0 | AK162: 0 | AL162: 0 | AM162: 0 | AN162: =IF($M162="GAZETTED - REGULAR",L162,0) -> 0 | AO162: 0 | AQ162: =IF(AND(BC162=""),"",IF(BC162=0,"",1+(MAX(AQ$60:AQ161)))) ->  | AR162: 103 | AS162: =IF($M162="NON GAZETTED - REGULAR",D162,0) -> 0 | AT162: =IF($M162="NON GAZETTED - REGULAR",E162,0) -> 0 | AU162: =IF($M162="NON GAZETTED - REGULAR",F162,0) -> 0 | AV162: =IF($M162="NON GAZETTED - REGULAR",G162,0) -> 0 | AW162: =IF($M162="NON GAZETTED - REGULAR",H162,0) -> 0 | AX162: =IF($M162="NON GAZETTED - REGULAR",I162,0) -> 0 | AY162: =IF($M162="NON GAZETTED - REGULAR",J162,0) -> 0 | AZ162: =IF($M162="NON GAZETTED - REGULAR",K162,0) -> 0 | BA162: =IF($M162="NON GAZETTED - REGULAR",L162,0) -> 0 | BB162: 0 | BD162: =IF(AND(BP162=""),"",IF(BP162=0,"",1+(MAX(BD$60:BD161)))) ->  | BE162: 103 | BF162: 0 | BG162: 0 | BH162: 0 | BI162: 0 | BJ162: 0 | BK162: 0 | BL162: 0 | BM162: 0 | BN162: 0 | BO162: 0 | BQ162: =IF(AND(CC162=""),"",IF(CC162=0,"",1+(MAX(BQ$60:BQ161)))) ->  | BR162: 103 | BS162: 0 | BT162: 0 | BU162: 0 | BV162: 0 | BW162: 0 | BX162: 0 | BY162: 0 | BZ162: 0 | CA162: 0 | CB162: 0 | CD162: =IF(AND(CP162=""),"",IF(CP162=0,"",1+(MAX(CD$60:CD161)))) ->  | CE162: 103 | CF162: 0 | CG162: 0 | CH162: 0 | CI162: 0 | CJ162: 0 | CK162: 0 | CL162: 0 | CM162: 0 | CN162: 0 | CO162: 0 | CQ162: =IF(AND(DC162=""),"",IF(DC162=0,"",1+(MAX(CQ$60:CQ161)))) ->  | CR162: 103 | CS162: 0 | CT162: 0 | CU162: 0 | CV162: 0 | CW162: 0 | CX162: 0 | CY162: 0 | CZ162: 0 | DA162: 0 | DB162: 0
A163: 0 | B163: 0 | C163: 104 | AC163: 1 | AD163: =IF(AND(AP163=""),"",IF(AP163=0,"",1+(MAX(AD$60:AD162)))) ->  | AE163: 104 | AF163: 0 | AG163: 0 | AH163: 0 | AI163: 0 | AJ163: 0 | AK163: 0 | AL163: 0 | AM163: 0 | AN163: 0 | AO163: 0 | AQ163: =IF(AND(BC163=""),"",IF(BC163=0,"",1+(MAX(AQ$60:AQ162)))) ->  | AR163: 104 | AS163: 0 | AT163: 0 | AU163: 0 | AV163: 0 | AW163: 0 | AX163: 0 | AY163: 0 | AZ163: 0 | BA163: 0 | BB163: 0 | BD163: =IF(AND(BP163=""),"",IF(BP163=0,"",1+(MAX(BD$60:BD162)))) ->  | BE163: 104 | BF163: 0 | BG163: 0 | BH163: 0 | BI163: 0 | BJ163: 0 | BK163: 0 | BL163: 0 | BM163: 0 | BN163: 0 | BO163: 0 | BQ163: =IF(AND(CC163=""),"",IF(CC163=0,"",1+(MAX(BQ$60:BQ162)))) ->  | BR163: 104 | BS163: 0 | BT163: 0 | BU163: 0 | BV163: 0 | BW163: 0 | BX163: 0 | BY163: 0 | BZ163: 0 | CA163: 0 | CB163: 0 | CD163: =IF(AND(CP163=""),"",IF(CP163=0,"",1+(MAX(CD$60:CD162)))) ->  | CE163: 104 | CF163: 0 | CG163: 0 | CH163: 0 | CI163: 0 | CJ163: 0 | CK163: 0 | CL163: 0 | CM163: 0 | CN163: 0 | CO163: 0 | CQ163: =IF(AND(DC163=""),"",IF(DC163=0,"",1+(MAX(CQ$60:CQ162)))) ->  | CR163: 104 | CS163: 0 | CT163: 0 | CU163: 0 | CV163: 0 | CW163: 0 | CX163: 0 | CY163: 0 | CZ163: 0 | DA163: 0 | DB163: 0
A164: 0 | B164: 0 | C164: 105 | AC164: 1 | AD164: =IF(AND(AP164=""),"",IF(AP164=0,"",1+(MAX(AD$60:AD163)))) ->  | AE164: 105 | AF164: 0 | AG164: 0 | AH164: 0 | AI164: 0 | AJ164: 0 | AK164: 0 | AL164: 0 | AM164: 0 | AN164: 0 | AO164: 0 | AQ164: =IF(AND(BC164=""),"",IF(BC164=0,"",1+(MAX(AQ$60:AQ163)))) ->  | AR164: 105 | AS164: 0 | AT164: 0 | AU164: 0 | AV164: 0 | AW164: 0 | AX164: 0 | AY164: 0 | AZ164: 0 | BA164: 0 | BB164: 0 | BD164: =IF(AND(BP164=""),"",IF(BP164=0,"",1+(MAX(BD$60:BD163)))) ->  | BE164: 105 | BF164: 0 | BG164: 0 | BH164: 0 | BI164: 0 | BJ164: 0 | BK164: 0 | BL164: 0 | BM164: 0 | BN164: 0 | BO164: 0 | BQ164: =IF(AND(CC164=""),"",IF(CC164=0,"",1+(MAX(BQ$60:BQ163)))) ->  | BR164: 105 | BS164: 0 | BT164: 0 | BU164: 0 | BV164: 0 | BW164: 0 | BX164: 0 | BY164: 0 | BZ164: 0 | CA164: 0 | CB164: 0 | CD164: =IF(AND(CP164=""),"",IF(CP164=0,"",1+(MAX(CD$60:CD163)))) ->  | CE164: 105 | CF164: 0 | CG164: 0 | CH164: 0 | CI164: 0 | CJ164: 0 | CK164: 0 | CL164: 0 | CM164: 0 | CN164: 0 | CO164: 0 | CQ164: =IF(AND(DC164=""),"",IF(DC164=0,"",1+(MAX(CQ$60:CQ163)))) ->  | CR164: 105 | CS164: 0 | CT164: 0 | CU164: 0 | CV164: 0 | CW164: 0 | CX164: 0 | CY164: 0 | CZ164: 0 | DA164: 0 | DB164: 0
A165: 0 | B165: 0 | C165: 106 | AC165: 1 | AD165: =IF(AND(AP165=""),"",IF(AP165=0,"",1+(MAX(AD$60:AD164)))) ->  | AE165: 106 | AF165: 0 | AG165: 0 | AH165: 0 | AI165: 0 | AJ165: 0 | AK165: 0 | AL165: 0 | AM165: 0 | AN165: 0 | AO165: 0 | AQ165: =IF(AND(BC165=""),"",IF(BC165=0,"",1+(MAX(AQ$60:AQ164)))) ->  | AR165: 106 | AS165: 0 | AT165: 0 | AU165: 0 | AV165: 0 | AW165: 0 | AX165: 0 | AY165: 0 | AZ165: 0 | BA165: 0 | BB165: 0 | BD165: =IF(AND(BP165=""),"",IF(BP165=0,"",1+(MAX(BD$60:BD164)))) ->  | BE165: 106 | BF165: 0 | BG165: 0 | BH165: 0 | BI165: 0 | BJ165: 0 | BK165: 0 | BL165: 0 | BM165: 0 | BN165: 0 | BO165: 0 | BQ165: =IF(AND(CC165=""),"",IF(CC165=0,"",1+(MAX(BQ$60:BQ164)))) ->  | BR165: 106 | BS165: 0 | BT165: 0 | BU165: 0 | BV165: 0 | BW165: 0 | BX165: 0 | BY165: 0 | BZ165: 0 | CA165: 0 | CB165: 0 | CD165: =IF(AND(CP165=""),"",IF(CP165=0,"",1+(MAX(CD$60:CD164)))) ->  | CE165: 106 | CF165: 0 | CG165: 0 | CH165: 0 | CI165: 0 | CJ165: 0 | CK165: 0 | CL165: 0 | CM165: 0 | CN165: 0 | CO165: 0 | CQ165: =IF(AND(DC165=""),"",IF(DC165=0,"",1+(MAX(CQ$60:CQ164)))) ->  | CR165: 106 | CS165: 0 | CT165: 0 | CU165: 0 | CV165: 0 | CW165: 0 | CX165: 0 | CY165: 0 | CZ165: 0 | DA165: 0 | DB165: 0
A166: 0 | B166: 0 | C166: 107 | AC166: 1 | AD166: =IF(AND(AP166=""),"",IF(AP166=0,"",1+(MAX(AD$60:AD165)))) ->  | AE166: 107 | AF166: 0 | AG166: 0 | AH166: 0 | AI166: 0 | AJ166: 0 | AK166: 0 | AL166: 0 | AM166: 0 | AN166: 0 | AO166: 0 | AQ166: =IF(AND(BC166=""),"",IF(BC166=0,"",1+(MAX(AQ$60:AQ165)))) ->  | AR166: 107 | AS166: 0 | AT166: 0 | AU166: 0 | AV166: 0 | AW166: 0 | AX166: 0 | AY166: 0 | AZ166: 0 | BA166: 0 | BB166: 0 | BD166: =IF(AND(BP166=""),"",IF(BP166=0,"",1+(MAX(BD$60:BD165)))) ->  | BE166: 107 | BF166: 0 | BG166: 0 | BH166: 0 | BI166: 0 | BJ166: 0 | BK166: 0 | BL166: 0 | BM166: 0 | BN166: 0 | BO166: 0 | BQ166: =IF(AND(CC166=""),"",IF(CC166=0,"",1+(MAX(BQ$60:BQ165)))) ->  | BR166: 107 | BS166: 0 | BT166: 0 | BU166: 0 | BV166: 0 | BW166: 0 | BX166: 0 | BY166: 0 | BZ166: 0 | CA166: 0 | CB166: 0 | CD166: =IF(AND(CP166=""),"",IF(CP166=0,"",1+(MAX(CD$60:CD165)))) ->  | CE166: 107 | CF166: 0 | CG166: 0 | CH166: 0 | CI166: 0 | CJ166: 0 | CK166: 0 | CL166: 0 | CM166: 0 | CN166: 0 | CO166: 0 | CQ166: =IF(AND(DC166=""),"",IF(DC166=0,"",1+(MAX(CQ$60:CQ165)))) ->  | CR166: 107 | CS166: 0 | CT166: 0 | CU166: 0 | CV166: 0 | CW166: 0 | CX166: 0 | CY166: 0 | CZ166: 0 | DA166: 0 | DB166: 0
A167: 0 | B167: 0 | C167: 108 | AC167: 1 | AD167: =IF(AND(AP167=""),"",IF(AP167=0,"",1+(MAX(AD$60:AD166)))) ->  | AE167: 108 | AF167: 0 | AG167: 0 | AH167: 0 | AI167: 0 | AJ167: 0 | AK167: 0 | AL167: 0 | AM167: 0 | AN167: 0 | AO167: 0 | AQ167: =IF(AND(BC167=""),"",IF(BC167=0,"",1+(MAX(AQ$60:AQ166)))) ->  | AR167: 108 | AS167: 0 | AT167: 0 | AU167: 0 | AV167: 0 | AW167: 0 | AX167: 0 | AY167: 0 | AZ167: 0 | BA167: 0 | BB167: 0 | BD167: =IF(AND(BP167=""),"",IF(BP167=0,"",1+(MAX(BD$60:BD166)))) ->  | BE167: 108 | BF167: 0 | BG167: 0 | BH167: 0 | BI167: 0 | BJ167: 0 | BK167: 0 | BL167: 0 | BM167: 0 | BN167: 0 | BO167: 0 | BQ167: =IF(AND(CC167=""),"",IF(CC167=0,"",1+(MAX(BQ$60:BQ166)))) ->  | BR167: 108 | BS167: 0 | BT167: 0 | BU167: 0 | BV167: 0 | BW167: 0 | BX167: 0 | BY167: 0 | BZ167: 0 | CA167: 0 | CB167: 0 | CD167: =IF(AND(CP167=""),"",IF(CP167=0,"",1+(MAX(CD$60:CD166)))) ->  | CE167: 108 | CF167: 0 | CG167: 0 | CH167: 0 | CI167: 0 | CJ167: 0 | CK167: 0 | CL167: 0 | CM167: 0 | CN167: 0 | CO167: 0 | CQ167: =IF(AND(DC167=""),"",IF(DC167=0,"",1+(MAX(CQ$60:CQ166)))) ->  | CR167: 108 | CS167: 0 | CT167: 0 | CU167: 0 | CV167: 0 | CW167: 0 | CX167: 0 | CY167: 0 | CZ167: 0 | DA167: 0 | DB167: 0
A168: 0 | B168: 0 | C168: 109 | AC168: 1 | AD168: =IF(AND(AP168=""),"",IF(AP168=0,"",1+(MAX(AD$60:AD167)))) ->  | AE168: 109 | AF168: 0 | AG168: 0 | AH168: 0 | AI168: 0 | AJ168: 0 | AK168: 0 | AL168: 0 | AM168: 0 | AN168: 0 | AO168: 0 | AQ168: =IF(AND(BC168=""),"",IF(BC168=0,"",1+(MAX(AQ$60:AQ167)))) ->  | AR168: 109 | AS168: 0 | AT168: 0 | AU168: 0 | AV168: 0 | AW168: 0 | AX168: 0 | AY168: 0 | AZ168: 0 | BA168: 0 | BB168: 0 | BD168: =IF(AND(BP168=""),"",IF(BP168=0,"",1+(MAX(BD$60:BD167)))) ->  | BE168: 109 | BF168: 0 | BG168: 0 | BH168: 0 | BI168: 0 | BJ168: 0 | BK168: 0 | BL168: 0 | BM168: 0 | BN168: 0 | BO168: 0 | BQ168: =IF(AND(CC168=""),"",IF(CC168=0,"",1+(MAX(BQ$60:BQ167)))) ->  | BR168: 109 | BS168: 0 | BT168: 0 | BU168: 0 | BV168: 0 | BW168: 0 | BX168: 0 | BY168: 0 | BZ168: 0 | CA168: 0 | CB168: 0 | CD168: =IF(AND(CP168=""),"",IF(CP168=0,"",1+(MAX(CD$60:CD167)))) ->  | CE168: 109 | CF168: 0 | CG168: 0 | CH168: 0 | CI168: 0 | CJ168: 0 | CK168: 0 | CL168: 0 | CM168: 0 | CN168: 0 | CO168: 0 | CQ168: =IF(AND(DC168=""),"",IF(DC168=0,"",1+(MAX(CQ$60:CQ167)))) ->  | CR168: 109 | CS168: 0 | CT168: 0 | CU168: 0 | CV168: 0 | CW168: 0 | CX168: 0 | CY168: 0 | CZ168: 0 | DA168: 0 | DB168: 0
A169: 0 | B169: 0 | C169: 110 | AC169: 1 | AD169: =IF(AND(AP169=""),"",IF(AP169=0,"",1+(MAX(AD$60:AD168)))) ->  | AE169: 110 | AF169: 0 | AG169: 0 | AH169: 0 | AI169: 0 | AJ169: 0 | AK169: 0 | AL169: 0 | AM169: 0 | AN169: 0 | AO169: 0 | AQ169: =IF(AND(BC169=""),"",IF(BC169=0,"",1+(MAX(AQ$60:AQ168)))) ->  | AR169: 110 | AS169: 0 | AT169: 0 | AU169: 0 | AV169: 0 | AW169: 0 | AX169: 0 | AY169: 0 | AZ169: 0 | BA169: 0 | BB169: 0 | BD169: =IF(AND(BP169=""),"",IF(BP169=0,"",1+(MAX(BD$60:BD168)))) ->  | BE169: 110 | BF169: 0 | BG169: 0 | BH169: 0 | BI169: 0 | BJ169: 0 | BK169: 0 | BL169: 0 | BM169: 0 | BN169: 0 | BO169: 0 | BQ169: =IF(AND(CC169=""),"",IF(CC169=0,"",1+(MAX(BQ$60:BQ168)))) ->  | BR169: 110 | BS169: 0 | BT169: 0 | BU169: 0 | BV169: 0 | BW169: 0 | BX169: 0 | BY169: 0 | BZ169: 0 | CA169: 0 | CB169: 0 | CD169: =IF(AND(CP169=""),"",IF(CP169=0,"",1+(MAX(CD$60:CD168)))) ->  | CE169: 110 | CF169: 0 | CG169: 0 | CH169: 0 | CI169: 0 | CJ169: 0 | CK169: 0 | CL169: 0 | CM169: 0 | CN169: 0 | CO169: 0 | CQ169: =IF(AND(DC169=""),"",IF(DC169=0,"",1+(MAX(CQ$60:CQ168)))) ->  | CR169: 110 | CS169: 0 | CT169: 0 | CU169: 0 | CV169: 0 | CW169: 0 | CX169: 0 | CY169: 0 | CZ169: 0 | DA169: 0 | DB169: 0
A170: 0 | B170: 0 | C170: 111 | AC170: 1 | AD170: =IF(AND(AP170=""),"",IF(AP170=0,"",1+(MAX(AD$60:AD169)))) ->  | AE170: 111 | AF170: 0 | AG170: 0 | AH170: 0 | AI170: 0 | AJ170: 0 | AK170: 0 | AL170: 0 | AM170: 0 | AN170: 0 | AO170: 0 | AQ170: =IF(AND(BC170=""),"",IF(BC170=0,"",1+(MAX(AQ$60:AQ169)))) ->  | AR170: 111 | AS170: 0 | AT170: 0 | AU170: 0 | AV170: 0 | AW170: 0 | AX170: 0 | AY170: 0 | AZ170: 0 | BA170: 0 | BB170: 0 | BD170: =IF(AND(BP170=""),"",IF(BP170=0,"",1+(MAX(BD$60:BD169)))) ->  | BE170: 111 | BF170: 0 | BG170: 0 | BH170: 0 | BI170: 0 | BJ170: 0 | BK170: 0 | BL170: 0 | BM170: 0 | BN170: 0 | BO170: 0 | BQ170: =IF(AND(CC170=""),"",IF(CC170=0,"",1+(MAX(BQ$60:BQ169)))) ->  | BR170: 111 | BS170: 0 | BT170: 0 | BU170: 0 | BV170: 0 | BW170: 0 | BX170: 0 | BY170: 0 | BZ170: 0 | CA170: 0 | CB170: 0 | CD170: =IF(AND(CP170=""),"",IF(CP170=0,"",1+(MAX(CD$60:CD169)))) ->  | CE170: 111 | CF170: 0 | CG170: 0 | CH170: 0 | CI170: 0 | CJ170: 0 | CK170: 0 | CL170: 0 | CM170: 0 | CN170: 0 | CO170: 0 | CQ170: =IF(AND(DC170=""),"",IF(DC170=0,"",1+(MAX(CQ$60:CQ169)))) ->  | CR170: 111 | CS170: 0 | CT170: 0 | CU170: 0 | CV170: 0 | CW170: 0 | CX170: 0 | CY170: 0 | CZ170: 0 | DA170: 0 | DB170: 0
A171: 0 | B171: 0 | C171: 112 | AC171: 1 | AD171: =IF(AND(AP171=""),"",IF(AP171=0,"",1+(MAX(AD$60:AD170)))) ->  | AE171: 112 | AF171: 0 | AG171: 0 | AH171: 0 | AI171: 0 | AJ171: 0 | AK171: 0 | AL171: 0 | AM171: 0 | AN171: 0 | AO171: 0 | AQ171: =IF(AND(BC171=""),"",IF(BC171=0,"",1+(MAX(AQ$60:AQ170)))) ->  | AR171: 112 | AS171: 0 | AT171: 0 | AU171: 0 | AV171: 0 | AW171: 0 | AX171: 0 | AY171: 0 | AZ171: 0 | BA171: 0 | BB171: 0 | BD171: =IF(AND(BP171=""),"",IF(BP171=0,"",1+(MAX(BD$60:BD170)))) ->  | BE171: 112 | BF171: 0 | BG171: 0 | BH171: 0 | BI171: 0 | BJ171: 0 | BK171: 0 | BL171: 0 | BM171: 0 | BN171: 0 | BO171: 0 | BQ171: =IF(AND(CC171=""),"",IF(CC171=0,"",1+(MAX(BQ$60:BQ170)))) ->  | BR171: 112 | BS171: 0 | BT171: 0 | BU171: 0 | BV171: 0 | BW171: 0 | BX171: 0 | BY171: 0 | BZ171: 0 | CA171: 0 | CB171: 0 | CD171: =IF(AND(CP171=""),"",IF(CP171=0,"",1+(MAX(CD$60:CD170)))) ->  | CE171: 112 | CF171: 0 | CG171: 0 | CH171: 0 | CI171: 0 | CJ171: 0 | CK171: 0 | CL171: 0 | CM171: 0 | CN171: 0 | CO171: 0 | CQ171: =IF(AND(DC171=""),"",IF(DC171=0,"",1+(MAX(CQ$60:CQ170)))) ->  | CR171: 112 | CS171: 0 | CT171: 0 | CU171: 0 | CV171: 0 | CW171: 0 | CX171: 0 | CY171: 0 | CZ171: 0 | DA171: 0 | DB171: 0
A172: 0 | B172: 0 | C172: 113 | AC172: 1 | AD172: =IF(AND(AP172=""),"",IF(AP172=0,"",1+(MAX(AD$60:AD171)))) ->  | AE172: 113 | AF172: 0 | AG172: 0 | AH172: 0 | AI172: 0 | AJ172: 0 | AK172: 0 | AL172: 0 | AM172: 0 | AN172: 0 | AO172: 0 | AQ172: =IF(AND(BC172=""),"",IF(BC172=0,"",1+(MAX(AQ$60:AQ171)))) ->  | AR172: 113 | AS172: 0 | AT172: 0 | AU172: 0 | AV172: 0 | AW172: 0 | AX172: 0 | AY172: 0 | AZ172: 0 | BA172: 0 | BB172: 0 | BD172: =IF(AND(BP172=""),"",IF(BP172=0,"",1+(MAX(BD$60:BD171)))) ->  | BE172: 113 | BF172: 0 | BG172: 0 | BH172: 0 | BI172: 0 | BJ172: 0 | BK172: 0 | BL172: 0 | BM172: 0 | BN172: 0 | BO172: 0 | BQ172: =IF(AND(CC172=""),"",IF(CC172=0,"",1+(MAX(BQ$60:BQ171)))) ->  | BR172: 113 | BS172: 0 | BT172: 0 | BU172: 0 | BV172: 0 | BW172: 0 | BX172: 0 | BY172: 0 | BZ172: 0 | CA172: 0 | CB172: 0 | CD172: =IF(AND(CP172=""),"",IF(CP172=0,"",1+(MAX(CD$60:CD171)))) ->  | CE172: 113 | CF172: 0 | CG172: 0 | CH172: 0 | CI172: 0 | CJ172: 0 | CK172: 0 | CL172: 0 | CM172: 0 | CN172: 0 | CO172: 0 | CQ172: =IF(AND(DC172=""),"",IF(DC172=0,"",1+(MAX(CQ$60:CQ171)))) ->  | CR172: 113 | CS172: 0 | CT172: 0 | CU172: 0 | CV172: 0 | CW172: 0 | CX172: 0 | CY172: 0 | CZ172: 0 | DA172: 0 | DB172: 0
A173: 0 | B173: 0 | C173: 114 | AC173: 1 | AD173: =IF(AND(AP173=""),"",IF(AP173=0,"",1+(MAX(AD$60:AD172)))) ->  | AE173: 114 | AF173: 0 | AG173: 0 | AH173: 0 | AI173: 0 | AJ173: 0 | AK173: 0 | AL173: 0 | AM173: 0 | AN173: 0 | AO173: 0 | AQ173: =IF(AND(BC173=""),"",IF(BC173=0,"",1+(MAX(AQ$60:AQ172)))) ->  | AR173: 114 | AS173: 0 | AT173: 0 | AU173: 0 | AV173: 0 | AW173: 0 | AX173: 0 | AY173: 0 | AZ173: 0 | BA173: 0 | BB173: 0 | BD173: =IF(AND(BP173=""),"",IF(BP173=0,"",1+(MAX(BD$60:BD172)))) ->  | BE173: 114 | BF173: 0 | BG173: 0 | BH173: 0 | BI173: 0 | BJ173: 0 | BK173: 0 | BL173: 0 | BM173: 0 | BN173: 0 | BO173: 0 | BQ173: =IF(AND(CC173=""),"",IF(CC173=0,"",1+(MAX(BQ$60:BQ172)))) ->  | BR173: 114 | BS173: 0 | BT173: 0 | BU173: 0 | BV173: 0 | BW173: 0 | BX173: 0 | BY173: 0 | BZ173: 0 | CA173: 0 | CB173: 0 | CD173: =IF(AND(CP173=""),"",IF(CP173=0,"",1+(MAX(CD$60:CD172)))) ->  | CE173: 114 | CF173: 0 | CG173: 0 | CH173: 0 | CI173: 0 | CJ173: 0 | CK173: 0 | CL173: 0 | CM173: 0 | CN173: 0 | CO173: 0 | CQ173: =IF(AND(DC173=""),"",IF(DC173=0,"",1+(MAX(CQ$60:CQ172)))) ->  | CR173: 114 | CS173: 0 | CT173: 0 | CU173: 0 | CV173: 0 | CW173: 0 | CX173: 0 | CY173: 0 | CZ173: 0 | DA173: 0 | DB173: 0
A174: 0 | B174: 0 | C174: 115 | AC174: 1 | AD174: =IF(AND(AP174=""),"",IF(AP174=0,"",1+(MAX(AD$60:AD173)))) ->  | AE174: 115 | AF174: 0 | AG174: 0 | AH174: 0 | AI174: 0 | AJ174: 0 | AK174: 0 | AL174: 0 | AM174: 0 | AN174: 0 | AO174: 0 | AQ174: =IF(AND(BC174=""),"",IF(BC174=0,"",1+(MAX(AQ$60:AQ173)))) ->  | AR174: 115 | AS174: 0 | AT174: 0 | AU174: 0 | AV174: 0 | AW174: 0 | AX174: 0 | AY174: 0 | AZ174: 0 | BA174: 0 | BB174: 0 | BD174: =IF(AND(BP174=""),"",IF(BP174=0,"",1+(MAX(BD$60:BD173)))) ->  | BE174: 115 | BF174: 0 | BG174: 0 | BH174: 0 | BI174: 0 | BJ174: 0 | BK174: 0 | BL174: 0 | BM174: 0 | BN174: 0 | BO174: 0 | BQ174: =IF(AND(CC174=""),"",IF(CC174=0,"",1+(MAX(BQ$60:BQ173)))) ->  | BR174: 115 | BS174: 0 | BT174: 0 | BU174: 0 | BV174: 0 | BW174: 0 | BX174: 0 | BY174: 0 | BZ174: 0 | CA174: 0 | CB174: 0 | CD174: =IF(AND(CP174=""),"",IF(CP174=0,"",1+(MAX(CD$60:CD173)))) ->  | CE174: 115 | CF174: 0 | CG174: 0 | CH174: 0 | CI174: 0 | CJ174: 0 | CK174: 0 | CL174: 0 | CM174: 0 | CN174: 0 | CO174: 0 | CQ174: =IF(AND(DC174=""),"",IF(DC174=0,"",1+(MAX(CQ$60:CQ173)))) ->  | CR174: 115 | CS174: 0 | CT174: 0 | CU174: 0 | CV174: 0 | CW174: 0 | CX174: 0 | CY174: 0 | CZ174: 0 | DA174: 0 | DB174: 0
A175: 0 | B175: 0 | C175: 116 | AC175: 1 | AD175: =IF(AND(AP175=""),"",IF(AP175=0,"",1+(MAX(AD$60:AD174)))) ->  | AE175: 116 | AF175: 0 | AG175: 0 | AH175: 0 | AI175: 0 | AJ175: 0 | AK175: 0 | AL175: 0 | AM175: 0 | AN175: 0 | AO175: 0 | AQ175: =IF(AND(BC175=""),"",IF(BC175=0,"",1+(MAX(AQ$60:AQ174)))) ->  | AR175: 116 | AS175: 0 | AT175: 0 | AU175: 0 | AV175: 0 | AW175: 0 | AX175: 0 | AY175: 0 | AZ175: 0 | BA175: 0 | BB175: 0 | BD175: =IF(AND(BP175=""),"",IF(BP175=0,"",1+(MAX(BD$60:BD174)))) ->  | BE175: 116 | BF175: 0 | BG175: 0 | BH175: 0 | BI175: 0 | BJ175: 0 | BK175: 0 | BL175: 0 | BM175: 0 | BN175: 0 | BO175: 0 | BQ175: =IF(AND(CC175=""),"",IF(CC175=0,"",1+(MAX(BQ$60:BQ174)))) ->  | BR175: 116 | BS175: 0 | BT175: 0 | BU175: 0 | BV175: 0 | BW175: 0 | BX175: 0 | BY175: 0 | BZ175: 0 | CA175: 0 | CB175: 0 | CD175: =IF(AND(CP175=""),"",IF(CP175=0,"",1+(MAX(CD$60:CD174)))) ->  | CE175: 116 | CF175: 0 | CG175: 0 | CH175: 0 | CI175: 0 | CJ175: 0 | CK175: 0 | CL175: 0 | CM175: 0 | CN175: 0 | CO175: 0 | CQ175: =IF(AND(DC175=""),"",IF(DC175=0,"",1+(MAX(CQ$60:CQ174)))) ->  | CR175: 116 | CS175: 0 | CT175: 0 | CU175: 0 | CV175: 0 | CW175: 0 | CX175: 0 | CY175: 0 | CZ175: 0 | DA175: 0 | DB175: 0
A176: 0 | B176: 0 | C176: 117 | AC176: 1 | AD176: =IF(AND(AP176=""),"",IF(AP176=0,"",1+(MAX(AD$60:AD175)))) ->  | AE176: 117 | AF176: 0 | AG176: 0 | AH176: 0 | AI176: 0 | AJ176: 0 | AK176: 0 | AL176: 0 | AM176: 0 | AN176: 0 | AO176: 0 | AQ176: =IF(AND(BC176=""),"",IF(BC176=0,"",1+(MAX(AQ$60:AQ175)))) ->  | AR176: 117 | AS176: 0 | AT176: 0 | AU176: 0 | AV176: 0 | AW176: 0 | AX176: 0 | AY176: 0 | AZ176: 0 | BA176: 0 | BB176: 0 | BD176: =IF(AND(BP176=""),"",IF(BP176=0,"",1+(MAX(BD$60:BD175)))) ->  | BE176: 117 | BF176: 0 | BG176: 0 | BH176: 0 | BI176: 0 | BJ176: 0 | BK176: 0 | BL176: 0 | BM176: 0 | BN176: 0 | BO176: 0 | BQ176: =IF(AND(CC176=""),"",IF(CC176=0,"",1+(MAX(BQ$60:BQ175)))) ->  | BR176: 117 | BS176: 0 | BT176: 0 | BU176: 0 | BV176: 0 | BW176: 0 | BX176: 0 | BY176: 0 | BZ176: 0 | CA176: 0 | CB176: 0 | CD176: =IF(AND(CP176=""),"",IF(CP176=0,"",1+(MAX(CD$60:CD175)))) ->  | CE176: 117 | CF176: 0 | CG176: 0 | CH176: 0 | CI176: 0 | CJ176: 0 | CK176: 0 | CL176: 0 | CM176: 0 | CN176: 0 | CO176: 0 | CQ176: =IF(AND(DC176=""),"",IF(DC176=0,"",1+(MAX(CQ$60:CQ175)))) ->  | CR176: 117 | CS176: 0 | CT176: 0 | CU176: 0 | CV176: 0 | CW176: 0 | CX176: 0 | CY176: 0 | CZ176: 0 | DA176: 0 | DB176: 0
A177: 0 | B177: 0 | C177: 118 | AC177: 1 | AD177: =IF(AND(AP177=""),"",IF(AP177=0,"",1+(MAX(AD$60:AD176)))) ->  | AE177: 118 | AF177: 0 | AG177: 0 | AH177: 0 | AI177: 0 | AJ177: 0 | AK177: 0 | AL177: 0 | AM177: 0 | AN177: 0 | AO177: 0 | AQ177: =IF(AND(BC177=""),"",IF(BC177=0,"",1+(MAX(AQ$60:AQ176)))) ->  | AR177: 118 | AS177: 0 | AT177: 0 | AU177: 0 | AV177: 0 | AW177: 0 | AX177: 0 | AY177: 0 | AZ177: 0 | BA177: 0 | BB177: 0 | BD177: =IF(AND(BP177=""),"",IF(BP177=0,"",1+(MAX(BD$60:BD176)))) ->  | BE177: 118 | BF177: 0 | BG177: 0 | BH177: 0 | BI177: 0 | BJ177: 0 | BK177: 0 | BL177: 0 | BM177: 0 | BN177: 0 | BO177: 0 | BQ177: =IF(AND(CC177=""),"",IF(CC177=0,"",1+(MAX(BQ$60:BQ176)))) ->  | BR177: 118 | BS177: 0 | BT177: 0 | BU177: 0 | BV177: 0 | BW177: 0 | BX177: 0 | BY177: 0 | BZ177: 0 | CA177: 0 | CB177: 0 | CD177: =IF(AND(CP177=""),"",IF(CP177=0,"",1+(MAX(CD$60:CD176)))) ->  | CE177: 118 | CF177: 0 | CG177: 0 | CH177: 0 | CI177: 0 | CJ177: 0 | CK177: 0 | CL177: 0 | CM177: 0 | CN177: 0 | CO177: 0 | CQ177: =IF(AND(DC177=""),"",IF(DC177=0,"",1+(MAX(CQ$60:CQ176)))) ->  | CR177: 118 | CS177: =IF($M177="NON GAZETTED - SANVIDA",D177,0) -> 0 | CT177: 0 | CU177: 0 | CV177: 0 | CW177: 0 | CX177: 0 | CY177: 0 | CZ177: 0 | DA177: 0 | DB177: 0
A178: 0 | B178: 0 | C178: 119 | AC178: 1 | AD178: =IF(AND(AP178=""),"",IF(AP178=0,"",1+(MAX(AD$60:AD177)))) ->  | AE178: 119 | AF178: 0 | AG178: 0 | AH178: 0 | AI178: 0 | AJ178: 0 | AK178: 0 | AL178: 0 | AM178: 0 | AN178: 0 | AO178: 0 | AQ178: =IF(AND(BC178=""),"",IF(BC178=0,"",1+(MAX(AQ$60:AQ177)))) ->  | AR178: 119 | AS178: 0 | AT178: 0 | AU178: 0 | AV178: 0 | AW178: 0 | AX178: 0 | AY178: 0 | AZ178: 0 | BA178: 0 | BB178: 0 | BD178: =IF(AND(BP178=""),"",IF(BP178=0,"",1+(MAX(BD$60:BD177)))) ->  | BE178: 119 | BF178: 0 | BG178: 0 | BH178: 0 | BI178: 0 | BJ178: 0 | BK178: 0 | BL178: 0 | BM178: 0 | BN178: 0 | BO178: 0 | BQ178: =IF(AND(CC178=""),"",IF(CC178=0,"",1+(MAX(BQ$60:BQ177)))) ->  | BR178: 119 | BS178: 0 | BT178: 0 | BU178: 0 | BV178: 0 | BW178: 0 | BX178: 0 | BY178: 0 | BZ178: 0 | CA178: 0 | CB178: 0 | CD178: =IF(AND(CP178=""),"",IF(CP178=0,"",1+(MAX(CD$60:CD177)))) ->  | CE178: 119 | CF178: 0 | CG178: 0 | CH178: 0 | CI178: 0 | CJ178: 0 | CK178: 0 | CL178: 0 | CM178: 0 | CN178: 0 | CO178: 0 | CQ178: =IF(AND(DC178=""),"",IF(DC178=0,"",1+(MAX(CQ$60:CQ177)))) ->  | CR178: 119 | CS178: 0 | CT178: 0 | CU178: 0 | CV178: 0 | CW178: 0 | CX178: 0 | CY178: 0 | CZ178: 0 | DA178: 0 | DB178: 0
A179: 0 | B179: 0 | C179: 120 | AC179: 1 | AD179: =IF(AND(AP179=""),"",IF(AP179=0,"",1+(MAX(AD$60:AD178)))) ->  | AE179: 120 | AF179: 0 | AG179: 0 | AH179: 0 | AI179: 0 | AJ179: 0 | AK179: 0 | AL179: 0 | AM179: 0 | AN179: 0 | AO179: 0 | AQ179: =IF(AND(BC179=""),"",IF(BC179=0,"",1+(MAX(AQ$60:AQ178)))) ->  | AR179: 120 | AS179: 0 | AT179: 0 | AU179: 0 | AV179: 0 | AW179: 0 | AX179: 0 | AY179: 0 | AZ179: 0 | BA179: 0 | BB179: 0 | BD179: =IF(AND(BP179=""),"",IF(BP179=0,"",1+(MAX(BD$60:BD178)))) ->  | BE179: 120 | BF179: 0 | BG179: 0 | BH179: 0 | BI179: 0 | BJ179: 0 | BK179: 0 | BL179: 0 | BM179: 0 | BN179: 0 | BO179: 0 | BQ179: =IF(AND(CC179=""),"",IF(CC179=0,"",1+(MAX(BQ$60:BQ178)))) ->  | BR179: 120 | BS179: 0 | BT179: 0 | BU179: 0 | BV179: 0 | BW179: 0 | BX179: 0 | BY179: 0 | BZ179: 0 | CA179: 0 | CB179: 0 | CD179: =IF(AND(CP179=""),"",IF(CP179=0,"",1+(MAX(CD$60:CD178)))) ->  | CE179: 120 | CF179: 0 | CG179: 0 | CH179: 0 | CI179: 0 | CJ179: 0 | CK179: 0 | CL179: 0 | CM179: 0 | CN179: 0 | CO179: 0 | CQ179: =IF(AND(DC179=""),"",IF(DC179=0,"",1+(MAX(CQ$60:CQ178)))) ->  | CR179: 120 | CS179: 0 | CT179: 0 | CU179: 0 | CV179: 0 | CW179: 0 | CX179: 0 | CY179: 0 | CZ179: 0 | DA179: 0 | DB179: 0
A180: 0 | B180: 0 | C180: 121 | AC180: 1 | AD180: =IF(AND(AP180=""),"",IF(AP180=0,"",1+(MAX(AD$60:AD179)))) ->  | AE180: 121 | AF180: 0 | AG180: 0 | AH180: 0 | AI180: 0 | AJ180: 0 | AK180: 0 | AL180: 0 | AM180: 0 | AN180: =IF($M180="GAZETTED - REGULAR",L180,0) -> 0 | AO180: 0 | AQ180: =IF(AND(BC180=""),"",IF(BC180=0,"",1+(MAX(AQ$60:AQ179)))) ->  | AR180: 121 | AS180: 0 | AT180: 0 | AU180: 0 | AV180: 0 | AW180: 0 | AX180: 0 | AY180: 0 | AZ180: 0 | BA180: 0 | BB180: 0 | BD180: =IF(AND(BP180=""),"",IF(BP180=0,"",1+(MAX(BD$60:BD179)))) ->  | BE180: 121 | BF180: 0 | BG180: 0 | BH180: 0 | BI180: 0 | BJ180: 0 | BK180: 0 | BL180: 0 | BM180: 0 | BN180: 0 | BO180: 0 | BQ180: =IF(AND(CC180=""),"",IF(CC180=0,"",1+(MAX(BQ$60:BQ179)))) ->  | BR180: 121 | BS180: 0 | BT180: 0 | BU180: 0 | BV180: 0 | BW180: 0 | BX180: 0 | BY180: 0 | BZ180: 0 | CA180: 0 | CB180: 0 | CD180: =IF(AND(CP180=""),"",IF(CP180=0,"",1+(MAX(CD$60:CD179)))) ->  | CE180: 121 | CF180: 0 | CG180: 0 | CH180: 0 | CI180: 0 | CJ180: 0 | CK180: 0 | CL180: 0 | CM180: 0 | CN180: 0 | CO180: 0 | CQ180: =IF(AND(DC180=""),"",IF(DC180=0,"",1+(MAX(CQ$60:CQ179)))) ->  | CR180: 121 | CS180: 0 | CT180: 0 | CU180: 0 | CV180: 0 | CW180: 0 | CX180: 0 | CY180: 0 | CZ180: 0 | DA180: 0 | DB180: 0
A181: 0 | B181: 0 | C181: 122 | AC181: 1 | AD181: =IF(AND(AP181=""),"",IF(AP181=0,"",1+(MAX(AD$60:AD180)))) ->  | AE181: 122 | AF181: 0 | AG181: 0 | AH181: 0 | AI181: 0 | AJ181: 0 | AK181: 0 | AL181: 0 | AM181: 0 | AN181: 0 | AO181: 0 | AQ181: =IF(AND(BC181=""),"",IF(BC181=0,"",1+(MAX(AQ$60:AQ180)))) ->  | AR181: 122 | AS181: 0 | AT181: 0 | AU181: 0 | AV181: 0 | AW181: 0 | AX181: 0 | AY181: 0 | AZ181: 0 | BA181: 0 | BB181: 0 | BD181: =IF(AND(BP181=""),"",IF(BP181=0,"",1+(MAX(BD$60:BD180)))) ->  | BE181: 122 | BF181: 0 | BG181: 0 | BH181: 0 | BI181: 0 | BJ181: 0 | BK181: 0 | BL181: 0 | BM181: 0 | BN181: 0 | BO181: 0 | BQ181: =IF(AND(CC181=""),"",IF(CC181=0,"",1+(MAX(BQ$60:BQ180)))) ->  | BR181: 122 | BS181: 0 | BT181: 0 | BU181: 0 | BV181: 0 | BW181: 0 | BX181: 0 | BY181: 0 | BZ181: 0 | CA181: 0 | CB181: 0 | CD181: =IF(AND(CP181=""),"",IF(CP181=0,"",1+(MAX(CD$60:CD180)))) ->  | CE181: 122 | CF181: 0 | CG181: 0 | CH181: 0 | CI181: 0 | CJ181: 0 | CK181: 0 | CL181: 0 | CM181: 0 | CN181: 0 | CO181: 0 | CQ181: =IF(AND(DC181=""),"",IF(DC181=0,"",1+(MAX(CQ$60:CQ180)))) ->  | CR181: 122 | CS181: 0 | CT181: 0 | CU181: 0 | CV181: 0 | CW181: 0 | CX181: 0 | CY181: 0 | CZ181: 0 | DA181: 0 | DB181: 0
A182: 0 | B182: 0 | C182: 123 | AC182: 1 | AD182: =IF(AND(AP182=""),"",IF(AP182=0,"",1+(MAX(AD$60:AD181)))) ->  | AE182: 123 | AF182: 0 | AG182: 0 | AH182: 0 | AI182: 0 | AJ182: 0 | AK182: 0 | AL182: 0 | AM182: 0 | AN182: 0 | AO182: 0 | AQ182: =IF(AND(BC182=""),"",IF(BC182=0,"",1+(MAX(AQ$60:AQ181)))) ->  | AR182: 123 | AS182: 0 | AT182: 0 | AU182: 0 | AV182: 0 | AW182: 0 | AX182: 0 | AY182: 0 | AZ182: 0 | BA182: 0 | BB182: 0 | BD182: =IF(AND(BP182=""),"",IF(BP182=0,"",1+(MAX(BD$60:BD181)))) ->  | BE182: 123 | BF182: 0 | BG182: 0 | BH182: 0 | BI182: 0 | BJ182: 0 | BK182: 0 | BL182: 0 | BM182: 0 | BN182: 0 | BO182: 0 | BQ182: =IF(AND(CC182=""),"",IF(CC182=0,"",1+(MAX(BQ$60:BQ181)))) ->  | BR182: 123 | BS182: 0 | BT182: 0 | BU182: 0 | BV182: 0 | BW182: 0 | BX182: 0 | BY182: 0 | BZ182: 0 | CA182: 0 | CB182: 0 | CD182: =IF(AND(CP182=""),"",IF(CP182=0,"",1+(MAX(CD$60:CD181)))) ->  | CE182: 123 | CF182: 0 | CG182: 0 | CH182: 0 | CI182: 0 | CJ182: 0 | CK182: 0 | CL182: 0 | CM182: 0 | CN182: 0 | CO182: 0 | CQ182: =IF(AND(DC182=""),"",IF(DC182=0,"",1+(MAX(CQ$60:CQ181)))) ->  | CR182: 123 | CS182: 0 | CT182: 0 | CU182: 0 | CV182: 0 | CW182: 0 | CX182: 0 | CY182: 0 | CZ182: 0 | DA182: 0 | DB182: 0
A183: 0 | B183: 0 | C183: 124 | AC183: 1 | AD183: =IF(AND(AP183=""),"",IF(AP183=0,"",1+(MAX(AD$60:AD182)))) ->  | AE183: 124 | AF183: 0 | AG183: 0 | AH183: 0 | AI183: 0 | AJ183: 0 | AK183: 0 | AL183: 0 | AM183: 0 | AN183: 0 | AO183: 0 | AQ183: =IF(AND(BC183=""),"",IF(BC183=0,"",1+(MAX(AQ$60:AQ182)))) ->  | AR183: 124 | AS183: 0 | AT183: 0 | AU183: 0 | AV183: 0 | AW183: 0 | AX183: 0 | AY183: 0 | AZ183: 0 | BA183: 0 | BB183: 0 | BD183: =IF(AND(BP183=""),"",IF(BP183=0,"",1+(MAX(BD$60:BD182)))) ->  | BE183: 124 | BF183: 0 | BG183: 0 | BH183: 0 | BI183: 0 | BJ183: 0 | BK183: 0 | BL183: 0 | BM183: 0 | BN183: 0 | BO183: 0 | BQ183: =IF(AND(CC183=""),"",IF(CC183=0,"",1+(MAX(BQ$60:BQ182)))) ->  | BR183: 124 | BS183: 0 | BT183: 0 | BU183: 0 | BV183: 0 | BW183: 0 | BX183: 0 | BY183: 0 | BZ183: 0 | CA183: 0 | CB183: 0 | CD183: =IF(AND(CP183=""),"",IF(CP183=0,"",1+(MAX(CD$60:CD182)))) ->  | CE183: 124 | CF183: 0 | CG183: 0 | CH183: 0 | CI183: 0 | CJ183: 0 | CK183: 0 | CL183: 0 | CM183: 0 | CN183: 0 | CO183: 0 | CQ183: =IF(AND(DC183=""),"",IF(DC183=0,"",1+(MAX(CQ$60:CQ182)))) ->  | CR183: 124 | CS183: 0 | CT183: 0 | CU183: 0 | CV183: 0 | CW183: 0 | CX183: 0 | CY183: 0 | CZ183: 0 | DA183: 0 | DB183: 0
A184: 0 | B184: 0 | C184: 125 | AC184: 1 | AD184: =IF(AND(AP184=""),"",IF(AP184=0,"",1+(MAX(AD$60:AD183)))) ->  | AE184: 125 | AF184: 0 | AG184: 0 | AH184: 0 | AI184: 0 | AJ184: 0 | AK184: 0 | AL184: 0 | AM184: 0 | AN184: 0 | AO184: 0 | AQ184: =IF(AND(BC184=""),"",IF(BC184=0,"",1+(MAX(AQ$60:AQ183)))) ->  | AR184: 125 | AS184: 0 | AT184: 0 | AU184: 0 | AV184: 0 | AW184: 0 | AX184: 0 | AY184: 0 | AZ184: 0 | BA184: 0 | BB184: 0 | BD184: =IF(AND(BP184=""),"",IF(BP184=0,"",1+(MAX(BD$60:BD183)))) ->  | BE184: 125 | BF184: 0 | BG184: 0 | BH184: 0 | BI184: 0 | BJ184: 0 | BK184: 0 | BL184: 0 | BM184: 0 | BN184: 0 | BO184: 0 | BQ184: =IF(AND(CC184=""),"",IF(CC184=0,"",1+(MAX(BQ$60:BQ183)))) ->  | BR184: 125 | BS184: 0 | BT184: 0 | BU184: 0 | BV184: 0 | BW184: 0 | BX184: 0 | BY184: 0 | BZ184: 0 | CA184: 0 | CB184: 0 | CD184: =IF(AND(CP184=""),"",IF(CP184=0,"",1+(MAX(CD$60:CD183)))) ->  | CE184: 125 | CF184: 0 | CG184: 0 | CH184: 0 | CI184: 0 | CJ184: 0 | CK184: 0 | CL184: 0 | CM184: 0 | CN184: 0 | CO184: 0 | CQ184: =IF(AND(DC184=""),"",IF(DC184=0,"",1+(MAX(CQ$60:CQ183)))) ->  | CR184: 125 | CS184: 0 | CT184: 0 | CU184: 0 | CV184: 0 | CW184: 0 | CX184: 0 | CY184: 0 | CZ184: 0 | DA184: 0 | DB184: 0
A185: 0 | B185: 0 | C185: 126 | AC185: 1 | AD185: =IF(AND(AP185=""),"",IF(AP185=0,"",1+(MAX(AD$60:AD184)))) ->  | AE185: 126 | AF185: 0 | AG185: 0 | AH185: 0 | AI185: 0 | AJ185: 0 | AK185: 0 | AL185: 0 | AM185: 0 | AN185: 0 | AO185: 0 | AQ185: =IF(AND(BC185=""),"",IF(BC185=0,"",1+(MAX(AQ$60:AQ184)))) ->  | AR185: 126 | AS185: 0 | AT185: 0 | AU185: 0 | AV185: 0 | AW185: 0 | AX185: 0 | AY185: 0 | AZ185: 0 | BA185: 0 | BB185: 0 | BD185: =IF(AND(BP185=""),"",IF(BP185=0,"",1+(MAX(BD$60:BD184)))) ->  | BE185: 126 | BF185: 0 | BG185: 0 | BH185: 0 | BI185: 0 | BJ185: 0 | BK185: 0 | BL185: 0 | BM185: 0 | BN185: 0 | BO185: 0 | BQ185: =IF(AND(CC185=""),"",IF(CC185=0,"",1+(MAX(BQ$60:BQ184)))) ->  | BR185: 126 | BS185: 0 | BT185: 0 | BU185: 0 | BV185: 0 | BW185: 0 | BX185: 0 | BY185: 0 | BZ185: 0 | CA185: 0 | CB185: 0 | CD185: =IF(AND(CP185=""),"",IF(CP185=0,"",1+(MAX(CD$60:CD184)))) ->  | CE185: 126 | CF185: 0 | CG185: 0 | CH185: 0 | CI185: 0 | CJ185: 0 | CK185: 0 | CL185: 0 | CM185: 0 | CN185: 0 | CO185: 0 | CQ185: =IF(AND(DC185=""),"",IF(DC185=0,"",1+(MAX(CQ$60:CQ184)))) ->  | CR185: 126 | CS185: 0 | CT185: 0 | CU185: 0 | CV185: 0 | CW185: 0 | CX185: 0 | CY185: 0 | CZ185: 0 | DA185: 0 | DB185: 0
A186: 0 | B186: 0 | C186: 127 | AC186: 1 | AD186: =IF(AND(AP186=""),"",IF(AP186=0,"",1+(MAX(AD$60:AD185)))) ->  | AE186: 127 | AF186: 0 | AG186: 0 | AH186: 0 | AI186: 0 | AJ186: 0 | AK186: 0 | AL186: 0 | AM186: 0 | AN186: 0 | AO186: 0 | AQ186: =IF(AND(BC186=""),"",IF(BC186=0,"",1+(MAX(AQ$60:AQ185)))) ->  | AR186: 127 | AS186: 0 | AT186: 0 | AU186: 0 | AV186: 0 | AW186: 0 | AX186: 0 | AY186: 0 | AZ186: 0 | BA186: 0 | BB186: 0 | BD186: =IF(AND(BP186=""),"",IF(BP186=0,"",1+(MAX(BD$60:BD185)))) ->  | BE186: 127 | BF186: 0 | BG186: 0 | BH186: 0 | BI186: 0 | BJ186: 0 | BK186: 0 | BL186: 0 | BM186: 0 | BN186: 0 | BO186: 0 | BQ186: =IF(AND(CC186=""),"",IF(CC186=0,"",1+(MAX(BQ$60:BQ185)))) ->  | BR186: 127 | BS186: 0 | BT186: 0 | BU186: 0 | BV186: 0 | BW186: 0 | BX186: 0 | BY186: 0 | BZ186: 0 | CA186: 0 | CB186: 0 | CD186: =IF(AND(CP186=""),"",IF(CP186=0,"",1+(MAX(CD$60:CD185)))) ->  | CE186: 127 | CF186: 0 | CG186: 0 | CH186: 0 | CI186: 0 | CJ186: 0 | CK186: 0 | CL186: 0 | CM186: 0 | CN186: 0 | CO186: 0 | CQ186: =IF(AND(DC186=""),"",IF(DC186=0,"",1+(MAX(CQ$60:CQ185)))) ->  | CR186: 127 | CS186: 0 | CT186: 0 | CU186: 0 | CV186: 0 | CW186: 0 | CX186: 0 | CY186: 0 | CZ186: 0 | DA186: 0 | DB186: 0
A187: 0 | B187: 0 | C187: 128 | AC187: 1 | AD187: =IF(AND(AP187=""),"",IF(AP187=0,"",1+(MAX(AD$60:AD186)))) ->  | AE187: 128 | AF187: 0 | AG187: 0 | AH187: 0 | AI187: 0 | AJ187: 0 | AK187: 0 | AL187: 0 | AM187: 0 | AN187: 0 | AO187: 0 | AQ187: =IF(AND(BC187=""),"",IF(BC187=0,"",1+(MAX(AQ$60:AQ186)))) ->  | AR187: 128 | AS187: 0 | AT187: 0 | AU187: 0 | AV187: 0 | AW187: 0 | AX187: 0 | AY187: 0 | AZ187: 0 | BA187: 0 | BB187: 0 | BD187: =IF(AND(BP187=""),"",IF(BP187=0,"",1+(MAX(BD$60:BD186)))) ->  | BE187: 128 | BF187: 0 | BG187: 0 | BH187: 0 | BI187: 0 | BJ187: 0 | BK187: 0 | BL187: 0 | BM187: 0 | BN187: 0 | BO187: 0 | BQ187: =IF(AND(CC187=""),"",IF(CC187=0,"",1+(MAX(BQ$60:BQ186)))) ->  | BR187: 128 | BS187: 0 | BT187: 0 | BU187: 0 | BV187: 0 | BW187: 0 | BX187: 0 | BY187: 0 | BZ187: 0 | CA187: 0 | CB187: 0 | CD187: =IF(AND(CP187=""),"",IF(CP187=0,"",1+(MAX(CD$60:CD186)))) ->  | CE187: 128 | CF187: 0 | CG187: 0 | CH187: 0 | CI187: 0 | CJ187: 0 | CK187: 0 | CL187: 0 | CM187: 0 | CN187: 0 | CO187: 0 | CQ187: =IF(AND(DC187=""),"",IF(DC187=0,"",1+(MAX(CQ$60:CQ186)))) ->  | CR187: 128 | CS187: 0 | CT187: 0 | CU187: 0 | CV187: 0 | CW187: 0 | CX187: 0 | CY187: 0 | CZ187: 0 | DA187: 0 | DB187: 0
A188: 0 | B188: 0 | C188: 129 | AC188: 1 | AD188: =IF(AND(AP188=""),"",IF(AP188=0,"",1+(MAX(AD$60:AD187)))) ->  | AE188: 129 | AF188: 0 | AG188: 0 | AH188: 0 | AI188: 0 | AJ188: 0 | AK188: 0 | AL188: 0 | AM188: 0 | AN188: 0 | AO188: 0 | AP188: =IF(AND(M188=""),"",IF(M188=AF$58,1,0)) ->  | AQ188: =IF(AND(BC188=""),"",IF(BC188=0,"",1+(MAX(AQ$60:AQ187)))) ->  | AR188: 129 | AS188: 0 | AT188: 0 | AU188: 0 | AV188: 0 | AW188: 0 | AX188: 0 | AY188: 0 | AZ188: 0 | BA188: 0 | BB188: 0 | BC188: =IF(AND(M188=""),"",IF(M188=AS$58,1,0)) ->  | BD188: =IF(AND(BP188=""),"",IF(BP188=0,"",1+(MAX(BD$60:BD187)))) ->  | BE188: 129 | BF188: 0 | BG188: 0 | BH188: 0 | BI188: 0 | BJ188: 0 | BK188: 0 | BL188: 0 | BM188: 0 | BN188: 0 | BO188: 0 | BP188: =IF(AND(M188=""),"",IF(M188=BF$58,1,0)) ->  | BQ188: =IF(AND(CC188=""),"",IF(CC188=0,"",1+(MAX(BQ$60:BQ187)))) ->  | BR188: 129 | BS188: 0 | BT188: 0 | BU188: 0 | BV188: 0 | BW188: 0 | BX188: 0 | BY188: 0 | BZ188: 0 | CA188: 0 | CB188: 0 | CC188: =IF(AND(M188=""),"",IF(M188=BS$58,1,0)) ->  | CD188: =IF(AND(CP188=""),"",IF(CP188=0,"",1+(MAX(CD$60:CD187)))) ->  | CE188: 129 | CF188: 0 | CG188: 0 | CH188: 0 | CI188: 0 | CJ188: 0 | CK188: 0 | CL188: 0 | CM188: 0 | CN188: 0 | CO188: 0 | CP188: =IF(AND(M188=""),"",IF(M188=CF$58,1,0)) ->  | CQ188: =IF(AND(DC188=""),"",IF(DC188=0,"",1+(MAX(CQ$60:CQ187)))) ->  | CR188: 129 | CS188: 0 | CT188: 0 | CU188: 0 | CV188: 0 | CW188: 0 | CX188: 0 | CY188: 0 | CZ188: 0 | DA188: 0 | DB188: 0 | DC188: =IF(AND(M188=""),"",IF(M188=CS$58,1,0)) -> 
A189: =IF(OR(D189="in fjDr",D189="पद रिक्त",D189="Blank",D189="Post Blank"),0,E189) -> 0 | B189: =F189 -> 0 | C189: 130 | AC189: 1 | AD189: =IF(AND(AP189=""),"",IF(AP189=0,"",1+(MAX(AD$60:AD188)))) ->  | AE189: 130 | AF189: 0 | AG189: 0 | AH189: 0 | AI189: 0 | AJ189: 0 | AK189: 0 | AL189: 0 | AM189: 0 | AN189: 0 | AO189: 0 | AQ189: =IF(AND(BC189=""),"",IF(BC189=0,"",1+(MAX(AQ$60:AQ188)))) ->  | AR189: 130 | AS189: 0 | AT189: 0 | AU189: 0 | AV189: 0 | AW189: 0 | AX189: 0 | AY189: 0 | AZ189: 0 | BA189: 0 | BB189: 0 | BD189: =IF(AND(BP189=""),"",IF(BP189=0,"",1+(MAX(BD$60:BD188)))) ->  | BE189: 130 | BF189: 0 | BG189: 0 | BH189: 0 | BI189: 0 | BJ189: 0 | BK189: 0 | BL189: 0 | BM189: 0 | BN189: 0 | BO189: 0 | BQ189: =IF(AND(CC189=""),"",IF(CC189=0,"",1+(MAX(BQ$60:BQ188)))) ->  | BR189: 130 | BS189: 0 | BT189: 0 | BU189: 0 | BV189: 0 | BW189: 0 | BX189: 0 | BY189: 0 | BZ189: 0 | CA189: 0 | CB189: 0 | CD189: =IF(AND(CP189=""),"",IF(CP189=0,"",1+(MAX(CD$60:CD188)))) ->  | CE189: 130 | CF189: 0 | CG189: 0 | CH189: 0 | CI189: 0 | CJ189: 0 | CK189: 0 | CL189: 0 | CM189: 0 | CN189: 0 | CO189: 0 | CQ189: =IF(AND(DC189=""),"",IF(DC189=0,"",1+(MAX(CQ$60:CQ188)))) ->  | CR189: 130 | CS189: 0 | CT189: 0 | CU189: 0 | CV189: 0 | CW189: 0 | CX189: 0 | CY189: 0 | CZ189: 0 | DA189: 0 | DB189: 0
A190: 0 | B190: 0 | C190: 131 | AC190: 1 | AD190: =IF(AND(AP190=""),"",IF(AP190=0,"",1+(MAX(AD$60:AD189)))) ->  | AE190: 131 | AF190: 0 | AG190: 0 | AH190: 0 | AI190: 0 | AJ190: 0 | AK190: 0 | AL190: 0 | AM190: 0 | AN190: 0 | AO190: 0 | AQ190: =IF(AND(BC190=""),"",IF(BC190=0,"",1+(MAX(AQ$60:AQ189)))) ->  | AR190: 131 | AS190: 0 | AT190: 0 | AU190: 0 | AV190: 0 | AW190: 0 | AX190: 0 | AY190: 0 | AZ190: 0 | BA190: 0 | BB190: 0 | BD190: =IF(AND(BP190=""),"",IF(BP190=0,"",1+(MAX(BD$60:BD189)))) ->  | BE190: 131 | BF190: 0 | BG190: 0 | BH190: 0 | BI190: 0 | BJ190: 0 | BK190: 0 | BL190: 0 | BM190: 0 | BN190: 0 | BO190: 0 | BQ190: =IF(AND(CC190=""),"",IF(CC190=0,"",1+(MAX(BQ$60:BQ189)))) ->  | BR190: 131 | BS190: 0 | BT190: 0 | BU190: 0 | BV190: 0 | BW190: 0 | BX190: 0 | BY190: 0 | BZ190: 0 | CA190: 0 | CB190: 0 | CD190: =IF(AND(CP190=""),"",IF(CP190=0,"",1+(MAX(CD$60:CD189)))) ->  | CE190: 131 | CF190: 0 | CG190: 0 | CH190: 0 | CI190: 0 | CJ190: 0 | CK190: 0 | CL190: 0 | CM190: 0 | CN190: 0 | CO190: 0 | CQ190: =IF(AND(DC190=""),"",IF(DC190=0,"",1+(MAX(CQ$60:CQ189)))) ->  | CR190: 131 | CS190: 0 | CT190: 0 | CU190: 0 | CV190: 0 | CW190: 0 | CX190: 0 | CY190: 0 | CZ190: 0 | DA190: 0 | DB190: 0
A191: 0 | B191: 0 | C191: 132 | AC191: 1 | AD191: =IF(AND(AP191=""),"",IF(AP191=0,"",1+(MAX(AD$60:AD190)))) ->  | AE191: 132 | AF191: 0 | AG191: 0 | AH191: 0 | AI191: 0 | AJ191: 0 | AK191: 0 | AL191: 0 | AM191: 0 | AN191: 0 | AO191: 0 | AQ191: =IF(AND(BC191=""),"",IF(BC191=0,"",1+(MAX(AQ$60:AQ190)))) ->  | AR191: 132 | AS191: 0 | AT191: 0 | AU191: 0 | AV191: 0 | AW191: 0 | AX191: 0 | AY191: 0 | AZ191: 0 | BA191: 0 | BB191: 0 | BD191: =IF(AND(BP191=""),"",IF(BP191=0,"",1+(MAX(BD$60:BD190)))) ->  | BE191: 132 | BF191: 0 | BG191: 0 | BH191: 0 | BI191: 0 | BJ191: 0 | BK191: 0 | BL191: 0 | BM191: 0 | BN191: 0 | BO191: 0 | BQ191: =IF(AND(CC191=""),"",IF(CC191=0,"",1+(MAX(BQ$60:BQ190)))) ->  | BR191: 132 | BS191: 0 | BT191: 0 | BU191: 0 | BV191: 0 | BW191: 0 | BX191: 0 | BY191: 0 | BZ191: 0 | CA191: 0 | CB191: 0 | CD191: =IF(AND(CP191=""),"",IF(CP191=0,"",1+(MAX(CD$60:CD190)))) ->  | CE191: 132 | CF191: 0 | CG191: 0 | CH191: 0 | CI191: 0 | CJ191: 0 | CK191: 0 | CL191: 0 | CM191: 0 | CN191: 0 | CO191: 0 | CQ191: =IF(AND(DC191=""),"",IF(DC191=0,"",1+(MAX(CQ$60:CQ190)))) ->  | CR191: 132 | CS191: 0 | CT191: 0 | CU191: 0 | CV191: 0 | CW191: 0 | CX191: 0 | CY191: 0 | CZ191: 0 | DA191: 0 | DB191: 0
A192: 0 | B192: 0 | C192: 133 | AC192: 1 | AD192: =IF(AND(AP192=""),"",IF(AP192=0,"",1+(MAX(AD$60:AD191)))) ->  | AE192: 133 | AF192: 0 | AG192: 0 | AH192: 0 | AI192: 0 | AJ192: 0 | AK192: 0 | AL192: 0 | AM192: 0 | AN192: 0 | AO192: 0 | AQ192: =IF(AND(BC192=""),"",IF(BC192=0,"",1+(MAX(AQ$60:AQ191)))) ->  | AR192: 133 | AS192: 0 | AT192: 0 | AU192: 0 | AV192: 0 | AW192: 0 | AX192: 0 | AY192: 0 | AZ192: 0 | BA192: 0 | BB192: 0 | BD192: =IF(AND(BP192=""),"",IF(BP192=0,"",1+(MAX(BD$60:BD191)))) ->  | BE192: 133 | BF192: 0 | BG192: 0 | BH192: 0 | BI192: 0 | BJ192: 0 | BK192: 0 | BL192: 0 | BM192: 0 | BN192: 0 | BO192: 0 | BQ192: =IF(AND(CC192=""),"",IF(CC192=0,"",1+(MAX(BQ$60:BQ191)))) ->  | BR192: 133 | BS192: 0 | BT192: 0 | BU192: 0 | BV192: 0 | BW192: 0 | BX192: 0 | BY192: 0 | BZ192: 0 | CA192: 0 | CB192: 0 | CD192: =IF(AND(CP192=""),"",IF(CP192=0,"",1+(MAX(CD$60:CD191)))) ->  | CE192: 133 | CF192: 0 | CG192: 0 | CH192: 0 | CI192: 0 | CJ192: 0 | CK192: 0 | CL192: 0 | CM192: 0 | CN192: 0 | CO192: 0 | CQ192: =IF(AND(DC192=""),"",IF(DC192=0,"",1+(MAX(CQ$60:CQ191)))) ->  | CR192: 133 | CS192: 0 | CT192: 0 | CU192: 0 | CV192: 0 | CW192: 0 | CX192: 0 | CY192: 0 | CZ192: 0 | DA192: 0 | DB192: 0
A193: 0 | B193: 0 | C193: 134 | AC193: 1 | AD193: =IF(AND(AP193=""),"",IF(AP193=0,"",1+(MAX(AD$60:AD192)))) ->  | AE193: 134 | AF193: 0 | AG193: 0 | AH193: 0 | AI193: 0 | AJ193: 0 | AK193: 0 | AL193: 0 | AM193: 0 | AN193: 0 | AO193: 0 | AQ193: =IF(AND(BC193=""),"",IF(BC193=0,"",1+(MAX(AQ$60:AQ192)))) ->  | AR193: 134 | AS193: 0 | AT193: 0 | AU193: 0 | AV193: 0 | AW193: 0 | AX193: 0 | AY193: 0 | AZ193: 0 | BA193: 0 | BB193: 0 | BD193: =IF(AND(BP193=""),"",IF(BP193=0,"",1+(MAX(BD$60:BD192)))) ->  | BE193: 134 | BF193: 0 | BG193: 0 | BH193: 0 | BI193: 0 | BJ193: 0 | BK193: 0 | BL193: 0 | BM193: 0 | BN193: 0 | BO193: 0 | BQ193: =IF(AND(CC193=""),"",IF(CC193=0,"",1+(MAX(BQ$60:BQ192)))) ->  | BR193: 134 | BS193: 0 | BT193: 0 | BU193: 0 | BV193: 0 | BW193: 0 | BX193: 0 | BY193: 0 | BZ193: 0 | CA193: 0 | CB193: 0 | CD193: =IF(AND(CP193=""),"",IF(CP193=0,"",1+(MAX(CD$60:CD192)))) ->  | CE193: 134 | CF193: 0 | CG193: 0 | CH193: 0 | CI193: 0 | CJ193: 0 | CK193: 0 | CL193: 0 | CM193: 0 | CN193: 0 | CO193: 0 | CQ193: =IF(AND(DC193=""),"",IF(DC193=0,"",1+(MAX(CQ$60:CQ192)))) ->  | CR193: 134 | CS193: 0 | CT193: 0 | CU193: 0 | CV193: 0 | CW193: 0 | CX193: 0 | CY193: 0 | CZ193: 0 | DA193: 0 | DB193: 0
A194: 0 | B194: 0 | C194: 135 | AC194: 1 | AD194: =IF(AND(AP194=""),"",IF(AP194=0,"",1+(MAX(AD$60:AD193)))) ->  | AE194: 135 | AF194: 0 | AG194: 0 | AH194: 0 | AI194: 0 | AJ194: 0 | AK194: 0 | AL194: 0 | AM194: 0 | AN194: 0 | AO194: 0 | AQ194: =IF(AND(BC194=""),"",IF(BC194=0,"",1+(MAX(AQ$60:AQ193)))) ->  | AR194: 135 | AS194: 0 | AT194: 0 | AU194: 0 | AV194: 0 | AW194: 0 | AX194: 0 | AY194: 0 | AZ194: 0 | BA194: 0 | BB194: 0 | BD194: =IF(AND(BP194=""),"",IF(BP194=0,"",1+(MAX(BD$60:BD193)))) ->  | BE194: 135 | BF194: 0 | BG194: 0 | BH194: 0 | BI194: 0 | BJ194: 0 | BK194: 0 | BL194: 0 | BM194: 0 | BN194: 0 | BO194: 0 | BQ194: =IF(AND(CC194=""),"",IF(CC194=0,"",1+(MAX(BQ$60:BQ193)))) ->  | BR194: 135 | BS194: 0 | BT194: 0 | BU194: 0 | BV194: 0 | BW194: 0 | BX194: 0 | BY194: 0 | BZ194: 0 | CA194: 0 | CB194: 0 | CD194: =IF(AND(CP194=""),"",IF(CP194=0,"",1+(MAX(CD$60:CD193)))) ->  | CE194: 135 | CF194: 0 | CG194: 0 | CH194: 0 | CI194: 0 | CJ194: 0 | CK194: 0 | CL194: 0 | CM194: 0 | CN194: 0 | CO194: 0 | CQ194: =IF(AND(DC194=""),"",IF(DC194=0,"",1+(MAX(CQ$60:CQ193)))) ->  | CR194: 135 | CS194: 0 | CT194: 0 | CU194: 0 | CV194: 0 | CW194: 0 | CX194: 0 | CY194: 0 | CZ194: 0 | DA194: 0 | DB194: 0
A195: 0 | B195: 0 | C195: 136 | AC195: 1 | AD195: =IF(AND(AP195=""),"",IF(AP195=0,"",1+(MAX(AD$60:AD194)))) ->  | AE195: 136 | AF195: 0 | AG195: 0 | AH195: 0 | AI195: 0 | AJ195: 0 | AK195: 0 | AL195: 0 | AM195: 0 | AN195: 0 | AO195: 0 | AQ195: =IF(AND(BC195=""),"",IF(BC195=0,"",1+(MAX(AQ$60:AQ194)))) ->  | AR195: 136 | AS195: 0 | AT195: 0 | AU195: 0 | AV195: 0 | AW195: 0 | AX195: 0 | AY195: 0 | AZ195: 0 | BA195: 0 | BB195: 0 | BD195: =IF(AND(BP195=""),"",IF(BP195=0,"",1+(MAX(BD$60:BD194)))) ->  | BE195: 136 | BF195: 0 | BG195: 0 | BH195: 0 | BI195: 0 | BJ195: 0 | BK195: 0 | BL195: 0 | BM195: 0 | BN195: 0 | BO195: 0 | BQ195: =IF(AND(CC195=""),"",IF(CC195=0,"",1+(MAX(BQ$60:BQ194)))) ->  | BR195: 136 | BS195: 0 | BT195: 0 | BU195: 0 | BV195: 0 | BW195: 0 | BX195: 0 | BY195: 0 | BZ195: 0 | CA195: 0 | CB195: 0 | CD195: =IF(AND(CP195=""),"",IF(CP195=0,"",1+(MAX(CD$60:CD194)))) ->  | CE195: 136 | CF195: 0 | CG195: 0 | CH195: 0 | CI195: 0 | CJ195: 0 | CK195: 0 | CL195: 0 | CM195: 0 | CN195: 0 | CO195: 0 | CQ195: =IF(AND(DC195=""),"",IF(DC195=0,"",1+(MAX(CQ$60:CQ194)))) ->  | CR195: 136 | CS195: 0 | CT195: 0 | CU195: 0 | CV195: 0 | CW195: 0 | CX195: 0 | CY195: 0 | CZ195: 0 | DA195: 0 | DB195: 0
A196: 0 | B196: 0 | C196: 137 | AC196: 1 | AD196: =IF(AND(AP196=""),"",IF(AP196=0,"",1+(MAX(AD$60:AD195)))) ->  | AE196: 137 | AF196: 0 | AG196: 0 | AH196: 0 | AI196: 0 | AJ196: 0 | AK196: 0 | AL196: 0 | AM196: 0 | AN196: 0 | AO196: 0 | AQ196: =IF(AND(BC196=""),"",IF(BC196=0,"",1+(MAX(AQ$60:AQ195)))) ->  | AR196: 137 | AS196: 0 | AT196: 0 | AU196: 0 | AV196: 0 | AW196: 0 | AX196: 0 | AY196: 0 | AZ196: 0 | BA196: 0 | BB196: 0 | BD196: =IF(AND(BP196=""),"",IF(BP196=0,"",1+(MAX(BD$60:BD195)))) ->  | BE196: 137 | BF196: 0 | BG196: 0 | BH196: 0 | BI196: 0 | BJ196: 0 | BK196: 0 | BL196: 0 | BM196: 0 | BN196: 0 | BO196: 0 | BQ196: =IF(AND(CC196=""),"",IF(CC196=0,"",1+(MAX(BQ$60:BQ195)))) ->  | BR196: 137 | BS196: 0 | BT196: 0 | BU196: 0 | BV196: 0 | BW196: 0 | BX196: 0 | BY196: 0 | BZ196: 0 | CA196: 0 | CB196: 0 | CD196: =IF(AND(CP196=""),"",IF(CP196=0,"",1+(MAX(CD$60:CD195)))) ->  | CE196: 137 | CF196: 0 | CG196: 0 | CH196: 0 | CI196: 0 | CJ196: 0 | CK196: 0 | CL196: 0 | CM196: 0 | CN196: 0 | CO196: 0 | CQ196: =IF(AND(DC196=""),"",IF(DC196=0,"",1+(MAX(CQ$60:CQ195)))) ->  | CR196: 137 | CS196: 0 | CT196: 0 | CU196: 0 | CV196: 0 | CW196: 0 | CX196: 0 | CY196: 0 | CZ196: 0 | DA196: 0 | DB196: 0
A197: 0 | B197: 0 | C197: 138 | AC197: 1 | AD197: =IF(AND(AP197=""),"",IF(AP197=0,"",1+(MAX(AD$60:AD196)))) ->  | AE197: 138 | AF197: 0 | AG197: 0 | AH197: 0 | AI197: 0 | AJ197: 0 | AK197: 0 | AL197: 0 | AM197: 0 | AN197: 0 | AO197: 0 | AQ197: =IF(AND(BC197=""),"",IF(BC197=0,"",1+(MAX(AQ$60:AQ196)))) ->  | AR197: 138 | AS197: 0 | AT197: 0 | AU197: 0 | AV197: 0 | AW197: 0 | AX197: 0 | AY197: 0 | AZ197: 0 | BA197: 0 | BB197: 0 | BD197: =IF(AND(BP197=""),"",IF(BP197=0,"",1+(MAX(BD$60:BD196)))) ->  | BE197: 138 | BF197: 0 | BG197: 0 | BH197: 0 | BI197: 0 | BJ197: 0 | BK197: 0 | BL197: 0 | BM197: 0 | BN197: 0 | BO197: 0 | BQ197: =IF(AND(CC197=""),"",IF(CC197=0,"",1+(MAX(BQ$60:BQ196)))) ->  | BR197: 138 | BS197: 0 | BT197: 0 | BU197: 0 | BV197: 0 | BW197: 0 | BX197: 0 | BY197: 0 | BZ197: 0 | CA197: 0 | CB197: 0 | CD197: =IF(AND(CP197=""),"",IF(CP197=0,"",1+(MAX(CD$60:CD196)))) ->  | CE197: 138 | CF197: 0 | CG197: 0 | CH197: 0 | CI197: 0 | CJ197: 0 | CK197: 0 | CL197: 0 | CM197: 0 | CN197: 0 | CO197: 0 | CQ197: =IF(AND(DC197=""),"",IF(DC197=0,"",1+(MAX(CQ$60:CQ196)))) ->  | CR197: 138 | CS197: 0 | CT197: 0 | CU197: 0 | CV197: 0 | CW197: 0 | CX197: 0 | CY197: 0 | CZ197: 0 | DA197: 0 | DB197: 0
A198: 0 | B198: 0 | C198: 139 | AC198: 1 | AD198: =IF(AND(AP198=""),"",IF(AP198=0,"",1+(MAX(AD$60:AD197)))) ->  | AE198: 139 | AF198: 0 | AG198: 0 | AH198: 0 | AI198: 0 | AJ198: 0 | AK198: 0 | AL198: 0 | AM198: 0 | AN198: 0 | AO198: 0 | AQ198: =IF(AND(BC198=""),"",IF(BC198=0,"",1+(MAX(AQ$60:AQ197)))) ->  | AR198: 139 | AS198: 0 | AT198: 0 | AU198: 0 | AV198: 0 | AW198: 0 | AX198: 0 | AY198: 0 | AZ198: 0 | BA198: 0 | BB198: 0 | BD198: =IF(AND(BP198=""),"",IF(BP198=0,"",1+(MAX(BD$60:BD197)))) ->  | BE198: 139 | BF198: 0 | BG198: 0 | BH198: 0 | BI198: 0 | BJ198: 0 | BK198: 0 | BL198: 0 | BM198: 0 | BN198: 0 | BO198: 0 | BQ198: =IF(AND(CC198=""),"",IF(CC198=0,"",1+(MAX(BQ$60:BQ197)))) ->  | BR198: 139 | BS198: 0 | BT198: 0 | BU198: 0 | BV198: 0 | BW198: 0 | BX198: 0 | BY198: 0 | BZ198: 0 | CA198: 0 | CB198: 0 | CD198: =IF(AND(CP198=""),"",IF(CP198=0,"",1+(MAX(CD$60:CD197)))) ->  | CE198: 139 | CF198: 0 | CG198: 0 | CH198: 0 | CI198: 0 | CJ198: 0 | CK198: 0 | CL198: 0 | CM198: 0 | CN198: 0 | CO198: 0 | CQ198: =IF(AND(DC198=""),"",IF(DC198=0,"",1+(MAX(CQ$60:CQ197)))) ->  | CR198: 139 | CS198: 0 | CT198: 0 | CU198: 0 | CV198: 0 | CW198: 0 | CX198: 0 | CY198: 0 | CZ198: 0 | DA198: 0 | DB198: 0
A199: 0 | B199: 0 | C199: 140 | AC199: 1 | AD199: =IF(AND(AP199=""),"",IF(AP199=0,"",1+(MAX(AD$60:AD198)))) ->  | AE199: 140 | AF199: 0 | AG199: 0 | AH199: 0 | AI199: 0 | AJ199: 0 | AK199: 0 | AL199: 0 | AM199: 0 | AN199: 0 | AO199: 0 | AQ199: =IF(AND(BC199=""),"",IF(BC199=0,"",1+(MAX(AQ$60:AQ198)))) ->  | AR199: 140 | AS199: 0 | AT199: 0 | AU199: 0 | AV199: 0 | AW199: 0 | AX199: 0 | AY199: 0 | AZ199: 0 | BA199: 0 | BB199: 0 | BD199: =IF(AND(BP199=""),"",IF(BP199=0,"",1+(MAX(BD$60:BD198)))) ->  | BE199: 140 | BF199: 0 | BG199: 0 | BH199: 0 | BI199: 0 | BJ199: 0 | BK199: 0 | BL199: 0 | BM199: 0 | BN199: 0 | BO199: 0 | BQ199: =IF(AND(CC199=""),"",IF(CC199=0,"",1+(MAX(BQ$60:BQ198)))) ->  | BR199: 140 | BS199: 0 | BT199: 0 | BU199: 0 | BV199: 0 | BW199: 0 | BX199: 0 | BY199: 0 | BZ199: 0 | CA199: 0 | CB199: 0 | CD199: =IF(AND(CP199=""),"",IF(CP199=0,"",1+(MAX(CD$60:CD198)))) ->  | CE199: 140 | CF199: 0 | CG199: 0 | CH199: 0 | CI199: 0 | CJ199: 0 | CK199: 0 | CL199: 0 | CM199: 0 | CN199: 0 | CO199: 0 | CQ199: =IF(AND(DC199=""),"",IF(DC199=0,"",1+(MAX(CQ$60:CQ198)))) ->  | CR199: 140 | CS199: 0 | CT199: 0 | CU199: 0 | CV199: 0 | CW199: 0 | CX199: 0 | CY199: 0 | CZ199: 0 | DA199: 0 | DB199: 0
A200: 0 | B200: 0 | C200: 141 | AC200: 1 | AD200: =IF(AND(AP200=""),"",IF(AP200=0,"",1+(MAX(AD$60:AD199)))) ->  | AE200: 141 | AF200: 0 | AG200: 0 | AH200: 0 | AI200: 0 | AJ200: 0 | AK200: 0 | AL200: 0 | AM200: 0 | AN200: 0 | AO200: 0 | AQ200: =IF(AND(BC200=""),"",IF(BC200=0,"",1+(MAX(AQ$60:AQ199)))) ->  | AR200: 141 | AS200: 0 | AT200: 0 | AU200: 0 | AV200: 0 | AW200: 0 | AX200: 0 | AY200: 0 | AZ200: 0 | BA200: 0 | BB200: 0 | BD200: =IF(AND(BP200=""),"",IF(BP200=0,"",1+(MAX(BD$60:BD199)))) ->  | BE200: 141 | BF200: 0 | BG200: 0 | BH200: 0 | BI200: 0 | BJ200: 0 | BK200: 0 | BL200: 0 | BM200: 0 | BN200: 0 | BO200: 0 | BQ200: =IF(AND(CC200=""),"",IF(CC200=0,"",1+(MAX(BQ$60:BQ199)))) ->  | BR200: 141 | BS200: 0 | BT200: 0 | BU200: 0 | BV200: 0 | BW200: 0 | BX200: 0 | BY200: 0 | BZ200: 0 | CA200: 0 | CB200: 0 | CD200: =IF(AND(CP200=""),"",IF(CP200=0,"",1+(MAX(CD$60:CD199)))) ->  | CE200: 141 | CF200: 0 | CG200: 0 | CH200: 0 | CI200: 0 | CJ200: 0 | CK200: 0 | CL200: 0 | CM200: 0 | CN200: 0 | CO200: 0 | CQ200: =IF(AND(DC200=""),"",IF(DC200=0,"",1+(MAX(CQ$60:CQ199)))) ->  | CR200: 141 | CS200: 0 | CT200: 0 | CU200: 0 | CV200: 0 | CW200: 0 | CX200: 0 | CY200: 0 | CZ200: 0 | DA200: 0 | DB200: 0
A201: 0 | B201: 0 | C201: 142 | AC201: 1 | AD201: =IF(AND(AP201=""),"",IF(AP201=0,"",1+(MAX(AD$60:AD200)))) ->  | AE201: 142 | AF201: 0 | AG201: 0 | AH201: 0 | AI201: 0 | AJ201: 0 | AK201: 0 | AL201: 0 | AM201: 0 | AN201: 0 | AO201: 0 | AQ201: =IF(AND(BC201=""),"",IF(BC201=0,"",1+(MAX(AQ$60:AQ200)))) ->  | AR201: 142 | AS201: 0 | AT201: 0 | AU201: 0 | AV201: 0 | AW201: 0 | AX201: 0 | AY201: 0 | AZ201: 0 | BA201: 0 | BB201: 0 | BD201: =IF(AND(BP201=""),"",IF(BP201=0,"",1+(MAX(BD$60:BD200)))) ->  | BE201: 142 | BF201: 0 | BG201: 0 | BH201: 0 | BI201: 0 | BJ201: 0 | BK201: 0 | BL201: 0 | BM201: 0 | BN201: 0 | BO201: 0 | BQ201: =IF(AND(CC201=""),"",IF(CC201=0,"",1+(MAX(BQ$60:BQ200)))) ->  | BR201: 142 | BS201: 0 | BT201: 0 | BU201: 0 | BV201: 0 | BW201: 0 | BX201: 0 | BY201: 0 | BZ201: 0 | CA201: 0 | CB201: 0 | CD201: =IF(AND(CP201=""),"",IF(CP201=0,"",1+(MAX(CD$60:CD200)))) ->  | CE201: 142 | CF201: 0 | CG201: 0 | CH201: 0 | CI201: 0 | CJ201: 0 | CK201: 0 | CL201: 0 | CM201: 0 | CN201: 0 | CO201: 0 | CQ201: =IF(AND(DC201=""),"",IF(DC201=0,"",1+(MAX(CQ$60:CQ200)))) ->  | CR201: 142 | CS201: 0 | CT201: 0 | CU201: 0 | CV201: 0 | CW201: 0 | CX201: 0 | CY201: 0 | CZ201: 0 | DA201: 0 | DB201: 0
A202: 0 | B202: 0 | C202: 143 | AC202: 1 | AD202: =IF(AND(AP202=""),"",IF(AP202=0,"",1+(MAX(AD$60:AD201)))) ->  | AE202: 143 | AF202: 0 | AG202: 0 | AH202: 0 | AI202: 0 | AJ202: 0 | AK202: 0 | AL202: 0 | AM202: 0 | AN202: 0 | AO202: 0 | AQ202: =IF(AND(BC202=""),"",IF(BC202=0,"",1+(MAX(AQ$60:AQ201)))) ->  | AR202: 143 | AS202: 0 | AT202: 0 | AU202: 0 | AV202: 0 | AW202: 0 | AX202: 0 | AY202: 0 | AZ202: 0 | BA202: 0 | BB202: 0 | BD202: =IF(AND(BP202=""),"",IF(BP202=0,"",1+(MAX(BD$60:BD201)))) ->  | BE202: 143 | BF202: 0 | BG202: 0 | BH202: 0 | BI202: 0 | BJ202: 0 | BK202: 0 | BL202: 0 | BM202: 0 | BN202: 0 | BO202: 0 | BQ202: =IF(AND(CC202=""),"",IF(CC202=0,"",1+(MAX(BQ$60:BQ201)))) ->  | BR202: 143 | BS202: 0 | BT202: 0 | BU202: 0 | BV202: 0 | BW202: 0 | BX202: 0 | BY202: 0 | BZ202: 0 | CA202: 0 | CB202: 0 | CD202: =IF(AND(CP202=""),"",IF(CP202=0,"",1+(MAX(CD$60:CD201)))) ->  | CE202: 143 | CF202: 0 | CG202: 0 | CH202: 0 | CI202: 0 | CJ202: 0 | CK202: 0 | CL202: 0 | CM202: 0 | CN202: 0 | CO202: 0 | CQ202: =IF(AND(DC202=""),"",IF(DC202=0,"",1+(MAX(CQ$60:CQ201)))) ->  | CR202: 143 | CS202: 0 | CT202: 0 | CU202: 0 | CV202: 0 | CW202: 0 | CX202: 0 | CY202: 0 | CZ202: 0 | DA202: 0 | DB202: 0
A203: 0 | B203: 0 | C203: 144 | AC203: 1 | AD203: =IF(AND(AP203=""),"",IF(AP203=0,"",1+(MAX(AD$60:AD202)))) ->  | AE203: 144 | AF203: 0 | AG203: 0 | AH203: 0 | AI203: 0 | AJ203: 0 | AK203: 0 | AL203: 0 | AM203: 0 | AN203: 0 | AO203: 0 | AQ203: =IF(AND(BC203=""),"",IF(BC203=0,"",1+(MAX(AQ$60:AQ202)))) ->  | AR203: 144 | AS203: 0 | AT203: 0 | AU203: 0 | AV203: 0 | AW203: 0 | AX203: 0 | AY203: 0 | AZ203: 0 | BA203: 0 | BB203: 0 | BD203: =IF(AND(BP203=""),"",IF(BP203=0,"",1+(MAX(BD$60:BD202)))) ->  | BE203: 144 | BF203: 0 | BG203: 0 | BH203: 0 | BI203: 0 | BJ203: 0 | BK203: 0 | BL203: 0 | BM203: 0 | BN203: 0 | BO203: 0 | BQ203: =IF(AND(CC203=""),"",IF(CC203=0,"",1+(MAX(BQ$60:BQ202)))) ->  | BR203: 144 | BS203: 0 | BT203: 0 | BU203: 0 | BV203: 0 | BW203: 0 | BX203: 0 | BY203: 0 | BZ203: 0 | CA203: 0 | CB203: 0 | CD203: =IF(AND(CP203=""),"",IF(CP203=0,"",1+(MAX(CD$60:CD202)))) ->  | CE203: 144 | CF203: 0 | CG203: 0 | CH203: 0 | CI203: 0 | CJ203: 0 | CK203: 0 | CL203: 0 | CM203: 0 | CN203: 0 | CO203: 0 | CQ203: =IF(AND(DC203=""),"",IF(DC203=0,"",1+(MAX(CQ$60:CQ202)))) ->  | CR203: 144 | CS203: 0 | CT203: 0 | CU203: 0 | CV203: 0 | CW203: 0 | CX203: 0 | CY203: 0 | CZ203: 0 | DA203: 0 | DB203: 0
... 194 more rows

Sheet Cover Page
A1: =CONCATENATE(Master!E2," ",Master!H2," ","¼",Master!C3,"&",Master!E3,"½") -> ç/kkukpk;Z] jkmekfo jk;eyok³k ¼vkWfQl vkbZ-Mh- la[;k %&12345½
A4: =CONCATENATE('[1]Formet 8'!A4:N4,'[1]Formet 8'!A5:N5) -> fuf'pr O;;ksa ds foLr`r vuqeku vFkkZr vf/kdkfj;ksa o deZpkfj;ksa ds osru vuqeku o"kZ ¼vizSy ls ekpZ rd½
A6: ='Formet 9'!J5 -> 2023-24
A7: Budget Head
A10: =abc!A3 -> 2202-02-109-(07)-(01) (STATE FUND+CENTRAL ASS.)
A12: =abc!A4 -> BUDGET HEAD : 2202 -सामान्य शिक्षा-02-109 -राजकीय माध्यमिक विद्यालय-07 -राष्ट्रीय माध्यमिक शिक्षा अभियान-01 -माध्यमिक शिक्षा अभियान- सामान्य व्यय (S.F. + C.A.)

Sheet forwarding letter
A1: ='Cover Page'!A1 -> ç/kkukpk;Z] jkmekfo jk;eyok³k ¼vkWfQl vkbZ-Mh- la[;k %&12345½
A2: Øekad % | C2: fnukad %
A4: iszf"kr]
B5: Jheku~ eq[; ys[kkf/kdkjh
B6: çkjfEHkd f'k{kk ¼f'k{kk foHkkx½
B7: chdkusjA
A9: fo"k; %& | B9: la'kksf/kr ctV vuqeku l= 2023&24 ,oa vk;&O;;d vuqeku 2024&25 izLrqr djus ckcr A
A11: egksn;]
A12: mijksDr fo"k; esa fuosnu gS fd LFkkuh; fo|ky;@dk;kZy; esa dk;Zjr deZpkfj;ksa ,oa dk;kZy; v/khu dkfeZdksa dk la'kksf/kr ctV vuqeku l= 2023&24 ,oa vk;&O;;d vuqeku 2024&25 fu/kkZfjr izi= esa rS;kj dj LFkkuh; dk;kZy; ds dkfeZd Jh -------------------------------------------------------------------------------------------------------------------- ds lkFk vko';d dk;Zokgh gsrq Jheku dh lsok esa lknj iszf"kr gS A
A15: layXu %&
C18: =Master!E2 -> ç/kkukpk;Z]
C19: =Master!H2 -> jkmekfo jk;eyok³k

Sheet abc
A1: izi= v] c] l
A2: ='Cover Page'!A1 -> ç/kkukpk;Z] jkmekfo jk;eyok³k ¼vkWfQl vkbZ-Mh- la[;k %&12345½
A3: =Master!G5 -> 2202-02-109-(07)-(01) (STATE FUND+CENTRAL ASS.) | C3: MhMhvks dksM& | D3: =Master!E3 -> 12345
A4: ='Formet 9'!A7:T7 -> BUDGET HEAD : 2202 -सामान्य शिक्षा-02-109 -राजकीय माध्यमिक विद्यालय-07 -राष्ट्रीय माध्यमिक शिक्षा अभियान-01 -माध्यमिक शिक्षा अभियान- सामान्य व्यय (S.F. + C.A.)
A5: en | C5: la'kksf/kr vuqeku 2023&24 | D5: vk;O;;d vuqeku 2024&25
A6: ¼1½- laosru
A7: d- osru jktif=r | C7: =Summary!B8 -> 823600 | D7: =Summary!C8 -> 848400
A8: [k- osru vjktif=r | C8: =Summary!B9 -> 2967200 | D8: =Summary!C9 -> 3057200
A9: ;ksx osru & ¼ d ls [k rd ½ | C9: =Summary!B10 -> 3790800 | D9: =Summary!C10 -> 3905600
A10: HkRrs ,oa ekuns; & | C10: =Summary!B11 -> 0 | D10: =Summary!C11 -> 0
A11: 1- eagxkbZ HkRrk 17 izfr'kr | C11: =Summary!B12 -> 1592136 | D11: =Summary!C12 -> 1640352
A12: 2- Mh-,-,fj;j 5 çfr- | C12: =Summary!B13 -> 38280 | D12: =Summary!C13 -> 77708
A13: 3- fLFkjhdj.k ,fj;j | C13: =Summary!B14 -> 0 | D13: =Summary!C14 -> 744610
A14: 4- edku fdjk;k 8 çfr'kr | C14: =Summary!B15 -> 341172 | D14: =Summary!C15 -> 351504
A15: 5- lefiZr vodk'k osru ¼15 fnol½ | C15: =Summary!B16 -> 219887 | D15: =Summary!C16 -> 226490
A16: 6- 'kgjh HkRrk | C16: =Summary!B17 -> 0 | D16: =Summary!C17 -> 0
A17: 7- cksul | C17: =Summary!B18 -> 121932 | D17: =Summary!C18 -> 121932
A18: 8-fn-20-01-06 ls fu;qDr dkfeZdksa dks fu;r ikfjJfed ¼ fQDl is ½ | C18: =Summary!B19 -> 483600 | D18: =Summary!C19 -> 483600
A19: 9- alafonk dkfeZdksa dks fu;r ikfjJfed ¼ fQDl is ½ | C19: =Summary!B20 -> 393600 | D19: =Summary!C20 -> 393600
A20: 10- ç-v- HkRrk | C20: =Summary!B21 -> 0 | D20: =Summary!C21 -> 0
A21: 11- jksdM HkRrk | C21: =Summary!B22 -> 0 | D21: =Summary!C22 -> 0
A22: 12- /kqykbZ HkRrk | C22: =Summary!B23 -> 0 | D22: =Summary!C23 -> 0
A23: 13- lkbZfdy HkRrk | C23: =Summary!B24 -> 0 | D23: =Summary!C24 -> 0
A24: 14- fodykax HkRrk | C24: =Summary!B25 -> 0 | D24: =Summary!C25 -> 0
A25: 13- vU; HkRrs | C25: =Summary!B26 -> 0 | D25: =Summary!C26 -> 0
A26: ;ksx&¼ 1ls 14 ½ HkRrs ,oa ekuns; kk | C26: =SUM(C11:C25) -> 3190607 | D26: =SUM(D11:D25) -> 4039796
A27: ;ksx laosru ¼1½++ ,oa ¼2½ | C27: =SUM(C26,C9) -> 6981407 | D27: =SUM(D26,D9) -> 7945396
A28: ;k=k O;; | C28: =Summary!B30 -> 0 | D28: =Summary!C30 -> 50000
A29: fpfdRlk O;; | C29: =Summary!B31 -> 0 | D29: =Summary!C31 -> 0
A30: loZ ;ksx & ¼QkeZ th-,-&4½ | C30: =SUM(C27:C29) -> 6981407 | D30: =SUM(D27:D29) -> 7995396
A31: izekf.kr fd;k tkrk gS fd inksa ds lanHkZ esa mi;qZä lwpuk dh esjs }kjk O;fäxr :i ls tkap dj yh xbZ gS vkSj bls lgh ik;k x;k gSA
D32: =A!D3 -> ç/kkukpk;Z] jkmekfo jk;eyok³k ¼vkWfQl vkbZ-Mh- la[;k %&12345½

Sheet Format 1A
N1: =Summary!$C$1 -> OFFICE ID : 12345
A2: =Summary!$A$2 -> ç/kkukpk;Z] jkmekfo jk;eyok³k ¼vkWfQl vkbZ-Mh- la[;k %&12345½ | O2: =Master!$C$4 -> ctV vuqeku fofÙk; o"kZ %
A3: izi= & 1 | O3: =Master!$E$4 -> 2023-24
A4: ¼v½ fu;fer Lohd`r inksa dk fooj.k
A5: ='Formet 8'!B7 -> BUDGET HEAD : 2202 -सामान्य शिक्षा-02-109 -राजकीय माध्यमिक विद्यालय-07 -राष्ट्रीय माध्यमिक शिक्षा अभियान-01 -माध्यमिक शिक्षा अभियान- सामान्य व्यय (S.F. + C.A.) | M5: foHkkx dk uke %& f'k{kk foHkkx
A6: Ø- la- | B6: ys[ks dk 'kh"kZ nh?kZ 'kh"kZ@ minh?kZ 'kh"kZ @ y?kq 'kh"kZ @ mi'kh"kZ | C6: ukWu Iyku@ Iyku@ lh-,l-,l- | D6: in uke | E6: is eSfVªDl ysoy | F6: Lohd`r inksa dh la[;k ¼fnukad 01-04-23 dh fLFkfr½ | G6: pkyw o"kZ 2023&24 esa Lohd`r inksa dh la[;k | H6: pkyw o"kZ 2023&24 esa lekIr fd, inksa dh la[;k | I6: orZeku inksa dh la[;k ¼dkWye la[;k 5$6&7½ | J6: fu;fer dk;Zjr deZpkjh | O6: fnukad 31-08-23 dks fjDr inksa dh la[;k | P6: fnukad ftlls in fjDr gS
J7: 01-01-2004 ls iwoZ fu;qDr | K7: 01-01-2004 ds ckn fu;qDr | L7: ;ksx
A8: 1 | B8: 1 | C8: 2 | D8: 3 | E8: 4 | F8: 5 | G8: 6 | H8: 7 | I8: 8 | J8: 9 | K8: 10 | M8: 10 | O8: 11 | P8: 12
A9: =W9 -> 1 | B9: 2202 lkekU; f'k{kk | C9: ='Format 1B'!C8 -> NON PLAN - BOYS | D9: PRINCIPAL | E9: L-16 | F9: =COUNTIF(Master!$E$60:$E$285,'Format 1A'!D9) -> 1 | G9: - | H9: - | I9: =SUM(F9:H9) -> 1 | J9: 0 | K9: =COUNTIF(Master!$A$60:$A$285,'Format 1A'!D9) -> 1 | L9: =SUM(J9:K9) -> 1 | M9: =SUMIF('Formet 8'!G$12:G$246,'Format 1A'!D9,'Formet 8'!BW$12:BW$246) -> 1 | O9: =I9-L9 -> 0 | R9: =IF(F9>0,1,0) -> 1 | S9: =I9 -> 1 | T9: =SUMIF('Formet 8'!G$12:G$246,'Format 1A'!D9,'Formet 8'!CA$12:CA$246) -> 0 | U9: =SUMIF('Formet 8'!G$12:G$584,'Format 1A'!D9,'Formet 8'!BW$12:BW$584) -> 1 | V9: =S9-(T9+U9) -> 0 | W9: =IF(R9=0,0,1) -> 1 | Y9: =COUNTIF(Master!$A$60:$A$285,'Format 1A'!D9) -> 1
A10: =W10 -> 0 | B10: 2202 lkekU; f'k{kk | C10: ='Format 1B'!C9 -> NON PLAN - BOYS | D10: VICE PRINCIPAL | E10: L-14 | F10: =COUNTIF(Master!$E$60:$E$285,'Format 1A'!D10) -> 0 | G10: - | H10: - | I10: =SUM(F10:H10) -> 0 | J10: 0 | K10: =COUNTIF(Master!$A$60:$A$285,'Format 1A'!D10) -> 0 | L10: =SUM(J10:K10) -> 0 | M10: =SUMIF('Formet 8'!G$12:G$246,'Format 1A'!D10,'Formet 8'!BW$12:BW$246) -> 0 | O10: =I10-L10 -> 0 | R10: =IF(F10>0,1,0) -> 0 | S10: =I10 -> 0 | T10: =SUMIF('Formet 8'!G$12:G$246,'Format 1A'!D10,'Formet 8'!CA$12:CA$246) -> 0 | U10: =SUMIF('Formet 8'!G$12:G$584,'Format 1A'!D10,'Formet 8'!BW$12:BW$584) -> 0 | V10: =S10-(T10+U10) -> 0 | W10: =IF(F10>0,MAX(W9)+1,0) -> 0
A11: 2 | B11: 2202 lkekU; f'k{kk | C11: ='Format 1B'!C10 -> NON PLAN - BOYS | D11: LECTURER | E11: L-12 | F11: =COUNTIF(Master!$E$60:$E$285,'Format 1A'!D11) -> 1 | G11: - | H11: - | I11: 1 | J11: 0 | K11: =COUNTIF(Master!$A$60:$A$285,'Format 1A'!D11) -> 1 | L11: 1 | M11: =SUMIF('Formet 8'!G$12:G$246,'Format 1A'!D11,'Formet 8'!BW$12:BW$246) -> 1 | O11: 0 | R11: 1 | S11: 1 | T11: =SUMIF('Formet 8'!G$12:G$246,'Format 1A'!D11,'Formet 8'!CA$12:CA$246) -> 0 | U11: =SUMIF('Formet 8'!G$12:G$584,'Format 1A'!D11,'Formet 8'!BW$12:BW$584) -> 1 | V11: 0 | W11: =IF(F11>0,MAX($W$9:W10)+1,0) -> 2
A12: 0 | B12: 2202 lkekU; f'k{kk | C12: ='Format 1B'!C11 -> NON PLAN - BOYS | D12: TEACHER-I | E12: L-12 | F12: =COUNTIF(Master!$E$60:$E$285,'Format 1A'!D12) -> 0 | G12: - | H12: - | I12: 0 | J12: 0 | K12: =COUNTIF(Master!$A$60:$A$285,'Format 1A'!D12) -> 0 | L12: 0 | M12: =SUMIF('Formet 8'!G$12:G$246,'Format 1A'!D12,'Formet 8'!BW$12:BW$246) -> 0 | O12: 0 | R12: 0 | S12: 0 | T12: =SUMIF('Formet 8'!G$12:G$246,'Format 1A'!D12,'Formet 8'!CA$12:CA$246) -> 0 | U12: =SUMIF('Formet 8'!G$12:G$584,'Format 1A'!D12,'Formet 8'!BW$12:BW$584) -> 0 | V12: 0 | W12: =IF(F12>0,MAX($W$9:W11)+1,0) -> 0
A13: 0 | B13: 2202 lkekU; f'k{kk | C13: ='Format 1B'!C12 -> NON PLAN - BOYS | D13: PTI I | E13: L-12 | F13: =COUNTIF(Master!$E$60:$E$285,'Format 1A'!D13) -> 0 | G13: - | H13: - | I13: 0 | J13: 0 | K13: =COUNTIF(Master!$A$60:$A$285,'Format 1A'!D13) -> 0 | L13: 0 | M13: =SUMIF('Formet 8'!G$12:G$246,'Format 1A'!D13,'Formet 8'!BW$12:BW$246) -> 0 | O13: 0 | R13: 0 | S13: 0 | T13: =SUMIF('Formet 8'!G$12:G$246,'Format 1A'!D13,'Formet 8'!CA$12:CA$246) -> 0 | U13: =SUMIF('Formet 8'!G$12:G$584,'Format 1A'!D13,'Formet 8'!BW$12:BW$584) -> 0 | V13: 0 | W13: =IF(F13>0,MAX($W$9:W12)+1,0) -> 0
A14: 0 | B14: 2202 lkekU; f'k{kk | C14: ='Format 1B'!C13 -> NON PLAN - BOYS | D14: AGRICULTURE TEACH | E14: L-12 | F14: =COUNTIF(Master!$E$60:$E$285,'Format 1A'!D14) -> 0 | G14: - | H14: - | I14: 0 | J14: 0 | K14: =COUNTIF(Master!$A$60:$A$285,'Format 1A'!D14) -> 0 | L14: 0 | M14: =SUMIF('Formet 8'!G$12:G$246,'Format 1A'!D14,'Formet 8'!BW$12:BW$246) -> 0 | O14: 0 | R14: 0 | S14: 0 | T14: =SUMIF('Formet 8'!G$12:G$246,'Format 1A'!D14,'Formet 8'!CA$12:CA$246) -> 0 | U14: =SUMIF('Formet 8'!G$12:G$584,'Format 1A'!D14,'Formet 8'!BW$12:BW$584) -> 0 | V14: 0 | W14: =IF(F14>0,MAX($W$9:W13)+1,0) -> 0
A15: 0 | B15: 2202 lkekU; f'k{kk | C15: ='Format 1B'!C14 -> NON PLAN - BOYS | D15: INSTRUCTOR | E15: L-12 | F15: =COUNTIF(Master!$E$60:$E$285,'Format 1A'!D15) -> 0 | G15: - | H15: - | I15: 0 | J15: 0 | K15: =COUNTIF(Master!$A$60:$A$285,'Format 1A'!D15) -> 0 | L15: 0 | M15: =SUMIF('Formet 8'!G$12:G$246,'Format 1A'!D15,'Formet 8'!BW$12:BW$246) -> 0 | O15: 0 | R15: 0 | S15: 0 | T15: =SUMIF('Formet 8'!G$12:G$246,'Format 1A'!D15,'Formet 8'!CA$12:CA$246) -> 0 | U15: =SUMIF('Formet 8'!G$12:G$584,'Format 1A'!D15,'Formet 8'!BW$12:BW$584) -> 0 | V15: 0 | W15: =IF(F15>0,MAX($W$9:W14)+1,0) -> 0
A16: 0 | B16: 2202 lkekU; f'k{kk | C16: ='Format 1B'!C15 -> NON PLAN - BOYS | D16: LIBRARIAN I | E16: L-12 | F16: =COUNTIF(Master!$E$60:$E$285,'Format 1A'!D16) -> 0 | G16: - | H16: - | I16: 0 | J16: 0 | K16: =COUNTIF(Master!$A$60:$A$285,'Format 1A'!D16) -> 0 | L16: 0 | M16: =SUMIF('Formet 8'!G$12:G$246,'Format 1A'!D16,'Formet 8'!BW$12:BW$246) -> 0 | O16: 0 | R16: 0 | S16: 0 | T16: =SUMIF('Formet 8'!G$12:G$246,'Format 1A'!D16,'Formet 8'!CA$12:CA$246) -> 0 | U16: =SUMIF('Formet 8'!G$12:G$584,'Format 1A'!D16,'Formet 8'!BW$12:BW$584) -> 0 | V16: 0 | W16: =IF(F16>0,MAX($W$9:W15)+1,0) -> 0
A17: 0 | B17: 2202 lkekU; f'k{kk | C17: ='Format 1B'!C16 -> NON PLAN - BOYS | D17: BASIC COMPUTER INST. | E17: L-8 | F17: =COUNTIF(Master!$E$60:$E$285,'Format 1A'!D17) -> 0 | G17: - | H17: - | I17: 0 | J17: 0 | K17: =COUNTIF(Master!$A$60:$A$285,'Format 1A'!D17) -> 0 | L17: 0 | M17: =SUMIF('Formet 8'!G$12:G$246,'Format 1A'!D17,'Formet 8'!BW$12:BW$246) -> 0 | O17: 0 | R17: 0 | S17: 0 | T17: =SUMIF('Formet 8'!G$12:G$246,'Format 1A'!D17,'Formet 8'!CA$12:CA$246) -> 0 | U17: =SUMIF('Formet 8'!G$12:G$584,'Format 1A'!D17,'Formet 8'!BW$12:BW$584) -> 0 | V17: 0 | W17: =IF(F17>0,MAX($W$9:W16)+1,0) -> 0
A18: 3 | B18: 2202 lkekU; f'k{kk | C18: ='Format 1B'!C17 -> NON PLAN - BOYS | D18: TEACHER-II | E18: L-11 | F18: =COUNTIF(Master!$E$60:$E$285,'Format 1A'!D18) -> 2 | G18: - | H18: - | I18: 2 | J18: 0 | K18: =COUNTIF(Master!$A$60:$A$285,'Format 1A'!D18) -> 1 | L18: 1 | M18: 0 | O18: 1 | R18: 1 | S18: 2 | T18: =SUMIF('Formet 8'!G$12:G$246,'Format 1A'!D18,'Formet 8'!CA$12:CA$246) -> 1 | U18: =SUMIF('Formet 8'!G$12:G$584,'Format 1A'!D18,'Formet 8'!BW$12:BW$584) -> 1 | V18: 0 | W18: =IF(F18>0,MAX($W$9:W17)+1,0) -> 3
A19: 0 | B19: 2202 lkekU; f'k{kk | C19: ='Format 1B'!C18 -> NON PLAN - BOYS | D19: PTI II | E19: L-11 | F19: =COUNTIF(Master!$E$60:$E$285,'Format 1A'!D19) -> 0 | G19: - | H19: - | I19: 0 | J19: 0 | K19: =COUNTIF(Master!$A$60:$A$285,'Format 1A'!D19) -> 0 | L19: 0 | M19: =SUMIF('Formet 8'!G$12:G$246,'Format 1A'!D19,'Formet 8'!BW$12:BW$246) -> 0 | O19: 0 | R19: 0 | S19: 0 | T19: =SUMIF('Formet 8'!G$12:G$246,'Format 1A'!D19,'Formet 8'!CA$12:CA$246) -> 0 | U19: =SUMIF('Formet 8'!G$12:G$584,'Format 1A'!D19,'Formet 8'!BW$12:BW$584) -> 0 | V19: 0 | W19: =IF(F19>0,MAX($W$9:W18)+1,0) -> 0
A20: 0 | B20: 2202 lkekU; f'k{kk | C20: ='Format 1B'!C19 -> NON PLAN - BOYS | D20: LIBRARIAN II | E20: L-11 | F20: =COUNTIF(Master!$E$60:$E$285,'Format 1A'!D20) -> 0 | G20: - | H20: - | I20: 0 | J20: 0 | K20: =COUNTIF(Master!$A$60:$A$285,'Format 1A'!D20) -> 0 | L20: 0 | M20: =SUMIF('Formet 8'!G$12:G$246,'Format 1A'!D20,'Formet 8'!BW$12:BW$246) -> 0 | O20: 0 | R20: 0 | S20: 0 | T20: =SUMIF('Formet 8'!G$12:G$246,'Format 1A'!D20,'Formet 8'!CA$12:CA$246) -> 0 | U20: =SUMIF('Formet 8'!G$12:G$584,'Format 1A'!D20,'Formet 8'!BW$12:BW$584) -> 0 | V20: 0 | W20: =IF(F20>0,MAX($W$9:W19)+1,0) -> 0
A21: 0 | B21: 2202 lkekU; f'k{kk | C21: ='Format 1B'!C20 -> NON PLAN - BOYS | D21: LAB ASST | E21: L-9 | F21: =COUNTIF(Master!$E$60:$E$285,'Format 1A'!D21) -> 0 | G21: - | H21: - | I21: 0 | J21: 0 | K21: =COUNTIF(Master!$A$60:$A$285,'Format 1A'!D21) -> 0 | L21: 0 | M21: =SUMIF('Formet 8'!G$12:G$246,'Format 1A'!D21,'Formet 8'!BW$12:BW$246) -> 0 | O21: 0 | R21: 0 | S21: 0 | T21: =SUMIF('Formet 8'!G$12:G$246,'Format 1A'!D21,'Formet 8'!CA$12:CA$246) -> 0 | U21: =SUMIF('Formet 8'!G$12:G$584,'Format 1A'!D21,'Formet 8'!BW$12:BW$584) -> 0 | V21: 0 | W21: =IF(F21>0,MAX($W$9:W20)+1,0) -> 0
A22: 0 | B22: 2202 lkekU; f'k{kk | C22: ='Format 1B'!C21 -> NON PLAN - BOYS | D22: CLERK GRADE I | E22: L-9 | F22: =COUNTIF(Master!$E$60:$E$285,'Format 1A'!D22) -> 0 | G22: - | H22: - | I22: 0 | J22: 0 | K22: =COUNTIF(Master!$A$60:$A$285,'Format 1A'!D22) -> 0 | L22: 0 | M22: =SUMIF('Formet 8'!G$12:G$246,'Format 1A'!D22,'Formet 8'!BW$12:BW$246) -> 0 | O22: 0 | R22: 0 | S22: 0 | T22: =SUMIF('Formet 8'!G$12:G$246,'Format 1A'!D22,'Formet 8'!CA$12:CA$246) -> 0 | U22: =SUMIF('Formet 8'!G$12:G$584,'Format 1A'!D22,'Formet 8'!BW$12:BW$584) -> 0 | V22: 0 | W22: =IF(F22>0,MAX($W$9:W21)+1,0) -> 0
A23: 4 | B23: 2202 lkekU; f'k{kk | C23: ='Format 1B'!C22 -> NON PLAN - BOYS | D23: PTI III | E23: L-10 | F23: =COUNTIF(Master!$E$60:$E$285,'Format 1A'!D23) -> 2 | G23: - | H23: - | I23: 2 | J23: 0 | K23: =COUNTIF(Master!$A$60:$A$285,'Format 1A'!D23) -> 0 | L23: 0 | M23: 2 | O23: 2 | R23: 1 | S23: 2 | T23: =SUMIF('Formet 8'!G$12:G$246,'Format 1A'!D23,'Formet 8'!CA$12:CA$246) -> 2 | U23: =SUMIF('Formet 8'!G$12:G$584,'Format 1A'!D23,'Formet 8'!BW$12:BW$584) -> 0 | V23: 0 | W23: =IF(F23>0,MAX($W$9:W22)+1,0) -> 4
A24: 5 | B24: 2202 lkekU; f'k{kk | C24: ='Format 1B'!C23 -> NON PLAN - BOYS | D24: TEACHER-III | E24: L-10 | F24: =COUNTIF(Master!$E$60:$E$285,'Format 1A'!D24) -> 17 | G24: - | H24: - | I24: 17 | J24: 0 | K24: =COUNTIF(Master!$A$60:$A$285,'Format 1A'!D24) -> 5 | L24: 5 | M24: 122 | O24: 12 | R24: 1 | S24: 17 | T24: =SUMIF('Formet 8'!G$12:G$246,'Format 1A'!D24,'Formet 8'!CA$12:CA$246) -> 12 | U24: =SUMIF('Formet 8'!G$12:G$584,'Format 1A'!D24,'Formet 8'!BW$12:BW$584) -> 5 | V24: 0 | W24: =IF(F24>0,MAX($W$9:W23)+1,0) -> 5
A25: 0 | B25: 2202 lkekU; f'k{kk | C25: ='Format 1B'!C24 -> NON PLAN - BOYS | D25: LIBRARIAN III | E25: L-10 | F25: =COUNTIF(Master!$E$60:$E$285,'Format 1A'!D25) -> 0 | G25: - | H25: - | I25: 0 | J25: 0 | K25: =COUNTIF(Master!$A$60:$A$285,'Format 1A'!D25) -> 0 | L25: 0 | M25: =SUMIF('Formet 8'!G$12:G$246,'Format 1A'!D25,'Formet 8'!BW$12:BW$246) -> 0 | O25: 0 | R25: 0 | S25: 0 | T25: =SUMIF('Formet 8'!G$12:G$246,'Format 1A'!D25,'Formet 8'!CA$12:CA$246) -> 0 | U25: =SUMIF('Formet 8'!G$12:G$584,'Format 1A'!D25,'Formet 8'!BW$12:BW$584) -> 0 | V25: 0 | W25: =IF(F25>0,MAX($W$9:W24)+1,0) -> 0
A26: 0 | B26: 2202 lkekU; f'k{kk | C26: ='Format 1B'!C25 -> NON PLAN - BOYS | D26: LAB ASST | E26: L-9 | F26: =COUNTIF(Master!$E$60:$E$285,'Format 1A'!D26) -> 0 | G26: - | H26: - | I26: 0 | J26: 0 | K26: =COUNTIF(Master!$A$60:$A$285,'Format 1A'!D26) -> 0 | L26: 0 | M26: =SUMIF('Formet 8'!G$12:G$246,'Format 1A'!D26,'Formet 8'!BW$12:BW$246) -> 0 | O26: 0 | R26: 0 | S26: 0 | T26: =SUMIF('Formet 8'!G$12:G$246,'Format 1A'!D26,'Formet 8'!CA$12:CA$246) -> 0 | U26: =SUMIF('Formet 8'!G$12:G$584,'Format 1A'!D26,'Formet 8'!BW$12:BW$584) -> 0 | V26: 0 | W26: =IF(F26>0,MAX($W$9:W25)+1,0) -> 0
A27: 0 | B27: 2202 lkekU; f'k{kk | C27: ='Format 1B'!C26 -> NON PLAN - BOYS | D27: CLERK GRADE II | E27: L-5 | F27: =COUNTIF(Master!$E$60:$E$285,'Format 1A'!D27) -> 0 | G27: - | H27: - | I27: 0 | J27: 0 | K27: =COUNTIF(Master!$A$60:$A$285,'Format 1A'!D27) -> 0 | L27: 0 | M27: =SUMIF('Formet 8'!G$12:G$246,'Format 1A'!D27,'Formet 8'!BW$12:BW$246) -> 0 | O27: 0 | R27: 0 | S27: 0 | T27: =SUMIF('Formet 8'!G$12:G$246,'Format 1A'!D27,'Formet 8'!CA$12:CA$246) -> 0 | U27: =SUMIF('Formet 8'!G$12:G$584,'Format 1A'!D27,'Formet 8'!BW$12:BW$584) -> 0 | V27: 0 | W27: =IF(F27>0,MAX($W$9:W26)+1,0) -> 0
A28: 0 | B28: 2202 lkekU; f'k{kk | C28: ='Format 1B'!C27 -> NON PLAN - BOYS | D28: FIELDMAN & FIELD REC | E28: L-5 | F28: =COUNTIF(Master!$E$60:$E$285,'Format 1A'!D28) -> 0 | G28: - | H28: - | I28: 0 | J28: 0 | K28: =COUNTIF(Master!$A$60:$A$285,'Format 1A'!D28) -> 0 | L28: 0 | M28: =SUMIF('Formet 8'!G$12:G$246,'Format 1A'!D28,'Formet 8'!BW$12:BW$246) -> 0 | O28: 0 | R28: 0 | S28: 0 | T28: =SUMIF('Formet 8'!G$12:G$246,'Format 1A'!D28,'Formet 8'!CA$12:CA$246) -> 0 | U28: =SUMIF('Formet 8'!G$12:G$584,'Format 1A'!D28,'Formet 8'!BW$12:BW$584) -> 0 | V28: 0 | W28: =IF(F28>0,MAX($W$9:W27)+1,0) -> 0
A29: 0 | B29: 2202 lkekU; f'k{kk | C29: ='Format 1B'!C28 -> NON PLAN - BOYS | D29: LAB BOY | E29: L-1 | F29: =COUNTIF(Master!$E$60:$E$285,'Format 1A'!D29) -> 0 | G29: - | H29: - | I29: 0 | J29: 0 | K29: =COUNTIF(Master!$A$60:$A$285,'Format 1A'!D29) -> 0 | L29: 0 | M29: =SUMIF('Formet 8'!G$12:G$246,'Format 1A'!D29,'Formet 8'!BW$12:BW$246) -> 0 | O29: 0 | R29: 0 | S29: 0 | T29: =SUMIF('Formet 8'!G$12:G$246,'Format 1A'!D29,'Formet 8'!CA$12:CA$246) -> 0 | U29: =SUMIF('Formet 8'!G$12:G$584,'Format 1A'!D29,'Formet 8'!BW$12:BW$584) -> 0 | V29: 0 | W29: =IF(F29>0,MAX($W$9:W28)+1,0) -> 0
A30: 0 | B30: 2202 lkekU; f'k{kk | C30: ='Format 1B'!C29 -> NON PLAN - BOYS | D30: JAMADAR | E30: L-1 | F30: =COUNTIF(Master!$E$60:$E$285,'Format 1A'!D30) -> 0 | G30: - | H30: - | I30: 0 | J30: 0 | K30: =COUNTIF(Master!$A$60:$A$285,'Format 1A'!D30) -> 0 | L30: 0 | M30: =SUMIF('Formet 8'!G$12:G$246,'Format 1A'!D30,'Formet 8'!BW$12:BW$246) -> 0 | O30: 0 | R30: 0 | S30: 0 | T30: =SUMIF('Formet 8'!G$12:G$246,'Format 1A'!D30,'Formet 8'!CA$12:CA$246) -> 0 | U30: =SUMIF('Formet 8'!G$12:G$584,'Format 1A'!D30,'Formet 8'!BW$12:BW$584) -> 0 | V30: 0 | W30: =IF(F30>0,MAX($W$9:W29)+1,0) -> 0
A31: 6 | B31: 2202 lkekU; f'k{kk | C31: ='Format 1B'!C30 -> NON PLAN - BOYS | D31: PEON | E31: L-1 | F31: =COUNTIF(Master!$E$60:$E$285,'Format 1A'!D31) -> 1 | G31: - | H31: - | I31: 1 | J31: 0 | K31: =COUNTIF(Master!$A$60:$A$285,'Format 1A'!D31) -> 1 | L31: 1 | M31: =SUMIF('Formet 8'!G$12:G$246,'Format 1A'!D31,'Formet 8'!BW$12:BW$246) -> 1 | O31: 0 | R31: 1 | S31: 1 | T31: =SUMIF('Formet 8'!G$12:G$246,'Format 1A'!D31,'Formet 8'!CA$12:CA$246) -> 0 | U31: =SUMIF('Formet 8'!G$12:G$584,'Format 1A'!D31,'Formet 8'!BW$12:BW$584) -> 1 | V31: 0 | W31: =IF(F31>0,MAX($W$9:W30)+1,0) -> 6
A32: 7 | B32: 2203 lkekU; f'k{kk | C32: ='Format 1B'!C31 -> NON PLAN - BOYS | D32: Sanvida Employee | E32: - | F32: =COUNTIF(Master!$E$60:$E$285,'Format 1A'!D32) -> 2 | G32: 0 | H32: 0 | I32: =F32 -> 2 | J32: 0 | K32: =COUNTIF(Master!$A$60:$A$285,'Format 1A'!D32) -> 2 | L32: 2 | M32: =SUMIF('Formet 8'!G$12:G$246,'Format 1A'!D32,'Formet 8'!BW$12:BW$246) -> 0 | O32: 0 | R32: 1 | W32: =IF(F32>0,MAX($W$9:W31)+1,0) -> 7
D33: Total | F33: =SUM(F9:F32) -> 26 | G33: =SUM(G9:G32) -> 0 | H33: =SUM(H9:H32) -> 0 | I33: =SUM(I9:I32) -> 26 | J33: =SUM(J9:J32) -> 0 | K33: =SUM(K9:K32) -> 11 | L33: 11 | M33: =SUM(M9:M32) -> 127 | O33: =SUM(O9:O32) -> 15
L35: =Master!E2 -> ç/kkukpk;Z]
L36: =Master!H2 -> jkmekfo jk;eyok³k

Sheet Format 1B
A1: ='P 4(A)'!E4 -> vk; dk foLr`r ctV vuqeku foÙkh; o"kZ ¼ 1 vizSy ls 31 ekpZ rd ½ dk | O1: =Summary!$C$1 -> OFFICE ID 12345
A2: =Summary!A2 -> ç/kkukpk;Z] jkmekfo jk;eyok³k ¼vkWfQl vkbZ-Mh- la[;k %&12345½
A3: izi= & 1
A4: ¼c½ Lohd`r fjDr inksa ds fo:) foHkkx esa dk;Zjr vU; dkfeZdksa dk fooj.k
A5: =Summary!A5 -> BUDGET HEAD : 2202 -सामान्य शिक्षा-02-109 -राजकीय माध्यमिक विद्यालय-07 -राष्ट्रीय माध्यमिक शिक्षा अभियान-01 -माध्यमिक शिक्षा अभियान- सामान्य व्यय (S.F. + C.A.) | P5: foHkkx dk uke %& f'k{kk foHkkx
A6: Ø-la- | B6: ys[ks dk 'kh"kZ nh?kZ 'kh"kZ@ minh?kZ 'kh"kZ @ y?kq 'kh"kZ @ mi'kh"kZ | C6: vk;kstuk fHkUu @vk;kstuk @ dsUnz izofrZr ;kstuk | D6: in uke | E6: is eSfVªDl ysoy | F6: fjDr inksa dh la[;k | G6: rnFkZ vLFkkbZ fu;qfDr ¼la[;k½ | H6: vkSlr izfr O;fDr izfrekg O;; ¼:i;ksa esa½ | I6: iqufuZ;qfDr ¼la[;k½ | J6: vkSlr izfr O;fDr izfrekg O;; ¼:i;ksa esa½ | K6: ,stsUlh ek/;e ls ¼la[;k½ | L6: vkSlr izfr O;fDr izfrekg O;; ¼:i;ksa esa½ | M6: lsokfuo`r dkfeZd izR;{k lafonk ¼la[;k½ | N6: vkSlr izfr O;fDr izfrekg O;; ¼:i;ksa esa½ | O6: dfeZd foHkkx ds ifji= ds vuqlkj ¼la[;k½ | P6: vkSlr izfr O;fDr izfrekg O;; ¼:i;ksa esa½ | Q6: vU; ¼la[;k½ | R6: vkSlr izfr O;fDr izfrekg O;; ¼:i;ksa esa½
A7: 1 | B7: 2 | C7: 3 | D7: 4 | E7: 5 | F7: 6 | G7: 7 | H7: 8 | I7: 9 | J7: 10 | K7: 11 | L7: 12 | M7: 13 | N7: 14 | O7: 15 | P7: 16 | Q7: 17 | R7: 18
A8: ='Format 1A'!A9 -> 1 | B8: 2202 lkekU; f'k{kk | C8: ='[2]Data Entry'!C$5 -> NON PLAN - BOYS | D8: ='Format 1A'!D9 -> PRINCIPAL | E8: ='Format 1A'!E9 -> L-16 | F8: ='Format 1A'!O9 -> 0 | G8: --- | H8: --- | I8: --- | J8: --- | K8: --- | L8: --- | M8: =SUMIF('Formet 8'!G$12:G$350,'Format 1A'!D9,'Formet 8'!BY$12:BY$350) -> 0 | N8: =SUMIF('Formet 8'!G$12:G$350,'Format 1A'!D9,'Formet 8'!BZ$12:BZ$350) -> 0 | O8: --- | P8: --- | Q8: --- | R8: ---
A9: ='Format 1A'!A10 -> 0 | B9: 2202 lkekU; f'k{kk | C9: ='[2]Data Entry'!C$5 -> NON PLAN - BOYS | D9: ='Format 1A'!D10 -> VICE PRINCIPAL | E9: ='Format 1A'!E10 -> L-14 | F9: ='Format 1A'!O10 -> 0 | G9: --- | H9: --- | I9: --- | J9: --- | K9: --- | L9: --- | M9: =SUMIF('Formet 8'!G$12:G$350,'Format 1A'!D10,'Formet 8'!BY$12:BY$350) -> 0 | N9: =SUMIF('Formet 8'!G$12:G$350,'Format 1A'!D10,'Formet 8'!BZ$12:BZ$350) -> 0 | O9: --- | P9: --- | Q9: --- | R9: ---
A10: ='Format 1A'!A11 -> 2 | B10: 2202 lkekU; f'k{kk | C10: ='[2]Data Entry'!C$5 -> NON PLAN - BOYS | D10: ='Format 1A'!D11 -> LECTURER | E10: ='Format 1A'!E11 -> L-12 | F10: ='Format 1A'!O11 -> 0 | G10: --- | H10: --- | I10: --- | J10: --- | K10: --- | L10: --- | M10: =SUMIF('Formet 8'!G$12:G$350,'Format 1A'!D11,'Formet 8'!BY$12:BY$350) -> 0 | N10: =SUMIF('Formet 8'!G$12:G$350,'Format 1A'!D11,'Formet 8'!BZ$12:BZ$350) -> 0 | O10: --- | P10: --- | Q10: --- | R10: ---
A11: ='Format 1A'!A12 -> 0 | B11: 2202 lkekU; f'k{kk | C11: ='[2]Data Entry'!C$5 -> NON PLAN - BOYS | D11: ='Format 1A'!D12 -> TEACHER-I | E11: ='Format 1A'!E12 -> L-12 | F11: ='Format 1A'!O12 -> 0 | G11: --- | H11: --- | I11: --- | J11: --- | K11: --- | L11: --- | M11: =SUMIF('Formet 8'!G$12:G$350,'Format 1A'!D12,'Formet 8'!BY$12:BY$350) -> 0 | N11: =SUMIF('Formet 8'!G$12:G$350,'Format 1A'!D12,'Formet 8'!BZ$12:BZ$350) -> 0 | O11: --- | P11: --- | Q11: --- | R11: ---
A12: ='Format 1A'!A13 -> 0 | B12: 2202 lkekU; f'k{kk | C12: ='[2]Data Entry'!C$5 -> NON PLAN - BOYS | D12: ='Format 1A'!D13 -> PTI I | E12: ='Format 1A'!E13 -> L-12 | F12: ='Format 1A'!O13 -> 0 | G12: --- | H12: --- | I12: --- | J12: --- | K12: --- | L12: --- | M12: =SUMIF('Formet 8'!G$12:G$350,'Format 1A'!D13,'Formet 8'!BY$12:BY$350) -> 0 | N12: =SUMIF('Formet 8'!G$12:G$350,'Format 1A'!D13,'Formet 8'!BZ$12:BZ$350) -> 0 | O12: --- | P12: --- | Q12: --- | R12: ---
A13: ='Format 1A'!A14 -> 0 | B13: 2202 lkekU; f'k{kk | C13: ='[2]Data Entry'!C$5 -> NON PLAN - BOYS | D13: ='Format 1A'!D14 -> AGRICULTURE TEACH | E13: ='Format 1A'!E14 -> L-12 | F13: ='Format 1A'!O14 -> 0 | G13: --- | H13: --- | I13: --- | J13: --- | K13: --- | L13: --- | M13: =SUMIF('Formet 8'!G$12:G$350,'Format 1A'!D14,'Formet 8'!BY$12:BY$350) -> 0 | N13: =SUMIF('Formet 8'!G$12:G$350,'Format 1A'!D14,'Formet 8'!BZ$12:BZ$350) -> 0 | O13: --- | P13: --- | Q13: --- | R13: ---
A14: ='Format 1A'!A15 -> 0 | B14: 2202 lkekU; f'k{kk | C14: ='[2]Data Entry'!C$5 -> NON PLAN - BOYS | D14: ='Format 1A'!D15 -> INSTRUCTOR | E14: ='Format 1A'!E15 -> L-12 | F14: ='Format 1A'!O15 -> 0 | G14: --- | H14: --- | I14: --- | J14: --- | K14: --- | L14: --- | M14: =SUMIF('Formet 8'!G$12:G$350,'Format 1A'!D15,'Formet 8'!BY$12:BY$350) -> 0 | N14: =SUMIF('Formet 8'!G$12:G$350,'Format 1A'!D15,'Formet 8'!BZ$12:BZ$350) -> 0 | O14: --- | P14: --- | Q14: --- | R14: ---
A15: ='Format 1A'!A16 -> 0 | B15: 2202 lkekU; f'k{kk | C15: ='[2]Data Entry'!C$5 -> NON PLAN - BOYS | D15: ='Format 1A'!D16 -> LIBRARIAN I | E15: ='Format 1A'!E16 -> L-12 | F15: ='Format 1A'!O16 -> 0 | G15: --- | H15: --- | I15: --- | J15: --- | K15: --- | L15: --- | M15: =SUMIF('Formet 8'!G$12:G$350,'Format 1A'!D16,'Formet 8'!BY$12:BY$350) -> 0 | N15: =SUMIF('Formet 8'!G$12:G$350,'Format 1A'!D16,'Formet 8'!BZ$12:BZ$350) -> 0 | O15: --- | P15: --- | Q15: --- | R15: ---
A16: ='Format 1A'!A17 -> 0 | B16: 2202 lkekU; f'k{kk | C16: ='[2]Data Entry'!C$5 -> NON PLAN - BOYS | D16: ='Format 1A'!D17 -> BASIC COMPUTER INST. | E16: ='Format 1A'!E17 -> L-8 | F16: ='Format 1A'!O17 -> 0 | G16: --- | H16: --- | I16: --- | J16: --- | K16: --- | L16: --- | M16: =SUMIF('Formet 8'!G$12:G$350,'Format 1A'!D17,'Formet 8'!BY$12:BY$350) -> 0 | N16: =SUMIF('Formet 8'!G$12:G$350,'Format 1A'!D17,'Formet 8'!BZ$12:BZ$350) -> 0 | O16: --- | P16: --- | Q16: --- | R16: ---
A17: ='Format 1A'!A18 -> 3 | B17: 2202 lkekU; f'k{kk | C17: ='[2]Data Entry'!C$5 -> NON PLAN - BOYS | D17: ='Format 1A'!D18 -> TEACHER-II | E17: ='Format 1A'!E18 -> L-11 | F17: ='Format 1A'!O18 -> 1 | G17: --- | H17: --- | I17: --- | J17: --- | K17: --- | L17: --- | M17: =SUMIF('Formet 8'!G$12:G$350,'Format 1A'!D18,'Formet 8'!BY$12:BY$350) -> 0 | N17: =SUMIF('Formet 8'!G$12:G$350,'Format 1A'!D18,'Formet 8'!BZ$12:BZ$350) -> 0 | O17: --- | P17: --- | Q17: --- | R17: ---
A18: ='Format 1A'!A19 -> 0 | B18: 2202 lkekU; f'k{kk | C18: ='[2]Data Entry'!C$5 -> NON PLAN - BOYS | D18: ='Format 1A'!D19 -> PTI II | E18: ='Format 1A'!E19 -> L-11 | F18: ='Format 1A'!O19 -> 0 | G18: --- | H18: --- | I18: --- | J18: --- | K18: --- | L18: --- | M18: =SUMIF('Formet 8'!G$12:G$350,'Format 1A'!D19,'Formet 8'!BY$12:BY$350) -> 0 | N18: =SUMIF('Formet 8'!G$12:G$350,'Format 1A'!D19,'Formet 8'!BZ$12:BZ$350) -> 0 | O18: --- | P18: --- | Q18: --- | R18: ---
A19: ='Format 1A'!A20 -> 0 | B19: 2202 lkekU; f'k{kk | C19: ='[2]Data Entry'!C$5 -> NON PLAN - BOYS | D19: ='Format 1A'!D20 -> LIBRARIAN II | E19: ='Format 1A'!E20 -> L-11 | F19: ='Format 1A'!O20 -> 0 | G19: --- | H19: --- | I19: --- | J19: --- | K19: --- | L19: --- | M19: =SUMIF('Formet 8'!G$12:G$350,'Format 1A'!D20,'Formet 8'!BY$12:BY$350) -> 0 | N19: =SUMIF('Formet 8'!G$12:G$350,'Format 1A'!D20,'Formet 8'!BZ$12:BZ$350) -> 0 | O19: --- | P19: --- | Q19: --- | R19: ---
A20: ='Format 1A'!A21 -> 0 | B20: 2202 lkekU; f'k{kk | C20: ='[2]Data Entry'!C$5 -> NON PLAN - BOYS | D20: ='Format 1A'!D21 -> LAB ASST | E20: ='Format 1A'!E21 -> L-9 | F20: ='Format 1A'!O21 -> 0 | G20: --- | H20: --- | I20: --- | J20: --- | K20: --- | L20: --- | M20: =SUMIF('Formet 8'!G$12:G$350,'Format 1A'!D21,'Formet 8'!BY$12:BY$350) -> 0 | N20: =SUMIF('Formet 8'!G$12:G$350,'Format 1A'!D21,'Formet 8'!BZ$12:BZ$350) -> 0 | O20: --- | P20: --- | Q20: --- | R20: ---
A21: ='Format 1A'!A22 -> 0 | B21: 2202 lkekU; f'k{kk | C21: ='[2]Data Entry'!C$5 -> NON PLAN - BOYS | D21: ='Format 1A'!D22 -> CLERK GRADE I | E21: ='Format 1A'!E22 -> L-9 | F21: ='Format 1A'!O22 -> 0 | G21: --- | H21: --- | I21: --- | J21: --- | K21: --- | L21: --- | M21: =SUMIF('Formet 8'!G$12:G$350,'Format 1A'!D22,'Formet 8'!BY$12:BY$350) -> 0 | N21: =SUMIF('Formet 8'!G$12:G$350,'Format 1A'!D22,'Formet 8'!BZ$12:BZ$350) -> 0 | O21: --- | P21: --- | Q21: --- | R21: ---
A22: ='Format 1A'!A23 -> 4 | B22: 2202 lkekU; f'k{kk | C22: ='[2]Data Entry'!C$5 -> NON PLAN - BOYS | D22: ='Format 1A'!D23 -> PTI III | E22: ='Format 1A'!E23 -> L-10 | F22: ='Format 1A'!O23 -> 2 | G22: --- | H22: --- | I22: --- | J22: --- | K22: --- | L22: --- | M22: =SUMIF('Formet 8'!G$12:G$350,'Format 1A'!D23,'Formet 8'!BY$12:BY$350) -> 0 | N22: =SUMIF('Formet 8'!G$12:G$350,'Format 1A'!D23,'Formet 8'!BZ$12:BZ$350) -> 0 | O22: --- | P22: --- | Q22: --- | R22: ---
A23: ='Format 1A'!A24 -> 5 | B23: 2202 lkekU; f'k{kk | C23: ='[2]Data Entry'!C$5 -> NON PLAN - BOYS | D23: ='Format 1A'!D24 -> TEACHER-III | E23: ='Format 1A'!E24 -> L-10 | F23: ='Format 1A'!O24 -> 12 | G23: --- | H23: --- | I23: --- | J23: --- | K23: --- | L23: --- | M23: =SUMIF('Formet 8'!G$12:G$350,'Format 1A'!D24,'Formet 8'!BY$12:BY$350) -> 0 | N23: =SUMIF('Formet 8'!G$12:G$350,'Format 1A'!D24,'Formet 8'!BZ$12:BZ$350) -> 0 | O23: --- | P23: --- | Q23: --- | R23: ---
A24: ='Format 1A'!A25 -> 0 | B24: 2202 lkekU; f'k{kk | C24: ='[2]Data Entry'!C$5 -> NON PLAN - BOYS | D24: ='Format 1A'!D25 -> LIBRARIAN III | E24: ='Format 1A'!E25 -> L-10 | F24: ='Format 1A'!O25 -> 0 | G24: --- | H24: --- | I24: --- | J24: --- | K24: --- | L24: --- | M24: =SUMIF('Formet 8'!G$12:G$350,'Format 1A'!D25,'Formet 8'!BY$12:BY$350) -> 0 | N24: =SUMIF('Formet 8'!G$12:G$350,'Format 1A'!D25,'Formet 8'!BZ$12:BZ$350) -> 0 | O24: --- | P24: --- | Q24: --- | R24: ---
A25: ='Format 1A'!A26 -> 0 | B25: 2202 lkekU; f'k{kk | C25: ='[2]Data Entry'!C$5 -> NON PLAN - BOYS | D25: ='Format 1A'!D26 -> LAB ASST | E25: ='Format 1A'!E26 -> L-9 | F25: ='Format 1A'!O26 -> 0 | G25: --- | H25: --- | I25: --- | J25: --- | K25: --- | L25: --- | M25: =SUMIF('Formet 8'!G$12:G$350,'Format 1A'!D26,'Formet 8'!BY$12:BY$350) -> 0 | N25: =SUMIF('Formet 8'!G$12:G$350,'Format 1A'!D26,'Formet 8'!BZ$12:BZ$350) -> 0 | O25: --- | P25: --- | Q25: --- | R25: ---
A26: ='Format 1A'!A27 -> 0 | B26: 2202 lkekU; f'k{kk | C26: ='[2]Data Entry'!C$5 -> NON PLAN - BOYS | D26: ='Format 1A'!D27 -> CLERK GRADE II | E26: ='Format 1A'!E27 -> L-5 | F26: ='Format 1A'!O27 -> 0 | G26: --- | H26: --- | I26: --- | J26: --- | K26: --- | L26: --- | M26: =SUMIF('Formet 8'!G$12:G$350,'Format 1A'!D27,'Formet 8'!BY$12:BY$350) -> 0 | N26: =SUMIF('Formet 8'!G$12:G$350,'Format 1A'!D27,'Formet 8'!BZ$12:BZ$350) -> 0 | O26: --- | P26: --- | Q26: --- | R26: ---
A27: ='Format 1A'!A28 -> 0 | B27: 2202 lkekU; f'k{kk | C27: ='[2]Data Entry'!C$5 -> NON PLAN - BOYS | D27: ='Format 1A'!D28 -> FIELDMAN & FIELD REC | E27: ='Format 1A'!E28 -> L-5 | F27: ='Format 1A'!O28 -> 0 | G27: --- | H27: --- | I27: --- | J27: --- | K27: --- | L27: --- | M27: =SUMIF('Formet 8'!G$12:G$350,'Format 1A'!D28,'Formet 8'!BY$12:BY$350) -> 0 | N27: =SUMIF('Formet 8'!G$12:G$350,'Format 1A'!D28,'Formet 8'!BZ$12:BZ$350) -> 0 | O27: --- | P27: --- | Q27: --- | R27: ---
A28: ='Format 1A'!A29 -> 0 | B28: 2202 lkekU; f'k{kk | C28: ='[2]Data Entry'!C$5 -> NON PLAN - BOYS | D28: ='Format 1A'!D29 -> LAB BOY | E28: ='Format 1A'!E29 -> L-1 | F28: ='Format 1A'!O29 -> 0 | G28: --- | H28: --- | I28: --- | J28: --- | K28: --- | L28: --- | M28: =SUMIF('Formet 8'!G$12:G$350,'Format 1A'!D29,'Formet 8'!BY$12:BY$350) -> 0 | N28: =SUMIF('Formet 8'!G$12:G$350,'Format 1A'!D29,'Formet 8'!BZ$12:BZ$350) -> 0 | O28: --- | P28: --- | Q28: --- | R28: ---
A29: ='Format 1A'!A30 -> 0 | B29: 2202 lkekU; f'k{kk | C29: ='[2]Data Entry'!C$5 -> NON PLAN - BOYS | D29: ='Format 1A'!D30 -> JAMADAR | E29: ='Format 1A'!E30 -> L-1 | F29: ='Format 1A'!O30 -> 0 | G29: --- | H29: --- | I29: --- | J29: --- | K29: --- | L29: --- | M29: =SUMIF('Formet 8'!G$12:G$350,'Format 1A'!D30,'Formet 8'!BY$12:BY$350) -> 0 | N29: =SUMIF('Formet 8'!G$12:G$350,'Format 1A'!D30,'Formet 8'!BZ$12:BZ$350) -> 0 | O29: --- | P29: --- | Q29: --- | R29: ---
A30: ='Format 1A'!A31 -> 6 | B30: 2202 lkekU; f'k{kk | C30: ='[2]Data Entry'!C$5 -> NON PLAN - BOYS | D30: ='Format 1A'!D31 -> PEON | E30: ='Format 1A'!E31 -> L-1 | F30: ='Format 1A'!O31 -> 0 | G30: --- | H30: --- | I30: --- | J30: --- | K30: --- | L30: --- | M30: =SUMIF('Formet 8'!G$12:G$350,'Format 1A'!D31,'Formet 8'!BY$12:BY$350) -> 0 | N30: =SUMIF('Formet 8'!G$12:G$350,'Format 1A'!D31,'Formet 8'!BZ$12:BZ$350) -> 0 | O30: --- | P30: --- | Q30: --- | R30: ---
A31: ='Format 1A'!A32 -> 7 | B31: 2203 lkekU; f'k{kk | C31: ='[2]Data Entry'!C$5 -> NON PLAN - BOYS | D31: ='Format 1A'!D32 -> Sanvida Employee | E31: ='Format 1A'!E32 -> - | F31: ='Format 1A'!O32 -> 0
D32: Total | F32: =SUM(F8:F30) -> 15 | G32: --- | H32: --- | I32: --- | J32: --- | K32: --- | L32: --- | M32: =SUM(M8:M30) -> 0 | N32: =SUM(N8:N30) -> 0 | O32: --- | P32: --- | Q32: --- | R32: ---
N34: =Master!E2 -> ç/kkukpk;Z]
N36: =Master!H2 -> jkmekfo jk;eyok³k

Sheet Format 1C
A1: ='Format 1B'!A1 -> vk; dk foLr`r ctV vuqeku foÙkh; o"kZ ¼ 1 vizSy ls 31 ekpZ rd ½ dk | F1: =Summary!$C$1 -> OFFICE ID : 12345
A2: =Summary!A2 -> ç/kkukpk;Z] jkmekfo jk;eyok³k ¼vkWfQl vkbZ-Mh- la[;k %&12345½
A3: ¼l½ foHkkx esa dk;Zjr vU; dkfeZdksa dk fooj.k ¼Lohd`r inksa ds vfrfjDr½
A4: =Summary!A5 -> BUDGET HEAD : 2202 -सामान्य शिक्षा-02-109 -राजकीय माध्यमिक विद्यालय-07 -राष्ट्रीय माध्यमिक शिक्षा अभियान-01 -माध्यमिक शिक्षा अभियान- सामान्य व्यय (S.F. + C.A.) | F4: foHkkx dk uke %& f'k{kk foHkkx
A5: Ø-la- | B5: ys[ks dk 'kh"kZ & eq[; 'kh"kZ @ mi&eq[; 'kh"kZ @ y?kq 'kh"kZ @ mi&'ksh"kZ @ xqzi 'kh"kZ | C5: vk;kstuk fHkUu @ vk;kstuk @ dsUnz izofrZr ;kstuk | D5: vk;kstuk fHkUu @ vk;kstuk @ dsUnz izofrZr ;kstuk | F5: la[;k | G5: okf"kZd fofÙk; Hkkj ¼:i;s lgL= esa½
A6: 1 | B6: 2 | D6: 3 | F6: 5 | G6: 6
A7: ='Format 1A'!A9 -> 1 | B7: =A4 -> BUDGET HEAD : 2202 -सामान्य शिक्षा-02-109 -राजकीय माध्यमिक विद्यालय-07 -राष्ट्रीय माध्यमिक शिक्षा अभियान-01 -माध्यमिक शिक्षा अभियान- सामान्य व्यय (S.F. + C.A.) | C7: ='Format 1A'!C9 -> NON PLAN - BOYS | D7: ='Format 1A'!D9 -> PRINCIPAL | E7: ='Format 1A'!E9 -> L-16 | F7: ='Format 1A'!F9 -> 1 | G7: 0 | K7: ='Format 1A'!F9 -> 1
A8: ='Format 1A'!A10 -> 0 | C8: ='Format 1A'!C10 -> NON PLAN - BOYS | D8: ='Format 1A'!D10 -> VICE PRINCIPAL | E8: ='Format 1A'!E10 -> L-14 | F8: ='Format 1A'!F10 -> 0 | G8: 0 | K8: ='Format 1A'!F10 -> 0
A9: ='Format 1A'!A11 -> 2 | C9: ='Format 1A'!C11 -> NON PLAN - BOYS | D9: ='Format 1A'!D11 -> LECTURER | E9: ='Format 1A'!E11 -> L-12 | F9: ='Format 1A'!F11 -> 1 | G9: 0 | K9: ='Format 1A'!F11 -> 1
A10: ='Format 1A'!A12 -> 0 | C10: ='Format 1A'!C12 -> NON PLAN - BOYS | D10: ='Format 1A'!D12 -> TEACHER-I | E10: ='Format 1A'!E12 -> L-12 | F10: ='Format 1A'!F12 -> 0 | G10: 0 | K10: ='Format 1A'!F12 -> 0
A11: ='Format 1A'!A13 -> 0 | C11: ='Format 1A'!C13 -> NON PLAN - BOYS | D11: ='Format 1A'!D13 -> PTI I | E11: ='Format 1A'!E13 -> L-12 | F11: ='Format 1A'!F13 -> 0 | G11: 0 | K11: ='Format 1A'!F13 -> 0
A12: ='Format 1A'!A14 -> 0 | C12: ='Format 1A'!C14 -> NON PLAN - BOYS | D12: ='Format 1A'!D14 -> AGRICULTURE TEACH | E12: ='Format 1A'!E14 -> L-12 | F12: ='Format 1A'!F14 -> 0 | G12: 0 | K12: ='Format 1A'!F14 -> 0
A13: ='Format 1A'!A15 -> 0 | C13: ='Format 1A'!C15 -> NON PLAN - BOYS | D13: ='Format 1A'!D15 -> INSTRUCTOR | E13: ='Format 1A'!E15 -> L-12 | F13: ='Format 1A'!F15 -> 0 | G13: 0 | K13: ='Format 1A'!F15 -> 0
A14: ='Format 1A'!A16 -> 0 | C14: ='Format 1A'!C16 -> NON PLAN - BOYS | D14: ='Format 1A'!D16 -> LIBRARIAN I | E14: ='Format 1A'!E16 -> L-12 | F14: ='Format 1A'!F16 -> 0 | G14: 0 | K14: ='Format 1A'!F16 -> 0
A15: ='Format 1A'!A17 -> 0 | C15: ='Format 1A'!C17 -> NON PLAN - BOYS | D15: ='Format 1A'!D17 -> BASIC COMPUTER INST. | E15: ='Format 1A'!E17 -> L-8 | F15: ='Format 1A'!F17 -> 0 | G15: 0 | K15: ='Format 1A'!F17 -> 0
A16: ='Format 1A'!A18 -> 3 | C16: ='Format 1A'!C18 -> NON PLAN - BOYS | D16: ='Format 1A'!D18 -> TEACHER-II | E16: ='Format 1A'!E18 -> L-11 | F16: ='Format 1A'!F18 -> 2 | G16: 0 | K16: ='Format 1A'!F18 -> 2
A17: ='Format 1A'!A19 -> 0 | C17: ='Format 1A'!C19 -> NON PLAN - BOYS | D17: ='Format 1A'!D19 -> PTI II | E17: ='Format 1A'!E19 -> L-11 | F17: ='Format 1A'!F19 -> 0 | G17: 0 | K17: ='Format 1A'!F19 -> 0
A18: ='Format 1A'!A20 -> 0 | C18: ='Format 1A'!C20 -> NON PLAN - BOYS | D18: ='Format 1A'!D20 -> LIBRARIAN II | E18: ='Format 1A'!E20 -> L-11 | F18: ='Format 1A'!F20 -> 0 | G18: 0 | K18: ='Format 1A'!F20 -> 0
A19: ='Format 1A'!A21 -> 0 | C19: ='Format 1A'!C21 -> NON PLAN - BOYS | D19: ='Format 1A'!D21 -> LAB ASST | E19: ='Format 1A'!E21 -> L-9 | F19: ='Format 1A'!F21 -> 0 | G19: 0 | K19: ='Format 1A'!F21 -> 0
A20: ='Format 1A'!A22 -> 0 | C20: ='Format 1A'!C22 -> NON PLAN - BOYS | D20: ='Format 1A'!D22 -> CLERK GRADE I | E20: ='Format 1A'!E22 -> L-9 | F20: ='Format 1A'!F22 -> 0 | G20: 0 | K20: ='Format 1A'!F22 -> 0
A21: ='Format 1A'!A23 -> 4 | C21: ='Format 1A'!C23 -> NON PLAN - BOYS | D21: ='Format 1A'!D23 -> PTI III | E21: ='Format 1A'!E23 -> L-10 | F21: ='Format 1A'!F23 -> 2 | G21: 0 | K21: ='Format 1A'!F23 -> 2
A22: ='Format 1A'!A24 -> 5 | C22: ='Format 1A'!C24 -> NON PLAN - BOYS | D22: ='Format 1A'!D24 -> TEACHER-III | E22: ='Format 1A'!E24 -> L-10 | F22: ='Format 1A'!F24 -> 17 | G22: 0 | K22: ='Format 1A'!F24 -> 17
A23: ='Format 1A'!A25 -> 0 | C23: ='Format 1A'!C25 -> NON PLAN - BOYS | D23: ='Format 1A'!D25 -> LIBRARIAN III | E23: ='Format 1A'!E25 -> L-10 | F23: ='Format 1A'!F25 -> 0 | G23: 0 | K23: ='Format 1A'!F25 -> 0
A24: ='Format 1A'!A26 -> 0 | C24: ='Format 1A'!C26 -> NON PLAN - BOYS | D24: ='Format 1A'!D26 -> LAB ASST | E24: ='Format 1A'!E26 -> L-9 | F24: ='Format 1A'!F26 -> 0 | G24: 0 | K24: ='Format 1A'!F26 -> 0
A25: ='Format 1A'!A27 -> 0 | C25: ='Format 1A'!C27 -> NON PLAN - BOYS | D25: ='Format 1A'!D27 -> CLERK GRADE II | E25: ='Format 1A'!E27 -> L-5 | F25: ='Format 1A'!F27 -> 0 | G25: 0 | K25: ='Format 1A'!F27 -> 0
A26: ='Format 1A'!A28 -> 0 | C26: ='Format 1A'!C28 -> NON PLAN - BOYS | D26: ='Format 1A'!D28 -> FIELDMAN & FIELD REC | E26: ='Format 1A'!E28 -> L-5 | F26: ='Format 1A'!F28 -> 0 | G26: 0 | K26: ='Format 1A'!F28 -> 0
A27: ='Format 1A'!A29 -> 0 | C27: ='Format 1A'!C29 -> NON PLAN - BOYS | D27: ='Format 1A'!D29 -> LAB BOY | E27: ='Format 1A'!E29 -> L-1 | F27: ='Format 1A'!F29 -> 0 | G27: 0 | K27: ='Format 1A'!F29 -> 0
A28: ='Format 1A'!A30 -> 0 | C28: ='Format 1A'!C30 -> NON PLAN - BOYS | D28: ='Format 1A'!D30 -> JAMADAR | E28: ='Format 1A'!E30 -> L-1 | F28: ='Format 1A'!F30 -> 0 | G28: 0 | K28: ='Format 1A'!F30 -> 0
A29: ='Format 1A'!A31 -> 6 | C29: ='Format 1A'!C31 -> NON PLAN - BOYS | D29: ='Format 1A'!D31 -> PEON | E29: ='Format 1A'!E31 -> L-1 | F29: ='Format 1A'!F31 -> 1 | G29: 0 | K29: ='Format 1A'!F31 -> 1
A30: ='Format 1A'!A32 -> 7 | C30: ='Format 1A'!C32 -> NON PLAN - BOYS | D30: ='Format 1A'!D32 -> Sanvida Employee | E30: ='Format 1A'!E32 -> - | F30: ='Format 1A'!F32 -> 2 | G30: =SUM(G7:G29) -> 0 | K30: ='Format 1A'!F33 -> 26
D31: Total | F31: =SUM(F7:F30) -> 26 | G31: =SUM(G7:G30) -> 0
F32: =Master!E2 -> ç/kkukpk;Z]
F33: =Master!H2 -> jkmekfo jk;eyok³k

Sheet Summary
C1: =Master!E3 -> OFFICE ID :- 12345
A2: ='Cover Page'!A1 -> ç/kkukpk;Z] jkmekfo jk;eyok³k ¼vkWfQl vkbZ-Mh- la[;k %&12345½
A3: =CONCATENATE(Master!E1,Master!H1) -> Principal Govt. Sr. Sec. School Raimalwada
A4: la'kksf/kr vuqeku l= 2023&24 vk;&O;;d vuqeku lkjka'k 2024&25
A5: =CONCATENATE("BUDGET HEAD : ",VLOOKUP(Master!E5,Master!AI4:AN35,3,FALSE)) -> BUDGET HEAD : 2202 -सामान्य शिक्षा-02-109 -राजकीय माध्यमिक विद्यालय-07 -राष्ट्रीय माध्यमिक शिक्षा अभियान-01 -माध्यमिक शिक्षा अभियान- सामान्य व्यय (S.F. + C.A.)
A6: fooj.k | B6: la'kksf/kr vuqeku l= 2023&24 | C6: vk;&O;;d vuqeku l= 2024&25
A7: 01 laosru
A8: d- osru jktif=r | B8: ='Formet 8'!N26 -> 823600 | C8: ='Formet 8'!M26 -> 848400
A9: [k- osru vjktif=r | B9: ='Formet 8'!N214 -> 2967200 | C9: ='Formet 8'!M214 -> 3057200
A10: ;ksx osru ¼d ls [k rd½ | B10: =SUM(B8:B9) -> 3790800 | C10: =SUM(C8:C9) -> 3905600
A11: HkÙks ,oa ekuns;
A12: 1- eagxkbZ HkRrk | B12: ='Formet 8'!N217 -> 1592136 | C12: ='Formet 8'!M217 -> 1640352
A13: 2- eagxkbZ HkRrk ,fj;j | B13: ='Formet 8'!N218 -> 38280 | C13: ='Formet 8'!M218 -> 77708
A14: 3- fLFkjhdj.k @ p;fur osru @ vU; | B14: ='Formet 8'!N219 -> 0 | C14: ='Formet 8'!M219 -> 744610
A15: 4- edku fdjk;k HkRrk | B15: ='Formet 8'!N220 -> 341172 | C15: ='Formet 8'!M220 -> 351504
A16: 5- lefiZr vodk'k osru | B16: ='Formet 8'!N222 -> 219887 | C16: ='Formet 8'!M222 -> 226490
A17: 6- 'kgjh HkRrk | B17: 0 | C17: 0
A18: 7- cksul | B18: ='Formet 8'!N221 -> 121932 | C18: ='Formet 8'!M221 -> 121932
A19: 8- fn- 20-01-06 ls fu;qDr dkfeZdksa dks fu;r ikfjJfed | B19: ='Formet 8'!N339 -> 483600 | C19: ='Formet 8'!M339 -> 483600
A20: 9- lafonk dkfeZdksa dks fu;r ikfjJfed | B20: ='Formet 8'!N345+'Formet 8'!N367 -> 393600 | C20: ='Formet 8'!M367+'Formet 8'!M345 -> 393600
A21: 10- iz-v- HkRrk | B21: 0 | C21: 0
A22: 11- jksdM+ HkRrk | B22: ='Formet 8'!N223 -> 0 | C22: ='Formet 8'!M223 -> 0
A23: 12- /kqykbZ HkRrk | B23: ='Formet 8'!N225 -> 0 | C23: ='Formet 8'!M225 -> 0
A24: 13- lkbZfdy HkRrk | B24: 0 | C24: 0
A25: 14- fodkykax HkRrk | B25: ='Formet 8'!N224 -> 0 | C25: ='Formet 8'!M224 -> 0
A26: 15- vU; HkRrs | B26: 0 | C26: 0
A27: ;ksx HkÙks ,osa ekuns; II | B27: =SUM(B12:B26) -> 3190607 | C27: =SUM(C12:C26) -> 4039796
A28: ;ksx laosru ( I + II ) | B28: =B10+B27 -> 6981407 | C28: =C10+C27 -> 7945396
A29: 89 va'knk;h is'ku ;kstuk esa ljdkj dk va'knku | B29: 0 | C29: 0
A30: 03 ;k=k O;; | B30: ='Formet 8'!N370 -> 0 | C30: ='Formet 8'!M370 -> 50000
A31: 04 fpfdRlk O;; | B31: ='Formet 8'!N371 -> 0 | C31: ='Formet 8'!M371 -> 0
A32: ;ksx %& QkeZ th-,- 4 | B32: =SUM(B28:B31) -> 6981407 | C32: =SUM(C28:C31) -> 7995396
A33: 05 dk;kZy; O;; | B33: ='Formet 9'!L24 -> 2500 | C33: ='Formet 9'!M24 -> 2500
A34: 07 dk;kZy; okguksa dk lapkyu ,oa la/kkj.k | B34: 0 | C34: 0
A35: 08 o`frd ,oa fof'k"B lsok,sa | B35: 0 | C35: 0
A36: 09 fdjk;k jsaV dj vkSj jk;YVh | B36: 0 | C36: 0
A37: 10 izdk'ku | B37: 0 | C37: 0
A38: 11 foKkiu foØ; izpkj vkSj izlkj O;; | B38: 0 | C38: 0
A39: 20 dk;Zdyki laca/kh okguksa dk la/kkj.k | B39: 0 | C39: 0
A40: 28 fofo/k O;; | B40: ='Formet 9'!L25 -> 0 | C40: ='Formet 9'!M25 -> 0
A41: 31 iqLrdky; ,oa i= if=dkvksa ij O;; | B41: ='Formet 9'!L26 -> 0 | C41: ='Formet 9'!M26 -> 0
A42: 33 iz;ksx'kkyk | B42: ='Formet 9'!L27 -> 0 | C42: ='Formet 9'!M27 -> 0
A43: 37 ofnZ;ka | B43: ='Formet 9'!L29 -> 0 | C43: ='Formet 9'!M29 -> 0
A44: 41 lafonk O;; | B44: 0 | C44: 0
A45: 57 foHkkxksa dh fof'k"B lsokvksa ij O;; | B45: ='Formet 9'!L28 -> 0 | C45: ='Formet 9'!M28 -> 0
A46: ;ksx %& th-,- 5 | B46: =SUM(B33:B45) -> 2500 | C46: =SUM(C33:C45) -> 2500
A47: ;ksx %& th-,- 4 | B47: =B32 -> 6981407 | C47: =C32 -> 7995396
A48: egk;ksx%& ¼th-,- 4 $ th-,- 5½ | B48: =SUM(B46:B47) -> 6983907 | C48: =SUM(C46:C47) -> 7997896
B50: =Master!E2 -> ç/kkukpk;Z]
B51: =Master!H2 -> jkmekfo jk;eyok³k

Sheet sharansh
B1: ='P-2'!C4 -> vk; dk foLr`r ctV vuqeku foÙkh; o"kZ ¼ 1 vizSy ls 31 ekpZ rd ½ dk
B2: =Summary!A2 -> ç/kkukpk;Z] jkmekfo jk;eyok³k ¼vkWfQl vkbZ-Mh- la[;k %&12345½
B3: =Summary!A5 -> BUDGET HEAD : 2202 -सामान्य शिक्षा-02-109 -राजकीय माध्यमिक विद्यालय-07 -राष्ट्रीय माध्यमिक शिक्षा अभियान-01 -माध्यमिक शिक्षा अभियान- सामान्य व्यय (S.F. + C.A.)
B4: lkajk'k ¼nks izfr;ksa esa½ | H4: vkWfQl vkbZMh % | J4: =Master!E3 -> 12345
B5: ¼lEcfU/kr ys[kken esa Lohd`r inks vuqlkj leLr½ in uke | C5: Lohd`r | D5: fu;fer dk;Zjr deZpkjh | G5: fnukad 31-08-2023 dks fjDr inksa dh la[;k | H5: fooj.k | J5: la[;k
D6: 01-01-2004 ls iwoZ fu;qDr | E6: 01-01-2004 ds ckn fu;qDr | F6: dqy | H6: teknkj | I6: iq:"k | J6: 0
B7: =A!D9 -> PRINCIPAL | C7: =A!F9 -> 1 | D7: =A!G9 -> 0 | E7: =A!H9 -> 1 | F7: =IF(B7="","",SUM(D7:E7)) -> 1 | G7: =IF(B7="","",(C7-F7)) -> 0 | I7: efgyk | J7: 0
B8: =A!D10 -> LECTURER | C8: =A!F10 -> 1 | D8: =A!G10 -> 0 | E8: =A!H10 -> 1 | F8: =IF(B8="","",SUM(D8:E8)) -> 1 | G8: =IF(B8="","",(C8-F8)) -> 0 | H8: p0Js0deZ0 | I8: iq:"k | J8: 0
B9: =A!D11 -> TEACHER-II | C9: =A!F11 -> 2 | D9: =A!G11 -> 0 | E9: =A!H11 -> 1 | F9: 1 | G9: 1 | I9: efgyk | J9: 0
B10: =A!D12 -> PTI III | C10: =A!F12 -> 2 | D10: =A!G12 -> 0 | E10: =A!H12 -> 0 | F10: 0 | G10: 2 | H10: jktif=r dkfeZd | J10: 0
B11: =A!D13 -> TEACHER-III | C11: =A!F13 -> 17 | D11: =A!G13 -> 0 | E11: =A!H13 -> 5 | F11: 5 | G11: 12 | H11: vjktif=r dkfeZd | J11: =F17 -> 11
B12: =A!D14 -> PEON | C12: =A!F14 -> 1 | D12: =A!G14 -> 0 | E12: =A!H14 -> 1 | F12: 1 | G12: 0 | H12: dqy | J12: =SUM(J10:J11) -> 11
B13: =A!D15 -> Sanvida Employee | C13: =A!F15 -> 2 | D13: =A!G15 -> 0 | E13: =A!H15 -> 2 | F13: 2 | G13: 0 | H13: fLFkj osru deZpkjh | J13: 0
B14: =A!D16 ->  | C14: =A!F16 ->  | D14: =A!G16 ->  | E14: =A!H16 ->  | H14: fQDl osru deZpkjh | J14: 0
B15: =A!D17 ->  | C15: =A!F17 ->  | D15: =A!G17 ->  | E15: =A!H17 ->  | H15: dk;Zjr fo|kFkhZ fe= | J15: 0
B16: =A!D18 ->  | C16: =A!F18 ->  | D16: =A!G18 ->  | E16: =A!H18 ->  | H16: Lohd`r lafonk deZpkjh ;fn gks | J16: 0
B17: ;ksx | C17: =SUM(C7:C16) -> 26 | D17: =SUM(D7:D16) -> 0 | E17: =SUM(E7:E16) -> 11 | F17: 11 | G17: =SUM(G7:G16) -> 15 | H17: fuyfEcr dkfeZd | J17: 0
B18: fooj.k | D18: la'kksf/kr vuqeku 2023&24 ¼jkf'k yk[kks esa½ | G18: vk; O;;d vuqeku 2024&25 ¼jkf'k yk[kks esa½ | H18: 1- dk;kZy; nwjHkk"k
B19: 01 laaosru
B20: ¼d½ osru jktif=r ¼xzsM is $ is cS.M½ | D20: =Summary!B8 -> 823600 | G20: =Summary!C8 -> 848400
B21: ¼[k½ osru vjktif=r ¼xzsM is $ is cS.M½ | D21: =Summary!B9 -> 2967200 | G21: =Summary!C9 -> 3057200 | H21: =Master!I4 -> 0
B22: =Summary!A10 -> ;ksx osru ¼d ls [k rd½ | D22: =SUM(D20:F21) -> 3790800 | G22: =SUM(G20:G21) -> 3905600
B23: 02 HkRrs ,oa ekuns;
B24: =Summary!A12 -> 1- eagxkbZ HkRrk | D24: =Summary!B12 -> 1592136 | G24: =Summary!C12 -> 1640352
B25: =Summary!A13 -> 2- eagxkbZ HkRrk ,fj;j | D25: =Summary!B13 -> 38280 | G25: =Summary!C13 -> 77708
B26: =Summary!A14 -> 3- fLFkjhdj.k @ p;fur osru @ vU; | D26: =Summary!B14 -> 0 | G26: =Summary!C14 -> 744610
B27: =Summary!A15 -> 4- edku fdjk;k HkRrk | D27: =Summary!B15 -> 341172 | G27: =Summary!C15 -> 351504 | H27: =CONCATENATE("2-"," ",Master!I3," ",Master!E2,"¼",Master!H2,"½","eksckbZy ua-","-",Master!I4) -> 2- ç/kkukpk;Z]¼jkmekfo jk;eyok³k½eksckbZy ua--
B28: =Summary!A16 -> 5- lefiZr vodk'k osru | D28: =Summary!B16 -> 219887 | G28: =Summary!C16 -> 226490
B29: =Summary!A17 -> 6- 'kgjh HkRrk | D29: =Summary!B17 -> 0 | G29: =Summary!C17 -> 0
B30: =Summary!A18 -> 7- cksul | D30: =Summary!B18 -> 121932 | G30: =Summary!C18 -> 121932
B31: =Summary!A19 -> 8- fn- 20-01-06 ls fu;qDr dkfeZdksa dks fu;r ikfjJfed | D31: =Summary!B19 -> 483600 | G31: =Summary!C19 -> 483600
B32: =Summary!A20 -> 9- lafonk dkfeZdksa dks fu;r ikfjJfed | D32: =Summary!B20 -> 393600 | G32: =Summary!C20 -> 393600
B33: =Summary!A21 -> 10- iz-v- HkRrk | D33: =Summary!B21 -> 0 | G33: =Summary!C21 -> 0
B34: =Summary!A22 -> 11- jksdM+ HkRrk | D34: =Summary!B22 -> 0 | G34: =Summary!C22 -> 0
B35: =Summary!A23 -> 12- /kqykbZ HkRrk | D35: =Summary!B23 -> 0 | G35: =Summary!C23 -> 0
B36: =Summary!A24 -> 13- lkbZfdy HkRrk | D36: =Summary!B24 -> 0 | G36: =Summary!C24 -> 0
B37: =Summary!A25 -> 14- fodkykax HkRrk | D37: =Summary!B25 -> 0 | G37: =Summary!C25 -> 0
B38: =Summary!A26 -> 15- vU; HkRrs | D38: =Summary!B26 -> 0 | G38: =Summary!C26 -> 0 | H38: 3 laEcfU/kr dkfeZd %&
B39: ;ksx HkRrs ,oa ekuns; | D39: =SUM(D24:F38) -> 3190607 | G39: =SUM(G24:G38) -> 4039796.4
B40: loZ;ksx laosru ¼01$02½ | D40: =SUM(D22,D39) -> 6981407 | G40: =SUM(G22,G39) -> 7945396
B41: =Summary!A29 -> 89 va'knk;h is'ku ;kstuk esa ljdkj dk va'knku | D41: =Summary!B29 -> 0 | G41: =Summary!C29 -> 0 | H41: =CONCATENATE("¼d½"," ",Master!M2,"¼",Master!M3,"½") -> ¼d½ ¼½
B42: =Summary!A30 -> 03 ;k=k O;; | D42: =Summary!B30 -> 0 | G42: =Summary!C30 -> 50000
B43: =Summary!A31 -> 04 fpfdRlk O;; | D43: =Summary!B31 -> 0 | G43: =Summary!C31 -> 0
B44: =Summary!A32 -> ;ksx %& QkeZ th-,- 4 | D44: =Summary!B32 -> 6981407 | G44: =Summary!C32 -> 7995396
B45: =Summary!A33 -> 05 dk;kZy; O;; | D45: =Summary!B33 -> 2500 | G45: =Summary!C33 -> 2500 | H45: =CONCATENATE("¼[k½"," ",Master!M4,"¼",Master!M5,"½") -> ¼[k½ ¼½
B46: =Summary!A34 -> 07 dk;kZy; okguksa dk lapkyu ,oa la/kkj.k | D46: =Summary!B34 -> 0 | G46: =Summary!C34 -> 0
B47: =Summary!A35 -> 08 o`frd ,oa fof'k"B lsok,sa | D47: =Summary!B35 -> 0 | G47: =Summary!C35 -> 0
B48: =Summary!A36 -> 09 fdjk;k jsaV dj vkSj jk;YVh | D48: =Summary!B36 -> 0 | G48: =Summary!C36 -> 0
B49: =Summary!A37 -> 10 izdk'ku | D49: =Summary!B37 -> 0 | G49: =Summary!C37 -> 0
B50: =Summary!A38 -> 11 foKkiu foØ; izpkj vkSj izlkj O;; | D50: =Summary!B38 -> 0 | G50: =Summary!C38 -> 0
B51: =Summary!A39 -> 20 dk;Zdyki laca/kh okguksa dk la/kkj.k | D51: =Summary!B39 -> 0 | G51: =Summary!C39 -> 0
B52: =Summary!A40 -> 28 fofo/k O;; | D52: =Summary!B40 -> 0 | G52: =Summary!C40 -> 0
B53: =Summary!A41 -> 31 iqLrdky; ,oa i= if=dkvksa ij O;; | D53: =Summary!B41 -> 0 | G53: =Summary!C41 -> 0
B54: =Summary!A42 -> 33 iz;ksx'kkyk | D54: =Summary!B42 -> 0 | G54: =Summary!C42 -> 0
B55: =Summary!A43 -> 37 ofnZ;ka | D55: =Summary!B43 -> 0 | G55: =Summary!C43 -> 0
B56: =Summary!A44 -> 41 lafonk O;; | D56: =Summary!B44 -> 0 | G56: =Summary!C44 -> 0
B57: =Summary!A45 -> 57 foHkkxksa dh fof'k"B lsokvksa ij O;; | D57: =Summary!B45 -> 0 | G57: =Summary!C45 -> 0
B58: =Summary!A46 -> ;ksx %& th-,- 5 | D58: =Summary!B46 -> 2500 | G58: =Summary!C46 -> 2500
B59: =Summary!A47 -> ;ksx %& th-,- 4 | D59: =Summary!B47 -> 6981407 | G59: =Summary!C47 -> 7995396
B60: =Summary!A48 -> egk;ksx%& ¼th-,- 4 $ th-,- 5½ | D60: =Summary!B48 -> 6983907 | G60: =Summary!C48 -> 7997896
B61: izekf.kr fd;k tkrk gS fd mDr fooj.k dk O;fDrxr ijh{k.k dj fy;k x;k gS rFkk fooj.k iw.kZ #i ls lgh gSA leLr cdk;k nkf;Roksa dk mDr lwpuk esa 'kkfey dj fy;k x;k gS ftrus Hkh cdk;k nkf;Ro gZS mudk foLr`r enokj fooj.k layXu gSA
H62: =B2 -> ç/kkukpk;Z] jkmekfo jk;eyok³k ¼vkWfQl vkbZ-Mh- la[;k %&12345½

Sheet A
A1: izi= & 1 ¼v½
A2: fu;fer@dk;Z&izHkkfjr Lohd`r inksa dk fooj.k
A3: =Master!G5 -> 2202-02-109-(07)-(01) (STATE FUND+CENTRAL ASS.) | D3: ='Cover Page'!A1 -> ç/kkukpk;Z] jkmekfo jk;eyok³k ¼vkWfQl vkbZ-Mh- la[;k %&12345½ | J3: =Master!E3 -> 12345
A4: =Summary!A5 -> BUDGET HEAD : 2202 -सामान्य शिक्षा-02-109 -राजकीय माध्यमिक विद्यालय-07 -राष्ट्रीय माध्यमिक शिक्षा अभियान-01 -माध्यमिक शिक्षा अभियान- सामान्य व्यय (S.F. + C.A.)
A5: Ø-l- | B5: ys[kksa dk 'kh"kZ nh?kZ 'kh"kZ@ minh?kZ 'kh"kZ@y/kq 'kh"kZ@mi'kh"kZ | C5: jkT; fuf/k@dsUnzh; lgk;rk | D5: in uke | E5: is eSfVªDl ysoy | F5: orZeku Lohd`r inksa dh la[;k | G5: fu;fer dk;Zjr deZpkjh | J5: fnukad 31-08-2023 dks fjDr inksa dh la[;k [6-9)]
G6: 01-01-2004 ls iwoZ fu;qDr | H6: 01-01-2004 ds ckn fu;qDr | I6: ;ksx
A8: 1 | B8: 2 | C8: 3 | D8: 4 | E8: 5 | F8: 6 | G8: 7 | H8: 8 | I8: 9 | J8: 10
A9: 1 | B9: =VLOOKUP(Master!E5,Master!AI4:AN35,3,FALSE) -> 2202 -सामान्य शिक्षा-02-109 -राजकीय माध्यमिक विद्यालय-07 -राष्ट्रीय माध्यमिक शिक्षा अभियान-01 -माध्यमिक शिक्षा अभियान- सामान्य व्यय (S.F. + C.A.) | C9: jkT; fuf/k@dsUnzh; lgk;rk | D9: =IF(MAX('Format 1A'!$A$9:$A$32)<$A9,"",VLOOKUP($A9,'Format 1A'!$A$9:$O$32,4,0)) -> PRINCIPAL | E9: =IF($A9>=MAX('Format 1A'!$A$9:$A$32),"",VLOOKUP($A9,'Format 1A'!$A$9:$O$32,5,0)) -> L-16 | F9: =IF(D9="","",VLOOKUP($A9,'Format 1A'!$A$9:$O$32,6,0)) -> 1 | G9: =IF(D9="","",VLOOKUP($A9,'Format 1A'!$A$9:$O$32,10,0)) -> 0 | H9: =IF(D9="","",VLOOKUP($A9,'Format 1A'!$A$9:$O$32,11,0)) -> 1 | I9: =IF(D9="","",SUM(G9:H9)) -> 1 | J9: =IF(D9="","",F9-I9) -> 0
A10: 2 | D10: =IF(MAX('Format 1A'!$A$9:$A$32)<$A10,"",VLOOKUP($A10,'Format 1A'!$A$9:$O$32,4,0)) -> LECTURER | E10: =IF(MAX('Format 1A'!$A$9:$A$32)<$A10,"",VLOOKUP($A10,'Format 1A'!$A$9:$O$32,5,0)) -> L-12 | F10: =IF(D10="","",VLOOKUP($A10,'Format 1A'!$A$9:$O$32,6,0)) -> 1 | G10: =IF(D10="","",VLOOKUP($A10,'Format 1A'!$A$9:$O$32,10,0)) -> 0 | H10: =IF(D10="","",VLOOKUP($A10,'Format 1A'!$A$9:$O$32,11,0)) -> 1 | I10: =IF(D10="","",SUM(G10:H10)) -> 1 | J10: =IF(D10="","",F10-I10) -> 0
A11: 3 | D11: =IF(MAX('Format 1A'!$A$9:$A$32)<$A11,"",VLOOKUP($A11,'Format 1A'!$A$9:$O$32,4,0)) -> TEACHER-II | E11: =IF(MAX('Format 1A'!$A$9:$A$32)<$A11,"",VLOOKUP($A11,'Format 1A'!$A$9:$O$32,5,0)) -> L-11 | F11: =IF(D11="","",VLOOKUP($A11,'Format 1A'!$A$9:$O$32,6,0)) -> 2 | G11: =IF(D11="","",VLOOKUP($A11,'Format 1A'!$A$9:$O$32,10,0)) -> 0 | H11: =IF(D11="","",VLOOKUP($A11,'Format 1A'!$A$9:$O$32,11,0)) -> 1 | I11: 1 | J11: 1
A12: 4 | D12: =IF(MAX('Format 1A'!$A$9:$A$32)<$A12,"",VLOOKUP($A12,'Format 1A'!$A$9:$O$32,4,0)) -> PTI III | E12: =IF(MAX('Format 1A'!$A$9:$A$32)<$A12,"",VLOOKUP($A12,'Format 1A'!$A$9:$O$32,5,0)) -> L-10 | F12: =IF(D12="","",VLOOKUP($A12,'Format 1A'!$A$9:$O$32,6,0)) -> 2 | G12: =IF(D12="","",VLOOKUP($A12,'Format 1A'!$A$9:$O$32,10,0)) -> 0 | H12: =IF(D12="","",VLOOKUP($A12,'Format 1A'!$A$9:$O$32,11,0)) -> 0 | I12: 0 | J12: 2
A13: 5 | D13: =IF(MAX('Format 1A'!$A$9:$A$32)<$A13,"",VLOOKUP($A13,'Format 1A'!$A$9:$O$32,4,0)) -> TEACHER-III | E13: =IF(MAX('Format 1A'!$A$9:$A$32)<$A13,"",VLOOKUP($A13,'Format 1A'!$A$9:$O$32,5,0)) -> L-10 | F13: =IF(D13="","",VLOOKUP($A13,'Format 1A'!$A$9:$O$32,6,0)) -> 17 | G13: =IF(D13="","",VLOOKUP($A13,'Format 1A'!$A$9:$O$32,10,0)) -> 0 | H13: =IF(D13="","",VLOOKUP($A13,'Format 1A'!$A$9:$O$32,11,0)) -> 5 | I13: 5 | J13: 12
A14: 6 | D14: =IF(MAX('Format 1A'!$A$9:$A$32)<$A14,"",VLOOKUP($A14,'Format 1A'!$A$9:$O$32,4,0)) -> PEON | E14: =IF(MAX('Format 1A'!$A$9:$A$32)<$A14,"",VLOOKUP($A14,'Format 1A'!$A$9:$O$32,5,0)) -> L-1 | F14: =IF(D14="","",VLOOKUP($A14,'Format 1A'!$A$9:$O$32,6,0)) -> 1 | G14: =IF(D14="","",VLOOKUP($A14,'Format 1A'!$A$9:$O$32,10,0)) -> 0 | H14: =IF(D14="","",VLOOKUP($A14,'Format 1A'!$A$9:$O$32,11,0)) -> 1 | I14: 1 | J14: 0
A15: 7 | D15: =IF(MAX('Format 1A'!$A$9:$A$32)<$A15,"",VLOOKUP($A15,'Format 1A'!$A$9:$O$32,4,0)) -> Sanvida Employee | E15: =IF(MAX('Format 1A'!$A$9:$A$32)<$A15,"",VLOOKUP($A15,'Format 1A'!$A$9:$O$32,5,0)) -> - | F15: =IF(D15="","",VLOOKUP($A15,'Format 1A'!$A$9:$O$32,6,0)) -> 2 | G15: =IF(D15="","",VLOOKUP($A15,'Format 1A'!$A$9:$O$32,10,0)) -> 0 | H15: =IF(D15="","",VLOOKUP($A15,'Format 1A'!$A$9:$O$32,11,0)) -> 2 | I15: 2 | J15: 0
A16: 8 | D16: =IF(MAX('Format 1A'!$A$9:$A$32)<$A16,"",VLOOKUP($A16,'Format 1A'!$A$9:$O$32,4,0)) ->  | E16: =IF(MAX('Format 1A'!$A$9:$A$32)<$A16,"",VLOOKUP($A16,'Format 1A'!$A$9:$O$32,5,0)) ->  | F16: =IF(D16="","",VLOOKUP($A16,'Format 1A'!$A$9:$O$32,6,0)) ->  | G16: =IF(D16="","",VLOOKUP($A16,'Format 1A'!$A$9:$O$32,10,0)) ->  | H16: =IF(D16="","",VLOOKUP($A16,'Format 1A'!$A$9:$O$32,11,0)) -> 
A17: 9 | D17: =IF(MAX('Format 1A'!$A$9:$A$32)<$A17,"",VLOOKUP($A17,'Format 1A'!$A$9:$O$32,4,0)) ->  | E17: =IF(MAX('Format 1A'!$A$9:$A$32)<$A17,"",VLOOKUP($A17,'Format 1A'!$A$9:$O$32,5,0)) ->  | F17: =IF(D17="","",VLOOKUP($A17,'Format 1A'!$A$9:$O$32,6,0)) ->  | G17: =IF(D17="","",VLOOKUP($A17,'Format 1A'!$A$9:$O$32,10,0)) ->  | H17: =IF(D17="","",VLOOKUP($A17,'Format 1A'!$A$9:$O$32,11,0)) -> 
A18: 10 | D18: =IF(MAX('Format 1A'!$A$9:$A$32)<$A18,"",VLOOKUP($A18,'Format 1A'!$A$9:$O$32,4,0)) ->  | E18: =IF(MAX('Format 1A'!$A$9:$A$32)<$A18,"",VLOOKUP($A18,'Format 1A'!$A$9:$O$32,5,0)) ->  | F18: =IF(D18="","",VLOOKUP($A18,'Format 1A'!$A$9:$O$32,6,0)) ->  | G18: =IF(D18="","",VLOOKUP($A18,'Format 1A'!$A$9:$O$32,10,0)) ->  | H18: =IF(D18="","",VLOOKUP($A18,'Format 1A'!$A$9:$O$32,11,0)) -> 
B19: ;ksx | F19: =SUM(F9:F18) -> 26 | G19: =SUM(G9:G18) -> 0 | H19: 11 | I19: 11 | J19: 15
A21: izekf.kr fd;k tkrk gS fd inksa ds lanHkZ esa mi;qZä lwpuk dh esjs }kjk O;fäxr :i ls tkap dj yh xbZ gS vkSj bls lgh ik;k x;k gSA
I22: =CONCATENATE(Master!E2," ",Master!H2) -> ç/kkukpk;Z] jkmekfo jk;eyok³k

Sheet Formet 8
M1: =Summary!$C$1 -> OFFICE ID 12345 | AA1: GAZETTED - REGULAR
B2: ='Cover Page'!A1 -> ç/kkukpk;Z] jkmekfo jk;eyok³k ¼vkWfQl vkbZ-Mh- la[;k %&12345½ | AA2: NON GAZETTED - REGULAR
B3: izi= & 8 | AA3: GAZETTED - FIX PAY
B4: fuf'pr O;;ksa ds foLr`r vuqeku vFkkZr vf/kdkfj;ksa o deZpkfj;ksa | AA4: NON GAZETTED - FIX PAY
B5: ds osru vuqeku o"kZ ¼vizSy ls ekpZ rd½ | AA5: GAZETTED - SANVIDA
B6: ¼ctV vuqeku vf/kdkfj;ksa }kjk foHkkxk/;{k dks izLrqr djus gsrq½ | AA6: NON GAZETTED - SANVIDA
B7: =Summary!$A$5 -> BUDGET HEAD : 2202 -सामान्य शिक्षा-02-109 -राजकीय माध्यमिक विद्यालय-07 -राष्ट्रीय माध्यमिक शिक्षा अभियान-01 -माध्यमिक शिक्षा अभियान- सामान्य व्यय (S.F. + C.A.) | O7: ¼jkf'k :i;ksa esa½
B9: ys[kk 'kh"kZd ¼foLr`r 'kh"kZ½ | C9: Øe la[;k | D9: uke | E9: deZpkjh vkbZ-Mh- la[;k | F9: th-ih-,Q-@ ,u-ih-,l- uEcj | G9: in | I9: ctV dh izkjfEHkd frfFk ;kfu 1 ekpZ dks deZpkjh dk osru | J9: igyh ekpZ ls vfUre Qjojh ds fy;s fu/kkZfjr jde | K9: o`f) tks bl vof/k esa gksxh | M9: vkxkeh o"kZ ds fy;s jde ¼dkWye 9 vkSj 11 dk ;ksx½ | N9: pkyw o"kZ ds fy, la'kksf/kr vuqeku | O9: fo'ks"k fooj.k | U9: Handicap Allo. | V9: tUe frfFk | W9: fu;qfDr frFkh | X9: Cash All Yes / No | Y9: Male / Female | Z9: Liveries Jamadar | AB9: Liveries Lab Boy | AD9: Liveries Peon | AG9: BUDGET ESTIMATE | AY9: REVISED ESTIMATE
H10: is esfVªDl ysoy | K10: frfFk o`f) | L10: jde o`f) | Z10: MALE | AA10: FEMALE | AB10: MALE | AC10: FEMALE | AD10: MALE | AE10: FEMALE | AF10: Back Increement | AG10: Salary Gazetted REGULAR | AH10: Salary Non-Gazetted REGULAR | AI10: Salary Gazetted FIXED | AJ10: Salary Non-Gazetted FIXED | AK10: =G217 -> D.A. @ 42% | AL10: D.A. Arear @ 00% | AM10: Arear | AN10: HRA @ 10% | AO10: Bonus | AP10: Surrender | AQ10: Cash. Allow. | AR10: Handicap Allow. | AS10: Washing Allow. | AT10: TOTAL Regular | AU10: Net Salary | AV10: Travelling Expenses | AW10: Medical Expenses | AX10: Grand Total | AY10: Salary Gazetted REGULAR | AZ10: Salary Non-Gazetted REGULAR | BA10: Salary Gazetted FIXED | BB10: Salary Non-Gazetted FIXED | BC10: =AK10 -> D.A. @ 42% | BD10: =E218 -> D.A. Arear @ 04% | BE10: Arear | BF10: HRA @ 08% | BG10: Bonus | BH10: Surrender | BI10: Cash. Allow. | BJ10: Handicap Allow. | BK10: Washing Allow. | BL10: TOTAL Regular | BM10: Net Salary | BN10: Travelling Expenses | BO10: Medical Expenses | BP10: Grand Total GA-1 | BQ10: Guz. | BR10: Non Guz. | BS10: Guz. Fix Pay | BT10: Non Guz. Fix Pay | BU10: Fix Pay | BV10: Cash All | BW10: NPS | BX10: working | BY10: SANVIDA | BZ10: Sanvida Amount
B11: 1 | C11: 1 | D11: 2 | E11: 3 | F11: 4 | G11: 5 | H11: 6 | I11: 7 | J11: 8 | K11: 9 | L11: 10 | M11: 11 | N11: 12 | O11: 13 | V11: 15 | W11: 16 | X11: 18 | Y11: 19 | Z11: 25 | AA11: 26 | AB11: 27 | AC11: 28 | AD11: 27 | AE11: 28 | AG11: 16 | AH11: 17 | AI11: 18 | AJ11: 19 | AK11: 20 | AL11: 21 | AM11: 22 | AN11: 23 | AO11: 24 | AP11: 25 | AQ11: 27 | AR11: 28 | AS11: 30 | AT11: 31 | AU11: 32 | AV11: 33 | AW11: 34 | AX11: 35 | AY11: 36 | AZ11: 37 | BA11: 38 | BB11: 39 | BC11: 40 | BD11: 41 | BE11: 42 | BF11: 43 | BG11: 44 | BH11: 45 | BI11: 47 | BJ11: 48 | BK11: 50 | BL11: 51 | BM11: 52 | BN11: 53 | BO11: 54 | BP11: 55 | BQ11: 56 | BR11: 57 | BS11: 58 | BT11: 59
A12: =IF(I12="","",IF(I12>0,1,"")) -> 1 | B12: 2202 | C12: 1 | D12: =IF(ISNA(VLOOKUP(C12,Master!AD$60:AP$107,3,FALSE)),"",VLOOKUP(C12,Master!AD$60:AP$107,3,FALSE)) -> ABC | E12: =IF(ISNA(VLOOKUP(C12,Master!AD$60:AP$107,7,FALSE)),"",VLOOKUP(C12,Master!AD$60:AP$107,7,FALSE)) -> RJJO201525014204 | F12: =IF(ISNA(VLOOKUP(C12,Master!AD$60:AP$107,8,FALSE)),"",VLOOKUP(C12,Master!AD$60:AP$107,8,FALSE)) -> 0 | G12: =IF(ISNA(VLOOKUP(C12,Master!AD$60:AP$107,4,FALSE)),"",VLOOKUP(C12,Master!AD$60:AP$107,4,FALSE)) -> PRINCIPAL | H12: =IF(ISNA(VLOOKUP(C12,Master!AD$60:AP$107,5,FALSE)),"",VLOOKUP(C12,Master!AD$60:AP$107,5,FALSE)) -> L-16 | I12: =IF(ISNA(VLOOKUP(C12,Master!AD$60:AP$107,6,FALSE)),"",VLOOKUP(C12,Master!AD$60:AP$107,6,FALSE)) -> 69300 | J12: =IF(AND(I12=""),"",I12*12) -> 831600 | K12: =IF(AND(I12=""),"",IF(I12<=0,"",(CONCATENATE("01.07.",(YEAR(TODAY())+1))))) -> 01.07.2024 | L12: =IF(AND(I12=""),"",ROUND(ROUND(I12*3%,0),-2)*IF(H12="FIX PAY",0,1)*8) -> 16800 | M12: =IF(AND(I12=""),"",J12+L12) -> 848400 | N12: =IF(AND(I12=""),"",IF(O12="FIX PAY",M12,((IF(O12="FIX PAY",0,AF12*4+I12*8))))) -> 823600 | O12: =IF(ISNA(VLOOKUP(C12,Master!AD$60:AP$107,12,FALSE)),"",VLOOKUP(C12,Master!AD$60:AP$107,12,FALSE)) -> GAZETTED - REGULAR | Q12: =IF(Q68=1,"HANDICAP",0) -> 0 | S12: =IF(AND(O12=AA$1),0,IF(AND(I12=0),0,$G$221*1*(IF(I12<=0,0,1))*(IF(H12<=12,1,0)))) -> 0 | T12: =IF(G12>0,1,0) -> 1 | U12: =IF(ISNA(VLOOKUP(C12,Master!AD$60:AP$107,10,FALSE)),"",VLOOKUP(C12,Master!AD$60:AP$107,10,FALSE)) -> 0 | X12: =IF(ISNA(VLOOKUP(C12,Master!AD$60:AP$107,11,FALSE)),"",VLOOKUP(C12,Master!AD$60:AP$107,11,FALSE)) -> 0 | Y12: =IF(ISNA(VLOOKUP(C12,Master!AD$60:AP$107,9,FALSE)),"",VLOOKUP(C12,Master!AD$60:AP$107,9,FALSE)) -> 0 | Z12: =IF(Y12="MALE",1,0)*(IF(G12="JAMADAR",1,0))*(IF(I12<=0,0,1)) -> 0 | AA12: =IF(Y12="FEMALE",1,0)*(IF(G12="JAMADAR",1,0))*(IF(I12<=0,0,1)) -> 0 | AB12: =IF(Y12="MALE",1,0)*(IF(G12="LAB BOY",1,0))*(IF(I12<=0,0,1)) -> 0 | AC12: =IF(Y12="FEMALE",1,0)*(IF(G12="LAB BOY",1,0))*(IF(I12<=0,0,1)) -> 0 | AD12: =IF(Y12="MALE",1,0)*(IF(G12="PEON",1,0))*(IF(I12<=0,0,1)) -> 0 | AE12: =IF(Y12="FEMALE",1,0)*(IF(G12="PEON",1,0))*(IF(I12<=0,0,1)) -> 0 | AF12: =IF(AND(I12=""),"",I12-ROUNDUP(ROUND((I12*3%)-(I12*3%)*2.9%,-2),0)) -> 67300 | AG12: =IF(AND(I12=""),"",$M12*$BQ12) -> 848400 | AH12: =IF(AND(I12=""),"",$M12*$BR12) -> 0 | AI12: =IF(AND(I12=""),"",$M12*$BS12) -> 0 | AJ12: =IF(AND(I12=""),"",$M12*$BT12) -> 0 | AK12: =IF(AND(AG12=""),"",ROUND((AG12+AH12)*$AK$10,0)*BU12) -> 0 | AL12: 0 | AM12: 0 | AN12: =IF(AND(AG12=""),"",ROUND((AG12+AH12)*$AN$10,0)*BU12) -> 0 | AO12: =$G$221*BR12*BU12*(IF(I12<=0,0,1))*(IF(H12<=4800,1,0)) -> 0 | AP12: =IF(AND(I12=""),0,ROUND((I12+ROUND(I12*$AK$10,0))/2,0)*(IF(O12="FIX PAY",0,1))) -> 49203 | AQ12: =IF(G12="CLERK GRADE I",1,IF(G12="CLERK GRADE II",1,0))*75*12*BU12*(IF(I12<=0,0,1))*BV12 -> 0 | AR12: =IF(AND(I12=""),0,(IF(G12="ASSISTANT",12,IF(G12="CLERK GRADE I",12,IF(G12="CLERK GRADE II",12,IF(G12="FIELDMAN & FIELD REC",12,IF(G12="LAB BOY",12,IF(G12="JAMADAR",12,IF(G12="PEON",12,10))))))))*(MINA(ROUND(I12*6%,0),600))*(IF($U12="Yes",1,0))) -> 0 | AS12: =(IF(G12="LAB BOY",180,IF(G12="JAMADAR",180,IF(G12="PEON",180,0))))*12*BU12*(IF(I12<=0,0,1)) -> 0 | AT12: =IF(AND(G12=""),0,SUM(AK12:AS12)+AG12+AH12) -> 897603 | AU12: =IF(AND(G12=""),0,AT12) -> 897603 | AX12: =AU12+AV12+AW12 -> 897603 | AY12: =IF(AND(G12=""),0,N12*BQ12) -> 823600 | AZ12: =IF(AND(G12=""),0,N12*BR12) -> 0 | BA12: =IF(AND(G12=""),0,N12*BS12) -> 0 | BB12: =IF(AND(G12=""),0,N12*BT12) -> 0 | BC12: =ROUND((AY12+AZ12)*$BC$10,0)*BU12 -> 0 | BD12: =IF(AND(G12=""),0,ROUND((IF(O12="FIX PAY",0,AF12))*$BD$10*2,0)*BU12) -> 0 | BE12: 0 | BF12: =ROUND((AY12+AZ12)*$BF$10,0)*BU12 -> 0 | BG12: =$G$221*2*BR12*BU12*(IF(I12<=0,0,1))*(IF(H12<=4800,1,0)) -> 0 | BH12: =IF(AND(I12=""),0,ROUND((AF12+ROUND(AF12*$AK$10,0))/2,0)*(IF(O12="FIX PAY",0,1))) -> 47783 | BI12: =IF(G12="CLERK GRADE I",1,IF(G12="CLERK GRADE II",1,0))*75*12*BU12*(IF(I12<=0,0,1))*BV12 -> 0 | BJ12: =IF(AND(G12=""),0,(IF(G12="ASSISTANT",12,IF(G12="CLERK GRADE I",12,IF(G12="CLERK GRADE II",12,IF(G12="FIELDMAN & FIELD REC",12,IF(G12="LAB BOY",12,IF(G12="JAMADAR",12,IF(G12="PEON",12,10))))))))*(MINA(ROUND(AF12*6%,0),600))*(IF($U12="yes",1,))) -> 0 | BK12: =(IF(G12="LAB BOY",150,IF(G12="JAMADAR",150,IF(G12="PEON",150,0))))*12*BU12*(IF(I12<=0,0,1)) -> 0 | BL12: =SUM(BC12:BK12)+AY12+AZ12 -> 871383 | BM12: =BL12 -> 871383 | BP12: =BM12+BN12+BO12 -> 871383 | BQ12: =(IF(G12="PRINCIPAL",1,IF(G12="H M",1,IF(G12="AGRICULTURE INST",1,IF(G12="TEACHER-1ST",1,IF(G12="PTI I (13)",1,IF(G12="AGRICULTURE TEACH",1,IF(G12="INSTRUCTOR",1,0))))))))+(IF(G12="JR TEACHER",1,IF(G12="LIBRARIAN I",1,0)))*(IF(O12="FIX PAY",0,1)) -> 1 | BR12: =IF(BQ12<=0,1,0)*(IF(O12="FIX PAY",0,1)) -> 0 | BS12: =(IF(G12="PRINCIPAL (16)",1,IF(G12="V P (14)",1,IF(G12="H M (14)",1,IF(G12="AGRICULTURE INST (13)",1,IF(G12="TEACHER-1ST (13)",1,IF(G12="PTI I (13)",1,IF(G12="AGRICULTURE TEACH (13)",1,IF(G12="INSTRUCTOR (13)",1,0))))))))+(IF(G12="JR TEACHER (13)",1,IF(G12="LIBRARIAN I (13)",1,0))))*(IF(O12="FIX PAY",1,0)) -> 0 | BT12: =IF(BS12<=0,1,0)*(IF(O12="FIX PAY",1,0)) -> 0 | BU12: =IF(O12="FIX PAY",1,0) -> 0 | BV12: =IF(X12="No",0,1) -> 1 | BW12: =IF((ROUND((SUMPRODUCT(MID(0&E12,LARGE(INDEX(ISNUMBER(--MID(E12,ROW($1:$25),1))* ROW($1:$25),0),ROW($1:$25))+1,1)*10^ROW($1:$25)/10)),-8)/100000000)>=2004,1,0) -> 1 | BX12: =IF(I12<=0,0,1) -> 1 | BY12: =IF(O12="SANVIDA",1,0) -> 0 | BZ12: =IF(BY12>0,I12,0) -> 0 | CA12: =IF(AND(E12=""),"",IF(AND(E12<=0),"",IF((ROUND((SUMPRODUCT(MID(0&E12,LARGE(INDEX(ISNUMBER(--MID(E12,ROW($1:$70),1))* ROW($1:$70),0),ROW($1:$70))+1,1)*10^ROW($1:$70)/10)),-8)/100000000)<2004,1,0))) -> 0
A13: =IF(I13="","",IF(I13>0,A12+1,"")) ->  | B13: 2202 | C13: 2 | D13: =IF(ISNA(VLOOKUP(C13,Master!AD$60:AP$107,3,FALSE)),"",VLOOKUP(C13,Master!AD$60:AP$107,3,FALSE)) -> पद रिक्त | E13: =IF(ISNA(VLOOKUP(C13,Master!AD$60:AP$107,7,FALSE)),"",VLOOKUP(C13,Master!AD$60:AP$107,7,FALSE)) -> - | F13: =IF(ISNA(VLOOKUP(C13,Master!AD$60:AP$107,8,FALSE)),"",VLOOKUP(C13,Master!AD$60:AP$107,8,FALSE)) -> 0 | G13: =IF(ISNA(VLOOKUP(C13,Master!AD$60:AP$107,4,FALSE)),"",VLOOKUP(C13,Master!AD$60:AP$107,4,FALSE)) -> TEACHER-III | H13: =IF(ISNA(VLOOKUP(C13,Master!AD$60:AP$107,5,FALSE)),"",VLOOKUP(C13,Master!AD$60:AP$107,5,FALSE)) -> L-10 | I13: =IF(ISNA(VLOOKUP(C13,Master!AD$60:AP$107,6,FALSE)),"",VLOOKUP(C13,Master!AD$60:AP$107,6,FALSE)) -> 0 | J13: =IF(AND(I13=""),"",I13*12) -> 0 | K13: =IF(AND(I13=""),"",IF(I13<=0,"",(CONCATENATE("01.07.",(YEAR(TODAY())+1))))) ->  | L13: =IF(AND(I13=""),"",ROUND(ROUND(I13*3%,0),-2)*IF(H13="FIX PAY",0,1)*8) -> 0 | M13: =IF(AND(I13=""),"",J13+L13) -> 0 | N13: =IF(AND(I13=""),"",IF(O13="FIX PAY",M13,((IF(O13="FIX PAY",0,AF13*4+I13*8))))) -> 0 | O13: =IF(ISNA(VLOOKUP(C13,Master!AD$60:AP$107,12,FALSE)),"",VLOOKUP(C13,Master!AD$60:AP$107,12,FALSE)) -> GAZETTED - REGULAR | S13: =IF(AND(O13=AA$1),0,IF(AND(I13=0),0,$G$221*1*(IF(I13<=0,0,1))*(IF(H13<=12,1,0)))) -> 0 | T13: =IF(G13>0,1,0) -> 1 | U13: =IF(ISNA(VLOOKUP(C13,Master!AD$60:AP$107,10,FALSE)),"",VLOOKUP(C13,Master!AD$60:AP$107,10,FALSE)) -> 0 | X13: =IF(ISNA(VLOOKUP(C13,Master!AD$60:AP$107,11,FALSE)),"",VLOOKUP(C13,Master!AD$60:AP$107,11,FALSE)) -> 0 | Y13: =IF(ISNA(VLOOKUP(C13,Master!AD$60:AP$107,9,FALSE)),"",VLOOKUP(C13,Master!AD$60:AP$107,9,FALSE)) -> 0 | Z13: 0 | AA13: 0 | AB13: 0 | AC13: 0 | AD13: 0 | AE13: 0 | AF13: =IF(AND(I13=""),"",I13-ROUNDUP(ROUND((I13*3%)-(I13*3%)*2.9%,-2),0)) -> 0 | AG13: =IF(AND(I13=""),"",$M13*$BQ13) -> 0 | AH13: =IF(AND(I13=""),"",$M13*$BR13) -> 0 | AI13: =IF(AND(I13=""),"",$M13*$BS13) -> 0 | AJ13: =IF(AND(I13=""),"",$M13*$BT13) -> 0 | AK13: =IF(AND(AG13=""),"",ROUND((AG13+AH13)*$AK$10,0)*BU13) -> 0 | AL13: 0 | AM13: 0 | AN13: =IF(AND(AG13=""),"",ROUND((AG13+AH13)*$AN$10,0)*BU13) -> 0 | AO13: 0 | AP13: =IF(AND(I13=""),0,ROUND((I13+ROUND(I13*$AK$10,0))/2,0)*(IF(O13="FIX PAY",0,1))) -> 0 | AQ13: 0 | AR13: 0 | AS13: =(IF(G13="LAB BOY",180,IF(G13="JAMADAR",180,IF(G13="PEON",180,0))))*12*BU13*(IF(I13<=0,0,1)) -> 0 | AT13: 0 | AU13: 0 | AX13: 0 | AY13: 0 | AZ13: 0 | BA13: 0 | BB13: 0 | BC13: 0 | BD13: 0 | BE13: 0 | BF13: 0 | BG13: 0 | BH13: =IF(AND(I13=""),0,ROUND((AF13+ROUND(AF13*$AK$10,0))/2,0)*(IF(O13="FIX PAY",0,1))) -> 0 | BI13: 0 | BJ13: 0 | BK13: 0 | BL13: 0 | BM13: 0 | BP13: 0 | BQ13: 0 | BR13: =IF(BQ13<=0,1,0)*(IF(O13="FIX PAY",0,1)) -> 1 | BS13: 0 | BT13: 0 | BU13: =IF(O13="FIX PAY",1,0) -> 0 | BV13: 1 | BW13: 0 | BX13: =IF(I13<=0,0,1) -> 0 | BY13: =IF(O13="SANVIDA",1,0) -> 0 | BZ13: =IF(BY13>0,I13,0) -> 0 | CA13: 1
A14: =IF(I14="","",IF(I14>0,A13+1,"")) ->  | B14: 2202 | C14: 3 | D14: =IF(ISNA(VLOOKUP(C14,Master!AD$60:AP$107,3,FALSE)),"",VLOOKUP(C14,Master!AD$60:AP$107,3,FALSE)) -> पद रिक्त | E14: =IF(ISNA(VLOOKUP(C14,Master!AD$60:AP$107,7,FALSE)),"",VLOOKUP(C14,Master!AD$60:AP$107,7,FALSE)) -> - | F14: =IF(ISNA(VLOOKUP(C14,Master!AD$60:AP$107,8,FALSE)),"",VLOOKUP(C14,Master!AD$60:AP$107,8,FALSE)) -> 0 | G14: =IF(ISNA(VLOOKUP(C14,Master!AD$60:AP$107,4,FALSE)),"",VLOOKUP(C14,Master!AD$60:AP$107,4,FALSE)) -> TEACHER-III | H14: =IF(ISNA(VLOOKUP(C14,Master!AD$60:AP$107,5,FALSE)),"",VLOOKUP(C14,Master!AD$60:AP$107,5,FALSE)) -> L-10 | I14: =IF(ISNA(VLOOKUP(C14,Master!AD$60:AP$107,6,FALSE)),"",VLOOKUP(C14,Master!AD$60:AP$107,6,FALSE)) -> 0 | J14: 0 | L14: 0 | M14: 0 | N14: 0 | O14: =IF(ISNA(VLOOKUP(C14,Master!AD$60:AP$107,12,FALSE)),"",VLOOKUP(C14,Master!AD$60:AP$107,12,FALSE)) -> GAZETTED - REGULAR | S14: 0 | T14: 1 | U14: =IF(ISNA(VLOOKUP(C14,Master!AD$60:AP$107,10,FALSE)),"",VLOOKUP(C14,Master!AD$60:AP$107,10,FALSE)) -> 0 | X14: =IF(ISNA(VLOOKUP(C14,Master!AD$60:AP$107,11,FALSE)),"",VLOOKUP(C14,Master!AD$60:AP$107,11,FALSE)) -> 0 | Y14: =IF(ISNA(VLOOKUP(C14,Master!AD$60:AP$107,9,FALSE)),"",VLOOKUP(C14,Master!AD$60:AP$107,9,FALSE)) -> 0 | Z14: 0 | AA14: 0 | AB14: 0 | AC14: 0 | AD14: 0 | AE14: 0 | AF14: 0 | AG14: 0 | AH14: 0 | AI14: 0 | AJ14: 0 | AK14: 0 | AL14: 0 | AM14: 0 | AN14: 0 | AO14: 0 | AP14: 0 | AQ14: 0 | AR14: 0 | AS14: 0 | AT14: 0 | AU14: 0 | AX14: 0 | AY14: 0 | AZ14: 0 | BA14: 0 | BB14: 0 | BC14: 0 | BD14: 0 | BE14: 0 | BF14: 0 | BG14: 0 | BH14: 0 | BI14: 0 | BJ14: 0 | BK14: 0 | BL14: 0 | BM14: 0 | BP14: 0 | BQ14: 0 | BR14: 1 | BS14: 0 | BT14: 0 | BU14: 0 | BV14: 1 | BW14: 0 | BX14: 0 | BY14: 0 | BZ14: 0 | CA14: 1
B15: 2202 | C15: 4 | D15: =IF(ISNA(VLOOKUP(C15,Master!AD$60:AP$107,3,FALSE)),"",VLOOKUP(C15,Master!AD$60:AP$107,3,FALSE)) -> पद रिक्त | E15: =IF(ISNA(VLOOKUP(C15,Master!AD$60:AP$107,7,FALSE)),"",VLOOKUP(C15,Master!AD$60:AP$107,7,FALSE)) -> - | F15: =IF(ISNA(VLOOKUP(C15,Master!AD$60:AP$107,8,FALSE)),"",VLOOKUP(C15,Master!AD$60:AP$107,8,FALSE)) -> 0 | G15: =IF(ISNA(VLOOKUP(C15,Master!AD$60:AP$107,4,FALSE)),"",VLOOKUP(C15,Master!AD$60:AP$107,4,FALSE)) -> TEACHER-III | H15: =IF(ISNA(VLOOKUP(C15,Master!AD$60:AP$107,5,FALSE)),"",VLOOKUP(C15,Master!AD$60:AP$107,5,FALSE)) -> L-10 | I15: =IF(ISNA(VLOOKUP(C15,Master!AD$60:AP$107,6,FALSE)),"",VLOOKUP(C15,Master!AD$60:AP$107,6,FALSE)) -> 0 | J15: 0 | L15: 0 | M15: 0 | N15: 0 | O15: =IF(ISNA(VLOOKUP(C15,Master!AD$60:AP$107,12,FALSE)),"",VLOOKUP(C15,Master!AD$60:AP$107,12,FALSE)) -> GAZETTED - REGULAR | S15: 0 | T15: 1 | U15: =IF(ISNA(VLOOKUP(C15,Master!AD$60:AP$107,10,FALSE)),"",VLOOKUP(C15,Master!AD$60:AP$107,10,FALSE)) -> 0 | X15: =IF(ISNA(VLOOKUP(C15,Master!AD$60:AP$107,11,FALSE)),"",VLOOKUP(C15,Master!AD$60:AP$107,11,FALSE)) -> 0 | Y15: =IF(ISNA(VLOOKUP(C15,Master!AD$60:AP$107,9,FALSE)),"",VLOOKUP(C15,Master!AD$60:AP$107,9,FALSE)) -> 0 | Z15: 0 | AA15: 0 | AB15: 0 | AC15: 0 | AD15: 0 | AE15: 0 | AF15: 0 | AG15: 0 | AH15: 0 | AI15: 0 | AJ15: 0 | AK15: 0 | AL15: 0 | AM15: 0 | AN15: 0 | AO15: 0 | AP15: 0 | AQ15: 0 | AR15: 0 | AS15: 0 | AT15: 0 | AU15: 0 | AX15: 0 | AY15: 0 | AZ15: 0 | BA15: 0 | BB15: 0 | BC15: 0 | BD15: 0 | BE15: 0 | BF15: 0 | BG15: 0 | BH15: 0 | BI15: 0 | BJ15: 0 | BK15: 0 | BL15: 0 | BM15: 0 | BP15: 0 | BQ15: 0 | BR15: 1 | BS15: 0 | BT15: 0 | BU15: 0 | BV15: 1 | BW15: 0 | BX15: 0 | BY15: 0 | BZ15: 0 | CA15: 1
B16: 2202 | C16: 5 | D16: =IF(ISNA(VLOOKUP(C16,Master!AD$60:AP$107,3,FALSE)),"",VLOOKUP(C16,Master!AD$60:AP$107,3,FALSE)) ->  | E16: =IF(ISNA(VLOOKUP(C16,Master!AD$60:AP$107,7,FALSE)),"",VLOOKUP(C16,Master!AD$60:AP$107,7,FALSE)) ->  | F16: =IF(ISNA(VLOOKUP(C16,Master!AD$60:AP$107,8,FALSE)),"",VLOOKUP(C16,Master!AD$60:AP$107,8,FALSE)) ->  | G16: =IF(ISNA(VLOOKUP(C16,Master!AD$60:AP$107,4,FALSE)),"",VLOOKUP(C16,Master!AD$60:AP$107,4,FALSE)) ->  | H16: =IF(ISNA(VLOOKUP(C16,Master!AD$60:AP$107,5,FALSE)),"",VLOOKUP(C16,Master!AD$60:AP$107,5,FALSE)) ->  | I16: =IF(ISNA(VLOOKUP(C16,Master!AD$60:AP$107,6,FALSE)),"",VLOOKUP(C16,Master!AD$60:AP$107,6,FALSE)) ->  | O16: =IF(ISNA(VLOOKUP(C16,Master!AD$60:AP$107,12,FALSE)),"",VLOOKUP(C16,Master!AD$60:AP$107,12,FALSE)) ->  | S16: 0 | T16: 1 | U16: =IF(ISNA(VLOOKUP(C16,Master!AD$60:AP$107,10,FALSE)),"",VLOOKUP(C16,Master!AD$60:AP$107,10,FALSE)) ->  | X16: =IF(ISNA(VLOOKUP(C16,Master!AD$60:AP$107,11,FALSE)),"",VLOOKUP(C16,Master!AD$60:AP$107,11,FALSE)) ->  | Y16: =IF(ISNA(VLOOKUP(C16,Master!AD$60:AP$107,9,FALSE)),"",VLOOKUP(C16,Master!AD$60:AP$107,9,FALSE)) ->  | Z16: 0 | AA16: 0 | AB16: 0 | AC16: 0 | AD16: 0 | AE16: 0 | AL16: 0 | AM16: 0 | AO16: 0 | AP16: 0 | AQ16: 0 | AR16: 0 | AS16: 0 | AT16: 0 | AU16: 0 | AX16: 0 | AY16: 0 | AZ16: 0 | BA16: 0 | BB16: 0 | BC16: 0 | BD16: 0 | BE16: 0 | BF16: 0 | BG16: 0 | BH16: 0 | BI16: 0 | BJ16: 0 | BK16: 0 | BL16: 0 | BM16: 0 | BP16: 0 | BQ16: 0 | BR16: 1 | BS16: 0 | BT16: 0 | BU16: 0 | BV16: 1 | BW16: 0 | BX16: 1 | BY16: 0 | BZ16: 0
B17: 2202 | C17: 6 | D17: =IF(ISNA(VLOOKUP(C17,Master!AD$60:AP$107,3,FALSE)),"",VLOOKUP(C17,Master!AD$60:AP$107,3,FALSE)) ->  | E17: =IF(ISNA(VLOOKUP(C17,Master!AD$60:AP$107,7,FALSE)),"",VLOOKUP(C17,Master!AD$60:AP$107,7,FALSE)) ->  | F17: =IF(ISNA(VLOOKUP(C17,Master!AD$60:AP$107,8,FALSE)),"",VLOOKUP(C17,Master!AD$60:AP$107,8,FALSE)) ->  | G17: =IF(ISNA(VLOOKUP(C17,Master!AD$60:AP$107,4,FALSE)),"",VLOOKUP(C17,Master!AD$60:AP$107,4,FALSE)) ->  | H17: =IF(ISNA(VLOOKUP(C17,Master!AD$60:AP$107,5,FALSE)),"",VLOOKUP(C17,Master!AD$60:AP$107,5,FALSE)) ->  | I17: =IF(ISNA(VLOOKUP(C17,Master!AD$60:AP$107,6,FALSE)),"",VLOOKUP(C17,Master!AD$60:AP$107,6,FALSE)) ->  | O17: =IF(ISNA(VLOOKUP(C17,Master!AD$60:AP$107,12,FALSE)),"",VLOOKUP(C17,Master!AD$60:AP$107,12,FALSE)) ->  | S17: 0 | T17: 1 | U17: =IF(ISNA(VLOOKUP(C17,Master!AD$60:AP$107,10,FALSE)),"",VLOOKUP(C17,Master!AD$60:AP$107,10,FALSE)) ->  | X17: =IF(ISNA(VLOOKUP(C17,Master!AD$60:AP$107,11,FALSE)),"",VLOOKUP(C17,Master!AD$60:AP$107,11,FALSE)) ->  | Y17: =IF(ISNA(VLOOKUP(C17,Master!AD$60:AP$107,9,FALSE)),"",VLOOKUP(C17,Master!AD$60:AP$107,9,FALSE)) ->  | Z17: 0 | AA17: 0 | AB17: 0 | AC17: 0 | AD17: 0 | AE17: 0 | AL17: 0 | AM17: 0 | AO17: 0 | AP17: 0 | AQ17: 0 | AR17: 0 | AS17: 0 | AT17: 0 | AU17: 0 | AX17: 0 | AY17: 0 | AZ17: 0 | BA17: 0 | BB17: 0 | BC17: 0 | BD17: 0 | BE17: 0 | BF17: 0 | BG17: 0 | BH17: 0 | BI17: 0 | BJ17: 0 | BK17: 0 | BL17: 0 | BM17: 0 | BP17: 0 | BQ17: 0 | BR17: 1 | BS17: 0 | BT17: 0 | BU17: 0 | BV17: 1 | BW17: 0 | BX17: 1 | BY17: 0 | BZ17: 0
B18: 2202 | C18: 7 | D18: =IF(ISNA(VLOOKUP(C18,Master!AD$60:AP$107,3,FALSE)),"",VLOOKUP(C18,Master!AD$60:AP$107,3,FALSE)) ->  | E18: =IF(ISNA(VLOOKUP(C18,Master!AD$60:AP$107,7,FALSE)),"",VLOOKUP(C18,Master!AD$60:AP$107,7,FALSE)) ->  | F18: =IF(ISNA(VLOOKUP(C18,Master!AD$60:AP$107,8,FALSE)),"",VLOOKUP(C18,Master!AD$60:AP$107,8,FALSE)) ->  | G18: =IF(ISNA(VLOOKUP(C18,Master!AD$60:AP$107,4,FALSE)),"",VLOOKUP(C18,Master!AD$60:AP$107,4,FALSE)) ->  | H18: =IF(ISNA(VLOOKUP(C18,Master!AD$60:AP$107,5,FALSE)),"",VLOOKUP(C18,Master!AD$60:AP$107,5,FALSE)) ->  | I18: =IF(ISNA(VLOOKUP(C18,Master!AD$60:AP$107,6,FALSE)),"",VLOOKUP(C18,Master!AD$60:AP$107,6,FALSE)) ->  | O18: =IF(ISNA(VLOOKUP(C18,Master!AD$60:AP$107,12,FALSE)),"",VLOOKUP(C18,Master!AD$60:AP$107,12,FALSE)) ->  | S18: 0 | T18: 1 | U18: =IF(ISNA(VLOOKUP(C18,Master!AD$60:AP$107,10,FALSE)),"",VLOOKUP(C18,Master!AD$60:AP$107,10,FALSE)) ->  | X18: =IF(ISNA(VLOOKUP(C18,Master!AD$60:AP$107,11,FALSE)),"",VLOOKUP(C18,Master!AD$60:AP$107,11,FALSE)) ->  | Y18: =IF(ISNA(VLOOKUP(C18,Master!AD$60:AP$107,9,FALSE)),"",VLOOKUP(C18,Master!AD$60:AP$107,9,FALSE)) ->  | Z18: 0 | AA18: 0 | AB18: 0 | AC18: 0 | AD18: 0 | AE18: 0 | AL18: 0 | AM18: 0 | AO18: 0 | AP18: 0 | AQ18: 0 | AR18: 0 | AS18: 0 | AT18: 0 | AU18: 0 | AX18: 0 | AY18: 0 | AZ18: 0 | BA18: 0 | BB18: 0 | BC18: 0 | BD18: 0 | BE18: 0 | BF18: 0 | BG18: 0 | BH18: 0 | BI18: 0 | BJ18: 0 | BK18: 0 | BL18: 0 | BM18: 0 | BP18: 0 | BQ18: 0 | BR18: 1 | BS18: 0 | BT18: 0 | BU18: 0 | BV18: 1 | BW18: 0 | BX18: 1 | BY18: 0 | BZ18: 0
B19: 2202 | C19: 8 | D19: =IF(ISNA(VLOOKUP(C19,Master!AD$60:AP$107,3,FALSE)),"",VLOOKUP(C19,Master!AD$60:AP$107,3,FALSE)) ->  | E19: =IF(ISNA(VLOOKUP(C19,Master!AD$60:AP$107,7,FALSE)),"",VLOOKUP(C19,Master!AD$60:AP$107,7,FALSE)) ->  | F19: =IF(ISNA(VLOOKUP(C19,Master!AD$60:AP$107,8,FALSE)),"",VLOOKUP(C19,Master!AD$60:AP$107,8,FALSE)) ->  | G19: =IF(ISNA(VLOOKUP(C19,Master!AD$60:AP$107,4,FALSE)),"",VLOOKUP(C19,Master!AD$60:AP$107,4,FALSE)) ->  | H19: =IF(ISNA(VLOOKUP(C19,Master!AD$60:AP$107,5,FALSE)),"",VLOOKUP(C19,Master!AD$60:AP$107,5,FALSE)) ->  | I19: =IF(ISNA(VLOOKUP(C19,Master!AD$60:AP$107,6,FALSE)),"",VLOOKUP(C19,Master!AD$60:AP$107,6,FALSE)) ->  | O19: =IF(ISNA(VLOOKUP(C19,Master!AD$60:AP$107,12,FALSE)),"",VLOOKUP(C19,Master!AD$60:AP$107,12,FALSE)) ->  | S19: 0 | T19: 1 | U19: =IF(ISNA(VLOOKUP(C19,Master!AD$60:AP$107,10,FALSE)),"",VLOOKUP(C19,Master!AD$60:AP$107,10,FALSE)) ->  | X19: =IF(ISNA(VLOOKUP(C19,Master!AD$60:AP$107,11,FALSE)),"",VLOOKUP(C19,Master!AD$60:AP$107,11,FALSE)) ->  | Y19: =IF(ISNA(VLOOKUP(C19,Master!AD$60:AP$107,9,FALSE)),"",VLOOKUP(C19,Master!AD$60:AP$107,9,FALSE)) ->  | Z19: 0 | AA19: 0 | AB19: 0 | AC19: 0 | AD19: 0 | AE19: 0 | AL19: 0 | AM19: 0 | AO19: 0 | AP19: 0 | AQ19: 0 | AR19: 0 | AS19: 0 | AT19: 0 | AU19: 0 | AX19: 0 | AY19: 0 | AZ19: 0 | BA19: 0 | BB19: 0 | BC19: 0 | BD19: 0 | BE19: 0 | BF19: 0 | BG19: 0 | BH19: 0 | BI19: 0 | BJ19: 0 | BK19: 0 | BL19: 0 | BM19: 0 | BP19: 0 | BQ19: 0 | BR19: 1 | BS19: 0 | BT19: 0 | BU19: 0 | BV19: 1 | BW19: 0 | BX19: 1 | BY19: 0 | BZ19: 0
B20: 2202 | C20: 9 | D20: =IF(ISNA(VLOOKUP(C20,Master!AD$60:AP$107,3,FALSE)),"",VLOOKUP(C20,Master!AD$60:AP$107,3,FALSE)) ->  | E20: =IF(ISNA(VLOOKUP(C20,Master!AD$60:AP$107,7,FALSE)),"",VLOOKUP(C20,Master!AD$60:AP$107,7,FALSE)) ->  | F20: =IF(ISNA(VLOOKUP(C20,Master!AD$60:AP$107,8,FALSE)),"",VLOOKUP(C20,Master!AD$60:AP$107,8,FALSE)) ->  | G20: =IF(ISNA(VLOOKUP(C20,Master!AD$60:AP$107,4,FALSE)),"",VLOOKUP(C20,Master!AD$60:AP$107,4,FALSE)) ->  | H20: =IF(ISNA(VLOOKUP(C20,Master!AD$60:AP$107,5,FALSE)),"",VLOOKUP(C20,Master!AD$60:AP$107,5,FALSE)) ->  | I20: =IF(ISNA(VLOOKUP(C20,Master!AD$60:AP$107,6,FALSE)),"",VLOOKUP(C20,Master!AD$60:AP$107,6,FALSE)) ->  | O20: =IF(ISNA(VLOOKUP(C20,Master!AD$60:AP$107,12,FALSE)),"",VLOOKUP(C20,Master!AD$60:AP$107,12,FALSE)) ->  | S20: 0 | T20: 1 | U20: =IF(ISNA(VLOOKUP(C20,Master!AD$60:AP$107,10,FALSE)),"",VLOOKUP(C20,Master!AD$60:AP$107,10,FALSE)) ->  | X20: =IF(ISNA(VLOOKUP(C20,Master!AD$60:AP$107,11,FALSE)),"",VLOOKUP(C20,Master!AD$60:AP$107,11,FALSE)) ->  | Y20: =IF(ISNA(VLOOKUP(C20,Master!AD$60:AP$107,9,FALSE)),"",VLOOKUP(C20,Master!AD$60:AP$107,9,FALSE)) ->  | Z20: 0 | AA20: 0 | AB20: 0 | AC20: 0 | AD20: 0 | AE20: 0 | AL20: 0 | AM20: 0 | AO20: 0 | AP20: 0 | AQ20: 0 | AR20: 0 | AS20: 0 | AT20: 0 | AU20: 0 | AX20: 0 | AY20: 0 | AZ20: 0 | BA20: 0 | BB20: 0 | BC20: 0 | BD20: 0 | BE20: 0 | BF20: 0 | BG20: 0 | BH20: 0 | BI20: 0 | BJ20: 0 | BK20: 0 | BL20: 0 | BM20: 0 | BP20: 0 | BQ20: 0 | BR20: 1 | BS20: 0 | BT20: 0 | BU20: 0 | BV20: 1 | BW20: 0 | BX20: 1 | BY20: 0 | BZ20: 0
B21: 2202 | C21: 10 | D21: =IF(ISNA(VLOOKUP(C21,Master!AD$60:AP$107,3,FALSE)),"",VLOOKUP(C21,Master!AD$60:AP$107,3,FALSE)) ->  | E21: =IF(ISNA(VLOOKUP(C21,Master!AD$60:AP$107,7,FALSE)),"",VLOOKUP(C21,Master!AD$60:AP$107,7,FALSE)) ->  | F21: =IF(ISNA(VLOOKUP(C21,Master!AD$60:AP$107,8,FALSE)),"",VLOOKUP(C21,Master!AD$60:AP$107,8,FALSE)) ->  | G21: =IF(ISNA(VLOOKUP(C21,Master!AD$60:AP$107,4,FALSE)),"",VLOOKUP(C21,Master!AD$60:AP$107,4,FALSE)) ->  | H21: =IF(ISNA(VLOOKUP(C21,Master!AD$60:AP$107,5,FALSE)),"",VLOOKUP(C21,Master!AD$60:AP$107,5,FALSE)) ->  | I21: =IF(ISNA(VLOOKUP(C21,Master!AD$60:AP$107,6,FALSE)),"",VLOOKUP(C21,Master!AD$60:AP$107,6,FALSE)) ->  | O21: =IF(ISNA(VLOOKUP(C21,Master!AD$60:AP$107,12,FALSE)),"",VLOOKUP(C21,Master!AD$60:AP$107,12,FALSE)) ->  | S21: 0 | T21: 1 | U21: =IF(ISNA(VLOOKUP(C21,Master!AD$60:AP$107,10,FALSE)),"",VLOOKUP(C21,Master!AD$60:AP$107,10,FALSE)) ->  | X21: =IF(ISNA(VLOOKUP(C21,Master!AD$60:AP$107,11,FALSE)),"",VLOOKUP(C21,Master!AD$60:AP$107,11,FALSE)) ->  | Y21: =IF(ISNA(VLOOKUP(C21,Master!AD$60:AP$107,9,FALSE)),"",VLOOKUP(C21,Master!AD$60:AP$107,9,FALSE)) ->  | Z21: 0 | AA21: 0 | AB21: 0 | AC21: 0 | AD21: 0 | AE21: 0 | AL21: 0 | AM21: 0 | AO21: 0 | AP21: 0 | AQ21: 0 | AR21: 0 | AS21: 0 | AT21: 0 | AU21: 0 | AX21: 0 | AY21: 0 | AZ21: 0 | BA21: 0 | BB21: 0 | BC21: 0 | BD21: 0 | BE21: 0 | BF21: 0 | BG21: 0 | BH21: 0 | BI21: 0 | BJ21: 0 | BK21: 0 | BL21: 0 | BM21: 0 | BP21: 0 | BQ21: 0 | BR21: 1 | BS21: 0 | BT21: 0 | BU21: 0 | BV21: 1 | BW21: 0 | BX21: 1 | BY21: 0 | BZ21: 0
B22: 2202 | C22: 11 | D22: =IF(ISNA(VLOOKUP(C22,Master!AD$60:AP$107,3,FALSE)),"",VLOOKUP(C22,Master!AD$60:AP$107,3,FALSE)) ->  | E22: =IF(ISNA(VLOOKUP(C22,Master!AD$60:AP$107,7,FALSE)),"",VLOOKUP(C22,Master!AD$60:AP$107,7,FALSE)) ->  | F22: =IF(ISNA(VLOOKUP(C22,Master!AD$60:AP$107,8,FALSE)),"",VLOOKUP(C22,Master!AD$60:AP$107,8,FALSE)) ->  | G22: =IF(ISNA(VLOOKUP(C22,Master!AD$60:AP$107,4,FALSE)),"",VLOOKUP(C22,Master!AD$60:AP$107,4,FALSE)) ->  | H22: =IF(ISNA(VLOOKUP(C22,Master!AD$60:AP$107,5,FALSE)),"",VLOOKUP(C22,Master!AD$60:AP$107,5,FALSE)) ->  | I22: =IF(ISNA(VLOOKUP(C22,Master!AD$60:AP$107,6,FALSE)),"",VLOOKUP(C22,Master!AD$60:AP$107,6,FALSE)) ->  | O22: =IF(ISNA(VLOOKUP(C22,Master!AD$60:AP$107,12,FALSE)),"",VLOOKUP(C22,Master!AD$60:AP$107,12,FALSE)) ->  | S22: 0 | T22: 1 | U22: =IF(ISNA(VLOOKUP(C22,Master!AD$60:AP$107,10,FALSE)),"",VLOOKUP(C22,Master!AD$60:AP$107,10,FALSE)) ->  | X22: =IF(ISNA(VLOOKUP(C22,Master!AD$60:AP$107,11,FALSE)),"",VLOOKUP(C22,Master!AD$60:AP$107,11,FALSE)) ->  | Y22: =IF(ISNA(VLOOKUP(C22,Master!AD$60:AP$107,9,FALSE)),"",VLOOKUP(C22,Master!AD$60:AP$107,9,FALSE)) ->  | Z22: 0 | AA22: 0 | AB22: 0 | AC22: 0 | AD22: 0 | AE22: 0 | AL22: 0 | AM22: 0 | AO22: 0 | AP22: 0 | AQ22: 0 | AR22: 0 | AS22: 0 | AT22: 0 | AU22: 0 | AX22: 0 | AY22: 0 | AZ22: 0 | BA22: 0 | BB22: 0 | BC22: 0 | BD22: 0 | BE22: 0 | BF22: 0 | BG22: 0 | BH22: 0 | BI22: 0 | BJ22: 0 | BK22: 0 | BL22: 0 | BM22: 0 | BP22: 0 | BQ22: 0 | BR22: 1 | BS22: 0 | BT22: 0 | BU22: 0 | BV22: 1 | BW22: 0 | BX22: 1 | BY22: 0 | BZ22: 0
B23: 2202 | C23: 12 | D23: =IF(ISNA(VLOOKUP(C23,Master!AD$60:AP$107,3,FALSE)),"",VLOOKUP(C23,Master!AD$60:AP$107,3,FALSE)) ->  | E23: =IF(ISNA(VLOOKUP(C23,Master!AD$60:AP$107,7,FALSE)),"",VLOOKUP(C23,Master!AD$60:AP$107,7,FALSE)) ->  | F23: =IF(ISNA(VLOOKUP(C23,Master!AD$60:AP$107,8,FALSE)),"",VLOOKUP(C23,Master!AD$60:AP$107,8,FALSE)) ->  | G23: =IF(ISNA(VLOOKUP(C23,Master!AD$60:AP$107,4,FALSE)),"",VLOOKUP(C23,Master!AD$60:AP$107,4,FALSE)) ->  | H23: =IF(ISNA(VLOOKUP(C23,Master!AD$60:AP$107,5,FALSE)),"",VLOOKUP(C23,Master!AD$60:AP$107,5,FALSE)) ->  | I23: =IF(ISNA(VLOOKUP(C23,Master!AD$60:AP$107,6,FALSE)),"",VLOOKUP(C23,Master!AD$60:AP$107,6,FALSE)) ->  | O23: =IF(ISNA(VLOOKUP(C23,Master!AD$60:AP$107,12,FALSE)),"",VLOOKUP(C23,Master!AD$60:AP$107,12,FALSE)) ->  | S23: 0 | T23: 1 | U23: =IF(ISNA(VLOOKUP(C23,Master!AD$60:AP$107,10,FALSE)),"",VLOOKUP(C23,Master!AD$60:AP$107,10,FALSE)) ->  | X23: =IF(ISNA(VLOOKUP(C23,Master!AD$60:AP$107,11,FALSE)),"",VLOOKUP(C23,Master!AD$60:AP$107,11,FALSE)) ->  | Y23: =IF(ISNA(VLOOKUP(C23,Master!AD$60:AP$107,9,FALSE)),"",VLOOKUP(C23,Master!AD$60:AP$107,9,FALSE)) ->  | Z23: 0 | AA23: 0 | AB23: 0 | AC23: 0 | AD23: 0 | AE23: 0 | AL23: 0 | AM23: 0 | AO23: 0 | AP23: 0 | AQ23: 0 | AR23: 0 | AS23: 0 | AT23: 0 | AU23: 0 | AX23: 0 | AY23: 0 | AZ23: 0 | BA23: 0 | BB23: 0 | BC23: 0 | BD23: 0 | BE23: 0 | BF23: 0 | BG23: 0 | BH23: 0 | BI23: 0 | BJ23: 0 | BK23: 0 | BL23: 0 | BM23: 0 | BP23: 0 | BQ23: 0 | BR23: 1 | BS23: 0 | BT23: 0 | BU23: 0 | BV23: 1 | BW23: 0 | BX23: 1 | BY23: 0 | BZ23: 0
B24: 2202 | C24: 13 | D24: =IF(ISNA(VLOOKUP(C24,Master!AD$60:AP$107,3,FALSE)),"",VLOOKUP(C24,Master!AD$60:AP$107,3,FALSE)) ->  | E24: =IF(ISNA(VLOOKUP(C24,Master!AD$60:AP$107,7,FALSE)),"",VLOOKUP(C24,Master!AD$60:AP$107,7,FALSE)) ->  | F24: =IF(ISNA(VLOOKUP(C24,Master!AD$60:AP$107,8,FALSE)),"",VLOOKUP(C24,Master!AD$60:AP$107,8,FALSE)) ->  | G24: =IF(ISNA(VLOOKUP(C24,Master!AD$60:AP$107,4,FALSE)),"",VLOOKUP(C24,Master!AD$60:AP$107,4,FALSE)) ->  | H24: =IF(ISNA(VLOOKUP(C24,Master!AD$60:AP$107,5,FALSE)),"",VLOOKUP(C24,Master!AD$60:AP$107,5,FALSE)) ->  | I24: =IF(ISNA(VLOOKUP(C24,Master!AD$60:AP$107,6,FALSE)),"",VLOOKUP(C24,Master!AD$60:AP$107,6,FALSE)) ->  | O24: =IF(ISNA(VLOOKUP(C24,Master!AD$60:AP$107,12,FALSE)),"",VLOOKUP(C24,Master!AD$60:AP$107,12,FALSE)) ->  | S24: 0 | T24: 1 | U24: =IF(ISNA(VLOOKUP(C24,Master!AD$60:AP$107,10,FALSE)),"",VLOOKUP(C24,Master!AD$60:AP$107,10,FALSE)) ->  | X24: =IF(ISNA(VLOOKUP(C24,Master!AD$60:AP$107,11,FALSE)),"",VLOOKUP(C24,Master!AD$60:AP$107,11,FALSE)) ->  | Y24: =IF(ISNA(VLOOKUP(C24,Master!AD$60:AP$107,9,FALSE)),"",VLOOKUP(C24,Master!AD$60:AP$107,9,FALSE)) ->  | Z24: 0 | AA24: 0 | AB24: 0 | AC24: 0 | AD24: 0 | AE24: 0 | AL24: 0 | AM24: 0 | AO24: 0 | AP24: 0 | AQ24: 0 | AR24: 0 | AS24: 0 | AT24: 0 | AU24: 0 | AX24: 0 | AY24: 0 | AZ24: 0 | BA24: 0 | BB24: 0 | BC24: 0 | BD24: 0 | BE24: 0 | BF24: 0 | BG24: 0 | BH24: 0 | BI24: 0 | BJ24: 0 | BK24: 0 | BL24: 0 | BM24: 0 | BP24: 0 | BQ24: 0 | BR24: 1 | BS24: 0 | BT24: 0 | BU24: 0 | BV24: 1 | BW24: 0 | BX24: 1 | BY24: 0 | BZ24: 0
B25: 2202 | C25: 14 | D25: =IF(ISNA(VLOOKUP(C25,Master!AD$60:AP$107,3,FALSE)),"",VLOOKUP(C25,Master!AD$60:AP$107,3,FALSE)) ->  | E25: =IF(ISNA(VLOOKUP(C25,Master!AD$60:AP$107,7,FALSE)),"",VLOOKUP(C25,Master!AD$60:AP$107,7,FALSE)) ->  | F25: =IF(ISNA(VLOOKUP(C25,Master!AD$60:AP$107,8,FALSE)),"",VLOOKUP(C25,Master!AD$60:AP$107,8,FALSE)) ->  | G25: =IF(ISNA(VLOOKUP(C25,Master!AD$60:AP$107,4,FALSE)),"",VLOOKUP(C25,Master!AD$60:AP$107,4,FALSE)) ->  | H25: =IF(ISNA(VLOOKUP(C25,Master!AD$60:AP$107,5,FALSE)),"",VLOOKUP(C25,Master!AD$60:AP$107,5,FALSE)) ->  | I25: =IF(ISNA(VLOOKUP(C25,Master!AD$60:AP$107,6,FALSE)),"",VLOOKUP(C25,Master!AD$60:AP$107,6,FALSE)) ->  | O25: =IF(ISNA(VLOOKUP(C25,Master!AD$60:AP$107,12,FALSE)),"",VLOOKUP(C25,Master!AD$60:AP$107,12,FALSE)) ->  | S25: 0 | T25: 1 | U25: =IF(ISNA(VLOOKUP(C25,Master!AD$60:AP$107,10,FALSE)),"",VLOOKUP(C25,Master!AD$60:AP$107,10,FALSE)) ->  | X25: =IF(ISNA(VLOOKUP(C25,Master!AD$60:AP$107,11,FALSE)),"",VLOOKUP(C25,Master!AD$60:AP$107,11,FALSE)) ->  | Y25: =IF(ISNA(VLOOKUP(C25,Master!AD$60:AP$107,9,FALSE)),"",VLOOKUP(C25,Master!AD$60:AP$107,9,FALSE)) ->  | Z25: 0 | AA25: 0 | AB25: 0 | AC25: 0 | AD25: 0 | AE25: 0 | AL25: 0 | AM25: 0 | AN25: =IF(AND(AG25=""),"",ROUND((AG25+AH25)*$AN$10,0)*BU25) ->  | AO25: 0 | AP25: 0 | AQ25: 0 | AR25: 0 | AS25: 0 | AT25: 0 | AU25: 0 | AX25: 0 | AY25: 0 | AZ25: 0 | BA25: 0 | BB25: 0 | BC25: 0 | BD25: 0 | BE25: 0 | BF25: 0 | BG25: 0 | BH25: 0 | BI25: 0 | BJ25: 0 | BK25: 0 | BL25: 0 | BM25: 0 | BP25: 0 | BQ25: 0 | BR25: 1 | BS25: 0 | BT25: 0 | BU25: 0 | BV25: 1 | BW25: 0 | BX25: 1 | BY25: 0 | BZ25: 0
G26: TOTAL GAZETTED REGULAR | I26: =SUM(I12:I25) -> 69300 | J26: =SUM(J12:J25) -> 831600 | L26: =SUM(L12:L25) -> 16800 | M26: =SUM(M12:M25) -> 848400 | N26: =SUM(N12:N25) -> 823600 | AS26: 0 | BX26: =MID(E26,5,4) -> 
A27: =IF(I27="","",IF(I27>0,MAX(A12:A25)+1,"")) -> 2 | B27: 2202 | C27: 1 | D27: =IF(ISNA(VLOOKUP(C27,Master!AQ$60:BC$285,3,FALSE)),"",VLOOKUP(C27,Master!AQ$60:BC$285,3,FALSE)) -> FGD | E27: =IF(ISNA(VLOOKUP(C27,Master!AQ$60:BC$285,7,FALSE)),"",VLOOKUP(C27,Master!AQ$60:BC$285,7,FALSE)) -> RJJO201325036050 | F27: =IF(ISNA(VLOOKUP(C27,Master!AQ$60:BC$285,8,FALSE)),"",VLOOKUP(C27,Master!AQ$60:BC$285,8,FALSE)) -> 0 | G27: =IF(ISNA(VLOOKUP(C27,Master!AQ$60:BC$285,4,FALSE)),"",VLOOKUP(C27,Master!AQ$60:BC$285,4,FALSE)) -> TEACHER-II | H27: =IF(ISNA(VLOOKUP(C27,Master!AQ$60:BC$285,5,FALSE)),"",VLOOKUP(C27,Master!AQ$60:BC$285,5,FALSE)) -> L-11 | I27: =IF(ISNA(VLOOKUP(C27,Master!AQ$60:BC$285,6,FALSE)),"",VLOOKUP(C27,Master!AQ$60:BC$285,6,FALSE)) -> 45100 | J27: =IF(AND(I27=""),"",I27*12) -> 541200 | K27: =IF(AND(I27=""),"",IF(I27<=0,"",(CONCATENATE("01.07.",(YEAR(TODAY())+1))))) -> 01.07.2024 | L27: =IF(AND(I27=""),"",ROUND(ROUND(I27*3%,0),-2)*IF(H27="FIX PAY",0,1)*8) -> 11200 | M27: =IF(AND(I27=""),"",J27+L27) -> 552400 | N27: =IF(AND(I27=""),"",IF(O27="FIX PAY",M27,((IF(O27="FIX PAY",0,AF27*4+I27*8))))) -> 536000 | O27: =IF(ISNA(VLOOKUP(C27,Master!AQ$60:BC$285,12,FALSE)),"",VLOOKUP(C27,Master!AQ$60:BC$285,12,FALSE)) -> NON GAZETTED - REGULAR | S27: =IF(H27="l-10",6774,IF(H27="l-11",6774,IF(H27="l-12",6774,0))) -> 6774 | T27: 1 | U27: =IF(ISNA(VLOOKUP(C27,Master!AQ$60:BC$285,10,FALSE)),"",VLOOKUP(C27,Master!AQ$60:BC$285,10,FALSE)) -> 0 | X27: =IF(ISNA(VLOOKUP(C27,Master!AQ$60:BC$285,11,FALSE)),"",VLOOKUP(C27,Master!AQ$60:BC$285,11,FALSE)) -> 0 | Y27: =IF(ISNA(VLOOKUP(C27,Master!AQ$60:BC$285,9,FALSE)),"",VLOOKUP(C27,Master!AQ$60:BC$285,9,FALSE)) -> 0 | Z27: =IF(Y27="MALE",1,0)*(IF(G27="JAMADAR",1,0))*(IF(I27<=0,0,1)) -> 0 | AA27: =IF(Y27="FEMALE",1,0)*(IF(G27="JAMADAR",1,0))*(IF(I27<=0,0,1)) -> 0 | AB27: =IF(Y27="MALE",1,0)*(IF(G27="LAB BOY",1,0))*(IF(I27<=0,0,1)) -> 0 | AC27: =IF(Y27="FEMALE",1,0)*(IF(G27="LAB BOY",1,0))*(IF(I27<=0,0,1)) -> 0 | AD27: =IF(Y27="MALE",1,0)*(IF(G27="PEON",1,0))*(IF(I27<=0,0,1)) -> 0 | AE27: =IF(Y27="FEMALE",1,0)*(IF(G27="PEON",1,0))*(IF(I27<=0,0,1)) -> 0 | AF27: =IF(AND(I27=""),"",I27-ROUNDUP(ROUND((I27*3%)-(I27*3%)*2.9%,-2),0)) -> 43800 | AG27: =IF(AND(I27=""),"",$M27*$BQ27) -> 0 | AH27: =IF(AND(I27=""),"",$M27*$BR27) -> 552400 | AI27: =IF(AND(I27=""),"",$M27*$BS27) -> 0 | AJ27: =IF(AND(I27=""),"",$M27*$BT27) -> 0 | AK27: =IF(AND(I27=""),"",ROUND((AG27+AH27)*$AK$10,0)*BU27) -> 0 | AL27: 0 | AM27: 0 | AN27: =IF(AND(I27=""),"",ROUND((AG27+AH27)*$AN$10,0)*BU27) -> 0 | AO27: =$G$221*BR27*BU27*(IF(I27<=0,0,1))*(IF(H27<=4800,1,0)) -> 0 | AP27: 32021 | AQ27: =IF(G27="CLERK GRADE I",1,IF(G27="CLERK GRADE II",1,0))*75*12*BU27*(IF(I27<=0,0,1))*BV27 -> 0 | AR27: =IF(AND(I27=""),0,(IF(G27="ASSISTANT",12,IF(G27="CLERK GRADE I",12,IF(G27="CLERK GRADE II",12,IF(G27="FIELDMAN & FIELD REC",12,IF(G27="LAB BOY",12,IF(G27="JAMADAR",12,IF(G27="PEON",12,10))))))))*(MINA(ROUND(I27*6%,0),600))*(IF($U27="yes",1,0))) -> 0 | AS27: 0 | AT27: =IF(AND(G27=""),0,SUM(AK27:AS27)+AG27+AH27) -> 584421 | AU27: =IF(AND(G27=""),0,AT27) -> 584421 | AX27: =AU27+AV27+AW27 -> 584421 | AY27: =IF(AND(G27=""),0,N27*BQ27) -> 0 | AZ27: =IF(AND(G27=""),0,N27*BR27) -> 536000 | BA27: =IF(AND(G27=""),0,N27*BS27) -> 0 | BB27: =IF(AND(G27=""),0,N27*BT27) -> 0 | BC27: =ROUND((AY27+AZ27)*$BC$10,0)*BU27 -> 0 | BD27: =IF(AND(G27=""),0,ROUND((IF(O27="FIX PAY",0,AF27))*$BD$10*2,0)*BU27) -> 0 | BE27: 0 | BF27: =ROUND((AY27+AZ27)*$BF$10,0)*BU27 -> 0 | BG27: =3387*2*BR27*BU27*(IF(I27<=0,0,1))*(IF(H27<=4800,1,0)) -> 0 | BH27: 31098 | BI27: =IF(G27="CLERK GRADE I",1,IF(G27="CLERK GRADE II",1,0))*75*12*BU27*(IF(I27<=0,0,1))*BV27 -> 0 | BJ27: =IF(AND(G27=""),0,(IF(G27="ASSISTANT",12,IF(G27="CLERK GRADE I",12,IF(G27="CLERK GRADE II",12,IF(G27="FIELDMAN & FIELD REC",12,IF(G27="LAB BOY",12,IF(G27="JAMADAR",12,IF(G27="PEON",12,10))))))))*(MINA(ROUND(AF27*6%,0),600))*(IF($U27="yes",1,))) -> 0 | BK27: =(IF(G27="LAB BOY",150,IF(G27="JAMADAR",150,IF(G27="PEON",150,0))))*12*BU27*(IF(I27<=0,0,1)) -> 0 | BL27: =SUM(BC27:BK27)+AY27+AZ27 -> 567098 | BM27: =BL27 -> 567098 | BP27: =BM27+BN27+BO27 -> 567098 | BQ27: =(IF(G27="PRINCIPAL",1,IF(G27="H M",1,IF(G27="AGRICULTURE INST",1,IF(G27="TEACHER-1ST",1,IF(G27="PTI I (13)",1,IF(G27="AGRICULTURE TEACH",1,IF(G27="INSTRUCTOR",1,0))))))))+(IF(G27="JR TEACHER",1,IF(G27="LIBRARIAN I",1,0)))*(IF(O27="FIX PAY",0,1)) -> 0 | BR27: =IF(BQ27<=0,1,0)*(IF(O27="FIX PAY",0,1)) -> 1 | BS27: =(IF(G27="PRINCIPAL (16)",1,IF(G27="V P (14)",1,IF(G27="H M (14)",1,IF(G27="AGRICULTURE INST (13)",1,IF(G27="TEACHER-1ST (13)",1,IF(G27="PTI I (13)",1,IF(G27="AGRICULTURE TEACH (13)",1,IF(G27="INSTRUCTOR (13)",1,0))))))))+(IF(G27="JR TEACHER (13)",1,IF(G27="LIBRARIAN I (13)",1,0))))*(IF(O27="FIX PAY",1,0)) -> 0 | BT27: =IF(BS27<=0,1,0)*(IF(O27="FIX PAY",1,0)) -> 0 | BU27: 0 | BV27: =IF(X27="No",0,1) -> 1 | BW27: =IF((ROUND((SUMPRODUCT(MID(0&E27,LARGE(INDEX(ISNUMBER(--MID(E27,ROW($1:$25),1))* ROW($1:$25),0),ROW($1:$25))+1,1)*10^ROW($1:$25)/10)),-8)/100000000)>=2004,1,0) -> 1 | BX27: =IF(I27<=0,0,1) -> 1 | BY27: 0 | BZ27: 0 | CA27: =IF(AND(E27=""),"",IF(AND(E27<=0),"",IF((ROUND((SUMPRODUCT(MID(0&E27,LARGE(INDEX(ISNUMBER(--MID(E27,ROW($1:$70),1))* ROW($1:$70),0),ROW($1:$70))+1,1)*10^ROW($1:$70)/10)),-8)/100000000)<2004,1,0))) -> 0
A28: =IF(I28="","",IF(I28>0,A27+1,"")) -> 3 | B28: 2202 | C28: 2 | D28: =IF(ISNA(VLOOKUP(C28,Master!AQ$60:BC$285,3,FALSE)),"",VLOOKUP(C28,Master!AQ$60:BC$285,3,FALSE)) -> ZGD | E28: =IF(ISNA(VLOOKUP(C28,Master!AQ$60:BC$285,7,FALSE)),"",VLOOKUP(C28,Master!AQ$60:BC$285,7,FALSE)) -> RJJO201725019704 | F28: =IF(ISNA(VLOOKUP(C28,Master!AQ$60:BC$285,8,FALSE)),"",VLOOKUP(C28,Master!AQ$60:BC$285,8,FALSE)) -> 0 | G28: =IF(ISNA(VLOOKUP(C28,Master!AQ$60:BC$285,4,FALSE)),"",VLOOKUP(C28,Master!AQ$60:BC$285,4,FALSE)) -> TEACHER-III | H28: =IF(ISNA(VLOOKUP(C28,Master!AQ$60:BC$285,5,FALSE)),"",VLOOKUP(C28,Master!AQ$60:BC$285,5,FALSE)) -> L-10 | I28: =IF(ISNA(VLOOKUP(C28,Master!AQ$60:BC$285,6,FALSE)),"",VLOOKUP(C28,Master!AQ$60:BC$285,6,FALSE)) -> 36900 | J28: =IF(AND(I28=""),"",I28*12) -> 442800 | K28: =IF(AND(I28=""),"",IF(I28<=0,"",(CONCATENATE("01.07.",(YEAR(TODAY())+1))))) -> 01.07.2024 | L28: =IF(AND(I28=""),"",ROUND(ROUND(I28*3%,0),-2)*IF(H28="FIX PAY",0,1)*8) -> 8800 | M28: =IF(AND(I28=""),"",J28+L28) -> 451600 | N28: =IF(AND(I28=""),"",IF(O28="FIX PAY",M28,((IF(O28="FIX PAY",0,AF28*4+I28*8))))) -> 438400 | O28: =IF(ISNA(VLOOKUP(C28,Master!AQ$60:BC$285,12,FALSE)),"",VLOOKUP(C28,Master!AQ$60:BC$285,12,FALSE)) -> NON GAZETTED - REGULAR | S28: 6774 | T28: 1 | U28: =IF(ISNA(VLOOKUP(C28,Master!AQ$60:BC$285,10,FALSE)),"",VLOOKUP(C28,Master!AQ$60:BC$285,10,FALSE)) -> 0 | X28: =IF(ISNA(VLOOKUP(C28,Master!AQ$60:BC$285,11,FALSE)),"",VLOOKUP(C28,Master!AQ$60:BC$285,11,FALSE)) -> 0 | Y28: =IF(ISNA(VLOOKUP(C28,Master!AQ$60:BC$285,9,FALSE)),"",VLOOKUP(C28,Master!AQ$60:BC$285,9,FALSE)) -> 0 | Z28: =IF(Y28="MALE",1,0)*(IF(G28="JAMADAR",1,0))*(IF(I28<=0,0,1)) -> 0 | AA28: =IF(Y28="FEMALE",1,0)*(IF(G28="JAMADAR",1,0))*(IF(I28<=0,0,1)) -> 0 | AB28: =IF(Y28="MALE",1,0)*(IF(G28="LAB BOY",1,0))*(IF(I28<=0,0,1)) -> 0 | AC28: =IF(Y28="FEMALE",1,0)*(IF(G28="LAB BOY",1,0))*(IF(I28<=0,0,1)) -> 0 | AD28: =IF(Y28="MALE",1,0)*(IF(G28="PEON",1,0))*(IF(I28<=0,0,1)) -> 0 | AE28: =IF(Y28="FEMALE",1,0)*(IF(G28="PEON",1,0))*(IF(I28<=0,0,1)) -> 0 | AF28: =IF(AND(I28=""),"",I28-ROUNDUP(ROUND((I28*3%)-(I28*3%)*2.9%,-2),0)) -> 35800 | AG28: =IF(AND(I28=""),"",$M28*$BQ28) -> 0 | AH28: =IF(AND(I28=""),"",$M28*$BR28) -> 451600 | AI28: =IF(AND(I28=""),"",$M28*$BS28) -> 0 | AJ28: =IF(AND(I28=""),"",$M28*$BT28) -> 0 | AK28: =IF(AND(I28=""),"",ROUND((AG28+AH28)*$AK$10,0)*BU28) -> 0 | AL28: 0 | AM28: 0 | AN28: =IF(AND(I28=""),"",ROUND((AG28+AH28)*$AN$10,0)*BU28) -> 0 | AO28: 0 | AP28: 26199 | AQ28: 0 | AR28: 0 | AS28: 0 | AT28: 477799 | AU28: 477799 | AX28: =AU28+AV28+AW28 -> 477799 | AY28: 0 | AZ28: 438400 | BA28: 0 | BB28: 0 | BC28: =ROUND((AY28+AZ28)*$BC$10,0)*BU28 -> 0 | BD28: 0 | BE28: 0 | BF28: =ROUND((AY28+AZ28)*$BF$10,0)*BU28 -> 0 | BG28: 0 | BH28: 25418 | BI28: 0 | BJ28: 0 | BK28: 0 | BL28: =SUM(BC28:BK28)+AY28+AZ28 -> 463818 | BM28: =BL28 -> 463818 | BP28: =BM28+BN28+BO28 -> 463818 | BQ28: 0 | BR28: 1 | BS28: 0 | BT28: 0 | BU28: 0 | BV28: =IF(X28="No",0,1) -> 1 | BW28: 1 | BX28: =IF(I28<=0,0,1) -> 1 | BY28: 0 | BZ28: 0 | CA28: 0
A29: =IF(I29="","",IF(I29>0,A28+1,"")) -> 4 | B29: 2202 | C29: 3 | D29: =IF(ISNA(VLOOKUP(C29,Master!AQ$60:BC$285,3,FALSE)),"",VLOOKUP(C29,Master!AQ$60:BC$285,3,FALSE)) -> DBCZFB | E29: =IF(ISNA(VLOOKUP(C29,Master!AQ$60:BC$285,7,FALSE)),"",VLOOKUP(C29,Master!AQ$60:BC$285,7,FALSE)) -> RJJO200725008042 | F29: =IF(ISNA(VLOOKUP(C29,Master!AQ$60:BC$285,8,FALSE)),"",VLOOKUP(C29,Master!AQ$60:BC$285,8,FALSE)) -> 0 | G29: =IF(ISNA(VLOOKUP(C29,Master!AQ$60:BC$285,4,FALSE)),"",VLOOKUP(C29,Master!AQ$60:BC$285,4,FALSE)) -> TEACHER-III | H29: =IF(ISNA(VLOOKUP(C29,Master!AQ$60:BC$285,5,FALSE)),"",VLOOKUP(C29,Master!AQ$60:BC$285,5,FALSE)) -> L-11 | I29: =IF(ISNA(VLOOKUP(C29,Master!AQ$60:BC$285,6,FALSE)),"",VLOOKUP(C29,Master!AQ$60:BC$285,6,FALSE)) -> 49300 | J29: 591600 | K29: 01.07.2024 | L29: 12000 | M29: 603600 | N29: 586000 | O29: =IF(ISNA(VLOOKUP(C29,Master!AQ$60:BC$285,12,FALSE)),"",VLOOKUP(C29,Master!AQ$60:BC$285,12,FALSE)) -> NON GAZETTED - REGULAR | S29: 6774 | T29: 1 | U29: =IF(ISNA(VLOOKUP(C29,Master!AQ$60:BC$285,10,FALSE)),"",VLOOKUP(C29,Master!AQ$60:BC$285,10,FALSE)) -> 0 | X29: =IF(ISNA(VLOOKUP(C29,Master!AQ$60:BC$285,11,FALSE)),"",VLOOKUP(C29,Master!AQ$60:BC$285,11,FALSE)) -> 0 | Y29: =IF(ISNA(VLOOKUP(C29,Master!AQ$60:BC$285,9,FALSE)),"",VLOOKUP(C29,Master!AQ$60:BC$285,9,FALSE)) -> 0 | Z29: 0 | AA29: 0 | AB29: 0 | AC29: 0 | AD29: 0 | AE29: 0 | AF29: 47900 | AG29: 0 | AH29: 603600 | AI29: 0 | AJ29: 0 | AK29: 0 | AL29: 0 | AM29: 0 | AN29: 0 | AO29: 0 | AP29: 35003 | AQ29: 0 | AR29: 0 | AS29: 0 | AT29: 638603 | AU29: 638603 | AX29: 638603 | AY29: 0 | AZ29: 586000 | BA29: 0 | BB29: 0 | BC29: 0 | BD29: 0 | BE29: 0 | BF29: 0 | BG29: 0 | BH29: 34009 | BI29: 0 | BJ29: 0 | BK29: 0 | BL29: 620009 | BM29: 620009 | BP29: 620009 | BQ29: 0 | BR29: 1 | BS29: 0 | BT29: 0 | BU29: 0 | BV29: 1 | BW29: 1 | BX29: 1 | BY29: 0 | BZ29: 0 | CA29: 0
A30: 5 | B30: 2202 | C30: 4 | D30: =IF(ISNA(VLOOKUP(C30,Master!AQ$60:BC$285,3,FALSE)),"",VLOOKUP(C30,Master!AQ$60:BC$285,3,FALSE)) -> D | E30: =IF(ISNA(VLOOKUP(C30,Master!AQ$60:BC$285,7,FALSE)),"",VLOOKUP(C30,Master!AQ$60:BC$285,7,FALSE)) -> RJJO201525034739 | F30: =IF(ISNA(VLOOKUP(C30,Master!AQ$60:BC$285,8,FALSE)),"",VLOOKUP(C30,Master!AQ$60:BC$285,8,FALSE)) -> 0 | G30: =IF(ISNA(VLOOKUP(C30,Master!AQ$60:BC$285,4,FALSE)),"",VLOOKUP(C30,Master!AQ$60:BC$285,4,FALSE)) -> TEACHER-III | H30: =IF(ISNA(VLOOKUP(C30,Master!AQ$60:BC$285,5,FALSE)),"",VLOOKUP(C30,Master!AQ$60:BC$285,5,FALSE)) -> L-10 | I30: =IF(ISNA(VLOOKUP(C30,Master!AQ$60:BC$285,6,FALSE)),"",VLOOKUP(C30,Master!AQ$60:BC$285,6,FALSE)) -> 40300 | J30: 483600 | K30: 01.07.2024 | L30: 9600 | M30: 493200 | N30: 478800 | O30: =IF(ISNA(VLOOKUP(C30,Master!AQ$60:BC$285,12,FALSE)),"",VLOOKUP(C30,Master!AQ$60:BC$285,12,FALSE)) -> NON GAZETTED - REGULAR | S30: 6774 | T30: 1 | U30: =IF(ISNA(VLOOKUP(C30,Master!AQ$60:BC$285,10,FALSE)),"",VLOOKUP(C30,Master!AQ$60:BC$285,10,FALSE)) -> 0 | X30: =IF(ISNA(VLOOKUP(C30,Master!AQ$60:BC$285,11,FALSE)),"",VLOOKUP(C30,Master!AQ$60:BC$285,11,FALSE)) -> 0 | Y30: =IF(ISNA(VLOOKUP(C30,Master!AQ$60:BC$285,9,FALSE)),"",VLOOKUP(C30,Master!AQ$60:BC$285,9,FALSE)) -> 0 | Z30: 0 | AA30: 0 | AB30: 0 | AC30: 0 | AD30: 0 | AE30: 0 | AF30: 39100 | AG30: 0 | AH30: 493200 | AI30: 0 | AJ30: 0 | AK30: 0 | AL30: 0 | AM30: 0 | AN30: 0 | AO30: 0 | AP30: 28613 | AQ30: 0 | AR30: 0 | AS30: 0 | AT30: 521813 | AU30: 521813 | AX30: 521813 | AY30: 0 | AZ30: 478800 | BA30: 0 | BB30: 0 | BC30: 0 | BD30: 0 | BE30: 0 | BF30: 0 | BG30: 0 | BH30: 27761 | BI30: 0 | BJ30: 0 | BK30: 0 | BL30: 506561 | BM30: 506561 | BP30: 506561 | BQ30: 0 | BR30: 1 | BS30: 0 | BT30: 0 | BU30: 0 | BV30: 1 | BW30: 1 | BX30: 1 | BY30: 0 | BZ30: 0 | CA30: 0
A31: 6 | B31: 2202 | C31: 5 | D31: =IF(ISNA(VLOOKUP(C31,Master!AQ$60:BC$285,3,FALSE)),"",VLOOKUP(C31,Master!AQ$60:BC$285,3,FALSE)) -> BCBD | E31: =IF(ISNA(VLOOKUP(C31,Master!AQ$60:BC$285,7,FALSE)),"",VLOOKUP(C31,Master!AQ$60:BC$285,7,FALSE)) -> RJJO201325036063 | F31: =IF(ISNA(VLOOKUP(C31,Master!AQ$60:BC$285,8,FALSE)),"",VLOOKUP(C31,Master!AQ$60:BC$285,8,FALSE)) -> 0 | G31: =IF(ISNA(VLOOKUP(C31,Master!AQ$60:BC$285,4,FALSE)),"",VLOOKUP(C31,Master!AQ$60:BC$285,4,FALSE)) -> TEACHER-III | H31: =IF(ISNA(VLOOKUP(C31,Master!AQ$60:BC$285,5,FALSE)),"",VLOOKUP(C31,Master!AQ$60:BC$285,5,FALSE)) -> L-11 | I31: =IF(ISNA(VLOOKUP(C31,Master!AQ$60:BC$285,6,FALSE)),"",VLOOKUP(C31,Master!AQ$60:BC$285,6,FALSE)) -> 45100 | J31: 541200 | K31: 01.07.2024 | L31: 11200 | M31: 552400 | N31: 536000 | O31: =IF(ISNA(VLOOKUP(C31,Master!AQ$60:BC$285,12,FALSE)),"",VLOOKUP(C31,Master!AQ$60:BC$285,12,FALSE)) -> NON GAZETTED - REGULAR | S31: 6774 | T31: 1 | U31: =IF(ISNA(VLOOKUP(C31,Master!AQ$60:BC$285,10,FALSE)),"",VLOOKUP(C31,Master!AQ$60:BC$285,10,FALSE)) -> 0 | X31: =IF(ISNA(VLOOKUP(C31,Master!AQ$60:BC$285,11,FALSE)),"",VLOOKUP(C31,Master!AQ$60:BC$285,11,FALSE)) -> 0 | Y31: =IF(ISNA(VLOOKUP(C31,Master!AQ$60:BC$285,9,FALSE)),"",VLOOKUP(C31,Master!AQ$60:BC$285,9,FALSE)) -> 0 | Z31: 0 | AA31: 0 | AB31: 0 | AC31: 0 | AD31: 0 | AE31: 0 | AF31: 43800 | AG31: 0 | AH31: 552400 | AI31: 0 | AJ31: 0 | AK31: 0 | AL31: 0 | AM31: 0 | AN31: 0 | AO31: 0 | AP31: 32021 | AQ31: 0 | AR31: 0 | AS31: 0 | AT31: 584421 | AU31: 584421 | AX31: 584421 | AY31: 0 | AZ31: 536000 | BA31: 0 | BB31: 0 | BC31: 0 | BD31: 0 | BE31: 0 | BF31: 0 | BG31: 0 | BH31: 31098 | BI31: 0 | BJ31: 0 | BK31: 0 | BL31: 567098 | BM31: 567098 | BP31: 567098 | BQ31: 0 | BR31: 1 | BS31: 0 | BT31: 0 | BU31: 0 | BV31: 1 | BW31: 1 | BX31: 1 | BY31: 0 | BZ31: 0 | CA31: 0
